Workbook

Sheet fnd budget
S1: =VLOOKUP(orderCHA,charterinfo_a,4) -> 409
S2: =VLOOKUP(orderCHA,charterinfo_a,5) -> 201
S3: =VLOOKUP(orderCHA,charterinfo_a,6) -> 201
A6: Massachusetts Department of Elementary and Secondary Education
A7: F Y 1 8 F O U N D A T I O N B U D G E T
A8: =VLOOKUP(orderCHA,charterinfo_a,2) -> 409 - ALMA DEL MAR Charter School - NEW BEDFORD pupils
C9: Items | D9: ---------------------------------------- Base Foundation Components ------------------------------------------------- | O9: --- Incremental Costs Above The Base ---
C10: Adj by | D10: (1) | E10: (2) | F10: (3) | G10: (4) | H10: (5) | I10: (6) | J10: (7) | K10: (8) | L10: (9) | M10: (10) | O10: (11) | P10: (12) | Q10: (13)
C11: Wage | D11: Pre- | E11: -- Kindergarten -- | G11: Elem- | H11: Jr High/ | I11: High | J11: ELL | K11: ELL | L11: ELL | M11: Voca- | O11: Sped In-school | P11: Sped Out | Q11: Low
C12: Fctr = w | D12: School | E12: K Half | F12: K Full | G12: entary | H12: Middle | I12: School | J12: PK | K12: K Half | L12: KF - 12 | M12: tional | O12: (3.75% of total) | P12: of District* | Q12: Income | S12: TOTAL**
B14: Foundation Enrollment | D14: =VLOOKUP(VLOOKUP(orderCHA,charterinfo_a,3), rate_chafnd,3) -> 0 | E14: =VLOOKUP(VLOOKUP(orderCHA,charterinfo_a,3),rate_chafnd,4) -> 0 | F14: =VLOOKUP(VLOOKUP(orderCHA,charterinfo_a,3),rate_chafnd,5) -> 23 | G14: =VLOOKUP(VLOOKUP(orderCHA,charterinfo_a,3),rate_chafnd,6) -> 181 | H14: =VLOOKUP(VLOOKUP(orderCHA,charterinfo_a,3),rate_chafnd,7) -> 81 | I14: =VLOOKUP(VLOOKUP(orderCHA,charterinfo_a,3),rate_chafnd,8) -> 0 | J14: =VLOOKUP(VLOOKUP(orderCHA,charterinfo_a,3),rate_chafnd,11) -> 0 | K14: =VLOOKUP(VLOOKUP(orderCHA,charterinfo_a,3),rate_chafnd,12) -> 0 | L14: =VLOOKUP(VLOOKUP(orderCHA,charterinfo_a,3),rate_chafnd,13) -> 38 | M14: =VLOOKUP(VLOOKUP(orderCHA,charterinfo_a,3),rate_chafnd,14) -> 0 | O14: =VLOOKUP(VLOOKUP(orderCHA,charterinfo_a,3),rate_chafnd,9) -> 12.1125 | P14: =VLOOKUP(VLOOKUP(orderCHA,charterinfo_a,3),rate_chafnd,10) -> 0 | Q14: =VLOOKUP(VLOOKUP(orderCHA,charterinfo_a,3),rate_chafnd,15) -> 195 | S14: =VLOOKUP(VLOOKUP(orderCHA,charterinfo_a,3),rate_chafnd,17) -> 323
A16: 1 | B16: Administration | C16: w | D16: ='fnd base rates'!$C48*$D$30*D$14 -> 0 | E16: ='fnd base rates'!$C49*$D$30*E$14 -> 0 | F16: ='fnd base rates'!$C50*$D$30*F$14 -> 8464.92 | G16: ='fnd base rates'!$C51*$D$30*G$14 -> 66615.24 | H16: ='fnd base rates'!$C52*$D$30*H$14 -> 29811.24 | I16: ='fnd base rates'!$C53*$D$30*I$14 -> 0 | J16: ='fnd base rates'!$C56*$D$30*J$14 -> 0 | K16: ='fnd base rates'!$C57*$D$30*K$14 -> 0 | L16: ='fnd base rates'!$C58*$D$30*L$14 -> 13985.52 | M16: ='fnd base rates'!$C59*$D$30*M$14 -> 0 | O16: ='fnd base rates'!$C54*$D$30*O$14 -> 30767.56688 | P16: ='fnd base rates'!$C55*$D$30*P$14 -> 0 | Q16: =VLOOKUP((VLOOKUP(VLOOKUP(orderCHA,charterinfo_a,3),rate_chafnd,19)+12),rate_basefnd,3)*$D$30*Q$14 -> 0 | S16: =SUM(D16:Q16) -> 149644.4869
A17: 2 | B17: Instructional Leadership | C17: w | D17: ='fnd base rates'!$D48*$D$30*D$14 -> 0 | E17: ='fnd base rates'!$D49*$D$30*E$14 -> 0 | F17: ='fnd base rates'!$D50*$D$30*F$14 -> 15288.56 | G17: ='fnd base rates'!$D51*$D$30*G$14 -> 120314.32 | H17: ='fnd base rates'!$D52*$D$30*H$14 -> 53842.32 | I17: ='fnd base rates'!$D53*$D$30*I$14 -> 0 | J17: ='fnd base rates'!$D56*$D$30*J$14 -> 0 | K17: ='fnd base rates'!$D57*$D$30*K$14 -> 0 | L17: ='fnd base rates'!$D58*$D$30*L$14 -> 25259.36 | M17: ='fnd base rates'!$D59*$D$30*M$14 -> 0 | O17: ='fnd base rates'!$D54*$D$30*O$14 -> 0 | P17: ='fnd base rates'!$D55*$D$30*P$14 -> 0 | Q17: =VLOOKUP((VLOOKUP(VLOOKUP(orderCHA,charterinfo_a,3),rate_chafnd,19)+12),rate_basefnd,4)*$D$30*Q$14 -> 0 | S17: 214704.56
A18: 3 | B18: Classroom and Specialist Teachers | C18: w | D18: ='fnd base rates'!$E48*$D$30*D$14 -> 0 | E18: ='fnd base rates'!$E49*$D$30*E$14 -> 0 | F18: ='fnd base rates'!$E50*$D$30*F$14 -> 70103.31 | G18: ='fnd base rates'!$E51*$D$30*G$14 -> 551675.33 | H18: ='fnd base rates'!$E52*$D$30*H$14 -> 217258.2 | I18: ='fnd base rates'!$E53*$D$30*I$14 -> 0 | J18: ='fnd base rates'!$E56*$D$30*J$14 -> 0 | K18: ='fnd base rates'!$E57*$D$30*K$14 -> 0 | L18: ='fnd base rates'!$E58*$D$30*L$14 -> 174432.54 | M18: ='fnd base rates'!$E59*$D$30*M$14 -> 0 | O18: ='fnd base rates'!$E54*$D$30*O$14 -> 101525.1581 | P18: ='fnd base rates'!$E55*$D$30*P$14 -> 0 | Q18: =VLOOKUP((VLOOKUP(VLOOKUP(orderCHA,charterinfo_a,3),rate_chafnd,19)+12),rate_basefnd,5)*$D$30*Q$14 -> 637950.3 | S18: 1752944.838
A19: 4 | B19: Other Teaching Services | C19: w | D19: ='fnd base rates'!$F48*$D$30*D$14 -> 0 | E19: ='fnd base rates'!$F49*$D$30*E$14 -> 0 | F19: ='fnd base rates'!$F50*$D$30*F$14 -> 17980.02 | G19: ='fnd base rates'!$F51*$D$30*G$14 -> 141494.94 | H19: ='fnd base rates'!$F52*$D$30*H$14 -> 45581.13 | I19: ='fnd base rates'!$F53*$D$30*I$14 -> 0 | J19: ='fnd base rates'!$F56*$D$30*J$14 -> 0 | K19: ='fnd base rates'!$F57*$D$30*K$14 -> 0 | L19: ='fnd base rates'!$F58*$D$30*L$14 -> 23753.04 | M19: ='fnd base rates'!$F59*$D$30*M$14 -> 0 | O19: ='fnd base rates'!$F54*$D$30*O$14 -> 94792.66725 | P19: ='fnd base rates'!$F55*$D$30*P$14 -> 0 | Q19: =VLOOKUP((VLOOKUP(VLOOKUP(orderCHA,charterinfo_a,3),rate_chafnd,19)+12),rate_basefnd,6)*$D$30*Q$14 -> 0 | S19: 323601.7973
A20: 5 | B20: Professional Development | C20: w | D20: ='fnd base rates'!$G48*$D$30*D$14 -> 0 | E20: ='fnd base rates'!$G49*$D$30*E$14 -> 0 | F20: ='fnd base rates'!$G50*$D$30*F$14 -> 2773.8 | G20: ='fnd base rates'!$G51*$D$30*G$14 -> 21832.22 | H20: ='fnd base rates'!$G52*$D$30*H$14 -> 10591.56 | I20: ='fnd base rates'!$G53*$D$30*I$14 -> 0 | J20: ='fnd base rates'!$G56*$D$30*J$14 -> 0 | K20: ='fnd base rates'!$G57*$D$30*K$14 -> 0 | L20: ='fnd base rates'!$G58*$D$30*L$14 -> 6203.88 | M20: ='fnd base rates'!$G59*$D$30*M$14 -> 0 | O20: ='fnd base rates'!$G54*$D$30*O$14 -> 4897.56825 | P20: ='fnd base rates'!$G55*$D$30*P$14 -> 0 | Q20: =VLOOKUP((VLOOKUP(VLOOKUP(orderCHA,charterinfo_a,3),rate_chafnd,19)+12),rate_basefnd,7)*$D$30*Q$14 -> 14040 | S20: 60339.02825
A21: 6 | B21: Instructional Equipment & Tech | C21: nw | D21: ='fnd base rates'!$H48*D$14 -> 0 | E21: ='fnd base rates'!$H49*E$14 -> 0 | F21: ='fnd base rates'!$H50*F$14 -> 10146.45 | G21: ='fnd base rates'!$H51*G$14 -> 79848.15 | H21: ='fnd base rates'!$H52*H$14 -> 35733.15 | I21: ='fnd base rates'!$H53*I$14 -> 0 | J21: ='fnd base rates'!$H56*J$14 -> 0 | K21: ='fnd base rates'!$H57*K$14 -> 0 | L21: ='fnd base rates'!$H58*L$14 -> 16763.7 | M21: ='fnd base rates'!$H59*M$14 -> 0 | O21: ='fnd base rates'!$H54*O$14 -> 4274.7435 | P21: ='fnd base rates'!$H55*P$14 -> 0 | Q21: =VLOOKUP((VLOOKUP(VLOOKUP(orderCHA,charterinfo_a,3),rate_chafnd,19)+12),rate_basefnd,8)*Q$14 -> 0 | S21: 146766.1935
A22: 7 | B22: Guidance and Pschological | C22: w | D22: ='fnd base rates'!$I48*$D$30*D$14 -> 0 | E22: ='fnd base rates'!$I49*$D$30*E$14 -> 0 | F22: ='fnd base rates'!$I50*$D$30*F$14 -> 5101.17 | G22: ='fnd base rates'!$I51*$D$30*G$14 -> 40143.99 | H22: ='fnd base rates'!$I52*$D$30*H$14 -> 23913.63 | I22: ='fnd base rates'!$I53*$D$30*I$14 -> 0 | J22: ='fnd base rates'!$I56*$D$30*J$14 -> 0 | K22: ='fnd base rates'!$I57*$D$30*K$14 -> 0 | L22: ='fnd base rates'!$I58*$D$30*L$14 -> 11218.74 | M22: ='fnd base rates'!$I59*$D$30*M$14 -> 0 | O22: ='fnd base rates'!$I54*$D$30*O$14 -> 0 | P22: ='fnd base rates'!$I55*$D$30*P$14 -> 0 | Q22: =VLOOKUP((VLOOKUP(VLOOKUP(orderCHA,charterinfo_a,3),rate_chafnd,19)+12),rate_basefnd,10)*$D$30*Q$14 -> 0 | S22: 80377.53
A23: 8 | B23: Pupil Services | C23: w | D23: ='fnd base rates'!$J48*$D$30*D$14 -> 0 | E23: ='fnd base rates'!$J49*$D$30*E$14 -> 0 | F23: ='fnd base rates'!$J50*$D$30*F$14 -> 2029.52 | G23: ='fnd base rates'!$J51*$D$30*G$14 -> 23955.35 | H23: ='fnd base rates'!$J52*$D$30*H$14 -> 17510.58 | I23: ='fnd base rates'!$J53*$D$30*I$14 -> 0 | J23: ='fnd base rates'!$J56*$D$30*J$14 -> 0 | K23: ='fnd base rates'!$J57*$D$30*K$14 -> 0 | L23: ='fnd base rates'!$J58*$D$30*L$14 -> 5029.3 | M23: ='fnd base rates'!$J59*$D$30*M$14 -> 0 | O23: ='fnd base rates'!$J54*$D$30*O$14 -> 0 | P23: ='fnd base rates'!$J55*$D$30*P$14 -> 0 | Q23: =VLOOKUP((VLOOKUP(VLOOKUP(orderCHA,charterinfo_a,3),rate_chafnd,19)+12),rate_basefnd,10)*$D$30*Q$14 -> 0 | S23: 48524.75
A24: 9 | B24: Operations and Maintenance | C24: w | D24: ='fnd base rates'!$K48*$D$30*D$14 -> 0 | E24: ='fnd base rates'!$K49*$D$30*E$14 -> 0 | F24: ='fnd base rates'!$K50*$D$30*F$14 -> 19466.74 | G24: ='fnd base rates'!$K51*$D$30*G$14 -> 153194.78 | H24: ='fnd base rates'!$K52*$D$30*H$14 -> 74324.79 | I24: ='fnd base rates'!$K53*$D$30*I$14 -> 0 | J24: ='fnd base rates'!$K56*$D$30*J$14 -> 0 | K24: ='fnd base rates'!$K57*$D$30*K$14 -> 0 | L24: ='fnd base rates'!$K58*$D$30*L$14 -> 43540.78 | M24: ='fnd base rates'!$K59*$D$30*M$14 -> 0 | O24: ='fnd base rates'!$K54*$D$30*O$14 -> 34368.85537 | P24: ='fnd base rates'!$K55*$D$30*P$14 -> 0 | Q24: =VLOOKUP((VLOOKUP(VLOOKUP(orderCHA,charterinfo_a,3),rate_chafnd,19)+12),rate_basefnd,11)*$D$30*Q$14 -> 98527.65 | S24: 423423.5954
A25: 10 | B25: Employee Benefits & Fixed Charges | C25: nw | D25: ='fnd base rates'!$L48*D$14 -> 0 | E25: ='fnd base rates'!$L49*E$14 -> 0 | F25: ='fnd base rates'!$L50*F$14 -> 19882.44187 | G25: ='fnd base rates'!$L51*G$14 -> 156473.8655 | H25: ='fnd base rates'!$L52*H$14 -> 69229.46823 | I25: ='fnd base rates'!$L53*I$14 -> 0 | J25: ='fnd base rates'!$L56*J$14 -> 0 | K25: ='fnd base rates'!$L57*K$14 -> 0 | L25: ='fnd base rates'!$L58*L$14 -> 38980.33789 | M25: ='fnd base rates'!$L59*M$14 -> 0 | O25: ='fnd base rates'!$L54*O$14 -> 39837.19544 | P25: ='fnd base rates'!$L55*P$14 -> 0 | Q25: =VLOOKUP((VLOOKUP(VLOOKUP(orderCHA,charterinfo_a,3),rate_chafnd,19)+12),rate_basefnd,12)*Q$14 -> 64759.5 | S25: 389162.8089
A26: 11 | B26: Special Ed Tuition | C26: nw | D26: ='fnd base rates'!$M48*D$14 -> 0 | E26: ='fnd base rates'!$M49*E$14 -> 0 | F26: ='fnd base rates'!$M50*F$14 -> 0 | G26: ='fnd base rates'!$M51*G$14 -> 0 | H26: ='fnd base rates'!$M52*H$14 -> 0 | I26: ='fnd base rates'!$M53*I$14 -> 0 | J26: ='fnd base rates'!$M56*J$14 -> 0 | K26: ='fnd base rates'!$M57*K$14 -> 0 | L26: ='fnd base rates'!$M58*L$14 -> 0 | M26: ='fnd base rates'!$M59*M$14 -> 0 | O26: ='fnd base rates'!$M54*O$14 -> 0 | P26: ='fnd base rates'!$M55*P$14 -> 0 | Q26: =VLOOKUP((VLOOKUP(VLOOKUP(orderCHA,charterinfo_a,3),rate_chafnd,19)+12),rate_basefnd,13)*Q$14 -> 0 | S26: 0
A28: 12 | B28: Total | D28: =SUM(D16:D26) -> 0 | E28: 0 | F28: 171236.9319 | G28: 1355548.185 | H28: 577796.0682 | I28: 0 | J28: 0 | K28: 0 | L28: 359167.1979 | M28: 0 | O28: =SUM(O16:O26) -> 310463.7548 | P28: =SUM(P16:P26) -> 0 | Q28: =SUM(Q16:Q26) -> 815277.45 | S28: =SUM(S16:S26) -> 3589489.588
A30: 13 | B30: Wage Adjustment Factor | D30: =VLOOKUP(orderCHA,charterinfo_a,8) -> 1 | S30: =IF(S14=0,0,ROUND(S28/S14,0)) -> 11113
A31: 14 | B31: Low Income Decile | D31: =VLOOKUP(orderCHA,charterinfo_a,9) -> 10
A32: * | B32: Charter schools do not send special education pupils to other districts or private programs; this category is removed from the calculation. The in-district special education increment uses an "assumed" enrollment
B33: percentage of 3.75 percent, as stipulated by the Chapter 70 statute.
A35: ** | B35: Total foundation enrollment does not include columns 11 through 14, because those columns are increments. The pupils have already been counted in columns 1 to 10. Pre-kindergarten and half-time kindergarten
B36: pupils count as one-half in total foundation enrollment. Low income headcount is the number of pupils in columns 1 through 10 who are eligible for free or reduced lunch. Each component of the foundation budget
B37: represents the enrollment on line 1 multiplied by the appropriate state-wide foundation allotment. The wage adjustment factor is applied to underlying rates in all functions except instructional equipment, benefits,
B38: and special education. October 2015 pupils are used to generate the FY17 rate. The resulting rate will be applied to the actual number of pupils enrolled during FY17.

Sheet fnd base rates (hidden)
A2: FY17 Base Rates
H3: Instruction- | I3: Guid- | K3: Opera- | L3: Employee | N3: Total
E4: Classroom | F4: Other | G4: Profess- | H4: al Materials, | I4: ance & | K4: tions & | L4: Benefits | N4: Opera-
C5: Admini- | D5: Instructional | E5: & Specialist | F5: Teaching | G5: ional Dev- | H5: Equipment & | I5: Psycho- | J5: Pupil | K5: Maint- | L5: & Fixed | M5: Sped | N5: ting Exp-
A6: Foundation Subsets | C6: stration | D6: Leadership | E6: Teachers | F6: Services | G6: elopment | H6: Technology | I6: logical | J6: Services | K6: enance | L6: Charges | M6: Tuition | N6: enditures
A8: 1 | B8: Pre-School | C8: 182.01 | D8: 328.72 | E8: 1507.26 | F8: 386.57 | G8: 59.61 | H8: 218.16 | I8: 109.66 | J8: 43.62 | K8: 418.55 | L8: 377.28 | M8: 0 | N8: 3631.44
A9: 2 | B9: Kindergarten-Half | C9: 182.01 | D9: 328.72 | E9: 1507.26 | F9: 386.57 | G9: 59.61 | H9: 218.16 | I9: 109.66 | J9: 43.62 | K9: 418.55 | L9: 377.28 | M9: 0 | N9: 3631.44
A10: 3 | B10: Kindergarten-Full | C10: 364 | D10: 657.42 | E10: 3014.51 | F10: 773.16 | G10: 119.28 | H10: 436.31 | I10: 219.36 | J10: 87.27 | K10: 837.09 | L10: 754.52 | M10: 0 | N10: 7262.92
A11: 4 | B11: Elementary | C11: 364 | D11: 657.42 | E11: 3014.47 | F11: 773.16 | G11: 119.3 | H11: 436.31 | I11: 219.36 | J11: 130.9 | K11: 837.09 | L11: 754.57 | M11: 0 | N11: 7306.58
A12: 5 | B12: Junior/Middle | C12: 364 | D12: 657.42 | E12: 2652.75 | F12: 556.55 | G12: 129.32 | H12: 436.31 | I12: 291.99 | J12: 213.81 | K12: 907.52 | L12: 717.44 | M12: 0 | N12: 6927.11
A13: 6 | B13: High School | C13: 364 | D13: 657.42 | E13: 3901.09 | F13: 463.34 | G13: 125.39 | H13: 698.1 | I13: 366.02 | J13: 493.03 | K13: 879.93 | L13: 689.27 | M13: 0 | N13: 8637.59
A14: 7 | B14: Special Ed-In School | C14: 2512.26 | D14: 0 | E14: 8289.83 | F14: 7740.1 | G14: 399.9 | H14: 349.05 | I14: 0 | J14: 0 | K14: 2806.32 | L14: 3179.22 | M14: 0 | N14: 25276.68
A15: 8 | B15: Special Ed-Tuitioned Out | C15: 2512.26 | D15: 0 | E15: 0 | F15: 38.38 | G15: 0 | H15: 0 | I15: 0 | J15: 0 | K15: 0 | L15: 0 | M15: 23852.62 | N15: 26403.26
A16: 9 | B16: Limited English PK | C16: 182.02 | D16: 328.72 | E16: 2269.98 | F16: 309.11 | G16: 80.75 | H16: 218.16 | I16: 145.98 | J16: 65.44 | K16: 566.64 | L16: 474.6 | M16: 0 | N16: 4641.4
A17: 10 | B17: Limited English K Half Time | C17: 182.02 | D17: 328.72 | E17: 2269.98 | F17: 309.11 | G17: 80.75 | H17: 218.16 | I17: 145.98 | J17: 65.44 | K17: 566.64 | L17: 474.6 | M17: 0 | N17: 4641.4
A18: 11 | B18: Limited English KF-12 | C18: 364 | D18: 657.42 | E18: 4539.94 | F18: 618.22 | G18: 161.47 | H18: 436.31 | I18: 291.99 | J18: 130.9 | K18: 1133.23 | L18: 949.21 | M18: 0 | N18: 9282.69
A19: 12 | B19: Vocational | C19: 364 | D19: 657.42 | E19: 6631.89 | F19: 463.34 | G19: 207.31 | H19: 1221.66 | I19: 366.02 | J19: 493.03 | K19: 1646.82 | L19: 1119.43 | M19: 0 | N19: 13170.92
A20: 1 | B20: Low Income 1 | C20: 0 | D20: 0 | E20: 2953.92 | F20: 0 | G20: 65.01 | H20: 0 | I20: 0 | J20: 0 | K20: 456.21 | L20: 299.85 | M20: 0 | N20: 3775
A21: 2 | B21: Low Income 2 | C21: 0 | D21: 0 | E21: 2985.22 | F21: 0 | G21: 65.7 | H21: 0 | I21: 0 | J21: 0 | K21: 461.05 | L21: 303.03 | M21: 0 | N21: 3815
A22: 3 | B22: Low Income 3 | C22: 0 | D22: 0 | E22: 3016.52 | F22: 0 | G22: 66.39 | H22: 0 | I22: 0 | J22: 0 | K22: 465.88 | L22: 306.2 | M22: 0 | N22: 3855
A23: 4 | B23: Low Income 4 | C23: 0 | D23: 0 | E23: 3047.82 | F23: 0 | G23: 67.08 | H23: 0 | I23: 0 | J23: 0 | K23: 470.72 | L23: 309.38 | M23: 0 | N23: 3895
A24: 5 | B24: Low Income 5 | C24: 0 | D24: 0 | E24: 3079.12 | F24: 0 | G24: 67.77 | H24: 0 | I24: 0 | J24: 0 | K24: 475.55 | L24: 312.56 | M24: 0 | N24: 3935
A25: 6 | B25: Low Income 6 | C25: 0 | D25: 0 | E25: 3110.42 | F25: 0 | G25: 68.45 | H25: 0 | I25: 0 | J25: 0 | K25: 480.38 | L25: 315.74 | M25: 0 | N25: 3975
A26: 7 | B26: Low Income 7 | C26: 0 | D26: 0 | E26: 3141.72 | F26: 0 | G26: 69.14 | H26: 0 | I26: 0 | J26: 0 | K26: 485.22 | L26: 318.91 | M26: 0 | N26: 4015
A27: 8 | B27: Low Income 8 | C27: 0 | D27: 0 | E27: 3173.02 | F27: 0 | G27: 69.83 | H27: 0 | I27: 0 | J27: 0 | K27: 490.05 | L27: 322.09 | M27: 0 | N27: 4055
A28: 9 | B28: Low Income 9 | C28: 0 | D28: 0 | E28: 3204.32 | F28: 0 | G28: 70.52 | H28: 0 | I28: 0 | J28: 0 | K28: 494.89 | L28: 325.27 | M28: 0 | N28: 4095
A29: 10 | B29: Low Income 10 | C29: 0 | D29: 0 | E29: 3235.62 | F29: 0 | G29: 71.21 | H29: 0 | I29: 0 | J29: 0 | K29: 499.72 | L29: 328.45 | M29: 0 | N29: 4135
B37: Inflation Adjustment
B38: FY17 inflation index | C38: 1
B39: FY18 inflation | C39: 0.0111
B40: FY18 adjustment | C40: =C38+C39 -> 1.0111
L41: Rates shaded in orange are values, not formulas
A42: FY18 Foundation Budget Rates
H43: Instruction- | I43: Guid- | K43: Opera- | L43: Employee | N43: Total
E44: Classroom | F44: Other | G44: Profess- | H44: al Materials, | I44: ance & | K44: tions & | L44: Benefits | N44: Opera- | P44: Inflation
C45: Admini- | D45: Instructional | E45: & Specialist | F45: Teaching | G45: ional Dev- | H45: Equipment & | I45: Psycho- | J45: Pupil | K45: Maint- | L45: & Fixed | M45: Sped | N45: ting Exp-
A46: Adjusted Foundation Budget | C46: stration | D46: Leadership | E46: Teachers | F46: Services | G46: elopment | H46: Technology | I46: logical | J46: Services | K46: enance | L46: Charges | M46: Tuition | N46: enditures
A48: 1 | B48: Pre-School | C48: =IF(C8>0,ROUND(C8*inflat,2),0) -> 184.03 | D48: 332.37 | E48: 1523.99 | F48: 390.86 | G48: =IF(G8>0,ROUND(G8*inflat,2),0) -> 60.27 | H48: =IF(H8>0,ROUND(H8*inflat,2),0) -> 220.58 | I48: 110.88 | J48: =IF(J8>0,ROUND(J8*inflat,2),0) -> 44.1 | K48: 423.2 | L48: 432.2397472 | N48: =SUM(C48:M48) -> 3722.519747 | P48: =C39 -> 0.0111 | AG48: 414.7864981
A49: 2 | B49: Kindergarten-Half | C49: 184.03 | D49: 332.37 | E49: 1523.99 | F49: 390.86 | G49: 60.27 | H49: 220.58 | I49: 110.88 | J49: 44.1 | K49: 423.2 | L49: 432.2397472 | N49: =SUM(C49:M49) -> 3722.519747 | AG49: 414.7864981
A50: 3 | B50: Kindergarten-Full | C50: 368.04 | D50: 664.72 | E50: 3047.97 | F50: 781.74 | G50: 120.6 | H50: 441.15 | I50: 221.79 | J50: 88.24 | K50: 846.38 | L50: 864.4539944 | N50: 7445.083994 | AG50: 829.5459962
A51: 4 | B51: Elementary | C51: 368.04 | D51: 664.72 | E51: 3047.93 | F51: 781.74 | G51: 120.62 | H51: 441.15 | I51: 221.79 | J51: 132.35 | K51: 846.38 | L51: 864.4964944 | N51: 7489.216494 | AG51: 829.5909962
A52: 5 | B52: Junior/Middle | C52: 368.04 | D52: 664.72 | E52: 2682.2 | F52: 562.73 | G52: 130.76 | H52: 441.15 | I52: 295.23 | J52: 216.18 | K52: 917.59 | L52: 854.684793 | N52: 7133.284793 | AG52: 810.5865287
A53: 6 | B53: High School | C53: =IF(C13>0,ROUND(C13*inflat,2),0) -> 368.04 | D53: 664.72 | E53: 3944.39 | F53: 468.48 | G53: 126.78 | H53: 705.85 | I53: 370.08 | J53: 498.5 | K53: 889.7 | L53: 795.9230689 | N53: 8832.463069 | AG53: 761.9587126
A54: 7 | B54: Special Ed-In School | C54: =IF(C14>0,ROUND(C14*inflat,2),0) -> 2540.15 | E54: 8381.85 | F54: 7826.02 | G54: 404.34 | H54: 352.92 | K54: 2837.47 | L54: 3288.932544 | N54: 25631.68254 | AG54: 3259.67503
A55: 8 | B55: Special Ed-Tuitioned Out | C55: =IF(C15>0,ROUND(C15*inflat,2),0) -> 2540.15 | F55: 38.81 | M55: 24117.38 | N55: 26696.34 | AG55: 0
A56: 9 | B56: Limited English PK | C56: =IF(C16>0,ROUND(C16*inflat,2),0) -> 184.04 | D56: 332.37 | E56: 2295.18 | F56: 312.54 | G56: 81.65 | H56: 220.58 | I56: 147.6 | J56: 66.17 | K56: 572.93 | L56: 520.0488377 | N56: 4733.108838 | AG56: 505.9892251
A57: 10 | B57: Limited English K Half Time | C57: =IF(C17>0,ROUND(C17*inflat,2),0) -> 184.04 | D57: 332.37 | E57: 2295.18 | F57: 312.54 | G57: 81.65 | H57: 220.58 | I57: 147.6 | J57: 66.17 | K57: 572.93 | L57: 520.0488377 | N57: 4733.108838 | AG57: 505.9892251
A58: 11 | B58: Limited English Full Time | C58: =IF(C18>0,ROUND(C18*inflat,2),0) -> 368.04 | D58: 664.72 | E58: 4590.33 | F58: 625.08 | G58: 163.26 | H58: 441.15 | I58: 295.23 | J58: 132.35 | K58: 1145.81 | L58: 1025.798366 | N58: 9451.768366 | AG58: 1002.452244
A59: 12 | B59: Vocational | C59: 368.04 | D59: 664.72 | E59: 6705.5 | F59: 468.48 | G59: 209.61 | H59: 1235.22 | I59: 370.08 | J59: 498.5 | K59: 1665.1 | L59: 1231.583344 | N59: 13416.83334 | AG59: 1196.772229
A60: 13 | B60: Low Income 1 | E60: =IF(E20>0,ROUND(E20*inflat,2),0) -> 2986.71 | G60: 65.73 | K60: 461.27 | L60: 303.18 | N60: 3816.89
A61: 14 | B61: Low Income 2 | E61: =IF(E21>0,ROUND(E21*inflat,2),0) -> 3018.36 | G61: 66.43 | K61: 466.17 | L61: 306.39 | N61: 3857.35
A62: 15 | B62: Low Income 3 | E62: =IF(E22>0,ROUND(E22*inflat,2),0) -> 3050 | G62: 67.13 | K62: 471.05 | L62: 309.6 | N62: 3897.78
A63: 16 | B63: Low Income 4 | E63: =IF(E23>0,ROUND(E23*inflat,2),0) -> 3081.65 | G63: 67.82 | K63: 475.94 | L63: 312.81 | N63: 3938.22
A64: 17 | B64: Low Income 5 | E64: =IF(E24>0,ROUND(E24*inflat,2),0) -> 3113.3 | G64: 68.52 | K64: 480.83 | L64: 316.03 | N64: 3978.68
A65: 18 | B65: Low Income 6 | E65: =IF(E25>0,ROUND(E25*inflat,2),0) -> 3144.95 | G65: 69.21 | K65: 485.71 | L65: 319.24 | N65: 4019.11
A66: 19 | B66: Low Income 7 | E66: =IF(E26>0,ROUND(E26*inflat,2),0) -> 3176.59 | G66: 69.91 | K66: 490.61 | L66: 322.45 | N66: 4059.56
A67: 20 | B67: Low Income 8 | E67: =IF(E27>0,ROUND(E27*inflat,2),0) -> 3208.24 | G67: 70.61 | K67: 495.49 | L67: 325.67 | N67: 4100.01
A68: 21 | B68: Low Income 9 | E68: =IF(E28>0,ROUND(E28*inflat,2),0) -> 3239.89 | G68: 71.3 | K68: 500.38 | L68: 328.88 | N68: 4140.45
A69: 22 | B69: Low Income 10 | E69: =IF(E29>0,ROUND(E29*inflat,2),0) -> 3271.54 | G69: 72 | K69: 505.27 | L69: 332.1 | N69: 4180.91

Sheet pre fnd budg (hidden)
A1: 1 | B1: 2 | C1: 3 | D1: 4 | E1: 5 | F1: 6 | G1: 7 | H1: 8 | I1: 9 | J1: 10 | K1: 11 | L1: 12 | M1: 13 | N1: 14 | O1: 15 | P1: 16 | Q1: 17 | R1: 18 | S1: 19 | T1: 20 | U1: 21 | V1: 22 | W1: 23 | X1: 24 | Y1: 25 | Z1: 26 | AA1: 27 | AB1: 28 | AC1: 29 | AD1: 30 | AE1: 31 | AF1: 32 | AG1: 33 | AH1: 34 | AI1: 35 | AJ1: 36 | AK1: 37 | AL1: 38 | AM1: 39 | AN1: 40 | AO1: 41 | AP1: 42 | AQ1: 43 | AR1: 44
A3: Insert chalocsend & school name from the FND ENRO sheet
P4: NEW! | S4: NEW!
M5: LEP | R5: WAF | Z5: Instruction- | AA5: Guid- | AC5: Opera- | AD5: Employee
I6: Assumed | J6: Assumed | M6: KF | Q6: Total | R6: Adjusted | S6: Low | W6: Classroom | X6: Other | Y6: Profess- | Z6: al Materials, | AA6: ance & | AC6: tions & | AD6: Benefits | AF6: Found- | AL6: wage
G7: Junior | H7: High | I7: Special Ed | J7: Special Ed | K7: LEP | L7: LEP | M7: thru | O7: Low | Q7: Found | R7: for Low | S7: Income | U7: Admini- | V7: Instructional | W7: & Specialist | X7: Teaching | Y7: ional Dev- | Z7: Equipment & | AA7: Psycho- | AB7: Pupil | AC7: Maint- | AD7: & Fixed | AE7: Sped | AF7: ation | AI7: Cha | AJ7: Loc | AK7: Sending | AL7: fct check
A8: chalocsend | B8: Charter | C8: PK | D8: KP | E8: KF | F8: Elem | G8: Middle | H8: School | I8: In School | J8: Tuitioned | K8: PK | L8: KP | M8: G12 | N8: Voke | O8: Income | P8: blank | Q8: Enro | R8: Income | S8: Decile | U8: stration | V8: Leadership | W8: Teachers | X8: Services | Y8: elopment | Z8: Technology | AA8: logical | AB8: Services | AC8: enance | AD8: Charges | AE8: Tuition | AF8: Budget | AH8: chalocsend | AI8: LEA | AJ8: LEA | AK8: LEA | AL8: 1=good | AM8: enro | AN8: fnd budget | AO8: rate | AP8: diff | AQ8: rate check
AP9: x | AR9: x
A10: 409201201 | B10: ALMA DEL MAR | C10: ='fnd enro'!C10 -> 0 | D10: ='fnd enro'!D10 -> 0 | E10: ='fnd enro'!E10 -> 23 | F10: ='fnd enro'!F10 -> 181 | G10: ='fnd enro'!G10 -> 81 | H10: ='fnd enro'!H10 -> 0 | I10: ='fnd enro'!I10 -> 12.1125 | J10: ='fnd enro'!J10 -> 0 | K10: ='fnd enro'!K10 -> 0 | L10: ='fnd enro'!L10 -> 0 | M10: ='fnd enro'!M10 -> 38 | N10: ='fnd enro'!N10 -> 0 | O10: ='fnd enro'!O10 -> 195 | Q10: ='fnd enro'!R10 -> 323 | R10: =VLOOKUP(A10,charterinfo_b,6) -> 1 | S10: ='fnd enro'!Q10 -> 10 | U10: =(($C10*'fnd base rates'!C$48) +($D10*'fnd base rates'!C$49) +($E10*'fnd base rates'!C$50) +($F10*'fnd base rates'!C$51) +($G10*'fnd base rates'!C$52) +($H10*'fnd base rates'!C$53) +($I10*'fnd base rates'!C$54) +($J10*'fnd base rates'!C$55) +($K10*'fnd base rates'!C$56) +($L10*'fnd base rates'!C$57) +($M10*'fnd base rates'!C$58) +($N10*'fnd base rates'!C$59) +($O10*VLOOKUP($S10+12,rate_basefnd,3))) *$R10 -> 149644.4869 | V10: =(($C10*'fnd base rates'!D$48) +($D10*'fnd base rates'!D$49) +($E10*'fnd base rates'!D$50) +($F10*'fnd base rates'!D$51) +($G10*'fnd base rates'!D$52) +($H10*'fnd base rates'!D$53) +($I10*'fnd base rates'!D$54) +($J10*'fnd base rates'!D$55) +($K10*'fnd base rates'!D$56) +($L10*'fnd base rates'!D$57) +($M10*'fnd base rates'!D$58) +($N10*'fnd base rates'!D$59) +($O10*VLOOKUP($S10+12,rate_basefnd,4))) *$R10 -> 214704.56 | W10: =(($C10*'fnd base rates'!E$48) +($D10*'fnd base rates'!E$49) +($E10*'fnd base rates'!E$50) +($F10*'fnd base rates'!E$51) +($G10*'fnd base rates'!E$52) +($H10*'fnd base rates'!E$53) +($I10*'fnd base rates'!E$54) +($J10*'fnd base rates'!E$55) +($K10*'fnd base rates'!E$56) +($L10*'fnd base rates'!E$57) +($M10*'fnd base rates'!E$58) +($N10*'fnd base rates'!E$59) +($O10*VLOOKUP($S10+12,rate_basefnd,5))) *$R10 -> 1752944.838 | X10: =(($C10*'fnd base rates'!F$48) +($D10*'fnd base rates'!F$49) +($E10*'fnd base rates'!F$50) +($F10*'fnd base rates'!F$51) +($G10*'fnd base rates'!F$52) +($H10*'fnd base rates'!F$53) +($I10*'fnd base rates'!F$54) +($J10*'fnd base rates'!F$55) +($K10*'fnd base rates'!F$56) +($L10*'fnd base rates'!F$57) +($M10*'fnd base rates'!F$58) +($N10*'fnd base rates'!F$59) +($O10*VLOOKUP($S10+12,rate_basefnd,6))) *$R10 -> 323601.7973 | Y10: =(($C10*'fnd base rates'!G$48) +($D10*'fnd base rates'!G$49) +($E10*'fnd base rates'!G$50) +($F10*'fnd base rates'!G$51) +($G10*'fnd base rates'!G$52) +($H10*'fnd base rates'!G$53) +($I10*'fnd base rates'!G$54) +($J10*'fnd base rates'!G$55) +($K10*'fnd base rates'!G$56) +($L10*'fnd base rates'!G$57) +($M10*'fnd base rates'!G$58) +($N10*'fnd base rates'!G$59) +($O10*VLOOKUP($S10+12,rate_basefnd,7))) *$R10 -> 60339.02825 | Z10: =(($C10*'fnd base rates'!H$48) +($D10*'fnd base rates'!H$49) +($E10*'fnd base rates'!H$50) +($F10*'fnd base rates'!H$51) +($G10*'fnd base rates'!H$52) +($H10*'fnd base rates'!H$53) +($I10*'fnd base rates'!H$54) +($J10*'fnd base rates'!H$55) +($K10*'fnd base rates'!H$56) +($L10*'fnd base rates'!H$57) +($M10*'fnd base rates'!H$58) +($N10*'fnd base rates'!H$59) +($O10*VLOOKUP($S10+12,rate_basefnd,8))) -> 146766.1935 | AA10: =(($C10*'fnd base rates'!I$48) +($D10*'fnd base rates'!I$49) +($E10*'fnd base rates'!I$50) +($F10*'fnd base rates'!I$51) +($G10*'fnd base rates'!I$52) +($H10*'fnd base rates'!I$53) +($I10*'fnd base rates'!I$54) +($J10*'fnd base rates'!I$55) +($K10*'fnd base rates'!I$56) +($L10*'fnd base rates'!I$57) +($M10*'fnd base rates'!I$58) +($N10*'fnd base rates'!I$59) +($O10*VLOOKUP($S10+12,rate_basefnd,9))) *$R10 -> 80377.53 | AB10: =(($C10*'fnd base rates'!J$48) +($D10*'fnd base rates'!J$49) +($E10*'fnd base rates'!J$50) +($F10*'fnd base rates'!J$51) +($G10*'fnd base rates'!J$52) +($H10*'fnd base rates'!J$53) +($I10*'fnd base rates'!J$54) +($J10*'fnd base rates'!J$55) +($K10*'fnd base rates'!J$56) +($L10*'fnd base rates'!J$57) +($M10*'fnd base rates'!J$58) +($N10*'fnd base rates'!J$59) +($O10*VLOOKUP($S10+12,rate_basefnd,10))) *$R10 -> 48524.75 | AC10: =(($C10*'fnd base rates'!K$48) +($D10*'fnd base rates'!K$49) +($E10*'fnd base rates'!K$50) +($F10*'fnd base rates'!K$51) +($G10*'fnd base rates'!K$52) +($H10*'fnd base rates'!K$53) +($I10*'fnd base rates'!K$54) +($J10*'fnd base rates'!K$55) +($K10*'fnd base rates'!K$56) +($L10*'fnd base rates'!K$57) +($M10*'fnd base rates'!K$58) +($N10*'fnd base rates'!K$59) +($O10*VLOOKUP($S10+12,rate_basefnd,11))) *$R10 -> 423423.5954 | AD10: =(($C10*'fnd base rates'!L$48) +($D10*'fnd base rates'!L$49) +($E10*'fnd base rates'!L$50) +($F10*'fnd base rates'!L$51) +($G10*'fnd base rates'!L$52) +($H10*'fnd base rates'!L$53) +($I10*'fnd base rates'!L$54) +($J10*'fnd base rates'!L$55) +($K10*'fnd base rates'!L$56) +($L10*'fnd base rates'!L$57) +($M10*'fnd base rates'!L$58) +($N10*'fnd base rates'!L$59) +($O10*VLOOKUP($S10+12,rate_basefnd,12))) -> 389162.8089 | AE10: =(($C10*'fnd base rates'!M$48) +($D10*'fnd base rates'!M$49) +($E10*'fnd base rates'!M$50) +($F10*'fnd base rates'!M$51) +($G10*'fnd base rates'!M$52) +($H10*'fnd base rates'!M$53) +($I10*'fnd base rates'!M$54) +($J10*'fnd base rates'!M$55) +($K10*'fnd base rates'!M$56) +($L10*'fnd base rates'!M$57) +($M10*'fnd base rates'!M$58) +($N10*'fnd base rates'!M$59) +($O10*VLOOKUP($S10+12,rate_basefnd,13))) -> 0 | AF10: =SUM(U10:AE10) -> 3589489.588 | AH10: =A10 -> 409201201 | AI10: =IF($A10<499999999,MID($A10,1,3),MID($A10,1,4)) -> 409 | AJ10: =IF($A10<499999999,MID($A10,4,3),MID($A10,5,3)) -> 201 | AK10: =IF($A10<499999999,MID($A10,7,3),MID($A10,8,3)) -> 201 | AL10: =IF(VLOOKUP(VALUE(IF(AH10<499999999,MID(AH10,4,3),MID(AH10,5,3))),distinfo,4)=R10,1,0) -> 1 | AM10: =enro -> 323 | AN10: =AF10 -> 3589489.588 | AO10: =IF(OR(AF10=0,AM10=0),0,ROUND(AN10/AM10,0)) -> 11113 | AP10: =AQ10-AO10 -> 0 | AQ10: 11113
A11: 409201331 | B11: ALMA DEL MAR | C11: ='fnd enro'!C11 -> 0 | D11: ='fnd enro'!D11 -> 0 | E11: ='fnd enro'!E11 -> 0 | F11: ='fnd enro'!F11 -> 1 | G11: ='fnd enro'!G11 -> 0 | H11: ='fnd enro'!H11 -> 0 | I11: ='fnd enro'!I11 -> 0.0375 | J11: ='fnd enro'!J11 -> 0 | K11: ='fnd enro'!K11 -> 0 | L11: ='fnd enro'!L11 -> 0 | M11: ='fnd enro'!M11 -> 0 | N11: ='fnd enro'!N11 -> 0 | O11: ='fnd enro'!O11 -> 0 | Q11: ='fnd enro'!R11 -> 1 | R11: =VLOOKUP(A11,charterinfo_b,6) -> 1 | S11: ='fnd enro'!Q11 -> 1 | U11: =(($C11*'fnd base rates'!C$48) +($D11*'fnd base rates'!C$49) +($E11*'fnd base rates'!C$50) +($F11*'fnd base rates'!C$51) +($G11*'fnd base rates'!C$52) +($H11*'fnd base rates'!C$53) +($I11*'fnd base rates'!C$54) +($J11*'fnd base rates'!C$55) +($K11*'fnd base rates'!C$56) +($L11*'fnd base rates'!C$57) +($M11*'fnd base rates'!C$58) +($N11*'fnd base rates'!C$59) +($O11*VLOOKUP($S11+12,rate_basefnd,3))) *$R11 -> 463.295625 | V11: =(($C11*'fnd base rates'!D$48) +($D11*'fnd base rates'!D$49) +($E11*'fnd base rates'!D$50) +($F11*'fnd base rates'!D$51) +($G11*'fnd base rates'!D$52) +($H11*'fnd base rates'!D$53) +($I11*'fnd base rates'!D$54) +($J11*'fnd base rates'!D$55) +($K11*'fnd base rates'!D$56) +($L11*'fnd base rates'!D$57) +($M11*'fnd base rates'!D$58) +($N11*'fnd base rates'!D$59) +($O11*VLOOKUP($S11+12,rate_basefnd,4))) *$R11 -> 664.72 | W11: =(($C11*'fnd base rates'!E$48) +($D11*'fnd base rates'!E$49) +($E11*'fnd base rates'!E$50) +($F11*'fnd base rates'!E$51) +($G11*'fnd base rates'!E$52) +($H11*'fnd base rates'!E$53) +($I11*'fnd base rates'!E$54) +($J11*'fnd base rates'!E$55) +($K11*'fnd base rates'!E$56) +($L11*'fnd base rates'!E$57) +($M11*'fnd base rates'!E$58) +($N11*'fnd base rates'!E$59) +($O11*VLOOKUP($S11+12,rate_basefnd,5))) *$R11 -> 3362.249375 | X11: =(($C11*'fnd base rates'!F$48) +($D11*'fnd base rates'!F$49) +($E11*'fnd base rates'!F$50) +($F11*'fnd base rates'!F$51) +($G11*'fnd base rates'!F$52) +($H11*'fnd base rates'!F$53) +($I11*'fnd base rates'!F$54) +($J11*'fnd base rates'!F$55) +($K11*'fnd base rates'!F$56) +($L11*'fnd base rates'!F$57) +($M11*'fnd base rates'!F$58) +($N11*'fnd base rates'!F$59) +($O11*VLOOKUP($S11+12,rate_basefnd,6))) *$R11 -> 1075.21575 | Y11: =(($C11*'fnd base rates'!G$48) +($D11*'fnd base rates'!G$49) +($E11*'fnd base rates'!G$50) +($F11*'fnd base rates'!G$51) +($G11*'fnd base rates'!G$52) +($H11*'fnd base rates'!G$53) +($I11*'fnd base rates'!G$54) +($J11*'fnd base rates'!G$55) +($K11*'fnd base rates'!G$56) +($L11*'fnd base rates'!G$57) +($M11*'fnd base rates'!G$58) +($N11*'fnd base rates'!G$59) +($O11*VLOOKUP($S11+12,rate_basefnd,7))) *$R11 -> 135.78275 | Z11: =(($C11*'fnd base rates'!H$48) +($D11*'fnd base rates'!H$49) +($E11*'fnd base rates'!H$50) +($F11*'fnd base rates'!H$51) +($G11*'fnd base rates'!H$52) +($H11*'fnd base rates'!H$53) +($I11*'fnd base rates'!H$54) +($J11*'fnd base rates'!H$55) +($K11*'fnd base rates'!H$56) +($L11*'fnd base rates'!H$57) +($M11*'fnd base rates'!H$58) +($N11*'fnd base rates'!H$59) +($O11*VLOOKUP($S11+12,rate_basefnd,8))) -> 454.3845 | AA11: =(($C11*'fnd base rates'!I$48) +($D11*'fnd base rates'!I$49) +($E11*'fnd base rates'!I$50) +($F11*'fnd base rates'!I$51) +($G11*'fnd base rates'!I$52) +($H11*'fnd base rates'!I$53) +($I11*'fnd base rates'!I$54) +($J11*'fnd base rates'!I$55) +($K11*'fnd base rates'!I$56) +($L11*'fnd base rates'!I$57) +($M11*'fnd base rates'!I$58) +($N11*'fnd base rates'!I$59) +($O11*VLOOKUP($S11+12,rate_basefnd,9))) *$R11 -> 221.79 | AB11: =(($C11*'fnd base rates'!J$48) +($D11*'fnd base rates'!J$49) +($E11*'fnd base rates'!J$50) +($F11*'fnd base rates'!J$51) +($G11*'fnd base rates'!J$52) +($H11*'fnd base rates'!J$53) +($I11*'fnd base rates'!J$54) +($J11*'fnd base rates'!J$55) +($K11*'fnd base rates'!J$56) +($L11*'fnd base rates'!J$57) +($M11*'fnd base rates'!J$58) +($N11*'fnd base rates'!J$59) +($O11*VLOOKUP($S11+12,rate_basefnd,10))) *$R11 -> 132.35 | AC11: =(($C11*'fnd base rates'!K$48) +($D11*'fnd base rates'!K$49) +($E11*'fnd base rates'!K$50) +($F11*'fnd base rates'!K$51) +($G11*'fnd base rates'!K$52) +($H11*'fnd base rates'!K$53) +($I11*'fnd base rates'!K$54) +($J11*'fnd base rates'!K$55) +($K11*'fnd base rates'!K$56) +($L11*'fnd base rates'!K$57) +($M11*'fnd base rates'!K$58) +($N11*'fnd base rates'!K$59) +($O11*VLOOKUP($S11+12,rate_basefnd,11))) *$R11 -> 952.785125 | AD11: =(($C11*'fnd base rates'!L$48) +($D11*'fnd base rates'!L$49) +($E11*'fnd base rates'!L$50) +($F11*'fnd base rates'!L$51) +($G11*'fnd base rates'!L$52) +($H11*'fnd base rates'!L$53) +($I11*'fnd base rates'!L$54) +($J11*'fnd base rates'!L$55) +($K11*'fnd base rates'!L$56) +($L11*'fnd base rates'!L$57) +($M11*'fnd base rates'!L$58) +($N11*'fnd base rates'!L$59) +($O11*VLOOKUP($S11+12,rate_basefnd,12))) -> 987.8314648 | AE11: =(($C11*'fnd base rates'!M$48) +($D11*'fnd base rates'!M$49) +($E11*'fnd base rates'!M$50) +($F11*'fnd base rates'!M$51) +($G11*'fnd base rates'!M$52) +($H11*'fnd base rates'!M$53) +($I11*'fnd base rates'!M$54) +($J11*'fnd base rates'!M$55) +($K11*'fnd base rates'!M$56) +($L11*'fnd base rates'!M$57) +($M11*'fnd base rates'!M$58) +($N11*'fnd base rates'!M$59) +($O11*VLOOKUP($S11+12,rate_basefnd,13))) -> 0 | AF11: =SUM(U11:AE11) -> 8450.40459 | AH11: =A11 -> 409201331 | AI11: =IF($A11<499999999,MID($A11,1,3),MID($A11,1,4)) -> 409 | AJ11: =IF($A11<499999999,MID($A11,4,3),MID($A11,5,3)) -> 201 | AK11: =IF($A11<499999999,MID($A11,7,3),MID($A11,8,3)) -> 331 | AL11: =IF(VLOOKUP(VALUE(IF(AH11<499999999,MID(AH11,4,3),MID(AH11,5,3))),distinfo,4)=R11,1,0) -> 1 | AM11: 1 | AN11: =AF11 -> 8450.40459 | AO11: =IF(OR(AF11=0,AM11=0),0,ROUND(AN11/AM11,0)) -> 8450 | AP11: =AQ11-AO11 -> 0 | AQ11: 8450
A12: 410035035 | B12: EXCEL ACADEMY | C12: ='fnd enro'!C12 -> 0 | D12: ='fnd enro'!D12 -> 0 | E12: ='fnd enro'!E12 -> 0 | F12: ='fnd enro'!F12 -> 48 | G12: ='fnd enro'!G12 -> 163 | H12: ='fnd enro'!H12 -> 117 | I12: ='fnd enro'!I12 -> 14.625 | J12: ='fnd enro'!J12 -> 0 | K12: ='fnd enro'!K12 -> 0 | L12: ='fnd enro'!L12 -> 0 | M12: ='fnd enro'!M12 -> 62 | N12: ='fnd enro'!N12 -> 0 | O12: ='fnd enro'!O12 -> 176 | Q12: ='fnd enro'!R12 -> 390 | R12: 1.079 | S12: ='fnd enro'!Q12 -> 9 | U12: =(($C12*'fnd base rates'!C$48) +($D12*'fnd base rates'!C$49) +($E12*'fnd base rates'!C$50) +($F12*'fnd base rates'!C$51) +($G12*'fnd base rates'!C$52) +($H12*'fnd base rates'!C$53) +($I12*'fnd base rates'!C$54) +($J12*'fnd base rates'!C$55) +($K12*'fnd base rates'!C$56) +($L12*'fnd base rates'!C$57) +($M12*'fnd base rates'!C$58) +($N12*'fnd base rates'!C$59) +($O12*VLOOKUP($S12+12,rate_basefnd,3))) *$R12 -> 194959.432 | V12: =(($C12*'fnd base rates'!D$48) +($D12*'fnd base rates'!D$49) +($E12*'fnd base rates'!D$50) +($F12*'fnd base rates'!D$51) +($G12*'fnd base rates'!D$52) +($H12*'fnd base rates'!D$53) +($I12*'fnd base rates'!D$54) +($J12*'fnd base rates'!D$55) +($K12*'fnd base rates'!D$56) +($L12*'fnd base rates'!D$57) +($M12*'fnd base rates'!D$58) +($N12*'fnd base rates'!D$59) +($O12*VLOOKUP($S12+12,rate_basefnd,4))) *$R12 -> 279720.8232 | W12: =(($C12*'fnd base rates'!E$48) +($D12*'fnd base rates'!E$49) +($E12*'fnd base rates'!E$50) +($F12*'fnd base rates'!E$51) +($G12*'fnd base rates'!E$52) +($H12*'fnd base rates'!E$53) +($I12*'fnd base rates'!E$54) +($J12*'fnd base rates'!E$55) +($K12*'fnd base rates'!E$56) +($L12*'fnd base rates'!E$57) +($M12*'fnd base rates'!E$58) +($N12*'fnd base rates'!E$59) +($O12*VLOOKUP($S12+12,rate_basefnd,5))) *$R12 -> 2182168.01 | X12: =(($C12*'fnd base rates'!F$48) +($D12*'fnd base rates'!F$49) +($E12*'fnd base rates'!F$50) +($F12*'fnd base rates'!F$51) +($G12*'fnd base rates'!F$52) +($H12*'fnd base rates'!F$53) +($I12*'fnd base rates'!F$54) +($J12*'fnd base rates'!F$55) +($K12*'fnd base rates'!F$56) +($L12*'fnd base rates'!F$57) +($M12*'fnd base rates'!F$58) +($N12*'fnd base rates'!F$59) +($O12*VLOOKUP($S12+12,rate_basefnd,6))) *$R12 -> 363915.5951 | Y12: =(($C12*'fnd base rates'!G$48) +($D12*'fnd base rates'!G$49) +($E12*'fnd base rates'!G$50) +($F12*'fnd base rates'!G$51) +($G12*'fnd base rates'!G$52) +($H12*'fnd base rates'!G$53) +($I12*'fnd base rates'!G$54) +($J12*'fnd base rates'!G$55) +($K12*'fnd base rates'!G$56) +($L12*'fnd base rates'!G$57) +($M12*'fnd base rates'!G$58) +($N12*'fnd base rates'!G$59) +($O12*VLOOKUP($S12+12,rate_basefnd,7))) *$R12 -> 76092.47461 | Z12: =(($C12*'fnd base rates'!H$48) +($D12*'fnd base rates'!H$49) +($E12*'fnd base rates'!H$50) +($F12*'fnd base rates'!H$51) +($G12*'fnd base rates'!H$52) +($H12*'fnd base rates'!H$53) +($I12*'fnd base rates'!H$54) +($J12*'fnd base rates'!H$55) +($K12*'fnd base rates'!H$56) +($L12*'fnd base rates'!H$57) +($M12*'fnd base rates'!H$58) +($N12*'fnd base rates'!H$59) +($O12*VLOOKUP($S12+12,rate_basefnd,8))) -> 208179.855 | AA12: =(($C12*'fnd base rates'!I$48) +($D12*'fnd base rates'!I$49) +($E12*'fnd base rates'!I$50) +($F12*'fnd base rates'!I$51) +($G12*'fnd base rates'!I$52) +($H12*'fnd base rates'!I$53) +($I12*'fnd base rates'!I$54) +($J12*'fnd base rates'!I$55) +($K12*'fnd base rates'!I$56) +($L12*'fnd base rates'!I$57) +($M12*'fnd base rates'!I$58) +($N12*'fnd base rates'!I$59) +($O12*VLOOKUP($S12+12,rate_basefnd,9))) *$R12 -> 129881.4204 | AB12: =(($C12*'fnd base rates'!J$48) +($D12*'fnd base rates'!J$49) +($E12*'fnd base rates'!J$50) +($F12*'fnd base rates'!J$51) +($G12*'fnd base rates'!J$52) +($H12*'fnd base rates'!J$53) +($I12*'fnd base rates'!J$54) +($J12*'fnd base rates'!J$55) +($K12*'fnd base rates'!J$56) +($L12*'fnd base rates'!J$57) +($M12*'fnd base rates'!J$58) +($N12*'fnd base rates'!J$59) +($O12*VLOOKUP($S12+12,rate_basefnd,10))) *$R12 -> 116661.8469 | AC12: =(($C12*'fnd base rates'!K$48) +($D12*'fnd base rates'!K$49) +($E12*'fnd base rates'!K$50) +($F12*'fnd base rates'!K$51) +($G12*'fnd base rates'!K$52) +($H12*'fnd base rates'!K$53) +($I12*'fnd base rates'!K$54) +($J12*'fnd base rates'!K$55) +($K12*'fnd base rates'!K$56) +($L12*'fnd base rates'!K$57) +($M12*'fnd base rates'!K$58) +($N12*'fnd base rates'!K$59) +($O12*VLOOKUP($S12+12,rate_basefnd,11))) *$R12 -> 533989.988 | AD12: =(($C12*'fnd base rates'!L$48) +($D12*'fnd base rates'!L$49) +($E12*'fnd base rates'!L$50) +($F12*'fnd base rates'!L$51) +($G12*'fnd base rates'!L$52) +($H12*'fnd base rates'!L$53) +($I12*'fnd base rates'!L$54) +($J12*'fnd base rates'!L$55) +($K12*'fnd base rates'!L$56) +($L12*'fnd base rates'!L$57) +($M12*'fnd base rates'!L$58) +($N12*'fnd base rates'!L$59) +($O12*VLOOKUP($S12+12,rate_basefnd,12))) -> 443515.4692 | AE12: =(($C12*'fnd base rates'!M$48) +($D12*'fnd base rates'!M$49) +($E12*'fnd base rates'!M$50) +($F12*'fnd base rates'!M$51) +($G12*'fnd base rates'!M$52) +($H12*'fnd base rates'!M$53) +($I12*'fnd base rates'!M$54) +($J12*'fnd base rates'!M$55) +($K12*'fnd base rates'!M$56) +($L12*'fnd base rates'!M$57) +($M12*'fnd base rates'!M$58) +($N12*'fnd base rates'!M$59) +($O12*VLOOKUP($S12+12,rate_basefnd,13))) -> 0 | AF12: 4529084.914 | AH12: 410035035 | AI12: 410 | AJ12: 035 | AK12: 035 | AL12: 1 | AM12: 390 | AN12: 4529084.914 | AO12: 11613 | AP12: 0 | AQ12: 11613
A13: 410035057 | B13: EXCEL ACADEMY | C13: ='fnd enro'!C13 -> 0 | D13: ='fnd enro'!D13 -> 0 | E13: ='fnd enro'!E13 -> 0 | F13: ='fnd enro'!F13 -> 22 | G13: ='fnd enro'!G13 -> 105 | H13: ='fnd enro'!H13 -> 128 | I13: ='fnd enro'!I13 -> 10.8 | J13: ='fnd enro'!J13 -> 0 | K13: ='fnd enro'!K13 -> 0 | L13: ='fnd enro'!L13 -> 0 | M13: ='fnd enro'!M13 -> 33 | N13: ='fnd enro'!N13 -> 0 | O13: ='fnd enro'!O13 -> 139 | Q13: ='fnd enro'!R13 -> 288 | R13: 1.079 | S13: ='fnd enro'!Q13 -> 10 | U13: =(($C13*'fnd base rates'!C$48) +($D13*'fnd base rates'!C$49) +($E13*'fnd base rates'!C$50) +($F13*'fnd base rates'!C$51) +($G13*'fnd base rates'!C$52) +($H13*'fnd base rates'!C$53) +($I13*'fnd base rates'!C$54) +($J13*'fnd base rates'!C$55) +($K13*'fnd base rates'!C$56) +($L13*'fnd base rates'!C$57) +($M13*'fnd base rates'!C$58) +($N13*'fnd base rates'!C$59) +($O13*VLOOKUP($S13+12,rate_basefnd,3))) *$R13 -> 143970.0421 | V13: =(($C13*'fnd base rates'!D$48) +($D13*'fnd base rates'!D$49) +($E13*'fnd base rates'!D$50) +($F13*'fnd base rates'!D$51) +($G13*'fnd base rates'!D$52) +($H13*'fnd base rates'!D$53) +($I13*'fnd base rates'!D$54) +($J13*'fnd base rates'!D$55) +($K13*'fnd base rates'!D$56) +($L13*'fnd base rates'!D$57) +($M13*'fnd base rates'!D$58) +($N13*'fnd base rates'!D$59) +($O13*VLOOKUP($S13+12,rate_basefnd,4))) *$R13 -> 206563.0694 | W13: =(($C13*'fnd base rates'!E$48) +($D13*'fnd base rates'!E$49) +($E13*'fnd base rates'!E$50) +($F13*'fnd base rates'!E$51) +($G13*'fnd base rates'!E$52) +($H13*'fnd base rates'!E$53) +($I13*'fnd base rates'!E$54) +($J13*'fnd base rates'!E$55) +($K13*'fnd base rates'!E$56) +($L13*'fnd base rates'!E$57) +($M13*'fnd base rates'!E$58) +($N13*'fnd base rates'!E$59) +($O13*VLOOKUP($S13+12,rate_basefnd,5))) *$R13 -> 1672791.298 | X13: =(($C13*'fnd base rates'!F$48) +($D13*'fnd base rates'!F$49) +($E13*'fnd base rates'!F$50) +($F13*'fnd base rates'!F$51) +($G13*'fnd base rates'!F$52) +($H13*'fnd base rates'!F$53) +($I13*'fnd base rates'!F$54) +($J13*'fnd base rates'!F$55) +($K13*'fnd base rates'!F$56) +($L13*'fnd base rates'!F$57) +($M13*'fnd base rates'!F$58) +($N13*'fnd base rates'!F$59) +($O13*VLOOKUP($S13+12,rate_basefnd,6))) *$R13 -> 260469.5491 | Y13: =(($C13*'fnd base rates'!G$48) +($D13*'fnd base rates'!G$49) +($E13*'fnd base rates'!G$50) +($F13*'fnd base rates'!G$51) +($G13*'fnd base rates'!G$52) +($H13*'fnd base rates'!G$53) +($I13*'fnd base rates'!G$54) +($J13*'fnd base rates'!G$55) +($K13*'fnd base rates'!G$56) +($L13*'fnd base rates'!G$57) +($M13*'fnd base rates'!G$58) +($N13*'fnd base rates'!G$59) +($O13*VLOOKUP($S13+12,rate_basefnd,7))) *$R13 -> 56511.25683 | Z13: =(($C13*'fnd base rates'!H$48) +($D13*'fnd base rates'!H$49) +($E13*'fnd base rates'!H$50) +($F13*'fnd base rates'!H$51) +($G13*'fnd base rates'!H$52) +($H13*'fnd base rates'!H$53) +($I13*'fnd base rates'!H$54) +($J13*'fnd base rates'!H$55) +($K13*'fnd base rates'!H$56) +($L13*'fnd base rates'!H$57) +($M13*'fnd base rates'!H$58) +($N13*'fnd base rates'!H$59) +($O13*VLOOKUP($S13+12,rate_basefnd,8))) -> 164744.336 | AA13: =(($C13*'fnd base rates'!I$48) +($D13*'fnd base rates'!I$49) +($E13*'fnd base rates'!I$50) +($F13*'fnd base rates'!I$51) +($G13*'fnd base rates'!I$52) +($H13*'fnd base rates'!I$53) +($I13*'fnd base rates'!I$54) +($J13*'fnd base rates'!I$55) +($K13*'fnd base rates'!I$56) +($L13*'fnd base rates'!I$57) +($M13*'fnd base rates'!I$58) +($N13*'fnd base rates'!I$59) +($O13*VLOOKUP($S13+12,rate_basefnd,9))) *$R13 -> 100337.6774 | AB13: =(($C13*'fnd base rates'!J$48) +($D13*'fnd base rates'!J$49) +($E13*'fnd base rates'!J$50) +($F13*'fnd base rates'!J$51) +($G13*'fnd base rates'!J$52) +($H13*'fnd base rates'!J$53) +($I13*'fnd base rates'!J$54) +($J13*'fnd base rates'!J$55) +($K13*'fnd base rates'!J$56) +($L13*'fnd base rates'!J$57) +($M13*'fnd base rates'!J$58) +($N13*'fnd base rates'!J$59) +($O13*VLOOKUP($S13+12,rate_basefnd,10))) *$R13 -> 101195.2559 | AC13: =(($C13*'fnd base rates'!K$48) +($D13*'fnd base rates'!K$49) +($E13*'fnd base rates'!K$50) +($F13*'fnd base rates'!K$51) +($G13*'fnd base rates'!K$52) +($H13*'fnd base rates'!K$53) +($I13*'fnd base rates'!K$54) +($J13*'fnd base rates'!K$55) +($K13*'fnd base rates'!K$56) +($L13*'fnd base rates'!K$57) +($M13*'fnd base rates'!K$58) +($N13*'fnd base rates'!K$59) +($O13*VLOOKUP($S13+12,rate_basefnd,11))) *$R13 -> 396573.3358 | AD13: =(($C13*'fnd base rates'!L$48) +($D13*'fnd base rates'!L$49) +($E13*'fnd base rates'!L$50) +($F13*'fnd base rates'!L$51) +($G13*'fnd base rates'!L$52) +($H13*'fnd base rates'!L$53) +($I13*'fnd base rates'!L$54) +($J13*'fnd base rates'!L$55) +($K13*'fnd base rates'!L$56) +($L13*'fnd base rates'!L$57) +($M13*'fnd base rates'!L$58) +($N13*'fnd base rates'!L$59) +($O13*VLOOKUP($S13+12,rate_basefnd,12))) -> 326172.6965 | AE13: =(($C13*'fnd base rates'!M$48) +($D13*'fnd base rates'!M$49) +($E13*'fnd base rates'!M$50) +($F13*'fnd base rates'!M$51) +($G13*'fnd base rates'!M$52) +($H13*'fnd base rates'!M$53) +($I13*'fnd base rates'!M$54) +($J13*'fnd base rates'!M$55) +($K13*'fnd base rates'!M$56) +($L13*'fnd base rates'!M$57) +($M13*'fnd base rates'!M$58) +($N13*'fnd base rates'!M$59) +($O13*VLOOKUP($S13+12,rate_basefnd,13))) -> 0 | AF13: 3429328.518 | AH13: 410035057 | AI13: 410 | AJ13: 035 | AK13: 057 | AL13: 1 | AM13: 288 | AN13: 3429328.518 | AO13: 11907 | AP13: 0 | AQ13: 11907
A14: 410035093 | B14: EXCEL ACADEMY | C14: ='fnd enro'!C14 -> 0 | D14: ='fnd enro'!D14 -> 0 | E14: ='fnd enro'!E14 -> 0 | F14: ='fnd enro'!F14 -> 0 | G14: ='fnd enro'!G14 -> 5 | H14: ='fnd enro'!H14 -> 3 | I14: ='fnd enro'!I14 -> 0.3375 | J14: ='fnd enro'!J14 -> 0 | K14: ='fnd enro'!K14 -> 0 | L14: ='fnd enro'!L14 -> 0 | M14: ='fnd enro'!M14 -> 1 | N14: ='fnd enro'!N14 -> 0 | O14: ='fnd enro'!O14 -> 3 | Q14: ='fnd enro'!R14 -> 9 | R14: 1.079 | S14: ='fnd enro'!Q14 -> 8 | U14: =(($C14*'fnd base rates'!C$48) +($D14*'fnd base rates'!C$49) +($E14*'fnd base rates'!C$50) +($F14*'fnd base rates'!C$51) +($G14*'fnd base rates'!C$52) +($H14*'fnd base rates'!C$53) +($I14*'fnd base rates'!C$54) +($J14*'fnd base rates'!C$55) +($K14*'fnd base rates'!C$56) +($L14*'fnd base rates'!C$57) +($M14*'fnd base rates'!C$58) +($N14*'fnd base rates'!C$59) +($O14*VLOOKUP($S14+12,rate_basefnd,3))) *$R14 -> 4499.063814 | V14: =(($C14*'fnd base rates'!D$48) +($D14*'fnd base rates'!D$49) +($E14*'fnd base rates'!D$50) +($F14*'fnd base rates'!D$51) +($G14*'fnd base rates'!D$52) +($H14*'fnd base rates'!D$53) +($I14*'fnd base rates'!D$54) +($J14*'fnd base rates'!D$55) +($K14*'fnd base rates'!D$56) +($L14*'fnd base rates'!D$57) +($M14*'fnd base rates'!D$58) +($N14*'fnd base rates'!D$59) +($O14*VLOOKUP($S14+12,rate_basefnd,4))) *$R14 -> 6455.09592 | W14: =(($C14*'fnd base rates'!E$48) +($D14*'fnd base rates'!E$49) +($E14*'fnd base rates'!E$50) +($F14*'fnd base rates'!E$51) +($G14*'fnd base rates'!E$52) +($H14*'fnd base rates'!E$53) +($I14*'fnd base rates'!E$54) +($J14*'fnd base rates'!E$55) +($K14*'fnd base rates'!E$56) +($L14*'fnd base rates'!E$57) +($M14*'fnd base rates'!E$58) +($N14*'fnd base rates'!E$59) +($O14*VLOOKUP($S14+12,rate_basefnd,5))) *$R14 -> 45628.85383 | X14: =(($C14*'fnd base rates'!F$48) +($D14*'fnd base rates'!F$49) +($E14*'fnd base rates'!F$50) +($F14*'fnd base rates'!F$51) +($G14*'fnd base rates'!F$52) +($H14*'fnd base rates'!F$53) +($I14*'fnd base rates'!F$54) +($J14*'fnd base rates'!F$55) +($K14*'fnd base rates'!F$56) +($L14*'fnd base rates'!F$57) +($M14*'fnd base rates'!F$58) +($N14*'fnd base rates'!F$59) +($O14*VLOOKUP($S14+12,rate_basefnd,6))) *$R14 -> 8076.802438 | Y14: =(($C14*'fnd base rates'!G$48) +($D14*'fnd base rates'!G$49) +($E14*'fnd base rates'!G$50) +($F14*'fnd base rates'!G$51) +($G14*'fnd base rates'!G$52) +($H14*'fnd base rates'!G$53) +($I14*'fnd base rates'!G$54) +($J14*'fnd base rates'!G$55) +($K14*'fnd base rates'!G$56) +($L14*'fnd base rates'!G$57) +($M14*'fnd base rates'!G$58) +($N14*'fnd base rates'!G$59) +($O14*VLOOKUP($S14+12,rate_basefnd,7))) *$R14 -> 1667.804635 | Z14: =(($C14*'fnd base rates'!H$48) +($D14*'fnd base rates'!H$49) +($E14*'fnd base rates'!H$50) +($F14*'fnd base rates'!H$51) +($G14*'fnd base rates'!H$52) +($H14*'fnd base rates'!H$53) +($I14*'fnd base rates'!H$54) +($J14*'fnd base rates'!H$55) +($K14*'fnd base rates'!H$56) +($L14*'fnd base rates'!H$57) +($M14*'fnd base rates'!H$58) +($N14*'fnd base rates'!H$59) +($O14*VLOOKUP($S14+12,rate_basefnd,8))) -> 4883.5605 | AA14: =(($C14*'fnd base rates'!I$48) +($D14*'fnd base rates'!I$49) +($E14*'fnd base rates'!I$50) +($F14*'fnd base rates'!I$51) +($G14*'fnd base rates'!I$52) +($H14*'fnd base rates'!I$53) +($I14*'fnd base rates'!I$54) +($J14*'fnd base rates'!I$55) +($K14*'fnd base rates'!I$56) +($L14*'fnd base rates'!I$57) +($M14*'fnd base rates'!I$58) +($N14*'fnd base rates'!I$59) +($O14*VLOOKUP($S14+12,rate_basefnd,9))) *$R14 -> 3109.26798 | AB14: =(($C14*'fnd base rates'!J$48) +($D14*'fnd base rates'!J$49) +($E14*'fnd base rates'!J$50) +($F14*'fnd base rates'!J$51) +($G14*'fnd base rates'!J$52) +($H14*'fnd base rates'!J$53) +($I14*'fnd base rates'!J$54) +($J14*'fnd base rates'!J$55) +($K14*'fnd base rates'!J$56) +($L14*'fnd base rates'!J$57) +($M14*'fnd base rates'!J$58) +($N14*'fnd base rates'!J$59) +($O14*VLOOKUP($S14+12,rate_basefnd,10))) *$R14 -> 2922.74125 | AC14: =(($C14*'fnd base rates'!K$48) +($D14*'fnd base rates'!K$49) +($E14*'fnd base rates'!K$50) +($F14*'fnd base rates'!K$51) +($G14*'fnd base rates'!K$52) +($H14*'fnd base rates'!K$53) +($I14*'fnd base rates'!K$54) +($J14*'fnd base rates'!K$55) +($K14*'fnd base rates'!K$56) +($L14*'fnd base rates'!K$57) +($M14*'fnd base rates'!K$58) +($N14*'fnd base rates'!K$59) +($O14*VLOOKUP($S14+12,rate_basefnd,11))) *$R14 -> 11703.88724 | AD14: =(($C14*'fnd base rates'!L$48) +($D14*'fnd base rates'!L$49) +($E14*'fnd base rates'!L$50) +($F14*'fnd base rates'!L$51) +($G14*'fnd base rates'!L$52) +($H14*'fnd base rates'!L$53) +($I14*'fnd base rates'!L$54) +($J14*'fnd base rates'!L$55) +($K14*'fnd base rates'!L$56) +($L14*'fnd base rates'!L$57) +($M14*'fnd base rates'!L$58) +($N14*'fnd base rates'!L$59) +($O14*VLOOKUP($S14+12,rate_basefnd,12))) -> 9774.016271 | AE14: =(($C14*'fnd base rates'!M$48) +($D14*'fnd base rates'!M$49) +($E14*'fnd base rates'!M$50) +($F14*'fnd base rates'!M$51) +($G14*'fnd base rates'!M$52) +($H14*'fnd base rates'!M$53) +($I14*'fnd base rates'!M$54) +($J14*'fnd base rates'!M$55) +($K14*'fnd base rates'!M$56) +($L14*'fnd base rates'!M$57) +($M14*'fnd base rates'!M$58) +($N14*'fnd base rates'!M$59) +($O14*VLOOKUP($S14+12,rate_basefnd,13))) -> 0 | AF14: 98721.09388 | AH14: 410035093 | AI14: 410 | AJ14: 035 | AK14: 093 | AL14: 1 | AM14: 9 | AN14: 98721.09388 | AO14: 10969 | AP14: 0 | AQ14: 10969
A15: 410035155 | B15: EXCEL ACADEMY | C15: ='fnd enro'!C15 -> 0 | D15: ='fnd enro'!D15 -> 0 | E15: ='fnd enro'!E15 -> 0 | F15: ='fnd enro'!F15 -> 0 | G15: ='fnd enro'!G15 -> 0 | H15: ='fnd enro'!H15 -> 1 | I15: ='fnd enro'!I15 -> 0.0375 | J15: ='fnd enro'!J15 -> 0 | K15: ='fnd enro'!K15 -> 0 | L15: ='fnd enro'!L15 -> 0 | M15: ='fnd enro'!M15 -> 0 | N15: ='fnd enro'!N15 -> 0 | O15: ='fnd enro'!O15 -> 0 | Q15: ='fnd enro'!R15 -> 1 | R15: 1.079 | S15: ='fnd enro'!Q15 -> 1 | U15: =(($C15*'fnd base rates'!C$48) +($D15*'fnd base rates'!C$49) +($E15*'fnd base rates'!C$50) +($F15*'fnd base rates'!C$51) +($G15*'fnd base rates'!C$52) +($H15*'fnd base rates'!C$53) +($I15*'fnd base rates'!C$54) +($J15*'fnd base rates'!C$55) +($K15*'fnd base rates'!C$56) +($L15*'fnd base rates'!C$57) +($M15*'fnd base rates'!C$58) +($N15*'fnd base rates'!C$59) +($O15*VLOOKUP($S15+12,rate_basefnd,3))) *$R15 -> 499.8959794 | V15: =(($C15*'fnd base rates'!D$48) +($D15*'fnd base rates'!D$49) +($E15*'fnd base rates'!D$50) +($F15*'fnd base rates'!D$51) +($G15*'fnd base rates'!D$52) +($H15*'fnd base rates'!D$53) +($I15*'fnd base rates'!D$54) +($J15*'fnd base rates'!D$55) +($K15*'fnd base rates'!D$56) +($L15*'fnd base rates'!D$57) +($M15*'fnd base rates'!D$58) +($N15*'fnd base rates'!D$59) +($O15*VLOOKUP($S15+12,rate_basefnd,4))) *$R15 -> 717.23288 | W15: =(($C15*'fnd base rates'!E$48) +($D15*'fnd base rates'!E$49) +($E15*'fnd base rates'!E$50) +($F15*'fnd base rates'!E$51) +($G15*'fnd base rates'!E$52) +($H15*'fnd base rates'!E$53) +($I15*'fnd base rates'!E$54) +($J15*'fnd base rates'!E$55) +($K15*'fnd base rates'!E$56) +($L15*'fnd base rates'!E$57) +($M15*'fnd base rates'!E$58) +($N15*'fnd base rates'!E$59) +($O15*VLOOKUP($S15+12,rate_basefnd,5))) *$R15 -> 4595.147416 | X15: =(($C15*'fnd base rates'!F$48) +($D15*'fnd base rates'!F$49) +($E15*'fnd base rates'!F$50) +($F15*'fnd base rates'!F$51) +($G15*'fnd base rates'!F$52) +($H15*'fnd base rates'!F$53) +($I15*'fnd base rates'!F$54) +($J15*'fnd base rates'!F$55) +($K15*'fnd base rates'!F$56) +($L15*'fnd base rates'!F$57) +($M15*'fnd base rates'!F$58) +($N15*'fnd base rates'!F$59) +($O15*VLOOKUP($S15+12,rate_basefnd,6))) *$R15 -> 822.1502543 | Y15: =(($C15*'fnd base rates'!G$48) +($D15*'fnd base rates'!G$49) +($E15*'fnd base rates'!G$50) +($F15*'fnd base rates'!G$51) +($G15*'fnd base rates'!G$52) +($H15*'fnd base rates'!G$53) +($I15*'fnd base rates'!G$54) +($J15*'fnd base rates'!G$55) +($K15*'fnd base rates'!G$56) +($L15*'fnd base rates'!G$57) +($M15*'fnd base rates'!G$58) +($N15*'fnd base rates'!G$59) +($O15*VLOOKUP($S15+12,rate_basefnd,7))) *$R15 -> 153.1562272 | Z15: =(($C15*'fnd base rates'!H$48) +($D15*'fnd base rates'!H$49) +($E15*'fnd base rates'!H$50) +($F15*'fnd base rates'!H$51) +($G15*'fnd base rates'!H$52) +($H15*'fnd base rates'!H$53) +($I15*'fnd base rates'!H$54) +($J15*'fnd base rates'!H$55) +($K15*'fnd base rates'!H$56) +($L15*'fnd base rates'!H$57) +($M15*'fnd base rates'!H$58) +($N15*'fnd base rates'!H$59) +($O15*VLOOKUP($S15+12,rate_basefnd,8))) -> 719.0845 | AA15: =(($C15*'fnd base rates'!I$48) +($D15*'fnd base rates'!I$49) +($E15*'fnd base rates'!I$50) +($F15*'fnd base rates'!I$51) +($G15*'fnd base rates'!I$52) +($H15*'fnd base rates'!I$53) +($I15*'fnd base rates'!I$54) +($J15*'fnd base rates'!I$55) +($K15*'fnd base rates'!I$56) +($L15*'fnd base rates'!I$57) +($M15*'fnd base rates'!I$58) +($N15*'fnd base rates'!I$59) +($O15*VLOOKUP($S15+12,rate_basefnd,9))) *$R15 -> 399.31632 | AB15: =(($C15*'fnd base rates'!J$48) +($D15*'fnd base rates'!J$49) +($E15*'fnd base rates'!J$50) +($F15*'fnd base rates'!J$51) +($G15*'fnd base rates'!J$52) +($H15*'fnd base rates'!J$53) +($I15*'fnd base rates'!J$54) +($J15*'fnd base rates'!J$55) +($K15*'fnd base rates'!J$56) +($L15*'fnd base rates'!J$57) +($M15*'fnd base rates'!J$58) +($N15*'fnd base rates'!J$59) +($O15*VLOOKUP($S15+12,rate_basefnd,10))) *$R15 -> 537.8815 | AC15: =(($C15*'fnd base rates'!K$48) +($D15*'fnd base rates'!K$49) +($E15*'fnd base rates'!K$50) +($F15*'fnd base rates'!K$51) +($G15*'fnd base rates'!K$52) +($H15*'fnd base rates'!K$53) +($I15*'fnd base rates'!K$54) +($J15*'fnd base rates'!K$55) +($K15*'fnd base rates'!K$56) +($L15*'fnd base rates'!K$57) +($M15*'fnd base rates'!K$58) +($N15*'fnd base rates'!K$59) +($O15*VLOOKUP($S15+12,rate_basefnd,11))) *$R15 -> 1074.79743 | AD15: =(($C15*'fnd base rates'!L$48) +($D15*'fnd base rates'!L$49) +($E15*'fnd base rates'!L$50) +($F15*'fnd base rates'!L$51) +($G15*'fnd base rates'!L$52) +($H15*'fnd base rates'!L$53) +($I15*'fnd base rates'!L$54) +($J15*'fnd base rates'!L$55) +($K15*'fnd base rates'!L$56) +($L15*'fnd base rates'!L$57) +($M15*'fnd base rates'!L$58) +($N15*'fnd base rates'!L$59) +($O15*VLOOKUP($S15+12,rate_basefnd,12))) -> 919.2580394 | AE15: =(($C15*'fnd base rates'!M$48) +($D15*'fnd base rates'!M$49) +($E15*'fnd base rates'!M$50) +($F15*'fnd base rates'!M$51) +($G15*'fnd base rates'!M$52) +($H15*'fnd base rates'!M$53) +($I15*'fnd base rates'!M$54) +($J15*'fnd base rates'!M$55) +($K15*'fnd base rates'!M$56) +($L15*'fnd base rates'!M$57) +($M15*'fnd base rates'!M$58) +($N15*'fnd base rates'!M$59) +($O15*VLOOKUP($S15+12,rate_basefnd,13))) -> 0 | AF15: 10437.92055 | AH15: 410035155 | AI15: 410 | AJ15: 035 | AK15: 155 | AL15: 1 | AM15: 1 | AN15: 10437.92055 | AO15: 10438 | AP15: 0 | AQ15: 10438
A16: 410035163 | B16: EXCEL ACADEMY | C16: ='fnd enro'!C16 -> 0 | D16: ='fnd enro'!D16 -> 0 | E16: ='fnd enro'!E16 -> 0 | F16: ='fnd enro'!F16 -> 2 | G16: ='fnd enro'!G16 -> 4 | H16: ='fnd enro'!H16 -> 6 | I16: ='fnd enro'!I16 -> 0.45 | J16: ='fnd enro'!J16 -> 0 | K16: ='fnd enro'!K16 -> 0 | L16: ='fnd enro'!L16 -> 0 | M16: ='fnd enro'!M16 -> 0 | N16: ='fnd enro'!N16 -> 0 | O16: ='fnd enro'!O16 -> 3 | Q16: ='fnd enro'!R16 -> 12 | R16: 1.079 | S16: ='fnd enro'!Q16 -> 6 | U16: =(($C16*'fnd base rates'!C$48) +($D16*'fnd base rates'!C$49) +($E16*'fnd base rates'!C$50) +($F16*'fnd base rates'!C$51) +($G16*'fnd base rates'!C$52) +($H16*'fnd base rates'!C$53) +($I16*'fnd base rates'!C$54) +($J16*'fnd base rates'!C$55) +($K16*'fnd base rates'!C$56) +($L16*'fnd base rates'!C$57) +($M16*'fnd base rates'!C$58) +($N16*'fnd base rates'!C$59) +($O16*VLOOKUP($S16+12,rate_basefnd,3))) *$R16 -> 5998.751753 | V16: =(($C16*'fnd base rates'!D$48) +($D16*'fnd base rates'!D$49) +($E16*'fnd base rates'!D$50) +($F16*'fnd base rates'!D$51) +($G16*'fnd base rates'!D$52) +($H16*'fnd base rates'!D$53) +($I16*'fnd base rates'!D$54) +($J16*'fnd base rates'!D$55) +($K16*'fnd base rates'!D$56) +($L16*'fnd base rates'!D$57) +($M16*'fnd base rates'!D$58) +($N16*'fnd base rates'!D$59) +($O16*VLOOKUP($S16+12,rate_basefnd,4))) *$R16 -> 8606.79456 | W16: =(($C16*'fnd base rates'!E$48) +($D16*'fnd base rates'!E$49) +($E16*'fnd base rates'!E$50) +($F16*'fnd base rates'!E$51) +($G16*'fnd base rates'!E$52) +($H16*'fnd base rates'!E$53) +($I16*'fnd base rates'!E$54) +($J16*'fnd base rates'!E$55) +($K16*'fnd base rates'!E$56) +($L16*'fnd base rates'!E$57) +($M16*'fnd base rates'!E$58) +($N16*'fnd base rates'!E$59) +($O16*VLOOKUP($S16+12,rate_basefnd,5))) *$R16 -> 57939.79942 | X16: =(($C16*'fnd base rates'!F$48) +($D16*'fnd base rates'!F$49) +($E16*'fnd base rates'!F$50) +($F16*'fnd base rates'!F$51) +($G16*'fnd base rates'!F$52) +($H16*'fnd base rates'!F$53) +($I16*'fnd base rates'!F$54) +($J16*'fnd base rates'!F$55) +($K16*'fnd base rates'!F$56) +($L16*'fnd base rates'!F$57) +($M16*'fnd base rates'!F$58) +($N16*'fnd base rates'!F$59) +($O16*VLOOKUP($S16+12,rate_basefnd,6))) *$R16 -> 10948.60113 | Y16: =(($C16*'fnd base rates'!G$48) +($D16*'fnd base rates'!G$49) +($E16*'fnd base rates'!G$50) +($F16*'fnd base rates'!G$51) +($G16*'fnd base rates'!G$52) +($H16*'fnd base rates'!G$53) +($I16*'fnd base rates'!G$54) +($J16*'fnd base rates'!G$55) +($K16*'fnd base rates'!G$56) +($L16*'fnd base rates'!G$57) +($M16*'fnd base rates'!G$58) +($N16*'fnd base rates'!G$59) +($O16*VLOOKUP($S16+12,rate_basefnd,7))) *$R16 -> 2065.791897 | Z16: =(($C16*'fnd base rates'!H$48) +($D16*'fnd base rates'!H$49) +($E16*'fnd base rates'!H$50) +($F16*'fnd base rates'!H$51) +($G16*'fnd base rates'!H$52) +($H16*'fnd base rates'!H$53) +($I16*'fnd base rates'!H$54) +($J16*'fnd base rates'!H$55) +($K16*'fnd base rates'!H$56) +($L16*'fnd base rates'!H$57) +($M16*'fnd base rates'!H$58) +($N16*'fnd base rates'!H$59) +($O16*VLOOKUP($S16+12,rate_basefnd,8))) -> 7040.814 | AA16: =(($C16*'fnd base rates'!I$48) +($D16*'fnd base rates'!I$49) +($E16*'fnd base rates'!I$50) +($F16*'fnd base rates'!I$51) +($G16*'fnd base rates'!I$52) +($H16*'fnd base rates'!I$53) +($I16*'fnd base rates'!I$54) +($J16*'fnd base rates'!I$55) +($K16*'fnd base rates'!I$56) +($L16*'fnd base rates'!I$57) +($M16*'fnd base rates'!I$58) +($N16*'fnd base rates'!I$59) +($O16*VLOOKUP($S16+12,rate_basefnd,9))) *$R16 -> 4148.73342 | AB16: =(($C16*'fnd base rates'!J$48) +($D16*'fnd base rates'!J$49) +($E16*'fnd base rates'!J$50) +($F16*'fnd base rates'!J$51) +($G16*'fnd base rates'!J$52) +($H16*'fnd base rates'!J$53) +($I16*'fnd base rates'!J$54) +($J16*'fnd base rates'!J$55) +($K16*'fnd base rates'!J$56) +($L16*'fnd base rates'!J$57) +($M16*'fnd base rates'!J$58) +($N16*'fnd base rates'!J$59) +($O16*VLOOKUP($S16+12,rate_basefnd,10))) *$R16 -> 4445.93318 | AC16: =(($C16*'fnd base rates'!K$48) +($D16*'fnd base rates'!K$49) +($E16*'fnd base rates'!K$50) +($F16*'fnd base rates'!K$51) +($G16*'fnd base rates'!K$52) +($H16*'fnd base rates'!K$53) +($I16*'fnd base rates'!K$54) +($J16*'fnd base rates'!K$55) +($K16*'fnd base rates'!K$56) +($L16*'fnd base rates'!K$57) +($M16*'fnd base rates'!K$58) +($N16*'fnd base rates'!K$59) +($O16*VLOOKUP($S16+12,rate_basefnd,11))) *$R16 -> 14496.70111 | AD16: =(($C16*'fnd base rates'!L$48) +($D16*'fnd base rates'!L$49) +($E16*'fnd base rates'!L$50) +($F16*'fnd base rates'!L$51) +($G16*'fnd base rates'!L$52) +($H16*'fnd base rates'!L$53) +($I16*'fnd base rates'!L$54) +($J16*'fnd base rates'!L$55) +($K16*'fnd base rates'!L$56) +($L16*'fnd base rates'!L$57) +($M16*'fnd base rates'!L$58) +($N16*'fnd base rates'!L$59) +($O16*VLOOKUP($S16+12,rate_basefnd,12))) -> 12361.01022 | AE16: =(($C16*'fnd base rates'!M$48) +($D16*'fnd base rates'!M$49) +($E16*'fnd base rates'!M$50) +($F16*'fnd base rates'!M$51) +($G16*'fnd base rates'!M$52) +($H16*'fnd base rates'!M$53) +($I16*'fnd base rates'!M$54) +($J16*'fnd base rates'!M$55) +($K16*'fnd base rates'!M$56) +($L16*'fnd base rates'!M$57) +($M16*'fnd base rates'!M$58) +($N16*'fnd base rates'!M$59) +($O16*VLOOKUP($S16+12,rate_basefnd,13))) -> 0 | AF16: 128052.9307 | AH16: 410035163 | AI16: 410 | AJ16: 035 | AK16: 163 | AL16: 1 | AM16: 12 | AN16: 128052.9307 | AO16: 10671 | AP16: 0 | AQ16: 10671
A17: 410035165 | B17: EXCEL ACADEMY | C17: ='fnd enro'!C17 -> 0 | D17: ='fnd enro'!D17 -> 0 | E17: ='fnd enro'!E17 -> 0 | F17: ='fnd enro'!F17 -> 0 | G17: ='fnd enro'!G17 -> 1 | H17: ='fnd enro'!H17 -> 1 | I17: ='fnd enro'!I17 -> 0.075 | J17: ='fnd enro'!J17 -> 0 | K17: ='fnd enro'!K17 -> 0 | L17: ='fnd enro'!L17 -> 0 | M17: ='fnd enro'!M17 -> 0 | N17: ='fnd enro'!N17 -> 0 | O17: ='fnd enro'!O17 -> 0 | Q17: ='fnd enro'!R17 -> 2 | R17: 1.079 | S17: ='fnd enro'!Q17 -> 1 | U17: =(($C17*'fnd base rates'!C$48) +($D17*'fnd base rates'!C$49) +($E17*'fnd base rates'!C$50) +($F17*'fnd base rates'!C$51) +($G17*'fnd base rates'!C$52) +($H17*'fnd base rates'!C$53) +($I17*'fnd base rates'!C$54) +($J17*'fnd base rates'!C$55) +($K17*'fnd base rates'!C$56) +($L17*'fnd base rates'!C$57) +($M17*'fnd base rates'!C$58) +($N17*'fnd base rates'!C$59) +($O17*VLOOKUP($S17+12,rate_basefnd,3))) *$R17 -> 999.7919588 | V17: =(($C17*'fnd base rates'!D$48) +($D17*'fnd base rates'!D$49) +($E17*'fnd base rates'!D$50) +($F17*'fnd base rates'!D$51) +($G17*'fnd base rates'!D$52) +($H17*'fnd base rates'!D$53) +($I17*'fnd base rates'!D$54) +($J17*'fnd base rates'!D$55) +($K17*'fnd base rates'!D$56) +($L17*'fnd base rates'!D$57) +($M17*'fnd base rates'!D$58) +($N17*'fnd base rates'!D$59) +($O17*VLOOKUP($S17+12,rate_basefnd,4))) *$R17 -> 1434.46576 | W17: =(($C17*'fnd base rates'!E$48) +($D17*'fnd base rates'!E$49) +($E17*'fnd base rates'!E$50) +($F17*'fnd base rates'!E$51) +($G17*'fnd base rates'!E$52) +($H17*'fnd base rates'!E$53) +($I17*'fnd base rates'!E$54) +($J17*'fnd base rates'!E$55) +($K17*'fnd base rates'!E$56) +($L17*'fnd base rates'!E$57) +($M17*'fnd base rates'!E$58) +($N17*'fnd base rates'!E$59) +($O17*VLOOKUP($S17+12,rate_basefnd,5))) *$R17 -> 7828.391821 | X17: =(($C17*'fnd base rates'!F$48) +($D17*'fnd base rates'!F$49) +($E17*'fnd base rates'!F$50) +($F17*'fnd base rates'!F$51) +($G17*'fnd base rates'!F$52) +($H17*'fnd base rates'!F$53) +($I17*'fnd base rates'!F$54) +($J17*'fnd base rates'!F$55) +($K17*'fnd base rates'!F$56) +($L17*'fnd base rates'!F$57) +($M17*'fnd base rates'!F$58) +($N17*'fnd base rates'!F$59) +($O17*VLOOKUP($S17+12,rate_basefnd,6))) *$R17 -> 1745.996259 | Y17: =(($C17*'fnd base rates'!G$48) +($D17*'fnd base rates'!G$49) +($E17*'fnd base rates'!G$50) +($F17*'fnd base rates'!G$51) +($G17*'fnd base rates'!G$52) +($H17*'fnd base rates'!G$53) +($I17*'fnd base rates'!G$54) +($J17*'fnd base rates'!G$55) +($K17*'fnd base rates'!G$56) +($L17*'fnd base rates'!G$57) +($M17*'fnd base rates'!G$58) +($N17*'fnd base rates'!G$59) +($O17*VLOOKUP($S17+12,rate_basefnd,7))) *$R17 -> 310.6068745 | Z17: =(($C17*'fnd base rates'!H$48) +($D17*'fnd base rates'!H$49) +($E17*'fnd base rates'!H$50) +($F17*'fnd base rates'!H$51) +($G17*'fnd base rates'!H$52) +($H17*'fnd base rates'!H$53) +($I17*'fnd base rates'!H$54) +($J17*'fnd base rates'!H$55) +($K17*'fnd base rates'!H$56) +($L17*'fnd base rates'!H$57) +($M17*'fnd base rates'!H$58) +($N17*'fnd base rates'!H$59) +($O17*VLOOKUP($S17+12,rate_basefnd,8))) -> 1173.469 | AA17: =(($C17*'fnd base rates'!I$48) +($D17*'fnd base rates'!I$49) +($E17*'fnd base rates'!I$50) +($F17*'fnd base rates'!I$51) +($G17*'fnd base rates'!I$52) +($H17*'fnd base rates'!I$53) +($I17*'fnd base rates'!I$54) +($J17*'fnd base rates'!I$55) +($K17*'fnd base rates'!I$56) +($L17*'fnd base rates'!I$57) +($M17*'fnd base rates'!I$58) +($N17*'fnd base rates'!I$59) +($O17*VLOOKUP($S17+12,rate_basefnd,9))) *$R17 -> 717.86949 | AB17: =(($C17*'fnd base rates'!J$48) +($D17*'fnd base rates'!J$49) +($E17*'fnd base rates'!J$50) +($F17*'fnd base rates'!J$51) +($G17*'fnd base rates'!J$52) +($H17*'fnd base rates'!J$53) +($I17*'fnd base rates'!J$54) +($J17*'fnd base rates'!J$55) +($K17*'fnd base rates'!J$56) +($L17*'fnd base rates'!J$57) +($M17*'fnd base rates'!J$58) +($N17*'fnd base rates'!J$59) +($O17*VLOOKUP($S17+12,rate_basefnd,10))) *$R17 -> 771.13972 | AC17: =(($C17*'fnd base rates'!K$48) +($D17*'fnd base rates'!K$49) +($E17*'fnd base rates'!K$50) +($F17*'fnd base rates'!K$51) +($G17*'fnd base rates'!K$52) +($H17*'fnd base rates'!K$53) +($I17*'fnd base rates'!K$54) +($J17*'fnd base rates'!K$55) +($K17*'fnd base rates'!K$56) +($L17*'fnd base rates'!K$57) +($M17*'fnd base rates'!K$58) +($N17*'fnd base rates'!K$59) +($O17*VLOOKUP($S17+12,rate_basefnd,11))) *$R17 -> 2179.68817 | AD17: =(($C17*'fnd base rates'!L$48) +($D17*'fnd base rates'!L$49) +($E17*'fnd base rates'!L$50) +($F17*'fnd base rates'!L$51) +($G17*'fnd base rates'!L$52) +($H17*'fnd base rates'!L$53) +($I17*'fnd base rates'!L$54) +($J17*'fnd base rates'!L$55) +($K17*'fnd base rates'!L$56) +($L17*'fnd base rates'!L$57) +($M17*'fnd base rates'!L$58) +($N17*'fnd base rates'!L$59) +($O17*VLOOKUP($S17+12,rate_basefnd,12))) -> 1897.277803 | AE17: =(($C17*'fnd base rates'!M$48) +($D17*'fnd base rates'!M$49) +($E17*'fnd base rates'!M$50) +($F17*'fnd base rates'!M$51) +($G17*'fnd base rates'!M$52) +($H17*'fnd base rates'!M$53) +($I17*'fnd base rates'!M$54) +($J17*'fnd base rates'!M$55) +($K17*'fnd base rates'!M$56) +($L17*'fnd base rates'!M$57) +($M17*'fnd base rates'!M$58) +($N17*'fnd base rates'!M$59) +($O17*VLOOKUP($S17+12,rate_basefnd,13))) -> 0 | AF17: 19058.69686 | AH17: 410035165 | AI17: 410 | AJ17: 035 | AK17: 165 | AL17: 1 | AM17: 2 | AN17: 19058.69686 | AO17: 9529 | AP17: 0 | AQ17: 9529
A18: 410035248 | B18: EXCEL ACADEMY | C18: ='fnd enro'!C18 -> 0 | D18: ='fnd enro'!D18 -> 0 | E18: ='fnd enro'!E18 -> 0 | F18: ='fnd enro'!F18 -> 0 | G18: ='fnd enro'!G18 -> 8 | H18: ='fnd enro'!H18 -> 12 | I18: ='fnd enro'!I18 -> 0.8625 | J18: ='fnd enro'!J18 -> 0 | K18: ='fnd enro'!K18 -> 0 | L18: ='fnd enro'!L18 -> 0 | M18: ='fnd enro'!M18 -> 3 | N18: ='fnd enro'!N18 -> 0 | O18: ='fnd enro'!O18 -> 4 | Q18: ='fnd enro'!R18 -> 23 | R18: 1.079 | S18: ='fnd enro'!Q18 -> 4 | U18: =(($C18*'fnd base rates'!C$48) +($D18*'fnd base rates'!C$49) +($E18*'fnd base rates'!C$50) +($F18*'fnd base rates'!C$51) +($G18*'fnd base rates'!C$52) +($H18*'fnd base rates'!C$53) +($I18*'fnd base rates'!C$54) +($J18*'fnd base rates'!C$55) +($K18*'fnd base rates'!C$56) +($L18*'fnd base rates'!C$57) +($M18*'fnd base rates'!C$58) +($N18*'fnd base rates'!C$59) +($O18*VLOOKUP($S18+12,rate_basefnd,3))) *$R18 -> 11497.60753 | V18: =(($C18*'fnd base rates'!D$48) +($D18*'fnd base rates'!D$49) +($E18*'fnd base rates'!D$50) +($F18*'fnd base rates'!D$51) +($G18*'fnd base rates'!D$52) +($H18*'fnd base rates'!D$53) +($I18*'fnd base rates'!D$54) +($J18*'fnd base rates'!D$55) +($K18*'fnd base rates'!D$56) +($L18*'fnd base rates'!D$57) +($M18*'fnd base rates'!D$58) +($N18*'fnd base rates'!D$59) +($O18*VLOOKUP($S18+12,rate_basefnd,4))) *$R18 -> 16496.35624 | W18: =(($C18*'fnd base rates'!E$48) +($D18*'fnd base rates'!E$49) +($E18*'fnd base rates'!E$50) +($F18*'fnd base rates'!E$51) +($G18*'fnd base rates'!E$52) +($H18*'fnd base rates'!E$53) +($I18*'fnd base rates'!E$54) +($J18*'fnd base rates'!E$55) +($K18*'fnd base rates'!E$56) +($L18*'fnd base rates'!E$57) +($M18*'fnd base rates'!E$58) +($N18*'fnd base rates'!E$59) +($O18*VLOOKUP($S18+12,rate_basefnd,5))) *$R18 -> 110184.4757 | X18: =(($C18*'fnd base rates'!F$48) +($D18*'fnd base rates'!F$49) +($E18*'fnd base rates'!F$50) +($F18*'fnd base rates'!F$51) +($G18*'fnd base rates'!F$52) +($H18*'fnd base rates'!F$53) +($I18*'fnd base rates'!F$54) +($J18*'fnd base rates'!F$55) +($K18*'fnd base rates'!F$56) +($L18*'fnd base rates'!F$57) +($M18*'fnd base rates'!F$58) +($N18*'fnd base rates'!F$59) +($O18*VLOOKUP($S18+12,rate_basefnd,6))) *$R18 -> 20229.93605 | Y18: =(($C18*'fnd base rates'!G$48) +($D18*'fnd base rates'!G$49) +($E18*'fnd base rates'!G$50) +($F18*'fnd base rates'!G$51) +($G18*'fnd base rates'!G$52) +($H18*'fnd base rates'!G$53) +($I18*'fnd base rates'!G$54) +($J18*'fnd base rates'!G$55) +($K18*'fnd base rates'!G$56) +($L18*'fnd base rates'!G$57) +($M18*'fnd base rates'!G$58) +($N18*'fnd base rates'!G$59) +($O18*VLOOKUP($S18+12,rate_basefnd,7))) *$R18 -> 3967.745467 | Z18: =(($C18*'fnd base rates'!H$48) +($D18*'fnd base rates'!H$49) +($E18*'fnd base rates'!H$50) +($F18*'fnd base rates'!H$51) +($G18*'fnd base rates'!H$52) +($H18*'fnd base rates'!H$53) +($I18*'fnd base rates'!H$54) +($J18*'fnd base rates'!H$55) +($K18*'fnd base rates'!H$56) +($L18*'fnd base rates'!H$57) +($M18*'fnd base rates'!H$58) +($N18*'fnd base rates'!H$59) +($O18*VLOOKUP($S18+12,rate_basefnd,8))) -> 13627.2435 | AA18: =(($C18*'fnd base rates'!I$48) +($D18*'fnd base rates'!I$49) +($E18*'fnd base rates'!I$50) +($F18*'fnd base rates'!I$51) +($G18*'fnd base rates'!I$52) +($H18*'fnd base rates'!I$53) +($I18*'fnd base rates'!I$54) +($J18*'fnd base rates'!I$55) +($K18*'fnd base rates'!I$56) +($L18*'fnd base rates'!I$57) +($M18*'fnd base rates'!I$58) +($N18*'fnd base rates'!I$59) +($O18*VLOOKUP($S18+12,rate_basefnd,9))) *$R18 -> 8295.88071 | AB18: =(($C18*'fnd base rates'!J$48) +($D18*'fnd base rates'!J$49) +($E18*'fnd base rates'!J$50) +($F18*'fnd base rates'!J$51) +($G18*'fnd base rates'!J$52) +($H18*'fnd base rates'!J$53) +($I18*'fnd base rates'!J$54) +($J18*'fnd base rates'!J$55) +($K18*'fnd base rates'!J$56) +($L18*'fnd base rates'!J$57) +($M18*'fnd base rates'!J$58) +($N18*'fnd base rates'!J$59) +($O18*VLOOKUP($S18+12,rate_basefnd,10))) *$R18 -> 8749.06071 | AC18: =(($C18*'fnd base rates'!K$48) +($D18*'fnd base rates'!K$49) +($E18*'fnd base rates'!K$50) +($F18*'fnd base rates'!K$51) +($G18*'fnd base rates'!K$52) +($H18*'fnd base rates'!K$53) +($I18*'fnd base rates'!K$54) +($J18*'fnd base rates'!K$55) +($K18*'fnd base rates'!K$56) +($L18*'fnd base rates'!K$57) +($M18*'fnd base rates'!K$58) +($N18*'fnd base rates'!K$59) +($O18*VLOOKUP($S18+12,rate_basefnd,11))) *$R18 -> 27844.27248 | AD18: =(($C18*'fnd base rates'!L$48) +($D18*'fnd base rates'!L$49) +($E18*'fnd base rates'!L$50) +($F18*'fnd base rates'!L$51) +($G18*'fnd base rates'!L$52) +($H18*'fnd base rates'!L$53) +($I18*'fnd base rates'!L$54) +($J18*'fnd base rates'!L$55) +($K18*'fnd base rates'!L$56) +($L18*'fnd base rates'!L$57) +($M18*'fnd base rates'!L$58) +($N18*'fnd base rates'!L$59) +($O18*VLOOKUP($S18+12,rate_basefnd,12))) -> 23553.89459 | AE18: =(($C18*'fnd base rates'!M$48) +($D18*'fnd base rates'!M$49) +($E18*'fnd base rates'!M$50) +($F18*'fnd base rates'!M$51) +($G18*'fnd base rates'!M$52) +($H18*'fnd base rates'!M$53) +($I18*'fnd base rates'!M$54) +($J18*'fnd base rates'!M$55) +($K18*'fnd base rates'!M$56) +($L18*'fnd base rates'!M$57) +($M18*'fnd base rates'!M$58) +($N18*'fnd base rates'!M$59) +($O18*VLOOKUP($S18+12,rate_basefnd,13))) -> 0 | AF18: 244446.4729 | AH18: 410035248 | AI18: 410 | AJ18: 035 | AK18: 248 | AL18: 1 | AM18: 23 | AN18: 244446.4729 | AO18: 10628 | AP18: 0 | AQ18: 10628
A19: 410035258 | B19: EXCEL ACADEMY | C19: ='fnd enro'!C19 -> 0 | D19: ='fnd enro'!D19 -> 0 | E19: ='fnd enro'!E19 -> 0 | F19: ='fnd enro'!F19 -> 0 | G19: ='fnd enro'!G19 -> 1 | H19: ='fnd enro'!H19 -> 0 | I19: ='fnd enro'!I19 -> 0.0375 | J19: ='fnd enro'!J19 -> 0 | K19: ='fnd enro'!K19 -> 0 | L19: ='fnd enro'!L19 -> 0 | M19: ='fnd enro'!M19 -> 0 | N19: ='fnd enro'!N19 -> 0 | O19: ='fnd enro'!O19 -> 1 | Q19: ='fnd enro'!R19 -> 1 | R19: 1.079 | S19: ='fnd enro'!Q19 -> 10 | U19: =(($C19*'fnd base rates'!C$48) +($D19*'fnd base rates'!C$49) +($E19*'fnd base rates'!C$50) +($F19*'fnd base rates'!C$51) +($G19*'fnd base rates'!C$52) +($H19*'fnd base rates'!C$53) +($I19*'fnd base rates'!C$54) +($J19*'fnd base rates'!C$55) +($K19*'fnd base rates'!C$56) +($L19*'fnd base rates'!C$57) +($M19*'fnd base rates'!C$58) +($N19*'fnd base rates'!C$59) +($O19*VLOOKUP($S19+12,rate_basefnd,3))) *$R19 -> 499.8959794 | V19: =(($C19*'fnd base rates'!D$48) +($D19*'fnd base rates'!D$49) +($E19*'fnd base rates'!D$50) +($F19*'fnd base rates'!D$51) +($G19*'fnd base rates'!D$52) +($H19*'fnd base rates'!D$53) +($I19*'fnd base rates'!D$54) +($J19*'fnd base rates'!D$55) +($K19*'fnd base rates'!D$56) +($L19*'fnd base rates'!D$57) +($M19*'fnd base rates'!D$58) +($N19*'fnd base rates'!D$59) +($O19*VLOOKUP($S19+12,rate_basefnd,4))) *$R19 -> 717.23288 | W19: =(($C19*'fnd base rates'!E$48) +($D19*'fnd base rates'!E$49) +($E19*'fnd base rates'!E$50) +($F19*'fnd base rates'!E$51) +($G19*'fnd base rates'!E$52) +($H19*'fnd base rates'!E$53) +($I19*'fnd base rates'!E$54) +($J19*'fnd base rates'!E$55) +($K19*'fnd base rates'!E$56) +($L19*'fnd base rates'!E$57) +($M19*'fnd base rates'!E$58) +($N19*'fnd base rates'!E$59) +($O19*VLOOKUP($S19+12,rate_basefnd,5))) *$R19 -> 6763.236066 | X19: =(($C19*'fnd base rates'!F$48) +($D19*'fnd base rates'!F$49) +($E19*'fnd base rates'!F$50) +($F19*'fnd base rates'!F$51) +($G19*'fnd base rates'!F$52) +($H19*'fnd base rates'!F$53) +($I19*'fnd base rates'!F$54) +($J19*'fnd base rates'!F$55) +($K19*'fnd base rates'!F$56) +($L19*'fnd base rates'!F$57) +($M19*'fnd base rates'!F$58) +($N19*'fnd base rates'!F$59) +($O19*VLOOKUP($S19+12,rate_basefnd,6))) *$R19 -> 923.8460043 | Y19: =(($C19*'fnd base rates'!G$48) +($D19*'fnd base rates'!G$49) +($E19*'fnd base rates'!G$50) +($F19*'fnd base rates'!G$51) +($G19*'fnd base rates'!G$52) +($H19*'fnd base rates'!G$53) +($I19*'fnd base rates'!G$54) +($J19*'fnd base rates'!G$55) +($K19*'fnd base rates'!G$56) +($L19*'fnd base rates'!G$57) +($M19*'fnd base rates'!G$58) +($N19*'fnd base rates'!G$59) +($O19*VLOOKUP($S19+12,rate_basefnd,7))) *$R19 -> 235.1386472 | Z19: =(($C19*'fnd base rates'!H$48) +($D19*'fnd base rates'!H$49) +($E19*'fnd base rates'!H$50) +($F19*'fnd base rates'!H$51) +($G19*'fnd base rates'!H$52) +($H19*'fnd base rates'!H$53) +($I19*'fnd base rates'!H$54) +($J19*'fnd base rates'!H$55) +($K19*'fnd base rates'!H$56) +($L19*'fnd base rates'!H$57) +($M19*'fnd base rates'!H$58) +($N19*'fnd base rates'!H$59) +($O19*VLOOKUP($S19+12,rate_basefnd,8))) -> 454.3845 | AA19: =(($C19*'fnd base rates'!I$48) +($D19*'fnd base rates'!I$49) +($E19*'fnd base rates'!I$50) +($F19*'fnd base rates'!I$51) +($G19*'fnd base rates'!I$52) +($H19*'fnd base rates'!I$53) +($I19*'fnd base rates'!I$54) +($J19*'fnd base rates'!I$55) +($K19*'fnd base rates'!I$56) +($L19*'fnd base rates'!I$57) +($M19*'fnd base rates'!I$58) +($N19*'fnd base rates'!I$59) +($O19*VLOOKUP($S19+12,rate_basefnd,9))) *$R19 -> 318.55317 | AB19: =(($C19*'fnd base rates'!J$48) +($D19*'fnd base rates'!J$49) +($E19*'fnd base rates'!J$50) +($F19*'fnd base rates'!J$51) +($G19*'fnd base rates'!J$52) +($H19*'fnd base rates'!J$53) +($I19*'fnd base rates'!J$54) +($J19*'fnd base rates'!J$55) +($K19*'fnd base rates'!J$56) +($L19*'fnd base rates'!J$57) +($M19*'fnd base rates'!J$58) +($N19*'fnd base rates'!J$59) +($O19*VLOOKUP($S19+12,rate_basefnd,10))) *$R19 -> 233.25822 | AC19: =(($C19*'fnd base rates'!K$48) +($D19*'fnd base rates'!K$49) +($E19*'fnd base rates'!K$50) +($F19*'fnd base rates'!K$51) +($G19*'fnd base rates'!K$52) +($H19*'fnd base rates'!K$53) +($I19*'fnd base rates'!K$54) +($J19*'fnd base rates'!K$55) +($K19*'fnd base rates'!K$56) +($L19*'fnd base rates'!K$57) +($M19*'fnd base rates'!K$58) +($N19*'fnd base rates'!K$59) +($O19*VLOOKUP($S19+12,rate_basefnd,11))) *$R19 -> 1650.07707 | AD19: =(($C19*'fnd base rates'!L$48) +($D19*'fnd base rates'!L$49) +($E19*'fnd base rates'!L$50) +($F19*'fnd base rates'!L$51) +($G19*'fnd base rates'!L$52) +($H19*'fnd base rates'!L$53) +($I19*'fnd base rates'!L$54) +($J19*'fnd base rates'!L$55) +($K19*'fnd base rates'!L$56) +($L19*'fnd base rates'!L$57) +($M19*'fnd base rates'!L$58) +($N19*'fnd base rates'!L$59) +($O19*VLOOKUP($S19+12,rate_basefnd,12))) -> 1310.119763 | AE19: =(($C19*'fnd base rates'!M$48) +($D19*'fnd base rates'!M$49) +($E19*'fnd base rates'!M$50) +($F19*'fnd base rates'!M$51) +($G19*'fnd base rates'!M$52) +($H19*'fnd base rates'!M$53) +($I19*'fnd base rates'!M$54) +($J19*'fnd base rates'!M$55) +($K19*'fnd base rates'!M$56) +($L19*'fnd base rates'!M$57) +($M19*'fnd base rates'!M$58) +($N19*'fnd base rates'!M$59) +($O19*VLOOKUP($S19+12,rate_basefnd,13))) -> 0 | AF19: 13105.7423 | AH19: 410035258 | AI19: 410 | AJ19: 035 | AK19: 258 | AL19: 1 | AM19: 1 | AN19: 13105.7423 | AO19: 13106 | AP19: 0 | AQ19: 13106
A20: 410035262 | B20: EXCEL ACADEMY | C20: ='fnd enro'!C20 -> 0 | D20: ='fnd enro'!D20 -> 0 | E20: ='fnd enro'!E20 -> 0 | F20: ='fnd enro'!F20 -> 1 | G20: ='fnd enro'!G20 -> 0 | H20: ='fnd enro'!H20 -> 1 | I20: ='fnd enro'!I20 -> 0.075 | J20: ='fnd enro'!J20 -> 0 | K20: ='fnd enro'!K20 -> 0 | L20: ='fnd enro'!L20 -> 0 | M20: ='fnd enro'!M20 -> 0 | N20: ='fnd enro'!N20 -> 0 | O20: ='fnd enro'!O20 -> 0 | Q20: ='fnd enro'!R20 -> 2 | R20: 1.079 | S20: ='fnd enro'!Q20 -> 1 | U20: =(($C20*'fnd base rates'!C$48) +($D20*'fnd base rates'!C$49) +($E20*'fnd base rates'!C$50) +($F20*'fnd base rates'!C$51) +($G20*'fnd base rates'!C$52) +($H20*'fnd base rates'!C$53) +($I20*'fnd base rates'!C$54) +($J20*'fnd base rates'!C$55) +($K20*'fnd base rates'!C$56) +($L20*'fnd base rates'!C$57) +($M20*'fnd base rates'!C$58) +($N20*'fnd base rates'!C$59) +($O20*VLOOKUP($S20+12,rate_basefnd,3))) *$R20 -> 999.7919588 | V20: =(($C20*'fnd base rates'!D$48) +($D20*'fnd base rates'!D$49) +($E20*'fnd base rates'!D$50) +($F20*'fnd base rates'!D$51) +($G20*'fnd base rates'!D$52) +($H20*'fnd base rates'!D$53) +($I20*'fnd base rates'!D$54) +($J20*'fnd base rates'!D$55) +($K20*'fnd base rates'!D$56) +($L20*'fnd base rates'!D$57) +($M20*'fnd base rates'!D$58) +($N20*'fnd base rates'!D$59) +($O20*VLOOKUP($S20+12,rate_basefnd,4))) *$R20 -> 1434.46576 | W20: =(($C20*'fnd base rates'!E$48) +($D20*'fnd base rates'!E$49) +($E20*'fnd base rates'!E$50) +($F20*'fnd base rates'!E$51) +($G20*'fnd base rates'!E$52) +($H20*'fnd base rates'!E$53) +($I20*'fnd base rates'!E$54) +($J20*'fnd base rates'!E$55) +($K20*'fnd base rates'!E$56) +($L20*'fnd base rates'!E$57) +($M20*'fnd base rates'!E$58) +($N20*'fnd base rates'!E$59) +($O20*VLOOKUP($S20+12,rate_basefnd,5))) *$R20 -> 8223.014491 | X20: =(($C20*'fnd base rates'!F$48) +($D20*'fnd base rates'!F$49) +($E20*'fnd base rates'!F$50) +($F20*'fnd base rates'!F$51) +($G20*'fnd base rates'!F$52) +($H20*'fnd base rates'!F$53) +($I20*'fnd base rates'!F$54) +($J20*'fnd base rates'!F$55) +($K20*'fnd base rates'!F$56) +($L20*'fnd base rates'!F$57) +($M20*'fnd base rates'!F$58) +($N20*'fnd base rates'!F$59) +($O20*VLOOKUP($S20+12,rate_basefnd,6))) *$R20 -> 1982.308048 | Y20: =(($C20*'fnd base rates'!G$48) +($D20*'fnd base rates'!G$49) +($E20*'fnd base rates'!G$50) +($F20*'fnd base rates'!G$51) +($G20*'fnd base rates'!G$52) +($H20*'fnd base rates'!G$53) +($I20*'fnd base rates'!G$54) +($J20*'fnd base rates'!G$55) +($K20*'fnd base rates'!G$56) +($L20*'fnd base rates'!G$57) +($M20*'fnd base rates'!G$58) +($N20*'fnd base rates'!G$59) +($O20*VLOOKUP($S20+12,rate_basefnd,7))) *$R20 -> 299.6658145 | Z20: =(($C20*'fnd base rates'!H$48) +($D20*'fnd base rates'!H$49) +($E20*'fnd base rates'!H$50) +($F20*'fnd base rates'!H$51) +($G20*'fnd base rates'!H$52) +($H20*'fnd base rates'!H$53) +($I20*'fnd base rates'!H$54) +($J20*'fnd base rates'!H$55) +($K20*'fnd base rates'!H$56) +($L20*'fnd base rates'!H$57) +($M20*'fnd base rates'!H$58) +($N20*'fnd base rates'!H$59) +($O20*VLOOKUP($S20+12,rate_basefnd,8))) -> 1173.469 | AA20: =(($C20*'fnd base rates'!I$48) +($D20*'fnd base rates'!I$49) +($E20*'fnd base rates'!I$50) +($F20*'fnd base rates'!I$51) +($G20*'fnd base rates'!I$52) +($H20*'fnd base rates'!I$53) +($I20*'fnd base rates'!I$54) +($J20*'fnd base rates'!I$55) +($K20*'fnd base rates'!I$56) +($L20*'fnd base rates'!I$57) +($M20*'fnd base rates'!I$58) +($N20*'fnd base rates'!I$59) +($O20*VLOOKUP($S20+12,rate_basefnd,9))) *$R20 -> 638.62773 | AB20: =(($C20*'fnd base rates'!J$48) +($D20*'fnd base rates'!J$49) +($E20*'fnd base rates'!J$50) +($F20*'fnd base rates'!J$51) +($G20*'fnd base rates'!J$52) +($H20*'fnd base rates'!J$53) +($I20*'fnd base rates'!J$54) +($J20*'fnd base rates'!J$55) +($K20*'fnd base rates'!J$56) +($L20*'fnd base rates'!J$57) +($M20*'fnd base rates'!J$58) +($N20*'fnd base rates'!J$59) +($O20*VLOOKUP($S20+12,rate_basefnd,10))) *$R20 -> 680.68715 | AC20: =(($C20*'fnd base rates'!K$48) +($D20*'fnd base rates'!K$49) +($E20*'fnd base rates'!K$50) +($F20*'fnd base rates'!K$51) +($G20*'fnd base rates'!K$52) +($H20*'fnd base rates'!K$53) +($I20*'fnd base rates'!K$54) +($J20*'fnd base rates'!K$55) +($K20*'fnd base rates'!K$56) +($L20*'fnd base rates'!K$57) +($M20*'fnd base rates'!K$58) +($N20*'fnd base rates'!K$59) +($O20*VLOOKUP($S20+12,rate_basefnd,11))) *$R20 -> 2102.85258 | AD20: =(($C20*'fnd base rates'!L$48) +($D20*'fnd base rates'!L$49) +($E20*'fnd base rates'!L$50) +($F20*'fnd base rates'!L$51) +($G20*'fnd base rates'!L$52) +($H20*'fnd base rates'!L$53) +($I20*'fnd base rates'!L$54) +($J20*'fnd base rates'!L$55) +($K20*'fnd base rates'!L$56) +($L20*'fnd base rates'!L$57) +($M20*'fnd base rates'!L$58) +($N20*'fnd base rates'!L$59) +($O20*VLOOKUP($S20+12,rate_basefnd,12))) -> 1907.089504 | AE20: =(($C20*'fnd base rates'!M$48) +($D20*'fnd base rates'!M$49) +($E20*'fnd base rates'!M$50) +($F20*'fnd base rates'!M$51) +($G20*'fnd base rates'!M$52) +($H20*'fnd base rates'!M$53) +($I20*'fnd base rates'!M$54) +($J20*'fnd base rates'!M$55) +($K20*'fnd base rates'!M$56) +($L20*'fnd base rates'!M$57) +($M20*'fnd base rates'!M$58) +($N20*'fnd base rates'!M$59) +($O20*VLOOKUP($S20+12,rate_basefnd,13))) -> 0 | AF20: 19441.97204 | AH20: 410035262 | AI20: 410 | AJ20: 035 | AK20: 262 | AL20: 1 | AM20: 2 | AN20: 19441.97204 | AO20: 9721 | AP20: 0 | AQ20: 9721
A21: 410035308 | B21: EXCEL ACADEMY | C21: ='fnd enro'!C21 -> 0 | D21: ='fnd enro'!D21 -> 0 | E21: ='fnd enro'!E21 -> 0 | F21: ='fnd enro'!F21 -> 0 | G21: ='fnd enro'!G21 -> 0 | H21: ='fnd enro'!H21 -> 1 | I21: ='fnd enro'!I21 -> 0.0375 | J21: ='fnd enro'!J21 -> 0 | K21: ='fnd enro'!K21 -> 0 | L21: ='fnd enro'!L21 -> 0 | M21: ='fnd enro'!M21 -> 0 | N21: ='fnd enro'!N21 -> 0 | O21: ='fnd enro'!O21 -> 1 | Q21: ='fnd enro'!R21 -> 1 | R21: 1.079 | S21: ='fnd enro'!Q21 -> 10 | U21: =(($C21*'fnd base rates'!C$48) +($D21*'fnd base rates'!C$49) +($E21*'fnd base rates'!C$50) +($F21*'fnd base rates'!C$51) +($G21*'fnd base rates'!C$52) +($H21*'fnd base rates'!C$53) +($I21*'fnd base rates'!C$54) +($J21*'fnd base rates'!C$55) +($K21*'fnd base rates'!C$56) +($L21*'fnd base rates'!C$57) +($M21*'fnd base rates'!C$58) +($N21*'fnd base rates'!C$59) +($O21*VLOOKUP($S21+12,rate_basefnd,3))) *$R21 -> 499.8959794 | V21: =(($C21*'fnd base rates'!D$48) +($D21*'fnd base rates'!D$49) +($E21*'fnd base rates'!D$50) +($F21*'fnd base rates'!D$51) +($G21*'fnd base rates'!D$52) +($H21*'fnd base rates'!D$53) +($I21*'fnd base rates'!D$54) +($J21*'fnd base rates'!D$55) +($K21*'fnd base rates'!D$56) +($L21*'fnd base rates'!D$57) +($M21*'fnd base rates'!D$58) +($N21*'fnd base rates'!D$59) +($O21*VLOOKUP($S21+12,rate_basefnd,4))) *$R21 -> 717.23288 | W21: =(($C21*'fnd base rates'!E$48) +($D21*'fnd base rates'!E$49) +($E21*'fnd base rates'!E$50) +($F21*'fnd base rates'!E$51) +($G21*'fnd base rates'!E$52) +($H21*'fnd base rates'!E$53) +($I21*'fnd base rates'!E$54) +($J21*'fnd base rates'!E$55) +($K21*'fnd base rates'!E$56) +($L21*'fnd base rates'!E$57) +($M21*'fnd base rates'!E$58) +($N21*'fnd base rates'!E$59) +($O21*VLOOKUP($S21+12,rate_basefnd,5))) *$R21 -> 8125.139076 | X21: =(($C21*'fnd base rates'!F$48) +($D21*'fnd base rates'!F$49) +($E21*'fnd base rates'!F$50) +($F21*'fnd base rates'!F$51) +($G21*'fnd base rates'!F$52) +($H21*'fnd base rates'!F$53) +($I21*'fnd base rates'!F$54) +($J21*'fnd base rates'!F$55) +($K21*'fnd base rates'!F$56) +($L21*'fnd base rates'!F$57) +($M21*'fnd base rates'!F$58) +($N21*'fnd base rates'!F$59) +($O21*VLOOKUP($S21+12,rate_basefnd,6))) *$R21 -> 822.1502543 | Y21: =(($C21*'fnd base rates'!G$48) +($D21*'fnd base rates'!G$49) +($E21*'fnd base rates'!G$50) +($F21*'fnd base rates'!G$51) +($G21*'fnd base rates'!G$52) +($H21*'fnd base rates'!G$53) +($I21*'fnd base rates'!G$54) +($J21*'fnd base rates'!G$55) +($K21*'fnd base rates'!G$56) +($L21*'fnd base rates'!G$57) +($M21*'fnd base rates'!G$58) +($N21*'fnd base rates'!G$59) +($O21*VLOOKUP($S21+12,rate_basefnd,7))) *$R21 -> 230.8442272 | Z21: =(($C21*'fnd base rates'!H$48) +($D21*'fnd base rates'!H$49) +($E21*'fnd base rates'!H$50) +($F21*'fnd base rates'!H$51) +($G21*'fnd base rates'!H$52) +($H21*'fnd base rates'!H$53) +($I21*'fnd base rates'!H$54) +($J21*'fnd base rates'!H$55) +($K21*'fnd base rates'!H$56) +($L21*'fnd base rates'!H$57) +($M21*'fnd base rates'!H$58) +($N21*'fnd base rates'!H$59) +($O21*VLOOKUP($S21+12,rate_basefnd,8))) -> 719.0845 | AA21: =(($C21*'fnd base rates'!I$48) +($D21*'fnd base rates'!I$49) +($E21*'fnd base rates'!I$50) +($F21*'fnd base rates'!I$51) +($G21*'fnd base rates'!I$52) +($H21*'fnd base rates'!I$53) +($I21*'fnd base rates'!I$54) +($J21*'fnd base rates'!I$55) +($K21*'fnd base rates'!I$56) +($L21*'fnd base rates'!I$57) +($M21*'fnd base rates'!I$58) +($N21*'fnd base rates'!I$59) +($O21*VLOOKUP($S21+12,rate_basefnd,9))) *$R21 -> 399.31632 | AB21: =(($C21*'fnd base rates'!J$48) +($D21*'fnd base rates'!J$49) +($E21*'fnd base rates'!J$50) +($F21*'fnd base rates'!J$51) +($G21*'fnd base rates'!J$52) +($H21*'fnd base rates'!J$53) +($I21*'fnd base rates'!J$54) +($J21*'fnd base rates'!J$55) +($K21*'fnd base rates'!J$56) +($L21*'fnd base rates'!J$57) +($M21*'fnd base rates'!J$58) +($N21*'fnd base rates'!J$59) +($O21*VLOOKUP($S21+12,rate_basefnd,10))) *$R21 -> 537.8815 | AC21: =(($C21*'fnd base rates'!K$48) +($D21*'fnd base rates'!K$49) +($E21*'fnd base rates'!K$50) +($F21*'fnd base rates'!K$51) +($G21*'fnd base rates'!K$52) +($H21*'fnd base rates'!K$53) +($I21*'fnd base rates'!K$54) +($J21*'fnd base rates'!K$55) +($K21*'fnd base rates'!K$56) +($L21*'fnd base rates'!K$57) +($M21*'fnd base rates'!K$58) +($N21*'fnd base rates'!K$59) +($O21*VLOOKUP($S21+12,rate_basefnd,11))) *$R21 -> 1619.98376 | AD21: =(($C21*'fnd base rates'!L$48) +($D21*'fnd base rates'!L$49) +($E21*'fnd base rates'!L$50) +($F21*'fnd base rates'!L$51) +($G21*'fnd base rates'!L$52) +($H21*'fnd base rates'!L$53) +($I21*'fnd base rates'!L$54) +($J21*'fnd base rates'!L$55) +($K21*'fnd base rates'!L$56) +($L21*'fnd base rates'!L$57) +($M21*'fnd base rates'!L$58) +($N21*'fnd base rates'!L$59) +($O21*VLOOKUP($S21+12,rate_basefnd,12))) -> 1251.358039 | AE21: =(($C21*'fnd base rates'!M$48) +($D21*'fnd base rates'!M$49) +($E21*'fnd base rates'!M$50) +($F21*'fnd base rates'!M$51) +($G21*'fnd base rates'!M$52) +($H21*'fnd base rates'!M$53) +($I21*'fnd base rates'!M$54) +($J21*'fnd base rates'!M$55) +($K21*'fnd base rates'!M$56) +($L21*'fnd base rates'!M$57) +($M21*'fnd base rates'!M$58) +($N21*'fnd base rates'!M$59) +($O21*VLOOKUP($S21+12,rate_basefnd,13))) -> 0 | AF21: 14922.88654 | AH21: 410035308 | AI21: 410 | AJ21: 035 | AK21: 308 | AL21: 1 | AM21: 1 | AN21: 14922.88654 | AO21: 14923 | AP21: 0 | AQ21: 14923
A22: 410035346 | B22: EXCEL ACADEMY | C22: ='fnd enro'!C22 -> 0 | D22: ='fnd enro'!D22 -> 0 | E22: ='fnd enro'!E22 -> 0 | F22: ='fnd enro'!F22 -> 0 | G22: ='fnd enro'!G22 -> 3 | H22: ='fnd enro'!H22 -> 3 | I22: ='fnd enro'!I22 -> 0.225 | J22: ='fnd enro'!J22 -> 0 | K22: ='fnd enro'!K22 -> 0 | L22: ='fnd enro'!L22 -> 0 | M22: ='fnd enro'!M22 -> 0 | N22: ='fnd enro'!N22 -> 0 | O22: ='fnd enro'!O22 -> 4 | Q22: ='fnd enro'!R22 -> 6 | R22: 1.079 | S22: ='fnd enro'!Q22 -> 10 | U22: =(($C22*'fnd base rates'!C$48) +($D22*'fnd base rates'!C$49) +($E22*'fnd base rates'!C$50) +($F22*'fnd base rates'!C$51) +($G22*'fnd base rates'!C$52) +($H22*'fnd base rates'!C$53) +($I22*'fnd base rates'!C$54) +($J22*'fnd base rates'!C$55) +($K22*'fnd base rates'!C$56) +($L22*'fnd base rates'!C$57) +($M22*'fnd base rates'!C$58) +($N22*'fnd base rates'!C$59) +($O22*VLOOKUP($S22+12,rate_basefnd,3))) *$R22 -> 2999.375876 | V22: =(($C22*'fnd base rates'!D$48) +($D22*'fnd base rates'!D$49) +($E22*'fnd base rates'!D$50) +($F22*'fnd base rates'!D$51) +($G22*'fnd base rates'!D$52) +($H22*'fnd base rates'!D$53) +($I22*'fnd base rates'!D$54) +($J22*'fnd base rates'!D$55) +($K22*'fnd base rates'!D$56) +($L22*'fnd base rates'!D$57) +($M22*'fnd base rates'!D$58) +($N22*'fnd base rates'!D$59) +($O22*VLOOKUP($S22+12,rate_basefnd,4))) *$R22 -> 4303.39728 | W22: =(($C22*'fnd base rates'!E$48) +($D22*'fnd base rates'!E$49) +($E22*'fnd base rates'!E$50) +($F22*'fnd base rates'!E$51) +($G22*'fnd base rates'!E$52) +($H22*'fnd base rates'!E$53) +($I22*'fnd base rates'!E$54) +($J22*'fnd base rates'!E$55) +($K22*'fnd base rates'!E$56) +($L22*'fnd base rates'!E$57) +($M22*'fnd base rates'!E$58) +($N22*'fnd base rates'!E$59) +($O22*VLOOKUP($S22+12,rate_basefnd,5))) *$R22 -> 37605.1421 | X22: =(($C22*'fnd base rates'!F$48) +($D22*'fnd base rates'!F$49) +($E22*'fnd base rates'!F$50) +($F22*'fnd base rates'!F$51) +($G22*'fnd base rates'!F$52) +($H22*'fnd base rates'!F$53) +($I22*'fnd base rates'!F$54) +($J22*'fnd base rates'!F$55) +($K22*'fnd base rates'!F$56) +($L22*'fnd base rates'!F$57) +($M22*'fnd base rates'!F$58) +($N22*'fnd base rates'!F$59) +($O22*VLOOKUP($S22+12,rate_basefnd,6))) *$R22 -> 5237.988775 | Y22: =(($C22*'fnd base rates'!G$48) +($D22*'fnd base rates'!G$49) +($E22*'fnd base rates'!G$50) +($F22*'fnd base rates'!G$51) +($G22*'fnd base rates'!G$52) +($H22*'fnd base rates'!G$53) +($I22*'fnd base rates'!G$54) +($J22*'fnd base rates'!G$55) +($K22*'fnd base rates'!G$56) +($L22*'fnd base rates'!G$57) +($M22*'fnd base rates'!G$58) +($N22*'fnd base rates'!G$59) +($O22*VLOOKUP($S22+12,rate_basefnd,7))) *$R22 -> 1242.572623 | Z22: =(($C22*'fnd base rates'!H$48) +($D22*'fnd base rates'!H$49) +($E22*'fnd base rates'!H$50) +($F22*'fnd base rates'!H$51) +($G22*'fnd base rates'!H$52) +($H22*'fnd base rates'!H$53) +($I22*'fnd base rates'!H$54) +($J22*'fnd base rates'!H$55) +($K22*'fnd base rates'!H$56) +($L22*'fnd base rates'!H$57) +($M22*'fnd base rates'!H$58) +($N22*'fnd base rates'!H$59) +($O22*VLOOKUP($S22+12,rate_basefnd,8))) -> 3520.407 | AA22: =(($C22*'fnd base rates'!I$48) +($D22*'fnd base rates'!I$49) +($E22*'fnd base rates'!I$50) +($F22*'fnd base rates'!I$51) +($G22*'fnd base rates'!I$52) +($H22*'fnd base rates'!I$53) +($I22*'fnd base rates'!I$54) +($J22*'fnd base rates'!I$55) +($K22*'fnd base rates'!I$56) +($L22*'fnd base rates'!I$57) +($M22*'fnd base rates'!I$58) +($N22*'fnd base rates'!I$59) +($O22*VLOOKUP($S22+12,rate_basefnd,9))) *$R22 -> 2153.60847 | AB22: =(($C22*'fnd base rates'!J$48) +($D22*'fnd base rates'!J$49) +($E22*'fnd base rates'!J$50) +($F22*'fnd base rates'!J$51) +($G22*'fnd base rates'!J$52) +($H22*'fnd base rates'!J$53) +($I22*'fnd base rates'!J$54) +($J22*'fnd base rates'!J$55) +($K22*'fnd base rates'!J$56) +($L22*'fnd base rates'!J$57) +($M22*'fnd base rates'!J$58) +($N22*'fnd base rates'!J$59) +($O22*VLOOKUP($S22+12,rate_basefnd,10))) *$R22 -> 2313.41916 | AC22: =(($C22*'fnd base rates'!K$48) +($D22*'fnd base rates'!K$49) +($E22*'fnd base rates'!K$50) +($F22*'fnd base rates'!K$51) +($G22*'fnd base rates'!K$52) +($H22*'fnd base rates'!K$53) +($I22*'fnd base rates'!K$54) +($J22*'fnd base rates'!K$55) +($K22*'fnd base rates'!K$56) +($L22*'fnd base rates'!K$57) +($M22*'fnd base rates'!K$58) +($N22*'fnd base rates'!K$59) +($O22*VLOOKUP($S22+12,rate_basefnd,11))) *$R22 -> 8719.809829 | AD22: =(($C22*'fnd base rates'!L$48) +($D22*'fnd base rates'!L$49) +($E22*'fnd base rates'!L$50) +($F22*'fnd base rates'!L$51) +($G22*'fnd base rates'!L$52) +($H22*'fnd base rates'!L$53) +($I22*'fnd base rates'!L$54) +($J22*'fnd base rates'!L$55) +($K22*'fnd base rates'!L$56) +($L22*'fnd base rates'!L$57) +($M22*'fnd base rates'!L$58) +($N22*'fnd base rates'!L$59) +($O22*VLOOKUP($S22+12,rate_basefnd,12))) -> 7020.233408 | AE22: =(($C22*'fnd base rates'!M$48) +($D22*'fnd base rates'!M$49) +($E22*'fnd base rates'!M$50) +($F22*'fnd base rates'!M$51) +($G22*'fnd base rates'!M$52) +($H22*'fnd base rates'!M$53) +($I22*'fnd base rates'!M$54) +($J22*'fnd base rates'!M$55) +($K22*'fnd base rates'!M$56) +($L22*'fnd base rates'!M$57) +($M22*'fnd base rates'!M$58) +($N22*'fnd base rates'!M$59) +($O22*VLOOKUP($S22+12,rate_basefnd,13))) -> 0 | AF22: 75115.95453 | AH22: 410035346 | AI22: 410 | AJ22: 035 | AK22: 346 | AL22: 1 | AM22: 6 | AN22: 75115.95453 | AO22: 12519 | AP22: 0 | AQ22: 12519
A23: 410057035 | B23: EXCEL ACADEMY | C23: ='fnd enro'!C23 -> 0 | D23: ='fnd enro'!D23 -> 0 | E23: ='fnd enro'!E23 -> 0 | F23: ='fnd enro'!F23 -> 0 | G23: ='fnd enro'!G23 -> 6 | H23: ='fnd enro'!H23 -> 0 | I23: ='fnd enro'!I23 -> 0.375 | J23: ='fnd enro'!J23 -> 0 | K23: ='fnd enro'!K23 -> 0 | L23: ='fnd enro'!L23 -> 0 | M23: ='fnd enro'!M23 -> 4 | N23: ='fnd enro'!N23 -> 0 | O23: ='fnd enro'!O23 -> 6 | Q23: ='fnd enro'!R23 -> 10 | R23: 1.036 | S23: ='fnd enro'!Q23 -> 10 | U23: =(($C23*'fnd base rates'!C$48) +($D23*'fnd base rates'!C$49) +($E23*'fnd base rates'!C$50) +($F23*'fnd base rates'!C$51) +($G23*'fnd base rates'!C$52) +($H23*'fnd base rates'!C$53) +($I23*'fnd base rates'!C$54) +($J23*'fnd base rates'!C$55) +($K23*'fnd base rates'!C$56) +($L23*'fnd base rates'!C$57) +($M23*'fnd base rates'!C$58) +($N23*'fnd base rates'!C$59) +($O23*VLOOKUP($S23+12,rate_basefnd,3))) *$R23 -> 4799.742675 | V23: =(($C23*'fnd base rates'!D$48) +($D23*'fnd base rates'!D$49) +($E23*'fnd base rates'!D$50) +($F23*'fnd base rates'!D$51) +($G23*'fnd base rates'!D$52) +($H23*'fnd base rates'!D$53) +($I23*'fnd base rates'!D$54) +($J23*'fnd base rates'!D$55) +($K23*'fnd base rates'!D$56) +($L23*'fnd base rates'!D$57) +($M23*'fnd base rates'!D$58) +($N23*'fnd base rates'!D$59) +($O23*VLOOKUP($S23+12,rate_basefnd,4))) *$R23 -> 6886.4992 | W23: =(($C23*'fnd base rates'!E$48) +($D23*'fnd base rates'!E$49) +($E23*'fnd base rates'!E$50) +($F23*'fnd base rates'!E$51) +($G23*'fnd base rates'!E$52) +($H23*'fnd base rates'!E$53) +($I23*'fnd base rates'!E$54) +($J23*'fnd base rates'!E$55) +($K23*'fnd base rates'!E$56) +($L23*'fnd base rates'!E$57) +($M23*'fnd base rates'!E$58) +($N23*'fnd base rates'!E$59) +($O23*VLOOKUP($S23+12,rate_basefnd,5))) *$R23 -> 59287.12408 | X23: =(($C23*'fnd base rates'!F$48) +($D23*'fnd base rates'!F$49) +($E23*'fnd base rates'!F$50) +($F23*'fnd base rates'!F$51) +($G23*'fnd base rates'!F$52) +($H23*'fnd base rates'!F$53) +($I23*'fnd base rates'!F$54) +($J23*'fnd base rates'!F$55) +($K23*'fnd base rates'!F$56) +($L23*'fnd base rates'!F$57) +($M23*'fnd base rates'!F$58) +($N23*'fnd base rates'!F$59) +($O23*VLOOKUP($S23+12,rate_basefnd,6))) *$R23 -> 9128.66997 | Y23: =(($C23*'fnd base rates'!G$48) +($D23*'fnd base rates'!G$49) +($E23*'fnd base rates'!G$50) +($F23*'fnd base rates'!G$51) +($G23*'fnd base rates'!G$52) +($H23*'fnd base rates'!G$53) +($I23*'fnd base rates'!G$54) +($J23*'fnd base rates'!G$55) +($K23*'fnd base rates'!G$56) +($L23*'fnd base rates'!G$57) +($M23*'fnd base rates'!G$58) +($N23*'fnd base rates'!G$59) +($O23*VLOOKUP($S23+12,rate_basefnd,7))) *$R23 -> 2093.99169 | Z23: =(($C23*'fnd base rates'!H$48) +($D23*'fnd base rates'!H$49) +($E23*'fnd base rates'!H$50) +($F23*'fnd base rates'!H$51) +($G23*'fnd base rates'!H$52) +($H23*'fnd base rates'!H$53) +($I23*'fnd base rates'!H$54) +($J23*'fnd base rates'!H$55) +($K23*'fnd base rates'!H$56) +($L23*'fnd base rates'!H$57) +($M23*'fnd base rates'!H$58) +($N23*'fnd base rates'!H$59) +($O23*VLOOKUP($S23+12,rate_basefnd,8))) -> 4543.845 | AA23: =(($C23*'fnd base rates'!I$48) +($D23*'fnd base rates'!I$49) +($E23*'fnd base rates'!I$50) +($F23*'fnd base rates'!I$51) +($G23*'fnd base rates'!I$52) +($H23*'fnd base rates'!I$53) +($I23*'fnd base rates'!I$54) +($J23*'fnd base rates'!I$55) +($K23*'fnd base rates'!I$56) +($L23*'fnd base rates'!I$57) +($M23*'fnd base rates'!I$58) +($N23*'fnd base rates'!I$59) +($O23*VLOOKUP($S23+12,rate_basefnd,9))) *$R23 -> 3058.5828 | AB23: =(($C23*'fnd base rates'!J$48) +($D23*'fnd base rates'!J$49) +($E23*'fnd base rates'!J$50) +($F23*'fnd base rates'!J$51) +($G23*'fnd base rates'!J$52) +($H23*'fnd base rates'!J$53) +($I23*'fnd base rates'!J$54) +($J23*'fnd base rates'!J$55) +($K23*'fnd base rates'!J$56) +($L23*'fnd base rates'!J$57) +($M23*'fnd base rates'!J$58) +($N23*'fnd base rates'!J$59) +($O23*VLOOKUP($S23+12,rate_basefnd,10))) *$R23 -> 1892.23328 | AC23: =(($C23*'fnd base rates'!K$48) +($D23*'fnd base rates'!K$49) +($E23*'fnd base rates'!K$50) +($F23*'fnd base rates'!K$51) +($G23*'fnd base rates'!K$52) +($H23*'fnd base rates'!K$53) +($I23*'fnd base rates'!K$54) +($J23*'fnd base rates'!K$55) +($K23*'fnd base rates'!K$56) +($L23*'fnd base rates'!K$57) +($M23*'fnd base rates'!K$58) +($N23*'fnd base rates'!K$59) +($O23*VLOOKUP($S23+12,rate_basefnd,11))) *$R23 -> 14695.09149 | AD23: =(($C23*'fnd base rates'!L$48) +($D23*'fnd base rates'!L$49) +($E23*'fnd base rates'!L$50) +($F23*'fnd base rates'!L$51) +($G23*'fnd base rates'!L$52) +($H23*'fnd base rates'!L$53) +($I23*'fnd base rates'!L$54) +($J23*'fnd base rates'!L$55) +($K23*'fnd base rates'!L$56) +($L23*'fnd base rates'!L$57) +($M23*'fnd base rates'!L$58) +($N23*'fnd base rates'!L$59) +($O23*VLOOKUP($S23+12,rate_basefnd,12))) -> 12457.25192 | AE23: =(($C23*'fnd base rates'!M$48) +($D23*'fnd base rates'!M$49) +($E23*'fnd base rates'!M$50) +($F23*'fnd base rates'!M$51) +($G23*'fnd base rates'!M$52) +($H23*'fnd base rates'!M$53) +($I23*'fnd base rates'!M$54) +($J23*'fnd base rates'!M$55) +($K23*'fnd base rates'!M$56) +($L23*'fnd base rates'!M$57) +($M23*'fnd base rates'!M$58) +($N23*'fnd base rates'!M$59) +($O23*VLOOKUP($S23+12,rate_basefnd,13))) -> 0 | AF23: 118843.0321 | AH23: 410057035 | AI23: 410 | AJ23: 057 | AK23: 035 | AL23: 1 | AM23: 10 | AN23: 118843.0321 | AO23: 11884 | AP23: 0 | AQ23: 11884
A24: 410057057 | B24: EXCEL ACADEMY | C24: ='fnd enro'!C24 -> 0 | D24: ='fnd enro'!D24 -> 0 | E24: ='fnd enro'!E24 -> 0 | F24: ='fnd enro'!F24 -> 20 | G24: ='fnd enro'!G24 -> 135 | H24: ='fnd enro'!H24 -> 0 | I24: ='fnd enro'!I24 -> 7.3125 | J24: ='fnd enro'!J24 -> 0 | K24: ='fnd enro'!K24 -> 0 | L24: ='fnd enro'!L24 -> 0 | M24: ='fnd enro'!M24 -> 40 | N24: ='fnd enro'!N24 -> 0 | O24: ='fnd enro'!O24 -> 103 | Q24: ='fnd enro'!R24 -> 195 | R24: 1.036 | S24: ='fnd enro'!Q24 -> 10 | U24: =(($C24*'fnd base rates'!C$48) +($D24*'fnd base rates'!C$49) +($E24*'fnd base rates'!C$50) +($F24*'fnd base rates'!C$51) +($G24*'fnd base rates'!C$52) +($H24*'fnd base rates'!C$53) +($I24*'fnd base rates'!C$54) +($J24*'fnd base rates'!C$55) +($K24*'fnd base rates'!C$56) +($L24*'fnd base rates'!C$57) +($M24*'fnd base rates'!C$58) +($N24*'fnd base rates'!C$59) +($O24*VLOOKUP($S24+12,rate_basefnd,3))) *$R24 -> 93594.98216 | V24: =(($C24*'fnd base rates'!D$48) +($D24*'fnd base rates'!D$49) +($E24*'fnd base rates'!D$50) +($F24*'fnd base rates'!D$51) +($G24*'fnd base rates'!D$52) +($H24*'fnd base rates'!D$53) +($I24*'fnd base rates'!D$54) +($J24*'fnd base rates'!D$55) +($K24*'fnd base rates'!D$56) +($L24*'fnd base rates'!D$57) +($M24*'fnd base rates'!D$58) +($N24*'fnd base rates'!D$59) +($O24*VLOOKUP($S24+12,rate_basefnd,4))) *$R24 -> 134286.7344 | W24: =(($C24*'fnd base rates'!E$48) +($D24*'fnd base rates'!E$49) +($E24*'fnd base rates'!E$50) +($F24*'fnd base rates'!E$51) +($G24*'fnd base rates'!E$52) +($H24*'fnd base rates'!E$53) +($I24*'fnd base rates'!E$54) +($J24*'fnd base rates'!E$55) +($K24*'fnd base rates'!E$56) +($L24*'fnd base rates'!E$57) +($M24*'fnd base rates'!E$58) +($N24*'fnd base rates'!E$59) +($O24*VLOOKUP($S24+12,rate_basefnd,5))) *$R24 -> 1041107.167 | X24: =(($C24*'fnd base rates'!F$48) +($D24*'fnd base rates'!F$49) +($E24*'fnd base rates'!F$50) +($F24*'fnd base rates'!F$51) +($G24*'fnd base rates'!F$52) +($H24*'fnd base rates'!F$53) +($I24*'fnd base rates'!F$54) +($J24*'fnd base rates'!F$55) +($K24*'fnd base rates'!F$56) +($L24*'fnd base rates'!F$57) +($M24*'fnd base rates'!F$58) +($N24*'fnd base rates'!F$59) +($O24*VLOOKUP($S24+12,rate_basefnd,6))) *$R24 -> 180092.3568 | Y24: =(($C24*'fnd base rates'!G$48) +($D24*'fnd base rates'!G$49) +($E24*'fnd base rates'!G$50) +($F24*'fnd base rates'!G$51) +($G24*'fnd base rates'!G$52) +($H24*'fnd base rates'!G$53) +($I24*'fnd base rates'!G$54) +($J24*'fnd base rates'!G$55) +($K24*'fnd base rates'!G$56) +($L24*'fnd base rates'!G$57) +($M24*'fnd base rates'!G$58) +($N24*'fnd base rates'!G$59) +($O24*VLOOKUP($S24+12,rate_basefnd,7))) *$R24 -> 38298.98916 | Z24: =(($C24*'fnd base rates'!H$48) +($D24*'fnd base rates'!H$49) +($E24*'fnd base rates'!H$50) +($F24*'fnd base rates'!H$51) +($G24*'fnd base rates'!H$52) +($H24*'fnd base rates'!H$53) +($I24*'fnd base rates'!H$54) +($J24*'fnd base rates'!H$55) +($K24*'fnd base rates'!H$56) +($L24*'fnd base rates'!H$57) +($M24*'fnd base rates'!H$58) +($N24*'fnd base rates'!H$59) +($O24*VLOOKUP($S24+12,rate_basefnd,8))) -> 88604.9775 | AA24: =(($C24*'fnd base rates'!I$48) +($D24*'fnd base rates'!I$49) +($E24*'fnd base rates'!I$50) +($F24*'fnd base rates'!I$51) +($G24*'fnd base rates'!I$52) +($H24*'fnd base rates'!I$53) +($I24*'fnd base rates'!I$54) +($J24*'fnd base rates'!I$55) +($K24*'fnd base rates'!I$56) +($L24*'fnd base rates'!I$57) +($M24*'fnd base rates'!I$58) +($N24*'fnd base rates'!I$59) +($O24*VLOOKUP($S24+12,rate_basefnd,9))) *$R24 -> 58120.6878 | AB24: =(($C24*'fnd base rates'!J$48) +($D24*'fnd base rates'!J$49) +($E24*'fnd base rates'!J$50) +($F24*'fnd base rates'!J$51) +($G24*'fnd base rates'!J$52) +($H24*'fnd base rates'!J$53) +($I24*'fnd base rates'!J$54) +($J24*'fnd base rates'!J$55) +($K24*'fnd base rates'!J$56) +($L24*'fnd base rates'!J$57) +($M24*'fnd base rates'!J$58) +($N24*'fnd base rates'!J$59) +($O24*VLOOKUP($S24+12,rate_basefnd,10))) *$R24 -> 38461.8108 | AC24: =(($C24*'fnd base rates'!K$48) +($D24*'fnd base rates'!K$49) +($E24*'fnd base rates'!K$50) +($F24*'fnd base rates'!K$51) +($G24*'fnd base rates'!K$52) +($H24*'fnd base rates'!K$53) +($I24*'fnd base rates'!K$54) +($J24*'fnd base rates'!K$55) +($K24*'fnd base rates'!K$56) +($L24*'fnd base rates'!K$57) +($M24*'fnd base rates'!K$58) +($N24*'fnd base rates'!K$59) +($O24*VLOOKUP($S24+12,rate_basefnd,11))) *$R24 -> 268765.8119 | AD24: =(($C24*'fnd base rates'!L$48) +($D24*'fnd base rates'!L$49) +($E24*'fnd base rates'!L$50) +($F24*'fnd base rates'!L$51) +($G24*'fnd base rates'!L$52) +($H24*'fnd base rates'!L$53) +($I24*'fnd base rates'!L$54) +($J24*'fnd base rates'!L$55) +($K24*'fnd base rates'!L$56) +($L24*'fnd base rates'!L$57) +($M24*'fnd base rates'!L$58) +($N24*'fnd base rates'!L$59) +($O24*VLOOKUP($S24+12,rate_basefnd,12))) -> 231960.9308 | AE24: =(($C24*'fnd base rates'!M$48) +($D24*'fnd base rates'!M$49) +($E24*'fnd base rates'!M$50) +($F24*'fnd base rates'!M$51) +($G24*'fnd base rates'!M$52) +($H24*'fnd base rates'!M$53) +($I24*'fnd base rates'!M$54) +($J24*'fnd base rates'!M$55) +($K24*'fnd base rates'!M$56) +($L24*'fnd base rates'!M$57) +($M24*'fnd base rates'!M$58) +($N24*'fnd base rates'!M$59) +($O24*VLOOKUP($S24+12,rate_basefnd,13))) -> 0 | AF24: 2173294.449 | AH24: 410057057 | AI24: 410 | AJ24: 057 | AK24: 057 | AL24: 1 | AM24: 195 | AN24: 2173294.449 | AO24: 11145 | AP24: 0 | AQ24: 11145
A25: 410057093 | B25: EXCEL ACADEMY | C25: ='fnd enro'!C25 -> 0 | D25: ='fnd enro'!D25 -> 0 | E25: ='fnd enro'!E25 -> 0 | F25: ='fnd enro'!F25 -> 0 | G25: ='fnd enro'!G25 -> 3 | H25: ='fnd enro'!H25 -> 0 | I25: ='fnd enro'!I25 -> 0.15 | J25: ='fnd enro'!J25 -> 0 | K25: ='fnd enro'!K25 -> 0 | L25: ='fnd enro'!L25 -> 0 | M25: ='fnd enro'!M25 -> 1 | N25: ='fnd enro'!N25 -> 0 | O25: ='fnd enro'!O25 -> 3 | Q25: ='fnd enro'!R25 -> 4 | R25: 1.036 | S25: ='fnd enro'!Q25 -> 10 | U25: =(($C25*'fnd base rates'!C$48) +($D25*'fnd base rates'!C$49) +($E25*'fnd base rates'!C$50) +($F25*'fnd base rates'!C$51) +($G25*'fnd base rates'!C$52) +($H25*'fnd base rates'!C$53) +($I25*'fnd base rates'!C$54) +($J25*'fnd base rates'!C$55) +($K25*'fnd base rates'!C$56) +($L25*'fnd base rates'!C$57) +($M25*'fnd base rates'!C$58) +($N25*'fnd base rates'!C$59) +($O25*VLOOKUP($S25+12,rate_basefnd,3))) *$R25 -> 1919.89707 | V25: =(($C25*'fnd base rates'!D$48) +($D25*'fnd base rates'!D$49) +($E25*'fnd base rates'!D$50) +($F25*'fnd base rates'!D$51) +($G25*'fnd base rates'!D$52) +($H25*'fnd base rates'!D$53) +($I25*'fnd base rates'!D$54) +($J25*'fnd base rates'!D$55) +($K25*'fnd base rates'!D$56) +($L25*'fnd base rates'!D$57) +($M25*'fnd base rates'!D$58) +($N25*'fnd base rates'!D$59) +($O25*VLOOKUP($S25+12,rate_basefnd,4))) *$R25 -> 2754.59968 | W25: =(($C25*'fnd base rates'!E$48) +($D25*'fnd base rates'!E$49) +($E25*'fnd base rates'!E$50) +($F25*'fnd base rates'!E$51) +($G25*'fnd base rates'!E$52) +($H25*'fnd base rates'!E$53) +($I25*'fnd base rates'!E$54) +($J25*'fnd base rates'!E$55) +($K25*'fnd base rates'!E$56) +($L25*'fnd base rates'!E$57) +($M25*'fnd base rates'!E$58) +($N25*'fnd base rates'!E$59) +($O25*VLOOKUP($S25+12,rate_basefnd,5))) *$R25 -> 24562.34529 | X25: =(($C25*'fnd base rates'!F$48) +($D25*'fnd base rates'!F$49) +($E25*'fnd base rates'!F$50) +($F25*'fnd base rates'!F$51) +($G25*'fnd base rates'!F$52) +($H25*'fnd base rates'!F$53) +($I25*'fnd base rates'!F$54) +($J25*'fnd base rates'!F$55) +($K25*'fnd base rates'!F$56) +($L25*'fnd base rates'!F$57) +($M25*'fnd base rates'!F$58) +($N25*'fnd base rates'!F$59) +($O25*VLOOKUP($S25+12,rate_basefnd,6))) *$R25 -> 3612.711228 | Y25: =(($C25*'fnd base rates'!G$48) +($D25*'fnd base rates'!G$49) +($E25*'fnd base rates'!G$50) +($F25*'fnd base rates'!G$51) +($G25*'fnd base rates'!G$52) +($H25*'fnd base rates'!G$53) +($I25*'fnd base rates'!G$54) +($J25*'fnd base rates'!G$55) +($K25*'fnd base rates'!G$56) +($L25*'fnd base rates'!G$57) +($M25*'fnd base rates'!G$58) +($N25*'fnd base rates'!G$59) +($O25*VLOOKUP($S25+12,rate_basefnd,7))) *$R25 -> 862.149876 | Z25: =(($C25*'fnd base rates'!H$48) +($D25*'fnd base rates'!H$49) +($E25*'fnd base rates'!H$50) +($F25*'fnd base rates'!H$51) +($G25*'fnd base rates'!H$52) +($H25*'fnd base rates'!H$53) +($I25*'fnd base rates'!H$54) +($J25*'fnd base rates'!H$55) +($K25*'fnd base rates'!H$56) +($L25*'fnd base rates'!H$57) +($M25*'fnd base rates'!H$58) +($N25*'fnd base rates'!H$59) +($O25*VLOOKUP($S25+12,rate_basefnd,8))) -> 1817.538 | AA25: =(($C25*'fnd base rates'!I$48) +($D25*'fnd base rates'!I$49) +($E25*'fnd base rates'!I$50) +($F25*'fnd base rates'!I$51) +($G25*'fnd base rates'!I$52) +($H25*'fnd base rates'!I$53) +($I25*'fnd base rates'!I$54) +($J25*'fnd base rates'!I$55) +($K25*'fnd base rates'!I$56) +($L25*'fnd base rates'!I$57) +($M25*'fnd base rates'!I$58) +($N25*'fnd base rates'!I$59) +($O25*VLOOKUP($S25+12,rate_basefnd,9))) *$R25 -> 1223.43312 | AB25: =(($C25*'fnd base rates'!J$48) +($D25*'fnd base rates'!J$49) +($E25*'fnd base rates'!J$50) +($F25*'fnd base rates'!J$51) +($G25*'fnd base rates'!J$52) +($H25*'fnd base rates'!J$53) +($I25*'fnd base rates'!J$54) +($J25*'fnd base rates'!J$55) +($K25*'fnd base rates'!J$56) +($L25*'fnd base rates'!J$57) +($M25*'fnd base rates'!J$58) +($N25*'fnd base rates'!J$59) +($O25*VLOOKUP($S25+12,rate_basefnd,10))) *$R25 -> 809.00204 | AC25: =(($C25*'fnd base rates'!K$48) +($D25*'fnd base rates'!K$49) +($E25*'fnd base rates'!K$50) +($F25*'fnd base rates'!K$51) +($G25*'fnd base rates'!K$52) +($H25*'fnd base rates'!K$53) +($I25*'fnd base rates'!K$54) +($J25*'fnd base rates'!K$55) +($K25*'fnd base rates'!K$56) +($L25*'fnd base rates'!K$57) +($M25*'fnd base rates'!K$58) +($N25*'fnd base rates'!K$59) +($O25*VLOOKUP($S25+12,rate_basefnd,11))) *$R25 -> 6050.250878 | AD25: =(($C25*'fnd base rates'!L$48) +($D25*'fnd base rates'!L$49) +($E25*'fnd base rates'!L$50) +($F25*'fnd base rates'!L$51) +($G25*'fnd base rates'!L$52) +($H25*'fnd base rates'!L$53) +($I25*'fnd base rates'!L$54) +($J25*'fnd base rates'!L$55) +($K25*'fnd base rates'!L$56) +($L25*'fnd base rates'!L$57) +($M25*'fnd base rates'!L$58) +($N25*'fnd base rates'!L$59) +($O25*VLOOKUP($S25+12,rate_basefnd,12))) -> 5079.492626 | AE25: =(($C25*'fnd base rates'!M$48) +($D25*'fnd base rates'!M$49) +($E25*'fnd base rates'!M$50) +($F25*'fnd base rates'!M$51) +($G25*'fnd base rates'!M$52) +($H25*'fnd base rates'!M$53) +($I25*'fnd base rates'!M$54) +($J25*'fnd base rates'!M$55) +($K25*'fnd base rates'!M$56) +($L25*'fnd base rates'!M$57) +($M25*'fnd base rates'!M$58) +($N25*'fnd base rates'!M$59) +($O25*VLOOKUP($S25+12,rate_basefnd,13))) -> 0 | AF25: 48691.41981 | AH25: 410057093 | AI25: 410 | AJ25: 057 | AK25: 093 | AL25: 1 | AM25: 4 | AN25: 48691.41981 | AO25: 12173 | AP25: 0 | AQ25: 12173
A26: 410057163 | B26: EXCEL ACADEMY | C26: ='fnd enro'!C26 -> 0 | D26: ='fnd enro'!D26 -> 0 | E26: ='fnd enro'!E26 -> 0 | F26: ='fnd enro'!F26 -> 0 | G26: ='fnd enro'!G26 -> 2 | H26: ='fnd enro'!H26 -> 0 | I26: ='fnd enro'!I26 -> 0.075 | J26: ='fnd enro'!J26 -> 0 | K26: ='fnd enro'!K26 -> 0 | L26: ='fnd enro'!L26 -> 0 | M26: ='fnd enro'!M26 -> 0 | N26: ='fnd enro'!N26 -> 0 | O26: ='fnd enro'!O26 -> 1 | Q26: ='fnd enro'!R26 -> 2 | R26: 1.036 | S26: ='fnd enro'!Q26 -> 10 | U26: =(($C26*'fnd base rates'!C$48) +($D26*'fnd base rates'!C$49) +($E26*'fnd base rates'!C$50) +($F26*'fnd base rates'!C$51) +($G26*'fnd base rates'!C$52) +($H26*'fnd base rates'!C$53) +($I26*'fnd base rates'!C$54) +($J26*'fnd base rates'!C$55) +($K26*'fnd base rates'!C$56) +($L26*'fnd base rates'!C$57) +($M26*'fnd base rates'!C$58) +($N26*'fnd base rates'!C$59) +($O26*VLOOKUP($S26+12,rate_basefnd,3))) *$R26 -> 959.948535 | V26: =(($C26*'fnd base rates'!D$48) +($D26*'fnd base rates'!D$49) +($E26*'fnd base rates'!D$50) +($F26*'fnd base rates'!D$51) +($G26*'fnd base rates'!D$52) +($H26*'fnd base rates'!D$53) +($I26*'fnd base rates'!D$54) +($J26*'fnd base rates'!D$55) +($K26*'fnd base rates'!D$56) +($L26*'fnd base rates'!D$57) +($M26*'fnd base rates'!D$58) +($N26*'fnd base rates'!D$59) +($O26*VLOOKUP($S26+12,rate_basefnd,4))) *$R26 -> 1377.29984 | W26: =(($C26*'fnd base rates'!E$48) +($D26*'fnd base rates'!E$49) +($E26*'fnd base rates'!E$50) +($F26*'fnd base rates'!E$51) +($G26*'fnd base rates'!E$52) +($H26*'fnd base rates'!E$53) +($I26*'fnd base rates'!E$54) +($J26*'fnd base rates'!E$55) +($K26*'fnd base rates'!E$56) +($L26*'fnd base rates'!E$57) +($M26*'fnd base rates'!E$58) +($N26*'fnd base rates'!E$59) +($O26*VLOOKUP($S26+12,rate_basefnd,5))) *$R26 -> 9598.103585 | X26: =(($C26*'fnd base rates'!F$48) +($D26*'fnd base rates'!F$49) +($E26*'fnd base rates'!F$50) +($F26*'fnd base rates'!F$51) +($G26*'fnd base rates'!F$52) +($H26*'fnd base rates'!F$53) +($I26*'fnd base rates'!F$54) +($J26*'fnd base rates'!F$55) +($K26*'fnd base rates'!F$56) +($L26*'fnd base rates'!F$57) +($M26*'fnd base rates'!F$58) +($N26*'fnd base rates'!F$59) +($O26*VLOOKUP($S26+12,rate_basefnd,6))) *$R26 -> 1774.058314 | Y26: =(($C26*'fnd base rates'!G$48) +($D26*'fnd base rates'!G$49) +($E26*'fnd base rates'!G$50) +($F26*'fnd base rates'!G$51) +($G26*'fnd base rates'!G$52) +($H26*'fnd base rates'!G$53) +($I26*'fnd base rates'!G$54) +($J26*'fnd base rates'!G$55) +($K26*'fnd base rates'!G$56) +($L26*'fnd base rates'!G$57) +($M26*'fnd base rates'!G$58) +($N26*'fnd base rates'!G$59) +($O26*VLOOKUP($S26+12,rate_basefnd,7))) *$R26 -> 376.943938 | Z26: =(($C26*'fnd base rates'!H$48) +($D26*'fnd base rates'!H$49) +($E26*'fnd base rates'!H$50) +($F26*'fnd base rates'!H$51) +($G26*'fnd base rates'!H$52) +($H26*'fnd base rates'!H$53) +($I26*'fnd base rates'!H$54) +($J26*'fnd base rates'!H$55) +($K26*'fnd base rates'!H$56) +($L26*'fnd base rates'!H$57) +($M26*'fnd base rates'!H$58) +($N26*'fnd base rates'!H$59) +($O26*VLOOKUP($S26+12,rate_basefnd,8))) -> 908.769 | AA26: =(($C26*'fnd base rates'!I$48) +($D26*'fnd base rates'!I$49) +($E26*'fnd base rates'!I$50) +($F26*'fnd base rates'!I$51) +($G26*'fnd base rates'!I$52) +($H26*'fnd base rates'!I$53) +($I26*'fnd base rates'!I$54) +($J26*'fnd base rates'!I$55) +($K26*'fnd base rates'!I$56) +($L26*'fnd base rates'!I$57) +($M26*'fnd base rates'!I$58) +($N26*'fnd base rates'!I$59) +($O26*VLOOKUP($S26+12,rate_basefnd,9))) *$R26 -> 611.71656 | AB26: =(($C26*'fnd base rates'!J$48) +($D26*'fnd base rates'!J$49) +($E26*'fnd base rates'!J$50) +($F26*'fnd base rates'!J$51) +($G26*'fnd base rates'!J$52) +($H26*'fnd base rates'!J$53) +($I26*'fnd base rates'!J$54) +($J26*'fnd base rates'!J$55) +($K26*'fnd base rates'!J$56) +($L26*'fnd base rates'!J$57) +($M26*'fnd base rates'!J$58) +($N26*'fnd base rates'!J$59) +($O26*VLOOKUP($S26+12,rate_basefnd,10))) *$R26 -> 447.92496 | AC26: =(($C26*'fnd base rates'!K$48) +($D26*'fnd base rates'!K$49) +($E26*'fnd base rates'!K$50) +($F26*'fnd base rates'!K$51) +($G26*'fnd base rates'!K$52) +($H26*'fnd base rates'!K$53) +($I26*'fnd base rates'!K$54) +($J26*'fnd base rates'!K$55) +($K26*'fnd base rates'!K$56) +($L26*'fnd base rates'!K$57) +($M26*'fnd base rates'!K$58) +($N26*'fnd base rates'!K$59) +($O26*VLOOKUP($S26+12,rate_basefnd,11))) *$R26 -> 2645.177619 | AD26: =(($C26*'fnd base rates'!L$48) +($D26*'fnd base rates'!L$49) +($E26*'fnd base rates'!L$50) +($F26*'fnd base rates'!L$51) +($G26*'fnd base rates'!L$52) +($H26*'fnd base rates'!L$53) +($I26*'fnd base rates'!L$54) +($J26*'fnd base rates'!L$55) +($K26*'fnd base rates'!L$56) +($L26*'fnd base rates'!L$57) +($M26*'fnd base rates'!L$58) +($N26*'fnd base rates'!L$59) +($O26*VLOOKUP($S26+12,rate_basefnd,12))) -> 2288.139527 | AE26: =(($C26*'fnd base rates'!M$48) +($D26*'fnd base rates'!M$49) +($E26*'fnd base rates'!M$50) +($F26*'fnd base rates'!M$51) +($G26*'fnd base rates'!M$52) +($H26*'fnd base rates'!M$53) +($I26*'fnd base rates'!M$54) +($J26*'fnd base rates'!M$55) +($K26*'fnd base rates'!M$56) +($L26*'fnd base rates'!M$57) +($M26*'fnd base rates'!M$58) +($N26*'fnd base rates'!M$59) +($O26*VLOOKUP($S26+12,rate_basefnd,13))) -> 0 | AF26: 20988.08188 | AH26: 410057163 | AI26: 410 | AJ26: 057 | AK26: 163 | AL26: 1 | AM26: 2 | AN26: 20988.08188 | AO26: 10494 | AP26: 0 | AQ26: 10494
A27: 410057248 | B27: EXCEL ACADEMY | C27: ='fnd enro'!C27 -> 0 | D27: ='fnd enro'!D27 -> 0 | E27: ='fnd enro'!E27 -> 0 | F27: ='fnd enro'!F27 -> 2 | G27: ='fnd enro'!G27 -> 7 | H27: ='fnd enro'!H27 -> 0 | I27: ='fnd enro'!I27 -> 0.3375 | J27: ='fnd enro'!J27 -> 0 | K27: ='fnd enro'!K27 -> 0 | L27: ='fnd enro'!L27 -> 0 | M27: ='fnd enro'!M27 -> 0 | N27: ='fnd enro'!N27 -> 0 | O27: ='fnd enro'!O27 -> 4 | Q27: ='fnd enro'!R27 -> 9 | R27: 1.036 | S27: ='fnd enro'!Q27 -> 9 | U27: =(($C27*'fnd base rates'!C$48) +($D27*'fnd base rates'!C$49) +($E27*'fnd base rates'!C$50) +($F27*'fnd base rates'!C$51) +($G27*'fnd base rates'!C$52) +($H27*'fnd base rates'!C$53) +($I27*'fnd base rates'!C$54) +($J27*'fnd base rates'!C$55) +($K27*'fnd base rates'!C$56) +($L27*'fnd base rates'!C$57) +($M27*'fnd base rates'!C$58) +($N27*'fnd base rates'!C$59) +($O27*VLOOKUP($S27+12,rate_basefnd,3))) *$R27 -> 4319.768408 | V27: =(($C27*'fnd base rates'!D$48) +($D27*'fnd base rates'!D$49) +($E27*'fnd base rates'!D$50) +($F27*'fnd base rates'!D$51) +($G27*'fnd base rates'!D$52) +($H27*'fnd base rates'!D$53) +($I27*'fnd base rates'!D$54) +($J27*'fnd base rates'!D$55) +($K27*'fnd base rates'!D$56) +($L27*'fnd base rates'!D$57) +($M27*'fnd base rates'!D$58) +($N27*'fnd base rates'!D$59) +($O27*VLOOKUP($S27+12,rate_basefnd,4))) *$R27 -> 6197.84928 | W27: =(($C27*'fnd base rates'!E$48) +($D27*'fnd base rates'!E$49) +($E27*'fnd base rates'!E$50) +($F27*'fnd base rates'!E$51) +($G27*'fnd base rates'!E$52) +($H27*'fnd base rates'!E$53) +($I27*'fnd base rates'!E$54) +($J27*'fnd base rates'!E$55) +($K27*'fnd base rates'!E$56) +($L27*'fnd base rates'!E$57) +($M27*'fnd base rates'!E$58) +($N27*'fnd base rates'!E$59) +($O27*VLOOKUP($S27+12,rate_basefnd,5))) *$R27 -> 42123.44337 | X27: =(($C27*'fnd base rates'!F$48) +($D27*'fnd base rates'!F$49) +($E27*'fnd base rates'!F$50) +($F27*'fnd base rates'!F$51) +($G27*'fnd base rates'!F$52) +($H27*'fnd base rates'!F$53) +($I27*'fnd base rates'!F$54) +($J27*'fnd base rates'!F$55) +($K27*'fnd base rates'!F$56) +($L27*'fnd base rates'!F$57) +($M27*'fnd base rates'!F$58) +($N27*'fnd base rates'!F$59) +($O27*VLOOKUP($S27+12,rate_basefnd,6))) *$R27 -> 8437.051133 | Y27: =(($C27*'fnd base rates'!G$48) +($D27*'fnd base rates'!G$49) +($E27*'fnd base rates'!G$50) +($F27*'fnd base rates'!G$51) +($G27*'fnd base rates'!G$52) +($H27*'fnd base rates'!G$53) +($I27*'fnd base rates'!G$54) +($J27*'fnd base rates'!G$55) +($K27*'fnd base rates'!G$56) +($L27*'fnd base rates'!G$57) +($M27*'fnd base rates'!G$58) +($N27*'fnd base rates'!G$59) +($O27*VLOOKUP($S27+12,rate_basefnd,7))) *$R27 -> 1635.040841 | Z27: =(($C27*'fnd base rates'!H$48) +($D27*'fnd base rates'!H$49) +($E27*'fnd base rates'!H$50) +($F27*'fnd base rates'!H$51) +($G27*'fnd base rates'!H$52) +($H27*'fnd base rates'!H$53) +($I27*'fnd base rates'!H$54) +($J27*'fnd base rates'!H$55) +($K27*'fnd base rates'!H$56) +($L27*'fnd base rates'!H$57) +($M27*'fnd base rates'!H$58) +($N27*'fnd base rates'!H$59) +($O27*VLOOKUP($S27+12,rate_basefnd,8))) -> 4089.4605 | AA27: =(($C27*'fnd base rates'!I$48) +($D27*'fnd base rates'!I$49) +($E27*'fnd base rates'!I$50) +($F27*'fnd base rates'!I$51) +($G27*'fnd base rates'!I$52) +($H27*'fnd base rates'!I$53) +($I27*'fnd base rates'!I$54) +($J27*'fnd base rates'!I$55) +($K27*'fnd base rates'!I$56) +($L27*'fnd base rates'!I$57) +($M27*'fnd base rates'!I$58) +($N27*'fnd base rates'!I$59) +($O27*VLOOKUP($S27+12,rate_basefnd,9))) *$R27 -> 2600.55684 | AB27: =(($C27*'fnd base rates'!J$48) +($D27*'fnd base rates'!J$49) +($E27*'fnd base rates'!J$50) +($F27*'fnd base rates'!J$51) +($G27*'fnd base rates'!J$52) +($H27*'fnd base rates'!J$53) +($I27*'fnd base rates'!J$54) +($J27*'fnd base rates'!J$55) +($K27*'fnd base rates'!J$56) +($L27*'fnd base rates'!J$57) +($M27*'fnd base rates'!J$58) +($N27*'fnd base rates'!J$59) +($O27*VLOOKUP($S27+12,rate_basefnd,10))) *$R27 -> 1841.96656 | AC27: =(($C27*'fnd base rates'!K$48) +($D27*'fnd base rates'!K$49) +($E27*'fnd base rates'!K$50) +($F27*'fnd base rates'!K$51) +($G27*'fnd base rates'!K$52) +($H27*'fnd base rates'!K$53) +($I27*'fnd base rates'!K$54) +($J27*'fnd base rates'!K$55) +($K27*'fnd base rates'!K$56) +($L27*'fnd base rates'!K$57) +($M27*'fnd base rates'!K$58) +($N27*'fnd base rates'!K$59) +($O27*VLOOKUP($S27+12,rate_basefnd,11))) *$R27 -> 11473.75815 | AD27: =(($C27*'fnd base rates'!L$48) +($D27*'fnd base rates'!L$49) +($E27*'fnd base rates'!L$50) +($F27*'fnd base rates'!L$51) +($G27*'fnd base rates'!L$52) +($H27*'fnd base rates'!L$53) +($I27*'fnd base rates'!L$54) +($J27*'fnd base rates'!L$55) +($K27*'fnd base rates'!L$56) +($L27*'fnd base rates'!L$57) +($M27*'fnd base rates'!L$58) +($N27*'fnd base rates'!L$59) +($O27*VLOOKUP($S27+12,rate_basefnd,12))) -> 10137.32127 | AE27: =(($C27*'fnd base rates'!M$48) +($D27*'fnd base rates'!M$49) +($E27*'fnd base rates'!M$50) +($F27*'fnd base rates'!M$51) +($G27*'fnd base rates'!M$52) +($H27*'fnd base rates'!M$53) +($I27*'fnd base rates'!M$54) +($J27*'fnd base rates'!M$55) +($K27*'fnd base rates'!M$56) +($L27*'fnd base rates'!M$57) +($M27*'fnd base rates'!M$58) +($N27*'fnd base rates'!M$59) +($O27*VLOOKUP($S27+12,rate_basefnd,13))) -> 0 | AF27: 92856.21635 | AH27: 410057248 | AI27: 410 | AJ27: 057 | AK27: 248 | AL27: 1 | AM27: 9 | AN27: 92856.21635 | AO27: 10317 | AP27: 0 | AQ27: 10317
A28: 410057262 | B28: EXCEL ACADEMY | C28: ='fnd enro'!C28 -> 0 | D28: ='fnd enro'!D28 -> 0 | E28: ='fnd enro'!E28 -> 0 | F28: ='fnd enro'!F28 -> 1 | G28: ='fnd enro'!G28 -> 0 | H28: ='fnd enro'!H28 -> 0 | I28: ='fnd enro'!I28 -> 0.0375 | J28: ='fnd enro'!J28 -> 0 | K28: ='fnd enro'!K28 -> 0 | L28: ='fnd enro'!L28 -> 0 | M28: ='fnd enro'!M28 -> 0 | N28: ='fnd enro'!N28 -> 0 | O28: ='fnd enro'!O28 -> 0 | Q28: ='fnd enro'!R28 -> 1 | R28: 1.036 | S28: ='fnd enro'!Q28 -> 1 | U28: =(($C28*'fnd base rates'!C$48) +($D28*'fnd base rates'!C$49) +($E28*'fnd base rates'!C$50) +($F28*'fnd base rates'!C$51) +($G28*'fnd base rates'!C$52) +($H28*'fnd base rates'!C$53) +($I28*'fnd base rates'!C$54) +($J28*'fnd base rates'!C$55) +($K28*'fnd base rates'!C$56) +($L28*'fnd base rates'!C$57) +($M28*'fnd base rates'!C$58) +($N28*'fnd base rates'!C$59) +($O28*VLOOKUP($S28+12,rate_basefnd,3))) *$R28 -> 479.9742675 | V28: =(($C28*'fnd base rates'!D$48) +($D28*'fnd base rates'!D$49) +($E28*'fnd base rates'!D$50) +($F28*'fnd base rates'!D$51) +($G28*'fnd base rates'!D$52) +($H28*'fnd base rates'!D$53) +($I28*'fnd base rates'!D$54) +($J28*'fnd base rates'!D$55) +($K28*'fnd base rates'!D$56) +($L28*'fnd base rates'!D$57) +($M28*'fnd base rates'!D$58) +($N28*'fnd base rates'!D$59) +($O28*VLOOKUP($S28+12,rate_basefnd,4))) *$R28 -> 688.64992 | W28: =(($C28*'fnd base rates'!E$48) +($D28*'fnd base rates'!E$49) +($E28*'fnd base rates'!E$50) +($F28*'fnd base rates'!E$51) +($G28*'fnd base rates'!E$52) +($H28*'fnd base rates'!E$53) +($I28*'fnd base rates'!E$54) +($J28*'fnd base rates'!E$55) +($K28*'fnd base rates'!E$56) +($L28*'fnd base rates'!E$57) +($M28*'fnd base rates'!E$58) +($N28*'fnd base rates'!E$59) +($O28*VLOOKUP($S28+12,rate_basefnd,5))) *$R28 -> 3483.290353 | X28: =(($C28*'fnd base rates'!F$48) +($D28*'fnd base rates'!F$49) +($E28*'fnd base rates'!F$50) +($F28*'fnd base rates'!F$51) +($G28*'fnd base rates'!F$52) +($H28*'fnd base rates'!F$53) +($I28*'fnd base rates'!F$54) +($J28*'fnd base rates'!F$55) +($K28*'fnd base rates'!F$56) +($L28*'fnd base rates'!F$57) +($M28*'fnd base rates'!F$58) +($N28*'fnd base rates'!F$59) +($O28*VLOOKUP($S28+12,rate_basefnd,6))) *$R28 -> 1113.923517 | Y28: =(($C28*'fnd base rates'!G$48) +($D28*'fnd base rates'!G$49) +($E28*'fnd base rates'!G$50) +($F28*'fnd base rates'!G$51) +($G28*'fnd base rates'!G$52) +($H28*'fnd base rates'!G$53) +($I28*'fnd base rates'!G$54) +($J28*'fnd base rates'!G$55) +($K28*'fnd base rates'!G$56) +($L28*'fnd base rates'!G$57) +($M28*'fnd base rates'!G$58) +($N28*'fnd base rates'!G$59) +($O28*VLOOKUP($S28+12,rate_basefnd,7))) *$R28 -> 140.670929 | Z28: =(($C28*'fnd base rates'!H$48) +($D28*'fnd base rates'!H$49) +($E28*'fnd base rates'!H$50) +($F28*'fnd base rates'!H$51) +($G28*'fnd base rates'!H$52) +($H28*'fnd base rates'!H$53) +($I28*'fnd base rates'!H$54) +($J28*'fnd base rates'!H$55) +($K28*'fnd base rates'!H$56) +($L28*'fnd base rates'!H$57) +($M28*'fnd base rates'!H$58) +($N28*'fnd base rates'!H$59) +($O28*VLOOKUP($S28+12,rate_basefnd,8))) -> 454.3845 | AA28: =(($C28*'fnd base rates'!I$48) +($D28*'fnd base rates'!I$49) +($E28*'fnd base rates'!I$50) +($F28*'fnd base rates'!I$51) +($G28*'fnd base rates'!I$52) +($H28*'fnd base rates'!I$53) +($I28*'fnd base rates'!I$54) +($J28*'fnd base rates'!I$55) +($K28*'fnd base rates'!I$56) +($L28*'fnd base rates'!I$57) +($M28*'fnd base rates'!I$58) +($N28*'fnd base rates'!I$59) +($O28*VLOOKUP($S28+12,rate_basefnd,9))) *$R28 -> 229.77444 | AB28: =(($C28*'fnd base rates'!J$48) +($D28*'fnd base rates'!J$49) +($E28*'fnd base rates'!J$50) +($F28*'fnd base rates'!J$51) +($G28*'fnd base rates'!J$52) +($H28*'fnd base rates'!J$53) +($I28*'fnd base rates'!J$54) +($J28*'fnd base rates'!J$55) +($K28*'fnd base rates'!J$56) +($L28*'fnd base rates'!J$57) +($M28*'fnd base rates'!J$58) +($N28*'fnd base rates'!J$59) +($O28*VLOOKUP($S28+12,rate_basefnd,10))) *$R28 -> 137.1146 | AC28: =(($C28*'fnd base rates'!K$48) +($D28*'fnd base rates'!K$49) +($E28*'fnd base rates'!K$50) +($F28*'fnd base rates'!K$51) +($G28*'fnd base rates'!K$52) +($H28*'fnd base rates'!K$53) +($I28*'fnd base rates'!K$54) +($J28*'fnd base rates'!K$55) +($K28*'fnd base rates'!K$56) +($L28*'fnd base rates'!K$57) +($M28*'fnd base rates'!K$58) +($N28*'fnd base rates'!K$59) +($O28*VLOOKUP($S28+12,rate_basefnd,11))) *$R28 -> 987.0853895 | AD28: =(($C28*'fnd base rates'!L$48) +($D28*'fnd base rates'!L$49) +($E28*'fnd base rates'!L$50) +($F28*'fnd base rates'!L$51) +($G28*'fnd base rates'!L$52) +($H28*'fnd base rates'!L$53) +($I28*'fnd base rates'!L$54) +($J28*'fnd base rates'!L$55) +($K28*'fnd base rates'!L$56) +($L28*'fnd base rates'!L$57) +($M28*'fnd base rates'!L$58) +($N28*'fnd base rates'!L$59) +($O28*VLOOKUP($S28+12,rate_basefnd,12))) -> 987.8314648 | AE28: =(($C28*'fnd base rates'!M$48) +($D28*'fnd base rates'!M$49) +($E28*'fnd base rates'!M$50) +($F28*'fnd base rates'!M$51) +($G28*'fnd base rates'!M$52) +($H28*'fnd base rates'!M$53) +($I28*'fnd base rates'!M$54) +($J28*'fnd base rates'!M$55) +($K28*'fnd base rates'!M$56) +($L28*'fnd base rates'!M$57) +($M28*'fnd base rates'!M$58) +($N28*'fnd base rates'!M$59) +($O28*VLOOKUP($S28+12,rate_basefnd,13))) -> 0 | AF28: 8702.69938 | AH28: 410057262 | AI28: 410 | AJ28: 057 | AK28: 262 | AL28: 1 | AM28: 1 | AN28: 8702.69938 | AO28: 8703 | AP28: 0 | AQ28: 8703
A29: 410057308 | B29: EXCEL ACADEMY | C29: ='fnd enro'!C29 -> 0 | D29: ='fnd enro'!D29 -> 0 | E29: ='fnd enro'!E29 -> 0 | F29: ='fnd enro'!F29 -> 0 | G29: ='fnd enro'!G29 -> 1 | H29: ='fnd enro'!H29 -> 0 | I29: ='fnd enro'!I29 -> 0.0375 | J29: ='fnd enro'!J29 -> 0 | K29: ='fnd enro'!K29 -> 0 | L29: ='fnd enro'!L29 -> 0 | M29: ='fnd enro'!M29 -> 0 | N29: ='fnd enro'!N29 -> 0 | O29: ='fnd enro'!O29 -> 1 | Q29: ='fnd enro'!R29 -> 1 | R29: 1.036 | S29: ='fnd enro'!Q29 -> 10 | U29: =(($C29*'fnd base rates'!C$48) +($D29*'fnd base rates'!C$49) +($E29*'fnd base rates'!C$50) +($F29*'fnd base rates'!C$51) +($G29*'fnd base rates'!C$52) +($H29*'fnd base rates'!C$53) +($I29*'fnd base rates'!C$54) +($J29*'fnd base rates'!C$55) +($K29*'fnd base rates'!C$56) +($L29*'fnd base rates'!C$57) +($M29*'fnd base rates'!C$58) +($N29*'fnd base rates'!C$59) +($O29*VLOOKUP($S29+12,rate_basefnd,3))) *$R29 -> 479.9742675 | V29: =(($C29*'fnd base rates'!D$48) +($D29*'fnd base rates'!D$49) +($E29*'fnd base rates'!D$50) +($F29*'fnd base rates'!D$51) +($G29*'fnd base rates'!D$52) +($H29*'fnd base rates'!D$53) +($I29*'fnd base rates'!D$54) +($J29*'fnd base rates'!D$55) +($K29*'fnd base rates'!D$56) +($L29*'fnd base rates'!D$57) +($M29*'fnd base rates'!D$58) +($N29*'fnd base rates'!D$59) +($O29*VLOOKUP($S29+12,rate_basefnd,4))) *$R29 -> 688.64992 | W29: =(($C29*'fnd base rates'!E$48) +($D29*'fnd base rates'!E$49) +($E29*'fnd base rates'!E$50) +($F29*'fnd base rates'!E$51) +($G29*'fnd base rates'!E$52) +($H29*'fnd base rates'!E$53) +($I29*'fnd base rates'!E$54) +($J29*'fnd base rates'!E$55) +($K29*'fnd base rates'!E$56) +($L29*'fnd base rates'!E$57) +($M29*'fnd base rates'!E$58) +($N29*'fnd base rates'!E$59) +($O29*VLOOKUP($S29+12,rate_basefnd,5))) *$R29 -> 6493.709512 | X29: =(($C29*'fnd base rates'!F$48) +($D29*'fnd base rates'!F$49) +($E29*'fnd base rates'!F$50) +($F29*'fnd base rates'!F$51) +($G29*'fnd base rates'!F$52) +($H29*'fnd base rates'!F$53) +($I29*'fnd base rates'!F$54) +($J29*'fnd base rates'!F$55) +($K29*'fnd base rates'!F$56) +($L29*'fnd base rates'!F$57) +($M29*'fnd base rates'!F$58) +($N29*'fnd base rates'!F$59) +($O29*VLOOKUP($S29+12,rate_basefnd,6))) *$R29 -> 887.029157 | Y29: =(($C29*'fnd base rates'!G$48) +($D29*'fnd base rates'!G$49) +($E29*'fnd base rates'!G$50) +($F29*'fnd base rates'!G$51) +($G29*'fnd base rates'!G$52) +($H29*'fnd base rates'!G$53) +($I29*'fnd base rates'!G$54) +($J29*'fnd base rates'!G$55) +($K29*'fnd base rates'!G$56) +($L29*'fnd base rates'!G$57) +($M29*'fnd base rates'!G$58) +($N29*'fnd base rates'!G$59) +($O29*VLOOKUP($S29+12,rate_basefnd,7))) *$R29 -> 225.767969 | Z29: =(($C29*'fnd base rates'!H$48) +($D29*'fnd base rates'!H$49) +($E29*'fnd base rates'!H$50) +($F29*'fnd base rates'!H$51) +($G29*'fnd base rates'!H$52) +($H29*'fnd base rates'!H$53) +($I29*'fnd base rates'!H$54) +($J29*'fnd base rates'!H$55) +($K29*'fnd base rates'!H$56) +($L29*'fnd base rates'!H$57) +($M29*'fnd base rates'!H$58) +($N29*'fnd base rates'!H$59) +($O29*VLOOKUP($S29+12,rate_basefnd,8))) -> 454.3845 | AA29: =(($C29*'fnd base rates'!I$48) +($D29*'fnd base rates'!I$49) +($E29*'fnd base rates'!I$50) +($F29*'fnd base rates'!I$51) +($G29*'fnd base rates'!I$52) +($H29*'fnd base rates'!I$53) +($I29*'fnd base rates'!I$54) +($J29*'fnd base rates'!I$55) +($K29*'fnd base rates'!I$56) +($L29*'fnd base rates'!I$57) +($M29*'fnd base rates'!I$58) +($N29*'fnd base rates'!I$59) +($O29*VLOOKUP($S29+12,rate_basefnd,9))) *$R29 -> 305.85828 | AB29: =(($C29*'fnd base rates'!J$48) +($D29*'fnd base rates'!J$49) +($E29*'fnd base rates'!J$50) +($F29*'fnd base rates'!J$51) +($G29*'fnd base rates'!J$52) +($H29*'fnd base rates'!J$53) +($I29*'fnd base rates'!J$54) +($J29*'fnd base rates'!J$55) +($K29*'fnd base rates'!J$56) +($L29*'fnd base rates'!J$57) +($M29*'fnd base rates'!J$58) +($N29*'fnd base rates'!J$59) +($O29*VLOOKUP($S29+12,rate_basefnd,10))) *$R29 -> 223.96248 | AC29: =(($C29*'fnd base rates'!K$48) +($D29*'fnd base rates'!K$49) +($E29*'fnd base rates'!K$50) +($F29*'fnd base rates'!K$51) +($G29*'fnd base rates'!K$52) +($H29*'fnd base rates'!K$53) +($I29*'fnd base rates'!K$54) +($J29*'fnd base rates'!K$55) +($K29*'fnd base rates'!K$56) +($L29*'fnd base rates'!K$57) +($M29*'fnd base rates'!K$58) +($N29*'fnd base rates'!K$59) +($O29*VLOOKUP($S29+12,rate_basefnd,11))) *$R29 -> 1584.318669 | AD29: =(($C29*'fnd base rates'!L$48) +($D29*'fnd base rates'!L$49) +($E29*'fnd base rates'!L$50) +($F29*'fnd base rates'!L$51) +($G29*'fnd base rates'!L$52) +($H29*'fnd base rates'!L$53) +($I29*'fnd base rates'!L$54) +($J29*'fnd base rates'!L$55) +($K29*'fnd base rates'!L$56) +($L29*'fnd base rates'!L$57) +($M29*'fnd base rates'!L$58) +($N29*'fnd base rates'!L$59) +($O29*VLOOKUP($S29+12,rate_basefnd,12))) -> 1310.119763 | AE29: =(($C29*'fnd base rates'!M$48) +($D29*'fnd base rates'!M$49) +($E29*'fnd base rates'!M$50) +($F29*'fnd base rates'!M$51) +($G29*'fnd base rates'!M$52) +($H29*'fnd base rates'!M$53) +($I29*'fnd base rates'!M$54) +($J29*'fnd base rates'!M$55) +($K29*'fnd base rates'!M$56) +($L29*'fnd base rates'!M$57) +($M29*'fnd base rates'!M$58) +($N29*'fnd base rates'!M$59) +($O29*VLOOKUP($S29+12,rate_basefnd,13))) -> 0 | AF29: 12653.77452 | AH29: 410057308 | AI29: 410 | AJ29: 057 | AK29: 308 | AL29: 1 | AM29: 1 | AN29: 12653.77452 | AO29: 12654 | AP29: 0 | AQ29: 12654
A30: 412035035 | B30: ACADEMY OF THE PACIFIC RIM | C30: ='fnd enro'!C30 -> 0 | D30: ='fnd enro'!D30 -> 0 | E30: ='fnd enro'!E30 -> 0 | F30: ='fnd enro'!F30 -> 56 | G30: ='fnd enro'!G30 -> 199 | H30: ='fnd enro'!H30 -> 188 | I30: ='fnd enro'!I30 -> 18.8625 | J30: ='fnd enro'!J30 -> 0 | K30: ='fnd enro'!K30 -> 0 | L30: ='fnd enro'!L30 -> 0 | M30: ='fnd enro'!M30 -> 60 | N30: ='fnd enro'!N30 -> 0 | O30: ='fnd enro'!O30 -> 214 | Q30: ='fnd enro'!R30 -> 503 | R30: 1.079 | S30: ='fnd enro'!Q30 -> 9 | U30: =(($C30*'fnd base rates'!C$48) +($D30*'fnd base rates'!C$49) +($E30*'fnd base rates'!C$50) +($F30*'fnd base rates'!C$51) +($G30*'fnd base rates'!C$52) +($H30*'fnd base rates'!C$53) +($I30*'fnd base rates'!C$54) +($J30*'fnd base rates'!C$55) +($K30*'fnd base rates'!C$56) +($L30*'fnd base rates'!C$57) +($M30*'fnd base rates'!C$58) +($N30*'fnd base rates'!C$59) +($O30*VLOOKUP($S30+12,rate_basefnd,3))) *$R30 -> 251447.6776 | V30: =(($C30*'fnd base rates'!D$48) +($D30*'fnd base rates'!D$49) +($E30*'fnd base rates'!D$50) +($F30*'fnd base rates'!D$51) +($G30*'fnd base rates'!D$52) +($H30*'fnd base rates'!D$53) +($I30*'fnd base rates'!D$54) +($J30*'fnd base rates'!D$55) +($K30*'fnd base rates'!D$56) +($L30*'fnd base rates'!D$57) +($M30*'fnd base rates'!D$58) +($N30*'fnd base rates'!D$59) +($O30*VLOOKUP($S30+12,rate_basefnd,4))) *$R30 -> 360768.1386 | W30: =(($C30*'fnd base rates'!E$48) +($D30*'fnd base rates'!E$49) +($E30*'fnd base rates'!E$50) +($F30*'fnd base rates'!E$51) +($G30*'fnd base rates'!E$52) +($H30*'fnd base rates'!E$53) +($I30*'fnd base rates'!E$54) +($J30*'fnd base rates'!E$55) +($K30*'fnd base rates'!E$56) +($L30*'fnd base rates'!E$57) +($M30*'fnd base rates'!E$58) +($N30*'fnd base rates'!E$59) +($O30*VLOOKUP($S30+12,rate_basefnd,5))) *$R30 -> 2776100.948 | X30: =(($C30*'fnd base rates'!F$48) +($D30*'fnd base rates'!F$49) +($E30*'fnd base rates'!F$50) +($F30*'fnd base rates'!F$51) +($G30*'fnd base rates'!F$52) +($H30*'fnd base rates'!F$53) +($I30*'fnd base rates'!F$54) +($J30*'fnd base rates'!F$55) +($K30*'fnd base rates'!F$56) +($L30*'fnd base rates'!F$57) +($M30*'fnd base rates'!F$58) +($N30*'fnd base rates'!F$59) +($O30*VLOOKUP($S30+12,rate_basefnd,6))) *$R30 -> 462845.7384 | Y30: =(($C30*'fnd base rates'!G$48) +($D30*'fnd base rates'!G$49) +($E30*'fnd base rates'!G$50) +($F30*'fnd base rates'!G$51) +($G30*'fnd base rates'!G$52) +($H30*'fnd base rates'!G$53) +($I30*'fnd base rates'!G$54) +($J30*'fnd base rates'!G$55) +($K30*'fnd base rates'!G$56) +($L30*'fnd base rates'!G$57) +($M30*'fnd base rates'!G$58) +($N30*'fnd base rates'!G$59) +($O30*VLOOKUP($S30+12,rate_basefnd,7))) *$R30 -> 96345.27305 | Z30: =(($C30*'fnd base rates'!H$48) +($D30*'fnd base rates'!H$49) +($E30*'fnd base rates'!H$50) +($F30*'fnd base rates'!H$51) +($G30*'fnd base rates'!H$52) +($H30*'fnd base rates'!H$53) +($I30*'fnd base rates'!H$54) +($J30*'fnd base rates'!H$55) +($K30*'fnd base rates'!H$56) +($L30*'fnd base rates'!H$57) +($M30*'fnd base rates'!H$58) +($N30*'fnd base rates'!H$59) +($O30*VLOOKUP($S30+12,rate_basefnd,8))) -> 278319.0035 | AA30: =(($C30*'fnd base rates'!I$48) +($D30*'fnd base rates'!I$49) +($E30*'fnd base rates'!I$50) +($F30*'fnd base rates'!I$51) +($G30*'fnd base rates'!I$52) +($H30*'fnd base rates'!I$53) +($I30*'fnd base rates'!I$54) +($J30*'fnd base rates'!I$55) +($K30*'fnd base rates'!I$56) +($L30*'fnd base rates'!I$57) +($M30*'fnd base rates'!I$58) +($N30*'fnd base rates'!I$59) +($O30*VLOOKUP($S30+12,rate_basefnd,9))) *$R30 -> 170978.1781 | AB30: =(($C30*'fnd base rates'!J$48) +($D30*'fnd base rates'!J$49) +($E30*'fnd base rates'!J$50) +($F30*'fnd base rates'!J$51) +($G30*'fnd base rates'!J$52) +($H30*'fnd base rates'!J$53) +($I30*'fnd base rates'!J$54) +($J30*'fnd base rates'!J$55) +($K30*'fnd base rates'!J$56) +($L30*'fnd base rates'!J$57) +($M30*'fnd base rates'!J$58) +($N30*'fnd base rates'!J$59) +($O30*VLOOKUP($S30+12,rate_basefnd,10))) *$R30 -> 164105.5632 | AC30: =(($C30*'fnd base rates'!K$48) +($D30*'fnd base rates'!K$49) +($E30*'fnd base rates'!K$50) +($F30*'fnd base rates'!K$51) +($G30*'fnd base rates'!K$52) +($H30*'fnd base rates'!K$53) +($I30*'fnd base rates'!K$54) +($J30*'fnd base rates'!K$55) +($K30*'fnd base rates'!K$56) +($L30*'fnd base rates'!K$57) +($M30*'fnd base rates'!K$58) +($N30*'fnd base rates'!K$59) +($O30*VLOOKUP($S30+12,rate_basefnd,11))) *$R30 -> 676115.4139 | AD30: =(($C30*'fnd base rates'!L$48) +($D30*'fnd base rates'!L$49) +($E30*'fnd base rates'!L$50) +($F30*'fnd base rates'!L$51) +($G30*'fnd base rates'!L$52) +($H30*'fnd base rates'!L$53) +($I30*'fnd base rates'!L$54) +($J30*'fnd base rates'!L$55) +($K30*'fnd base rates'!L$56) +($L30*'fnd base rates'!L$57) +($M30*'fnd base rates'!L$58) +($N30*'fnd base rates'!L$59) +($O30*VLOOKUP($S30+12,rate_basefnd,12))) -> 562093.3265 | AE30: =(($C30*'fnd base rates'!M$48) +($D30*'fnd base rates'!M$49) +($E30*'fnd base rates'!M$50) +($F30*'fnd base rates'!M$51) +($G30*'fnd base rates'!M$52) +($H30*'fnd base rates'!M$53) +($I30*'fnd base rates'!M$54) +($J30*'fnd base rates'!M$55) +($K30*'fnd base rates'!M$56) +($L30*'fnd base rates'!M$57) +($M30*'fnd base rates'!M$58) +($N30*'fnd base rates'!M$59) +($O30*VLOOKUP($S30+12,rate_basefnd,13))) -> 0 | AF30: 5799119.261 | AH30: 412035035 | AI30: 412 | AJ30: 035 | AK30: 035 | AL30: 1 | AM30: 503 | AN30: 5799119.261 | AO30: 11529 | AP30: 0 | AQ30: 11529
A31: 412035044 | B31: ACADEMY OF THE PACIFIC RIM | C31: ='fnd enro'!C31 -> 0 | D31: ='fnd enro'!D31 -> 0 | E31: ='fnd enro'!E31 -> 0 | F31: ='fnd enro'!F31 -> 0 | G31: ='fnd enro'!G31 -> 2 | H31: ='fnd enro'!H31 -> 0 | I31: ='fnd enro'!I31 -> 0.075 | J31: ='fnd enro'!J31 -> 0 | K31: ='fnd enro'!K31 -> 0 | L31: ='fnd enro'!L31 -> 0 | M31: ='fnd enro'!M31 -> 0 | N31: ='fnd enro'!N31 -> 0 | O31: ='fnd enro'!O31 -> 0 | Q31: ='fnd enro'!R31 -> 2 | R31: 1.079 | S31: ='fnd enro'!Q31 -> 1 | U31: =(($C31*'fnd base rates'!C$48) +($D31*'fnd base rates'!C$49) +($E31*'fnd base rates'!C$50) +($F31*'fnd base rates'!C$51) +($G31*'fnd base rates'!C$52) +($H31*'fnd base rates'!C$53) +($I31*'fnd base rates'!C$54) +($J31*'fnd base rates'!C$55) +($K31*'fnd base rates'!C$56) +($L31*'fnd base rates'!C$57) +($M31*'fnd base rates'!C$58) +($N31*'fnd base rates'!C$59) +($O31*VLOOKUP($S31+12,rate_basefnd,3))) *$R31 -> 999.7919588 | V31: =(($C31*'fnd base rates'!D$48) +($D31*'fnd base rates'!D$49) +($E31*'fnd base rates'!D$50) +($F31*'fnd base rates'!D$51) +($G31*'fnd base rates'!D$52) +($H31*'fnd base rates'!D$53) +($I31*'fnd base rates'!D$54) +($J31*'fnd base rates'!D$55) +($K31*'fnd base rates'!D$56) +($L31*'fnd base rates'!D$57) +($M31*'fnd base rates'!D$58) +($N31*'fnd base rates'!D$59) +($O31*VLOOKUP($S31+12,rate_basefnd,4))) *$R31 -> 1434.46576 | W31: =(($C31*'fnd base rates'!E$48) +($D31*'fnd base rates'!E$49) +($E31*'fnd base rates'!E$50) +($F31*'fnd base rates'!E$51) +($G31*'fnd base rates'!E$52) +($H31*'fnd base rates'!E$53) +($I31*'fnd base rates'!E$54) +($J31*'fnd base rates'!E$55) +($K31*'fnd base rates'!E$56) +($L31*'fnd base rates'!E$57) +($M31*'fnd base rates'!E$58) +($N31*'fnd base rates'!E$59) +($O31*VLOOKUP($S31+12,rate_basefnd,5))) *$R31 -> 6466.488811 | X31: =(($C31*'fnd base rates'!F$48) +($D31*'fnd base rates'!F$49) +($E31*'fnd base rates'!F$50) +($F31*'fnd base rates'!F$51) +($G31*'fnd base rates'!F$52) +($H31*'fnd base rates'!F$53) +($I31*'fnd base rates'!F$54) +($J31*'fnd base rates'!F$55) +($K31*'fnd base rates'!F$56) +($L31*'fnd base rates'!F$57) +($M31*'fnd base rates'!F$58) +($N31*'fnd base rates'!F$59) +($O31*VLOOKUP($S31+12,rate_basefnd,6))) *$R31 -> 1847.692009 | Y31: =(($C31*'fnd base rates'!G$48) +($D31*'fnd base rates'!G$49) +($E31*'fnd base rates'!G$50) +($F31*'fnd base rates'!G$51) +($G31*'fnd base rates'!G$52) +($H31*'fnd base rates'!G$53) +($I31*'fnd base rates'!G$54) +($J31*'fnd base rates'!G$55) +($K31*'fnd base rates'!G$56) +($L31*'fnd base rates'!G$57) +($M31*'fnd base rates'!G$58) +($N31*'fnd base rates'!G$59) +($O31*VLOOKUP($S31+12,rate_basefnd,7))) *$R31 -> 314.9012945 | Z31: =(($C31*'fnd base rates'!H$48) +($D31*'fnd base rates'!H$49) +($E31*'fnd base rates'!H$50) +($F31*'fnd base rates'!H$51) +($G31*'fnd base rates'!H$52) +($H31*'fnd base rates'!H$53) +($I31*'fnd base rates'!H$54) +($J31*'fnd base rates'!H$55) +($K31*'fnd base rates'!H$56) +($L31*'fnd base rates'!H$57) +($M31*'fnd base rates'!H$58) +($N31*'fnd base rates'!H$59) +($O31*VLOOKUP($S31+12,rate_basefnd,8))) -> 908.769 | AA31: =(($C31*'fnd base rates'!I$48) +($D31*'fnd base rates'!I$49) +($E31*'fnd base rates'!I$50) +($F31*'fnd base rates'!I$51) +($G31*'fnd base rates'!I$52) +($H31*'fnd base rates'!I$53) +($I31*'fnd base rates'!I$54) +($J31*'fnd base rates'!I$55) +($K31*'fnd base rates'!I$56) +($L31*'fnd base rates'!I$57) +($M31*'fnd base rates'!I$58) +($N31*'fnd base rates'!I$59) +($O31*VLOOKUP($S31+12,rate_basefnd,9))) *$R31 -> 637.10634 | AB31: =(($C31*'fnd base rates'!J$48) +($D31*'fnd base rates'!J$49) +($E31*'fnd base rates'!J$50) +($F31*'fnd base rates'!J$51) +($G31*'fnd base rates'!J$52) +($H31*'fnd base rates'!J$53) +($I31*'fnd base rates'!J$54) +($J31*'fnd base rates'!J$55) +($K31*'fnd base rates'!J$56) +($L31*'fnd base rates'!J$57) +($M31*'fnd base rates'!J$58) +($N31*'fnd base rates'!J$59) +($O31*VLOOKUP($S31+12,rate_basefnd,10))) *$R31 -> 466.51644 | AC31: =(($C31*'fnd base rates'!K$48) +($D31*'fnd base rates'!K$49) +($E31*'fnd base rates'!K$50) +($F31*'fnd base rates'!K$51) +($G31*'fnd base rates'!K$52) +($H31*'fnd base rates'!K$53) +($I31*'fnd base rates'!K$54) +($J31*'fnd base rates'!K$55) +($K31*'fnd base rates'!K$56) +($L31*'fnd base rates'!K$57) +($M31*'fnd base rates'!K$58) +($N31*'fnd base rates'!K$59) +($O31*VLOOKUP($S31+12,rate_basefnd,11))) *$R31 -> 2209.78148 | AD31: =(($C31*'fnd base rates'!L$48) +($D31*'fnd base rates'!L$49) +($E31*'fnd base rates'!L$50) +($F31*'fnd base rates'!L$51) +($G31*'fnd base rates'!L$52) +($H31*'fnd base rates'!L$53) +($I31*'fnd base rates'!L$54) +($J31*'fnd base rates'!L$55) +($K31*'fnd base rates'!L$56) +($L31*'fnd base rates'!L$57) +($M31*'fnd base rates'!L$58) +($N31*'fnd base rates'!L$59) +($O31*VLOOKUP($S31+12,rate_basefnd,12))) -> 1956.039527 | AE31: =(($C31*'fnd base rates'!M$48) +($D31*'fnd base rates'!M$49) +($E31*'fnd base rates'!M$50) +($F31*'fnd base rates'!M$51) +($G31*'fnd base rates'!M$52) +($H31*'fnd base rates'!M$53) +($I31*'fnd base rates'!M$54) +($J31*'fnd base rates'!M$55) +($K31*'fnd base rates'!M$56) +($L31*'fnd base rates'!M$57) +($M31*'fnd base rates'!M$58) +($N31*'fnd base rates'!M$59) +($O31*VLOOKUP($S31+12,rate_basefnd,13))) -> 0 | AF31: 17241.55262 | AH31: 412035044 | AI31: 412 | AJ31: 035 | AK31: 044 | AL31: 1 | AM31: 2 | AN31: 17241.55262 | AO31: 8621 | AP31: 0 | AQ31: 8621
A32: 412035189 | B32: ACADEMY OF THE PACIFIC RIM | C32: ='fnd enro'!C32 -> 0 | D32: ='fnd enro'!D32 -> 0 | E32: ='fnd enro'!E32 -> 0 | F32: ='fnd enro'!F32 -> 0 | G32: ='fnd enro'!G32 -> 1 | H32: ='fnd enro'!H32 -> 2 | I32: ='fnd enro'!I32 -> 0.1125 | J32: ='fnd enro'!J32 -> 0 | K32: ='fnd enro'!K32 -> 0 | L32: ='fnd enro'!L32 -> 0 | M32: ='fnd enro'!M32 -> 0 | N32: ='fnd enro'!N32 -> 0 | O32: ='fnd enro'!O32 -> 0 | Q32: ='fnd enro'!R32 -> 3 | R32: 1.079 | S32: ='fnd enro'!Q32 -> 1 | U32: =(($C32*'fnd base rates'!C$48) +($D32*'fnd base rates'!C$49) +($E32*'fnd base rates'!C$50) +($F32*'fnd base rates'!C$51) +($G32*'fnd base rates'!C$52) +($H32*'fnd base rates'!C$53) +($I32*'fnd base rates'!C$54) +($J32*'fnd base rates'!C$55) +($K32*'fnd base rates'!C$56) +($L32*'fnd base rates'!C$57) +($M32*'fnd base rates'!C$58) +($N32*'fnd base rates'!C$59) +($O32*VLOOKUP($S32+12,rate_basefnd,3))) *$R32 -> 1499.687938 | V32: =(($C32*'fnd base rates'!D$48) +($D32*'fnd base rates'!D$49) +($E32*'fnd base rates'!D$50) +($F32*'fnd base rates'!D$51) +($G32*'fnd base rates'!D$52) +($H32*'fnd base rates'!D$53) +($I32*'fnd base rates'!D$54) +($J32*'fnd base rates'!D$55) +($K32*'fnd base rates'!D$56) +($L32*'fnd base rates'!D$57) +($M32*'fnd base rates'!D$58) +($N32*'fnd base rates'!D$59) +($O32*VLOOKUP($S32+12,rate_basefnd,4))) *$R32 -> 2151.69864 | W32: =(($C32*'fnd base rates'!E$48) +($D32*'fnd base rates'!E$49) +($E32*'fnd base rates'!E$50) +($F32*'fnd base rates'!E$51) +($G32*'fnd base rates'!E$52) +($H32*'fnd base rates'!E$53) +($I32*'fnd base rates'!E$54) +($J32*'fnd base rates'!E$55) +($K32*'fnd base rates'!E$56) +($L32*'fnd base rates'!E$57) +($M32*'fnd base rates'!E$58) +($N32*'fnd base rates'!E$59) +($O32*VLOOKUP($S32+12,rate_basefnd,5))) *$R32 -> 12423.53924 | X32: =(($C32*'fnd base rates'!F$48) +($D32*'fnd base rates'!F$49) +($E32*'fnd base rates'!F$50) +($F32*'fnd base rates'!F$51) +($G32*'fnd base rates'!F$52) +($H32*'fnd base rates'!F$53) +($I32*'fnd base rates'!F$54) +($J32*'fnd base rates'!F$55) +($K32*'fnd base rates'!F$56) +($L32*'fnd base rates'!F$57) +($M32*'fnd base rates'!F$58) +($N32*'fnd base rates'!F$59) +($O32*VLOOKUP($S32+12,rate_basefnd,6))) *$R32 -> 2568.146513 | Y32: =(($C32*'fnd base rates'!G$48) +($D32*'fnd base rates'!G$49) +($E32*'fnd base rates'!G$50) +($F32*'fnd base rates'!G$51) +($G32*'fnd base rates'!G$52) +($H32*'fnd base rates'!G$53) +($I32*'fnd base rates'!G$54) +($J32*'fnd base rates'!G$55) +($K32*'fnd base rates'!G$56) +($L32*'fnd base rates'!G$57) +($M32*'fnd base rates'!G$58) +($N32*'fnd base rates'!G$59) +($O32*VLOOKUP($S32+12,rate_basefnd,7))) *$R32 -> 463.7631017 | Z32: =(($C32*'fnd base rates'!H$48) +($D32*'fnd base rates'!H$49) +($E32*'fnd base rates'!H$50) +($F32*'fnd base rates'!H$51) +($G32*'fnd base rates'!H$52) +($H32*'fnd base rates'!H$53) +($I32*'fnd base rates'!H$54) +($J32*'fnd base rates'!H$55) +($K32*'fnd base rates'!H$56) +($L32*'fnd base rates'!H$57) +($M32*'fnd base rates'!H$58) +($N32*'fnd base rates'!H$59) +($O32*VLOOKUP($S32+12,rate_basefnd,8))) -> 1892.5535 | AA32: =(($C32*'fnd base rates'!I$48) +($D32*'fnd base rates'!I$49) +($E32*'fnd base rates'!I$50) +($F32*'fnd base rates'!I$51) +($G32*'fnd base rates'!I$52) +($H32*'fnd base rates'!I$53) +($I32*'fnd base rates'!I$54) +($J32*'fnd base rates'!I$55) +($K32*'fnd base rates'!I$56) +($L32*'fnd base rates'!I$57) +($M32*'fnd base rates'!I$58) +($N32*'fnd base rates'!I$59) +($O32*VLOOKUP($S32+12,rate_basefnd,9))) *$R32 -> 1117.18581 | AB32: =(($C32*'fnd base rates'!J$48) +($D32*'fnd base rates'!J$49) +($E32*'fnd base rates'!J$50) +($F32*'fnd base rates'!J$51) +($G32*'fnd base rates'!J$52) +($H32*'fnd base rates'!J$53) +($I32*'fnd base rates'!J$54) +($J32*'fnd base rates'!J$55) +($K32*'fnd base rates'!J$56) +($L32*'fnd base rates'!J$57) +($M32*'fnd base rates'!J$58) +($N32*'fnd base rates'!J$59) +($O32*VLOOKUP($S32+12,rate_basefnd,10))) *$R32 -> 1309.02122 | AC32: =(($C32*'fnd base rates'!K$48) +($D32*'fnd base rates'!K$49) +($E32*'fnd base rates'!K$50) +($F32*'fnd base rates'!K$51) +($G32*'fnd base rates'!K$52) +($H32*'fnd base rates'!K$53) +($I32*'fnd base rates'!K$54) +($J32*'fnd base rates'!K$55) +($K32*'fnd base rates'!K$56) +($L32*'fnd base rates'!K$57) +($M32*'fnd base rates'!K$58) +($N32*'fnd base rates'!K$59) +($O32*VLOOKUP($S32+12,rate_basefnd,11))) *$R32 -> 3254.4856 | AD32: =(($C32*'fnd base rates'!L$48) +($D32*'fnd base rates'!L$49) +($E32*'fnd base rates'!L$50) +($F32*'fnd base rates'!L$51) +($G32*'fnd base rates'!L$52) +($H32*'fnd base rates'!L$53) +($I32*'fnd base rates'!L$54) +($J32*'fnd base rates'!L$55) +($K32*'fnd base rates'!L$56) +($L32*'fnd base rates'!L$57) +($M32*'fnd base rates'!L$58) +($N32*'fnd base rates'!L$59) +($O32*VLOOKUP($S32+12,rate_basefnd,12))) -> 2816.535842 | AE32: =(($C32*'fnd base rates'!M$48) +($D32*'fnd base rates'!M$49) +($E32*'fnd base rates'!M$50) +($F32*'fnd base rates'!M$51) +($G32*'fnd base rates'!M$52) +($H32*'fnd base rates'!M$53) +($I32*'fnd base rates'!M$54) +($J32*'fnd base rates'!M$55) +($K32*'fnd base rates'!M$56) +($L32*'fnd base rates'!M$57) +($M32*'fnd base rates'!M$58) +($N32*'fnd base rates'!M$59) +($O32*VLOOKUP($S32+12,rate_basefnd,13))) -> 0 | AF32: 29496.6174 | AH32: 412035189 | AI32: 412 | AJ32: 035 | AK32: 189 | AL32: 1 | AM32: 3 | AN32: 29496.6174 | AO32: 9832 | AP32: 0 | AQ32: 9832
A33: 412035207 | B33: ACADEMY OF THE PACIFIC RIM | C33: ='fnd enro'!C33 -> 0 | D33: ='fnd enro'!D33 -> 0 | E33: ='fnd enro'!E33 -> 0 | F33: ='fnd enro'!F33 -> 0 | G33: ='fnd enro'!G33 -> 0 | H33: ='fnd enro'!H33 -> 1 | I33: ='fnd enro'!I33 -> 0.0375 | J33: ='fnd enro'!J33 -> 0 | K33: ='fnd enro'!K33 -> 0 | L33: ='fnd enro'!L33 -> 0 | M33: ='fnd enro'!M33 -> 0 | N33: ='fnd enro'!N33 -> 0 | O33: ='fnd enro'!O33 -> 1 | Q33: ='fnd enro'!R33 -> 1 | R33: 1.079 | S33: ='fnd enro'!Q33 -> 10 | U33: =(($C33*'fnd base rates'!C$48) +($D33*'fnd base rates'!C$49) +($E33*'fnd base rates'!C$50) +($F33*'fnd base rates'!C$51) +($G33*'fnd base rates'!C$52) +($H33*'fnd base rates'!C$53) +($I33*'fnd base rates'!C$54) +($J33*'fnd base rates'!C$55) +($K33*'fnd base rates'!C$56) +($L33*'fnd base rates'!C$57) +($M33*'fnd base rates'!C$58) +($N33*'fnd base rates'!C$59) +($O33*VLOOKUP($S33+12,rate_basefnd,3))) *$R33 -> 499.8959794 | V33: =(($C33*'fnd base rates'!D$48) +($D33*'fnd base rates'!D$49) +($E33*'fnd base rates'!D$50) +($F33*'fnd base rates'!D$51) +($G33*'fnd base rates'!D$52) +($H33*'fnd base rates'!D$53) +($I33*'fnd base rates'!D$54) +($J33*'fnd base rates'!D$55) +($K33*'fnd base rates'!D$56) +($L33*'fnd base rates'!D$57) +($M33*'fnd base rates'!D$58) +($N33*'fnd base rates'!D$59) +($O33*VLOOKUP($S33+12,rate_basefnd,4))) *$R33 -> 717.23288 | W33: =(($C33*'fnd base rates'!E$48) +($D33*'fnd base rates'!E$49) +($E33*'fnd base rates'!E$50) +($F33*'fnd base rates'!E$51) +($G33*'fnd base rates'!E$52) +($H33*'fnd base rates'!E$53) +($I33*'fnd base rates'!E$54) +($J33*'fnd base rates'!E$55) +($K33*'fnd base rates'!E$56) +($L33*'fnd base rates'!E$57) +($M33*'fnd base rates'!E$58) +($N33*'fnd base rates'!E$59) +($O33*VLOOKUP($S33+12,rate_basefnd,5))) *$R33 -> 8125.139076 | X33: =(($C33*'fnd base rates'!F$48) +($D33*'fnd base rates'!F$49) +($E33*'fnd base rates'!F$50) +($F33*'fnd base rates'!F$51) +($G33*'fnd base rates'!F$52) +($H33*'fnd base rates'!F$53) +($I33*'fnd base rates'!F$54) +($J33*'fnd base rates'!F$55) +($K33*'fnd base rates'!F$56) +($L33*'fnd base rates'!F$57) +($M33*'fnd base rates'!F$58) +($N33*'fnd base rates'!F$59) +($O33*VLOOKUP($S33+12,rate_basefnd,6))) *$R33 -> 822.1502543 | Y33: =(($C33*'fnd base rates'!G$48) +($D33*'fnd base rates'!G$49) +($E33*'fnd base rates'!G$50) +($F33*'fnd base rates'!G$51) +($G33*'fnd base rates'!G$52) +($H33*'fnd base rates'!G$53) +($I33*'fnd base rates'!G$54) +($J33*'fnd base rates'!G$55) +($K33*'fnd base rates'!G$56) +($L33*'fnd base rates'!G$57) +($M33*'fnd base rates'!G$58) +($N33*'fnd base rates'!G$59) +($O33*VLOOKUP($S33+12,rate_basefnd,7))) *$R33 -> 230.8442272 | Z33: =(($C33*'fnd base rates'!H$48) +($D33*'fnd base rates'!H$49) +($E33*'fnd base rates'!H$50) +($F33*'fnd base rates'!H$51) +($G33*'fnd base rates'!H$52) +($H33*'fnd base rates'!H$53) +($I33*'fnd base rates'!H$54) +($J33*'fnd base rates'!H$55) +($K33*'fnd base rates'!H$56) +($L33*'fnd base rates'!H$57) +($M33*'fnd base rates'!H$58) +($N33*'fnd base rates'!H$59) +($O33*VLOOKUP($S33+12,rate_basefnd,8))) -> 719.0845 | AA33: =(($C33*'fnd base rates'!I$48) +($D33*'fnd base rates'!I$49) +($E33*'fnd base rates'!I$50) +($F33*'fnd base rates'!I$51) +($G33*'fnd base rates'!I$52) +($H33*'fnd base rates'!I$53) +($I33*'fnd base rates'!I$54) +($J33*'fnd base rates'!I$55) +($K33*'fnd base rates'!I$56) +($L33*'fnd base rates'!I$57) +($M33*'fnd base rates'!I$58) +($N33*'fnd base rates'!I$59) +($O33*VLOOKUP($S33+12,rate_basefnd,9))) *$R33 -> 399.31632 | AB33: =(($C33*'fnd base rates'!J$48) +($D33*'fnd base rates'!J$49) +($E33*'fnd base rates'!J$50) +($F33*'fnd base rates'!J$51) +($G33*'fnd base rates'!J$52) +($H33*'fnd base rates'!J$53) +($I33*'fnd base rates'!J$54) +($J33*'fnd base rates'!J$55) +($K33*'fnd base rates'!J$56) +($L33*'fnd base rates'!J$57) +($M33*'fnd base rates'!J$58) +($N33*'fnd base rates'!J$59) +($O33*VLOOKUP($S33+12,rate_basefnd,10))) *$R33 -> 537.8815 | AC33: =(($C33*'fnd base rates'!K$48) +($D33*'fnd base rates'!K$49) +($E33*'fnd base rates'!K$50) +($F33*'fnd base rates'!K$51) +($G33*'fnd base rates'!K$52) +($H33*'fnd base rates'!K$53) +($I33*'fnd base rates'!K$54) +($J33*'fnd base rates'!K$55) +($K33*'fnd base rates'!K$56) +($L33*'fnd base rates'!K$57) +($M33*'fnd base rates'!K$58) +($N33*'fnd base rates'!K$59) +($O33*VLOOKUP($S33+12,rate_basefnd,11))) *$R33 -> 1619.98376 | AD33: =(($C33*'fnd base rates'!L$48) +($D33*'fnd base rates'!L$49) +($E33*'fnd base rates'!L$50) +($F33*'fnd base rates'!L$51) +($G33*'fnd base rates'!L$52) +($H33*'fnd base rates'!L$53) +($I33*'fnd base rates'!L$54) +($J33*'fnd base rates'!L$55) +($K33*'fnd base rates'!L$56) +($L33*'fnd base rates'!L$57) +($M33*'fnd base rates'!L$58) +($N33*'fnd base rates'!L$59) +($O33*VLOOKUP($S33+12,rate_basefnd,12))) -> 1251.358039 | AE33: =(($C33*'fnd base rates'!M$48) +($D33*'fnd base rates'!M$49) +($E33*'fnd base rates'!M$50) +($F33*'fnd base rates'!M$51) +($G33*'fnd base rates'!M$52) +($H33*'fnd base rates'!M$53) +($I33*'fnd base rates'!M$54) +($J33*'fnd base rates'!M$55) +($K33*'fnd base rates'!M$56) +($L33*'fnd base rates'!M$57) +($M33*'fnd base rates'!M$58) +($N33*'fnd base rates'!M$59) +($O33*VLOOKUP($S33+12,rate_basefnd,13))) -> 0 | AF33: 14922.88654 | AH33: 412035207 | AI33: 412 | AJ33: 035 | AK33: 207 | AL33: 1 | AM33: 1 | AN33: 14922.88654 | AO33: 14923 | AP33: 0 | AQ33: 14923
A34: 412035220 | B34: ACADEMY OF THE PACIFIC RIM | C34: ='fnd enro'!C34 -> 0 | D34: ='fnd enro'!D34 -> 0 | E34: ='fnd enro'!E34 -> 0 | F34: ='fnd enro'!F34 -> 0 | G34: ='fnd enro'!G34 -> 0 | H34: ='fnd enro'!H34 -> 3 | I34: ='fnd enro'!I34 -> 0.1125 | J34: ='fnd enro'!J34 -> 0 | K34: ='fnd enro'!K34 -> 0 | L34: ='fnd enro'!L34 -> 0 | M34: ='fnd enro'!M34 -> 0 | N34: ='fnd enro'!N34 -> 0 | O34: ='fnd enro'!O34 -> 1 | Q34: ='fnd enro'!R34 -> 3 | R34: 1.079 | S34: ='fnd enro'!Q34 -> 8 | U34: =(($C34*'fnd base rates'!C$48) +($D34*'fnd base rates'!C$49) +($E34*'fnd base rates'!C$50) +($F34*'fnd base rates'!C$51) +($G34*'fnd base rates'!C$52) +($H34*'fnd base rates'!C$53) +($I34*'fnd base rates'!C$54) +($J34*'fnd base rates'!C$55) +($K34*'fnd base rates'!C$56) +($L34*'fnd base rates'!C$57) +($M34*'fnd base rates'!C$58) +($N34*'fnd base rates'!C$59) +($O34*VLOOKUP($S34+12,rate_basefnd,3))) *$R34 -> 1499.687938 | V34: =(($C34*'fnd base rates'!D$48) +($D34*'fnd base rates'!D$49) +($E34*'fnd base rates'!D$50) +($F34*'fnd base rates'!D$51) +($G34*'fnd base rates'!D$52) +($H34*'fnd base rates'!D$53) +($I34*'fnd base rates'!D$54) +($J34*'fnd base rates'!D$55) +($K34*'fnd base rates'!D$56) +($L34*'fnd base rates'!D$57) +($M34*'fnd base rates'!D$58) +($N34*'fnd base rates'!D$59) +($O34*VLOOKUP($S34+12,rate_basefnd,4))) *$R34 -> 2151.69864 | W34: =(($C34*'fnd base rates'!E$48) +($D34*'fnd base rates'!E$49) +($E34*'fnd base rates'!E$50) +($F34*'fnd base rates'!E$51) +($G34*'fnd base rates'!E$52) +($H34*'fnd base rates'!E$53) +($I34*'fnd base rates'!E$54) +($J34*'fnd base rates'!E$55) +($K34*'fnd base rates'!E$56) +($L34*'fnd base rates'!E$57) +($M34*'fnd base rates'!E$58) +($N34*'fnd base rates'!E$59) +($O34*VLOOKUP($S34+12,rate_basefnd,5))) *$R34 -> 17247.13321 | X34: =(($C34*'fnd base rates'!F$48) +($D34*'fnd base rates'!F$49) +($E34*'fnd base rates'!F$50) +($F34*'fnd base rates'!F$51) +($G34*'fnd base rates'!F$52) +($H34*'fnd base rates'!F$53) +($I34*'fnd base rates'!F$54) +($J34*'fnd base rates'!F$55) +($K34*'fnd base rates'!F$56) +($L34*'fnd base rates'!F$57) +($M34*'fnd base rates'!F$58) +($N34*'fnd base rates'!F$59) +($O34*VLOOKUP($S34+12,rate_basefnd,6))) *$R34 -> 2466.450763 | Y34: =(($C34*'fnd base rates'!G$48) +($D34*'fnd base rates'!G$49) +($E34*'fnd base rates'!G$50) +($F34*'fnd base rates'!G$51) +($G34*'fnd base rates'!G$52) +($H34*'fnd base rates'!G$53) +($I34*'fnd base rates'!G$54) +($J34*'fnd base rates'!G$55) +($K34*'fnd base rates'!G$56) +($L34*'fnd base rates'!G$57) +($M34*'fnd base rates'!G$58) +($N34*'fnd base rates'!G$59) +($O34*VLOOKUP($S34+12,rate_basefnd,7))) *$R34 -> 535.6568718 | Z34: =(($C34*'fnd base rates'!H$48) +($D34*'fnd base rates'!H$49) +($E34*'fnd base rates'!H$50) +($F34*'fnd base rates'!H$51) +($G34*'fnd base rates'!H$52) +($H34*'fnd base rates'!H$53) +($I34*'fnd base rates'!H$54) +($J34*'fnd base rates'!H$55) +($K34*'fnd base rates'!H$56) +($L34*'fnd base rates'!H$57) +($M34*'fnd base rates'!H$58) +($N34*'fnd base rates'!H$59) +($O34*VLOOKUP($S34+12,rate_basefnd,8))) -> 2157.2535 | AA34: =(($C34*'fnd base rates'!I$48) +($D34*'fnd base rates'!I$49) +($E34*'fnd base rates'!I$50) +($F34*'fnd base rates'!I$51) +($G34*'fnd base rates'!I$52) +($H34*'fnd base rates'!I$53) +($I34*'fnd base rates'!I$54) +($J34*'fnd base rates'!I$55) +($K34*'fnd base rates'!I$56) +($L34*'fnd base rates'!I$57) +($M34*'fnd base rates'!I$58) +($N34*'fnd base rates'!I$59) +($O34*VLOOKUP($S34+12,rate_basefnd,9))) *$R34 -> 1197.94896 | AB34: =(($C34*'fnd base rates'!J$48) +($D34*'fnd base rates'!J$49) +($E34*'fnd base rates'!J$50) +($F34*'fnd base rates'!J$51) +($G34*'fnd base rates'!J$52) +($H34*'fnd base rates'!J$53) +($I34*'fnd base rates'!J$54) +($J34*'fnd base rates'!J$55) +($K34*'fnd base rates'!J$56) +($L34*'fnd base rates'!J$57) +($M34*'fnd base rates'!J$58) +($N34*'fnd base rates'!J$59) +($O34*VLOOKUP($S34+12,rate_basefnd,10))) *$R34 -> 1613.6445 | AC34: =(($C34*'fnd base rates'!K$48) +($D34*'fnd base rates'!K$49) +($E34*'fnd base rates'!K$50) +($F34*'fnd base rates'!K$51) +($G34*'fnd base rates'!K$52) +($H34*'fnd base rates'!K$53) +($I34*'fnd base rates'!K$54) +($J34*'fnd base rates'!K$55) +($K34*'fnd base rates'!K$56) +($L34*'fnd base rates'!K$57) +($M34*'fnd base rates'!K$58) +($N34*'fnd base rates'!K$59) +($O34*VLOOKUP($S34+12,rate_basefnd,11))) *$R34 -> 3759.026 | AD34: =(($C34*'fnd base rates'!L$48) +($D34*'fnd base rates'!L$49) +($E34*'fnd base rates'!L$50) +($F34*'fnd base rates'!L$51) +($G34*'fnd base rates'!L$52) +($H34*'fnd base rates'!L$53) +($I34*'fnd base rates'!L$54) +($J34*'fnd base rates'!L$55) +($K34*'fnd base rates'!L$56) +($L34*'fnd base rates'!L$57) +($M34*'fnd base rates'!L$58) +($N34*'fnd base rates'!L$59) +($O34*VLOOKUP($S34+12,rate_basefnd,12))) -> 3083.444118 | AE34: =(($C34*'fnd base rates'!M$48) +($D34*'fnd base rates'!M$49) +($E34*'fnd base rates'!M$50) +($F34*'fnd base rates'!M$51) +($G34*'fnd base rates'!M$52) +($H34*'fnd base rates'!M$53) +($I34*'fnd base rates'!M$54) +($J34*'fnd base rates'!M$55) +($K34*'fnd base rates'!M$56) +($L34*'fnd base rates'!M$57) +($M34*'fnd base rates'!M$58) +($N34*'fnd base rates'!M$59) +($O34*VLOOKUP($S34+12,rate_basefnd,13))) -> 0 | AF34: 35711.9445 | AH34: 412035220 | AI34: 412 | AJ34: 035 | AK34: 220 | AL34: 1 | AM34: 3 | AN34: 35711.9445 | AO34: 11904 | AP34: 0 | AQ34: 11904
A35: 412035244 | B35: ACADEMY OF THE PACIFIC RIM | C35: ='fnd enro'!C35 -> 0 | D35: ='fnd enro'!D35 -> 0 | E35: ='fnd enro'!E35 -> 0 | F35: ='fnd enro'!F35 -> 0 | G35: ='fnd enro'!G35 -> 4 | H35: ='fnd enro'!H35 -> 4 | I35: ='fnd enro'!I35 -> 0.375 | J35: ='fnd enro'!J35 -> 0 | K35: ='fnd enro'!K35 -> 0 | L35: ='fnd enro'!L35 -> 0 | M35: ='fnd enro'!M35 -> 2 | N35: ='fnd enro'!N35 -> 0 | O35: ='fnd enro'!O35 -> 4 | Q35: ='fnd enro'!R35 -> 10 | R35: 1.079 | S35: ='fnd enro'!Q35 -> 9 | U35: =(($C35*'fnd base rates'!C$48) +($D35*'fnd base rates'!C$49) +($E35*'fnd base rates'!C$50) +($F35*'fnd base rates'!C$51) +($G35*'fnd base rates'!C$52) +($H35*'fnd base rates'!C$53) +($I35*'fnd base rates'!C$54) +($J35*'fnd base rates'!C$55) +($K35*'fnd base rates'!C$56) +($L35*'fnd base rates'!C$57) +($M35*'fnd base rates'!C$58) +($N35*'fnd base rates'!C$59) +($O35*VLOOKUP($S35+12,rate_basefnd,3))) *$R35 -> 4998.959794 | V35: =(($C35*'fnd base rates'!D$48) +($D35*'fnd base rates'!D$49) +($E35*'fnd base rates'!D$50) +($F35*'fnd base rates'!D$51) +($G35*'fnd base rates'!D$52) +($H35*'fnd base rates'!D$53) +($I35*'fnd base rates'!D$54) +($J35*'fnd base rates'!D$55) +($K35*'fnd base rates'!D$56) +($L35*'fnd base rates'!D$57) +($M35*'fnd base rates'!D$58) +($N35*'fnd base rates'!D$59) +($O35*VLOOKUP($S35+12,rate_basefnd,4))) *$R35 -> 7172.3288 | W35: =(($C35*'fnd base rates'!E$48) +($D35*'fnd base rates'!E$49) +($E35*'fnd base rates'!E$50) +($F35*'fnd base rates'!E$51) +($G35*'fnd base rates'!E$52) +($H35*'fnd base rates'!E$53) +($I35*'fnd base rates'!E$54) +($J35*'fnd base rates'!E$55) +($K35*'fnd base rates'!E$56) +($L35*'fnd base rates'!E$57) +($M35*'fnd base rates'!E$58) +($N35*'fnd base rates'!E$59) +($O35*VLOOKUP($S35+12,rate_basefnd,5))) *$R35 -> 55881.16588 | X35: =(($C35*'fnd base rates'!F$48) +($D35*'fnd base rates'!F$49) +($E35*'fnd base rates'!F$50) +($F35*'fnd base rates'!F$51) +($G35*'fnd base rates'!F$52) +($H35*'fnd base rates'!F$53) +($I35*'fnd base rates'!F$54) +($J35*'fnd base rates'!F$55) +($K35*'fnd base rates'!F$56) +($L35*'fnd base rates'!F$57) +($M35*'fnd base rates'!F$58) +($N35*'fnd base rates'!F$59) +($O35*VLOOKUP($S35+12,rate_basefnd,6))) *$R35 -> 8966.228342 | Y35: =(($C35*'fnd base rates'!G$48) +($D35*'fnd base rates'!G$49) +($E35*'fnd base rates'!G$50) +($F35*'fnd base rates'!G$51) +($G35*'fnd base rates'!G$52) +($H35*'fnd base rates'!G$53) +($I35*'fnd base rates'!G$54) +($J35*'fnd base rates'!G$55) +($K35*'fnd base rates'!G$56) +($L35*'fnd base rates'!G$57) +($M35*'fnd base rates'!G$58) +($N35*'fnd base rates'!G$59) +($O35*VLOOKUP($S35+12,rate_basefnd,7))) *$R35 -> 1935.194592 | Z35: =(($C35*'fnd base rates'!H$48) +($D35*'fnd base rates'!H$49) +($E35*'fnd base rates'!H$50) +($F35*'fnd base rates'!H$51) +($G35*'fnd base rates'!H$52) +($H35*'fnd base rates'!H$53) +($I35*'fnd base rates'!H$54) +($J35*'fnd base rates'!H$55) +($K35*'fnd base rates'!H$56) +($L35*'fnd base rates'!H$57) +($M35*'fnd base rates'!H$58) +($N35*'fnd base rates'!H$59) +($O35*VLOOKUP($S35+12,rate_basefnd,8))) -> 5602.645 | AA35: =(($C35*'fnd base rates'!I$48) +($D35*'fnd base rates'!I$49) +($E35*'fnd base rates'!I$50) +($F35*'fnd base rates'!I$51) +($G35*'fnd base rates'!I$52) +($H35*'fnd base rates'!I$53) +($I35*'fnd base rates'!I$54) +($J35*'fnd base rates'!I$55) +($K35*'fnd base rates'!I$56) +($L35*'fnd base rates'!I$57) +($M35*'fnd base rates'!I$58) +($N35*'fnd base rates'!I$59) +($O35*VLOOKUP($S35+12,rate_basefnd,9))) *$R35 -> 3508.5843 | AB35: =(($C35*'fnd base rates'!J$48) +($D35*'fnd base rates'!J$49) +($E35*'fnd base rates'!J$50) +($F35*'fnd base rates'!J$51) +($G35*'fnd base rates'!J$52) +($H35*'fnd base rates'!J$53) +($I35*'fnd base rates'!J$54) +($J35*'fnd base rates'!J$55) +($K35*'fnd base rates'!J$56) +($L35*'fnd base rates'!J$57) +($M35*'fnd base rates'!J$58) +($N35*'fnd base rates'!J$59) +($O35*VLOOKUP($S35+12,rate_basefnd,10))) *$R35 -> 3370.17018 | AC35: =(($C35*'fnd base rates'!K$48) +($D35*'fnd base rates'!K$49) +($E35*'fnd base rates'!K$50) +($F35*'fnd base rates'!K$51) +($G35*'fnd base rates'!K$52) +($H35*'fnd base rates'!K$53) +($I35*'fnd base rates'!K$54) +($J35*'fnd base rates'!K$55) +($K35*'fnd base rates'!K$56) +($L35*'fnd base rates'!K$57) +($M35*'fnd base rates'!K$58) +($N35*'fnd base rates'!K$59) +($O35*VLOOKUP($S35+12,rate_basefnd,11))) *$R35 -> 13580.673 | AD35: =(($C35*'fnd base rates'!L$48) +($D35*'fnd base rates'!L$49) +($E35*'fnd base rates'!L$50) +($F35*'fnd base rates'!L$51) +($G35*'fnd base rates'!L$52) +($H35*'fnd base rates'!L$53) +($I35*'fnd base rates'!L$54) +($J35*'fnd base rates'!L$55) +($K35*'fnd base rates'!L$56) +($L35*'fnd base rates'!L$57) +($M35*'fnd base rates'!L$58) +($N35*'fnd base rates'!L$59) +($O35*VLOOKUP($S35+12,rate_basefnd,12))) -> 11202.89788 | AE35: =(($C35*'fnd base rates'!M$48) +($D35*'fnd base rates'!M$49) +($E35*'fnd base rates'!M$50) +($F35*'fnd base rates'!M$51) +($G35*'fnd base rates'!M$52) +($H35*'fnd base rates'!M$53) +($I35*'fnd base rates'!M$54) +($J35*'fnd base rates'!M$55) +($K35*'fnd base rates'!M$56) +($L35*'fnd base rates'!M$57) +($M35*'fnd base rates'!M$58) +($N35*'fnd base rates'!M$59) +($O35*VLOOKUP($S35+12,rate_basefnd,13))) -> 0 | AF35: 116218.8478 | AH35: 412035244 | AI35: 412 | AJ35: 035 | AK35: 244 | AL35: 1 | AM35: 10 | AN35: 116218.8478 | AO35: 11622 | AP35: 0 | AQ35: 11622
A36: 412035285 | B36: ACADEMY OF THE PACIFIC RIM | C36: ='fnd enro'!C36 -> 0 | D36: ='fnd enro'!D36 -> 0 | E36: ='fnd enro'!E36 -> 0 | F36: ='fnd enro'!F36 -> 1 | G36: ='fnd enro'!G36 -> 1 | H36: ='fnd enro'!H36 -> 2 | I36: ='fnd enro'!I36 -> 0.15 | J36: ='fnd enro'!J36 -> 0 | K36: ='fnd enro'!K36 -> 0 | L36: ='fnd enro'!L36 -> 0 | M36: ='fnd enro'!M36 -> 0 | N36: ='fnd enro'!N36 -> 0 | O36: ='fnd enro'!O36 -> 0 | Q36: ='fnd enro'!R36 -> 4 | R36: 1.079 | S36: ='fnd enro'!Q36 -> 1 | U36: =(($C36*'fnd base rates'!C$48) +($D36*'fnd base rates'!C$49) +($E36*'fnd base rates'!C$50) +($F36*'fnd base rates'!C$51) +($G36*'fnd base rates'!C$52) +($H36*'fnd base rates'!C$53) +($I36*'fnd base rates'!C$54) +($J36*'fnd base rates'!C$55) +($K36*'fnd base rates'!C$56) +($L36*'fnd base rates'!C$57) +($M36*'fnd base rates'!C$58) +($N36*'fnd base rates'!C$59) +($O36*VLOOKUP($S36+12,rate_basefnd,3))) *$R36 -> 1999.583918 | V36: =(($C36*'fnd base rates'!D$48) +($D36*'fnd base rates'!D$49) +($E36*'fnd base rates'!D$50) +($F36*'fnd base rates'!D$51) +($G36*'fnd base rates'!D$52) +($H36*'fnd base rates'!D$53) +($I36*'fnd base rates'!D$54) +($J36*'fnd base rates'!D$55) +($K36*'fnd base rates'!D$56) +($L36*'fnd base rates'!D$57) +($M36*'fnd base rates'!D$58) +($N36*'fnd base rates'!D$59) +($O36*VLOOKUP($S36+12,rate_basefnd,4))) *$R36 -> 2868.93152 | W36: =(($C36*'fnd base rates'!E$48) +($D36*'fnd base rates'!E$49) +($E36*'fnd base rates'!E$50) +($F36*'fnd base rates'!E$51) +($G36*'fnd base rates'!E$52) +($H36*'fnd base rates'!E$53) +($I36*'fnd base rates'!E$54) +($J36*'fnd base rates'!E$55) +($K36*'fnd base rates'!E$56) +($L36*'fnd base rates'!E$57) +($M36*'fnd base rates'!E$58) +($N36*'fnd base rates'!E$59) +($O36*VLOOKUP($S36+12,rate_basefnd,5))) *$R36 -> 16051.40631 | X36: =(($C36*'fnd base rates'!F$48) +($D36*'fnd base rates'!F$49) +($E36*'fnd base rates'!F$50) +($F36*'fnd base rates'!F$51) +($G36*'fnd base rates'!F$52) +($H36*'fnd base rates'!F$53) +($I36*'fnd base rates'!F$54) +($J36*'fnd base rates'!F$55) +($K36*'fnd base rates'!F$56) +($L36*'fnd base rates'!F$57) +($M36*'fnd base rates'!F$58) +($N36*'fnd base rates'!F$59) +($O36*VLOOKUP($S36+12,rate_basefnd,6))) *$R36 -> 3728.304307 | Y36: =(($C36*'fnd base rates'!G$48) +($D36*'fnd base rates'!G$49) +($E36*'fnd base rates'!G$50) +($F36*'fnd base rates'!G$51) +($G36*'fnd base rates'!G$52) +($H36*'fnd base rates'!G$53) +($I36*'fnd base rates'!G$54) +($J36*'fnd base rates'!G$55) +($K36*'fnd base rates'!G$56) +($L36*'fnd base rates'!G$57) +($M36*'fnd base rates'!G$58) +($N36*'fnd base rates'!G$59) +($O36*VLOOKUP($S36+12,rate_basefnd,7))) *$R36 -> 610.272689 | Z36: =(($C36*'fnd base rates'!H$48) +($D36*'fnd base rates'!H$49) +($E36*'fnd base rates'!H$50) +($F36*'fnd base rates'!H$51) +($G36*'fnd base rates'!H$52) +($H36*'fnd base rates'!H$53) +($I36*'fnd base rates'!H$54) +($J36*'fnd base rates'!H$55) +($K36*'fnd base rates'!H$56) +($L36*'fnd base rates'!H$57) +($M36*'fnd base rates'!H$58) +($N36*'fnd base rates'!H$59) +($O36*VLOOKUP($S36+12,rate_basefnd,8))) -> 2346.938 | AA36: =(($C36*'fnd base rates'!I$48) +($D36*'fnd base rates'!I$49) +($E36*'fnd base rates'!I$50) +($F36*'fnd base rates'!I$51) +($G36*'fnd base rates'!I$52) +($H36*'fnd base rates'!I$53) +($I36*'fnd base rates'!I$54) +($J36*'fnd base rates'!I$55) +($K36*'fnd base rates'!I$56) +($L36*'fnd base rates'!I$57) +($M36*'fnd base rates'!I$58) +($N36*'fnd base rates'!I$59) +($O36*VLOOKUP($S36+12,rate_basefnd,9))) *$R36 -> 1356.49722 | AB36: =(($C36*'fnd base rates'!J$48) +($D36*'fnd base rates'!J$49) +($E36*'fnd base rates'!J$50) +($F36*'fnd base rates'!J$51) +($G36*'fnd base rates'!J$52) +($H36*'fnd base rates'!J$53) +($I36*'fnd base rates'!J$54) +($J36*'fnd base rates'!J$55) +($K36*'fnd base rates'!J$56) +($L36*'fnd base rates'!J$57) +($M36*'fnd base rates'!J$58) +($N36*'fnd base rates'!J$59) +($O36*VLOOKUP($S36+12,rate_basefnd,10))) *$R36 -> 1451.82687 | AC36: =(($C36*'fnd base rates'!K$48) +($D36*'fnd base rates'!K$49) +($E36*'fnd base rates'!K$50) +($F36*'fnd base rates'!K$51) +($G36*'fnd base rates'!K$52) +($H36*'fnd base rates'!K$53) +($I36*'fnd base rates'!K$54) +($J36*'fnd base rates'!K$55) +($K36*'fnd base rates'!K$56) +($L36*'fnd base rates'!K$57) +($M36*'fnd base rates'!K$58) +($N36*'fnd base rates'!K$59) +($O36*VLOOKUP($S36+12,rate_basefnd,11))) *$R36 -> 4282.540749 | AD36: =(($C36*'fnd base rates'!L$48) +($D36*'fnd base rates'!L$49) +($E36*'fnd base rates'!L$50) +($F36*'fnd base rates'!L$51) +($G36*'fnd base rates'!L$52) +($H36*'fnd base rates'!L$53) +($I36*'fnd base rates'!L$54) +($J36*'fnd base rates'!L$55) +($K36*'fnd base rates'!L$56) +($L36*'fnd base rates'!L$57) +($M36*'fnd base rates'!L$58) +($N36*'fnd base rates'!L$59) +($O36*VLOOKUP($S36+12,rate_basefnd,12))) -> 3804.367307 | AE36: =(($C36*'fnd base rates'!M$48) +($D36*'fnd base rates'!M$49) +($E36*'fnd base rates'!M$50) +($F36*'fnd base rates'!M$51) +($G36*'fnd base rates'!M$52) +($H36*'fnd base rates'!M$53) +($I36*'fnd base rates'!M$54) +($J36*'fnd base rates'!M$55) +($K36*'fnd base rates'!M$56) +($L36*'fnd base rates'!M$57) +($M36*'fnd base rates'!M$58) +($N36*'fnd base rates'!M$59) +($O36*VLOOKUP($S36+12,rate_basefnd,13))) -> 0 | AF36: 38500.66889 | AH36: 412035285 | AI36: 412 | AJ36: 035 | AK36: 285 | AL36: 1 | AM36: 4 | AN36: 38500.66889 | AO36: 9625 | AP36: 0 | AQ36: 9625
A37: 412035314 | B37: ACADEMY OF THE PACIFIC RIM | C37: ='fnd enro'!C37 -> 0 | D37: ='fnd enro'!D37 -> 0 | E37: ='fnd enro'!E37 -> 0 | F37: ='fnd enro'!F37 -> 0 | G37: ='fnd enro'!G37 -> 1 | H37: ='fnd enro'!H37 -> 0 | I37: ='fnd enro'!I37 -> 0.0375 | J37: ='fnd enro'!J37 -> 0 | K37: ='fnd enro'!K37 -> 0 | L37: ='fnd enro'!L37 -> 0 | M37: ='fnd enro'!M37 -> 0 | N37: ='fnd enro'!N37 -> 0 | O37: ='fnd enro'!O37 -> 1 | Q37: ='fnd enro'!R37 -> 1 | R37: 1.079 | S37: ='fnd enro'!Q37 -> 10 | U37: =(($C37*'fnd base rates'!C$48) +($D37*'fnd base rates'!C$49) +($E37*'fnd base rates'!C$50) +($F37*'fnd base rates'!C$51) +($G37*'fnd base rates'!C$52) +($H37*'fnd base rates'!C$53) +($I37*'fnd base rates'!C$54) +($J37*'fnd base rates'!C$55) +($K37*'fnd base rates'!C$56) +($L37*'fnd base rates'!C$57) +($M37*'fnd base rates'!C$58) +($N37*'fnd base rates'!C$59) +($O37*VLOOKUP($S37+12,rate_basefnd,3))) *$R37 -> 499.8959794 | V37: =(($C37*'fnd base rates'!D$48) +($D37*'fnd base rates'!D$49) +($E37*'fnd base rates'!D$50) +($F37*'fnd base rates'!D$51) +($G37*'fnd base rates'!D$52) +($H37*'fnd base rates'!D$53) +($I37*'fnd base rates'!D$54) +($J37*'fnd base rates'!D$55) +($K37*'fnd base rates'!D$56) +($L37*'fnd base rates'!D$57) +($M37*'fnd base rates'!D$58) +($N37*'fnd base rates'!D$59) +($O37*VLOOKUP($S37+12,rate_basefnd,4))) *$R37 -> 717.23288 | W37: =(($C37*'fnd base rates'!E$48) +($D37*'fnd base rates'!E$49) +($E37*'fnd base rates'!E$50) +($F37*'fnd base rates'!E$51) +($G37*'fnd base rates'!E$52) +($H37*'fnd base rates'!E$53) +($I37*'fnd base rates'!E$54) +($J37*'fnd base rates'!E$55) +($K37*'fnd base rates'!E$56) +($L37*'fnd base rates'!E$57) +($M37*'fnd base rates'!E$58) +($N37*'fnd base rates'!E$59) +($O37*VLOOKUP($S37+12,rate_basefnd,5))) *$R37 -> 6763.236066 | X37: =(($C37*'fnd base rates'!F$48) +($D37*'fnd base rates'!F$49) +($E37*'fnd base rates'!F$50) +($F37*'fnd base rates'!F$51) +($G37*'fnd base rates'!F$52) +($H37*'fnd base rates'!F$53) +($I37*'fnd base rates'!F$54) +($J37*'fnd base rates'!F$55) +($K37*'fnd base rates'!F$56) +($L37*'fnd base rates'!F$57) +($M37*'fnd base rates'!F$58) +($N37*'fnd base rates'!F$59) +($O37*VLOOKUP($S37+12,rate_basefnd,6))) *$R37 -> 923.8460043 | Y37: =(($C37*'fnd base rates'!G$48) +($D37*'fnd base rates'!G$49) +($E37*'fnd base rates'!G$50) +($F37*'fnd base rates'!G$51) +($G37*'fnd base rates'!G$52) +($H37*'fnd base rates'!G$53) +($I37*'fnd base rates'!G$54) +($J37*'fnd base rates'!G$55) +($K37*'fnd base rates'!G$56) +($L37*'fnd base rates'!G$57) +($M37*'fnd base rates'!G$58) +($N37*'fnd base rates'!G$59) +($O37*VLOOKUP($S37+12,rate_basefnd,7))) *$R37 -> 235.1386472 | Z37: =(($C37*'fnd base rates'!H$48) +($D37*'fnd base rates'!H$49) +($E37*'fnd base rates'!H$50) +($F37*'fnd base rates'!H$51) +($G37*'fnd base rates'!H$52) +($H37*'fnd base rates'!H$53) +($I37*'fnd base rates'!H$54) +($J37*'fnd base rates'!H$55) +($K37*'fnd base rates'!H$56) +($L37*'fnd base rates'!H$57) +($M37*'fnd base rates'!H$58) +($N37*'fnd base rates'!H$59) +($O37*VLOOKUP($S37+12,rate_basefnd,8))) -> 454.3845 | AA37: =(($C37*'fnd base rates'!I$48) +($D37*'fnd base rates'!I$49) +($E37*'fnd base rates'!I$50) +($F37*'fnd base rates'!I$51) +($G37*'fnd base rates'!I$52) +($H37*'fnd base rates'!I$53) +($I37*'fnd base rates'!I$54) +($J37*'fnd base rates'!I$55) +($K37*'fnd base rates'!I$56) +($L37*'fnd base rates'!I$57) +($M37*'fnd base rates'!I$58) +($N37*'fnd base rates'!I$59) +($O37*VLOOKUP($S37+12,rate_basefnd,9))) *$R37 -> 318.55317 | AB37: =(($C37*'fnd base rates'!J$48) +($D37*'fnd base rates'!J$49) +($E37*'fnd base rates'!J$50) +($F37*'fnd base rates'!J$51) +($G37*'fnd base rates'!J$52) +($H37*'fnd base rates'!J$53) +($I37*'fnd base rates'!J$54) +($J37*'fnd base rates'!J$55) +($K37*'fnd base rates'!J$56) +($L37*'fnd base rates'!J$57) +($M37*'fnd base rates'!J$58) +($N37*'fnd base rates'!J$59) +($O37*VLOOKUP($S37+12,rate_basefnd,10))) *$R37 -> 233.25822 | AC37: =(($C37*'fnd base rates'!K$48) +($D37*'fnd base rates'!K$49) +($E37*'fnd base rates'!K$50) +($F37*'fnd base rates'!K$51) +($G37*'fnd base rates'!K$52) +($H37*'fnd base rates'!K$53) +($I37*'fnd base rates'!K$54) +($J37*'fnd base rates'!K$55) +($K37*'fnd base rates'!K$56) +($L37*'fnd base rates'!K$57) +($M37*'fnd base rates'!K$58) +($N37*'fnd base rates'!K$59) +($O37*VLOOKUP($S37+12,rate_basefnd,11))) *$R37 -> 1650.07707 | AD37: =(($C37*'fnd base rates'!L$48) +($D37*'fnd base rates'!L$49) +($E37*'fnd base rates'!L$50) +($F37*'fnd base rates'!L$51) +($G37*'fnd base rates'!L$52) +($H37*'fnd base rates'!L$53) +($I37*'fnd base rates'!L$54) +($J37*'fnd base rates'!L$55) +($K37*'fnd base rates'!L$56) +($L37*'fnd base rates'!L$57) +($M37*'fnd base rates'!L$58) +($N37*'fnd base rates'!L$59) +($O37*VLOOKUP($S37+12,rate_basefnd,12))) -> 1310.119763 | AE37: =(($C37*'fnd base rates'!M$48) +($D37*'fnd base rates'!M$49) +($E37*'fnd base rates'!M$50) +($F37*'fnd base rates'!M$51) +($G37*'fnd base rates'!M$52) +($H37*'fnd base rates'!M$53) +($I37*'fnd base rates'!M$54) +($J37*'fnd base rates'!M$55) +($K37*'fnd base rates'!M$56) +($L37*'fnd base rates'!M$57) +($M37*'fnd base rates'!M$58) +($N37*'fnd base rates'!M$59) +($O37*VLOOKUP($S37+12,rate_basefnd,13))) -> 0 | AF37: 13105.7423 | AH37: 412035314 | AI37: 412 | AJ37: 035 | AK37: 314 | AL37: 1 | AM37: 1 | AN37: 13105.7423 | AO37: 13106 | AP37: 0 | AQ37: 13106
A38: 413114091 | B38: FOUR RIVERS | C38: ='fnd enro'!C38 -> 0 | D38: ='fnd enro'!D38 -> 0 | E38: ='fnd enro'!E38 -> 0 | F38: ='fnd enro'!F38 -> 0 | G38: ='fnd enro'!G38 -> 0 | H38: ='fnd enro'!H38 -> 8 | I38: ='fnd enro'!I38 -> 0.3 | J38: ='fnd enro'!J38 -> 0 | K38: ='fnd enro'!K38 -> 0 | L38: ='fnd enro'!L38 -> 0 | M38: ='fnd enro'!M38 -> 0 | N38: ='fnd enro'!N38 -> 0 | O38: ='fnd enro'!O38 -> 3 | Q38: ='fnd enro'!R38 -> 8 | R38: 1 | S38: ='fnd enro'!Q38 -> 9 | U38: =(($C38*'fnd base rates'!C$48) +($D38*'fnd base rates'!C$49) +($E38*'fnd base rates'!C$50) +($F38*'fnd base rates'!C$51) +($G38*'fnd base rates'!C$52) +($H38*'fnd base rates'!C$53) +($I38*'fnd base rates'!C$54) +($J38*'fnd base rates'!C$55) +($K38*'fnd base rates'!C$56) +($L38*'fnd base rates'!C$57) +($M38*'fnd base rates'!C$58) +($N38*'fnd base rates'!C$59) +($O38*VLOOKUP($S38+12,rate_basefnd,3))) *$R38 -> 3706.365 | V38: =(($C38*'fnd base rates'!D$48) +($D38*'fnd base rates'!D$49) +($E38*'fnd base rates'!D$50) +($F38*'fnd base rates'!D$51) +($G38*'fnd base rates'!D$52) +($H38*'fnd base rates'!D$53) +($I38*'fnd base rates'!D$54) +($J38*'fnd base rates'!D$55) +($K38*'fnd base rates'!D$56) +($L38*'fnd base rates'!D$57) +($M38*'fnd base rates'!D$58) +($N38*'fnd base rates'!D$59) +($O38*VLOOKUP($S38+12,rate_basefnd,4))) *$R38 -> 5317.76 | W38: =(($C38*'fnd base rates'!E$48) +($D38*'fnd base rates'!E$49) +($E38*'fnd base rates'!E$50) +($F38*'fnd base rates'!E$51) +($G38*'fnd base rates'!E$52) +($H38*'fnd base rates'!E$53) +($I38*'fnd base rates'!E$54) +($J38*'fnd base rates'!E$55) +($K38*'fnd base rates'!E$56) +($L38*'fnd base rates'!E$57) +($M38*'fnd base rates'!E$58) +($N38*'fnd base rates'!E$59) +($O38*VLOOKUP($S38+12,rate_basefnd,5))) *$R38 -> 43789.345 | X38: =(($C38*'fnd base rates'!F$48) +($D38*'fnd base rates'!F$49) +($E38*'fnd base rates'!F$50) +($F38*'fnd base rates'!F$51) +($G38*'fnd base rates'!F$52) +($H38*'fnd base rates'!F$53) +($I38*'fnd base rates'!F$54) +($J38*'fnd base rates'!F$55) +($K38*'fnd base rates'!F$56) +($L38*'fnd base rates'!F$57) +($M38*'fnd base rates'!F$58) +($N38*'fnd base rates'!F$59) +($O38*VLOOKUP($S38+12,rate_basefnd,6))) *$R38 -> 6095.646 | Y38: =(($C38*'fnd base rates'!G$48) +($D38*'fnd base rates'!G$49) +($E38*'fnd base rates'!G$50) +($F38*'fnd base rates'!G$51) +($G38*'fnd base rates'!G$52) +($H38*'fnd base rates'!G$53) +($I38*'fnd base rates'!G$54) +($J38*'fnd base rates'!G$55) +($K38*'fnd base rates'!G$56) +($L38*'fnd base rates'!G$57) +($M38*'fnd base rates'!G$58) +($N38*'fnd base rates'!G$59) +($O38*VLOOKUP($S38+12,rate_basefnd,7))) *$R38 -> 1349.442 | Z38: =(($C38*'fnd base rates'!H$48) +($D38*'fnd base rates'!H$49) +($E38*'fnd base rates'!H$50) +($F38*'fnd base rates'!H$51) +($G38*'fnd base rates'!H$52) +($H38*'fnd base rates'!H$53) +($I38*'fnd base rates'!H$54) +($J38*'fnd base rates'!H$55) +($K38*'fnd base rates'!H$56) +($L38*'fnd base rates'!H$57) +($M38*'fnd base rates'!H$58) +($N38*'fnd base rates'!H$59) +($O38*VLOOKUP($S38+12,rate_basefnd,8))) -> 5752.676 | AA38: =(($C38*'fnd base rates'!I$48) +($D38*'fnd base rates'!I$49) +($E38*'fnd base rates'!I$50) +($F38*'fnd base rates'!I$51) +($G38*'fnd base rates'!I$52) +($H38*'fnd base rates'!I$53) +($I38*'fnd base rates'!I$54) +($J38*'fnd base rates'!I$55) +($K38*'fnd base rates'!I$56) +($L38*'fnd base rates'!I$57) +($M38*'fnd base rates'!I$58) +($N38*'fnd base rates'!I$59) +($O38*VLOOKUP($S38+12,rate_basefnd,9))) *$R38 -> 2960.64 | AB38: =(($C38*'fnd base rates'!J$48) +($D38*'fnd base rates'!J$49) +($E38*'fnd base rates'!J$50) +($F38*'fnd base rates'!J$51) +($G38*'fnd base rates'!J$52) +($H38*'fnd base rates'!J$53) +($I38*'fnd base rates'!J$54) +($J38*'fnd base rates'!J$55) +($K38*'fnd base rates'!J$56) +($L38*'fnd base rates'!J$57) +($M38*'fnd base rates'!J$58) +($N38*'fnd base rates'!J$59) +($O38*VLOOKUP($S38+12,rate_basefnd,10))) *$R38 -> 3988 | AC38: =(($C38*'fnd base rates'!K$48) +($D38*'fnd base rates'!K$49) +($E38*'fnd base rates'!K$50) +($F38*'fnd base rates'!K$51) +($G38*'fnd base rates'!K$52) +($H38*'fnd base rates'!K$53) +($I38*'fnd base rates'!K$54) +($J38*'fnd base rates'!K$55) +($K38*'fnd base rates'!K$56) +($L38*'fnd base rates'!K$57) +($M38*'fnd base rates'!K$58) +($N38*'fnd base rates'!K$59) +($O38*VLOOKUP($S38+12,rate_basefnd,11))) *$R38 -> 9469.981 | AD38: =(($C38*'fnd base rates'!L$48) +($D38*'fnd base rates'!L$49) +($E38*'fnd base rates'!L$50) +($F38*'fnd base rates'!L$51) +($G38*'fnd base rates'!L$52) +($H38*'fnd base rates'!L$53) +($I38*'fnd base rates'!L$54) +($J38*'fnd base rates'!L$55) +($K38*'fnd base rates'!L$56) +($L38*'fnd base rates'!L$57) +($M38*'fnd base rates'!L$58) +($N38*'fnd base rates'!L$59) +($O38*VLOOKUP($S38+12,rate_basefnd,12))) -> 8340.704315 | AE38: =(($C38*'fnd base rates'!M$48) +($D38*'fnd base rates'!M$49) +($E38*'fnd base rates'!M$50) +($F38*'fnd base rates'!M$51) +($G38*'fnd base rates'!M$52) +($H38*'fnd base rates'!M$53) +($I38*'fnd base rates'!M$54) +($J38*'fnd base rates'!M$55) +($K38*'fnd base rates'!M$56) +($L38*'fnd base rates'!M$57) +($M38*'fnd base rates'!M$58) +($N38*'fnd base rates'!M$59) +($O38*VLOOKUP($S38+12,rate_basefnd,13))) -> 0 | AF38: 90770.55931 | AH38: 413114091 | AI38: 413 | AJ38: 114 | AK38: 091 | AL38: 1 | AM38: 8 | AN38: 90770.55931 | AO38: 11346 | AP38: 0 | AQ38: 11346
A39: 413114114 | B39: FOUR RIVERS | C39: ='fnd enro'!C39 -> 0 | D39: ='fnd enro'!D39 -> 0 | E39: ='fnd enro'!E39 -> 0 | F39: ='fnd enro'!F39 -> 0 | G39: ='fnd enro'!G39 -> 22 | H39: ='fnd enro'!H39 -> 39 | I39: ='fnd enro'!I39 -> 2.325 | J39: ='fnd enro'!J39 -> 0 | K39: ='fnd enro'!K39 -> 0 | L39: ='fnd enro'!L39 -> 0 | M39: ='fnd enro'!M39 -> 1 | N39: ='fnd enro'!N39 -> 0 | O39: ='fnd enro'!O39 -> 20 | Q39: ='fnd enro'!R39 -> 62 | R39: 1 | S39: ='fnd enro'!Q39 -> 8 | U39: =(($C39*'fnd base rates'!C$48) +($D39*'fnd base rates'!C$49) +($E39*'fnd base rates'!C$50) +($F39*'fnd base rates'!C$51) +($G39*'fnd base rates'!C$52) +($H39*'fnd base rates'!C$53) +($I39*'fnd base rates'!C$54) +($J39*'fnd base rates'!C$55) +($K39*'fnd base rates'!C$56) +($L39*'fnd base rates'!C$57) +($M39*'fnd base rates'!C$58) +($N39*'fnd base rates'!C$59) +($O39*VLOOKUP($S39+12,rate_basefnd,3))) *$R39 -> 28724.32875 | V39: =(($C39*'fnd base rates'!D$48) +($D39*'fnd base rates'!D$49) +($E39*'fnd base rates'!D$50) +($F39*'fnd base rates'!D$51) +($G39*'fnd base rates'!D$52) +($H39*'fnd base rates'!D$53) +($I39*'fnd base rates'!D$54) +($J39*'fnd base rates'!D$55) +($K39*'fnd base rates'!D$56) +($L39*'fnd base rates'!D$57) +($M39*'fnd base rates'!D$58) +($N39*'fnd base rates'!D$59) +($O39*VLOOKUP($S39+12,rate_basefnd,4))) *$R39 -> 41212.64 | W39: =(($C39*'fnd base rates'!E$48) +($D39*'fnd base rates'!E$49) +($E39*'fnd base rates'!E$50) +($F39*'fnd base rates'!E$51) +($G39*'fnd base rates'!E$52) +($H39*'fnd base rates'!E$53) +($I39*'fnd base rates'!E$54) +($J39*'fnd base rates'!E$55) +($K39*'fnd base rates'!E$56) +($L39*'fnd base rates'!E$57) +($M39*'fnd base rates'!E$58) +($N39*'fnd base rates'!E$59) +($O39*VLOOKUP($S39+12,rate_basefnd,5))) *$R39 -> 301082.5413 | X39: =(($C39*'fnd base rates'!F$48) +($D39*'fnd base rates'!F$49) +($E39*'fnd base rates'!F$50) +($F39*'fnd base rates'!F$51) +($G39*'fnd base rates'!F$52) +($H39*'fnd base rates'!F$53) +($I39*'fnd base rates'!F$54) +($J39*'fnd base rates'!F$55) +($K39*'fnd base rates'!F$56) +($L39*'fnd base rates'!F$57) +($M39*'fnd base rates'!F$58) +($N39*'fnd base rates'!F$59) +($O39*VLOOKUP($S39+12,rate_basefnd,6))) *$R39 -> 49471.3565 | Y39: =(($C39*'fnd base rates'!G$48) +($D39*'fnd base rates'!G$49) +($E39*'fnd base rates'!G$50) +($F39*'fnd base rates'!G$51) +($G39*'fnd base rates'!G$52) +($H39*'fnd base rates'!G$53) +($I39*'fnd base rates'!G$54) +($J39*'fnd base rates'!G$55) +($K39*'fnd base rates'!G$56) +($L39*'fnd base rates'!G$57) +($M39*'fnd base rates'!G$58) +($N39*'fnd base rates'!G$59) +($O39*VLOOKUP($S39+12,rate_basefnd,7))) *$R39 -> 10336.6905 | Z39: =(($C39*'fnd base rates'!H$48) +($D39*'fnd base rates'!H$49) +($E39*'fnd base rates'!H$50) +($F39*'fnd base rates'!H$51) +($G39*'fnd base rates'!H$52) +($H39*'fnd base rates'!H$53) +($I39*'fnd base rates'!H$54) +($J39*'fnd base rates'!H$55) +($K39*'fnd base rates'!H$56) +($L39*'fnd base rates'!H$57) +($M39*'fnd base rates'!H$58) +($N39*'fnd base rates'!H$59) +($O39*VLOOKUP($S39+12,rate_basefnd,8))) -> 38495.139 | AA39: =(($C39*'fnd base rates'!I$48) +($D39*'fnd base rates'!I$49) +($E39*'fnd base rates'!I$50) +($F39*'fnd base rates'!I$51) +($G39*'fnd base rates'!I$52) +($H39*'fnd base rates'!I$53) +($I39*'fnd base rates'!I$54) +($J39*'fnd base rates'!I$55) +($K39*'fnd base rates'!I$56) +($L39*'fnd base rates'!I$57) +($M39*'fnd base rates'!I$58) +($N39*'fnd base rates'!I$59) +($O39*VLOOKUP($S39+12,rate_basefnd,9))) *$R39 -> 21223.41 | AB39: =(($C39*'fnd base rates'!J$48) +($D39*'fnd base rates'!J$49) +($E39*'fnd base rates'!J$50) +($F39*'fnd base rates'!J$51) +($G39*'fnd base rates'!J$52) +($H39*'fnd base rates'!J$53) +($I39*'fnd base rates'!J$54) +($J39*'fnd base rates'!J$55) +($K39*'fnd base rates'!J$56) +($L39*'fnd base rates'!J$57) +($M39*'fnd base rates'!J$58) +($N39*'fnd base rates'!J$59) +($O39*VLOOKUP($S39+12,rate_basefnd,10))) *$R39 -> 24329.81 | AC39: =(($C39*'fnd base rates'!K$48) +($D39*'fnd base rates'!K$49) +($E39*'fnd base rates'!K$50) +($F39*'fnd base rates'!K$51) +($G39*'fnd base rates'!K$52) +($H39*'fnd base rates'!K$53) +($I39*'fnd base rates'!K$54) +($J39*'fnd base rates'!K$55) +($K39*'fnd base rates'!K$56) +($L39*'fnd base rates'!K$57) +($M39*'fnd base rates'!K$58) +($N39*'fnd base rates'!K$59) +($O39*VLOOKUP($S39+12,rate_basefnd,11))) *$R39 -> 72538.00775 | AD39: =(($C39*'fnd base rates'!L$48) +($D39*'fnd base rates'!L$49) +($E39*'fnd base rates'!L$50) +($F39*'fnd base rates'!L$51) +($G39*'fnd base rates'!L$52) +($H39*'fnd base rates'!L$53) +($I39*'fnd base rates'!L$54) +($J39*'fnd base rates'!L$55) +($K39*'fnd base rates'!L$56) +($L39*'fnd base rates'!L$57) +($M39*'fnd base rates'!L$58) +($N39*'fnd base rates'!L$59) +($O39*VLOOKUP($S39+12,rate_basefnd,12))) -> 65030.03167 | AE39: =(($C39*'fnd base rates'!M$48) +($D39*'fnd base rates'!M$49) +($E39*'fnd base rates'!M$50) +($F39*'fnd base rates'!M$51) +($G39*'fnd base rates'!M$52) +($H39*'fnd base rates'!M$53) +($I39*'fnd base rates'!M$54) +($J39*'fnd base rates'!M$55) +($K39*'fnd base rates'!M$56) +($L39*'fnd base rates'!M$57) +($M39*'fnd base rates'!M$58) +($N39*'fnd base rates'!M$59) +($O39*VLOOKUP($S39+12,rate_basefnd,13))) -> 0 | AF39: 652443.9554 | AH39: 413114114 | AI39: 413 | AJ39: 114 | AK39: 114 | AL39: 1 | AM39: 62 | AN39: 652443.9554 | AO39: 10523 | AP39: 0 | AQ39: 10523
A40: 413114117 | B40: FOUR RIVERS | C40: ='fnd enro'!C40 -> 0 | D40: ='fnd enro'!D40 -> 0 | E40: ='fnd enro'!E40 -> 0 | F40: ='fnd enro'!F40 -> 0 | G40: ='fnd enro'!G40 -> 0 | H40: ='fnd enro'!H40 -> 1 | I40: ='fnd enro'!I40 -> 0.0375 | J40: ='fnd enro'!J40 -> 0 | K40: ='fnd enro'!K40 -> 0 | L40: ='fnd enro'!L40 -> 0 | M40: ='fnd enro'!M40 -> 0 | N40: ='fnd enro'!N40 -> 0 | O40: ='fnd enro'!O40 -> 1 | Q40: ='fnd enro'!R40 -> 1 | R40: 1 | S40: ='fnd enro'!Q40 -> 10 | U40: =(($C40*'fnd base rates'!C$48) +($D40*'fnd base rates'!C$49) +($E40*'fnd base rates'!C$50) +($F40*'fnd base rates'!C$51) +($G40*'fnd base rates'!C$52) +($H40*'fnd base rates'!C$53) +($I40*'fnd base rates'!C$54) +($J40*'fnd base rates'!C$55) +($K40*'fnd base rates'!C$56) +($L40*'fnd base rates'!C$57) +($M40*'fnd base rates'!C$58) +($N40*'fnd base rates'!C$59) +($O40*VLOOKUP($S40+12,rate_basefnd,3))) *$R40 -> 463.295625 | V40: =(($C40*'fnd base rates'!D$48) +($D40*'fnd base rates'!D$49) +($E40*'fnd base rates'!D$50) +($F40*'fnd base rates'!D$51) +($G40*'fnd base rates'!D$52) +($H40*'fnd base rates'!D$53) +($I40*'fnd base rates'!D$54) +($J40*'fnd base rates'!D$55) +($K40*'fnd base rates'!D$56) +($L40*'fnd base rates'!D$57) +($M40*'fnd base rates'!D$58) +($N40*'fnd base rates'!D$59) +($O40*VLOOKUP($S40+12,rate_basefnd,4))) *$R40 -> 664.72 | W40: =(($C40*'fnd base rates'!E$48) +($D40*'fnd base rates'!E$49) +($E40*'fnd base rates'!E$50) +($F40*'fnd base rates'!E$51) +($G40*'fnd base rates'!E$52) +($H40*'fnd base rates'!E$53) +($I40*'fnd base rates'!E$54) +($J40*'fnd base rates'!E$55) +($K40*'fnd base rates'!E$56) +($L40*'fnd base rates'!E$57) +($M40*'fnd base rates'!E$58) +($N40*'fnd base rates'!E$59) +($O40*VLOOKUP($S40+12,rate_basefnd,5))) *$R40 -> 7530.249375 | X40: =(($C40*'fnd base rates'!F$48) +($D40*'fnd base rates'!F$49) +($E40*'fnd base rates'!F$50) +($F40*'fnd base rates'!F$51) +($G40*'fnd base rates'!F$52) +($H40*'fnd base rates'!F$53) +($I40*'fnd base rates'!F$54) +($J40*'fnd base rates'!F$55) +($K40*'fnd base rates'!F$56) +($L40*'fnd base rates'!F$57) +($M40*'fnd base rates'!F$58) +($N40*'fnd base rates'!F$59) +($O40*VLOOKUP($S40+12,rate_basefnd,6))) *$R40 -> 761.95575 | Y40: =(($C40*'fnd base rates'!G$48) +($D40*'fnd base rates'!G$49) +($E40*'fnd base rates'!G$50) +($F40*'fnd base rates'!G$51) +($G40*'fnd base rates'!G$52) +($H40*'fnd base rates'!G$53) +($I40*'fnd base rates'!G$54) +($J40*'fnd base rates'!G$55) +($K40*'fnd base rates'!G$56) +($L40*'fnd base rates'!G$57) +($M40*'fnd base rates'!G$58) +($N40*'fnd base rates'!G$59) +($O40*VLOOKUP($S40+12,rate_basefnd,7))) *$R40 -> 213.94275 | Z40: =(($C40*'fnd base rates'!H$48) +($D40*'fnd base rates'!H$49) +($E40*'fnd base rates'!H$50) +($F40*'fnd base rates'!H$51) +($G40*'fnd base rates'!H$52) +($H40*'fnd base rates'!H$53) +($I40*'fnd base rates'!H$54) +($J40*'fnd base rates'!H$55) +($K40*'fnd base rates'!H$56) +($L40*'fnd base rates'!H$57) +($M40*'fnd base rates'!H$58) +($N40*'fnd base rates'!H$59) +($O40*VLOOKUP($S40+12,rate_basefnd,8))) -> 719.0845 | AA40: =(($C40*'fnd base rates'!I$48) +($D40*'fnd base rates'!I$49) +($E40*'fnd base rates'!I$50) +($F40*'fnd base rates'!I$51) +($G40*'fnd base rates'!I$52) +($H40*'fnd base rates'!I$53) +($I40*'fnd base rates'!I$54) +($J40*'fnd base rates'!I$55) +($K40*'fnd base rates'!I$56) +($L40*'fnd base rates'!I$57) +($M40*'fnd base rates'!I$58) +($N40*'fnd base rates'!I$59) +($O40*VLOOKUP($S40+12,rate_basefnd,9))) *$R40 -> 370.08 | AB40: =(($C40*'fnd base rates'!J$48) +($D40*'fnd base rates'!J$49) +($E40*'fnd base rates'!J$50) +($F40*'fnd base rates'!J$51) +($G40*'fnd base rates'!J$52) +($H40*'fnd base rates'!J$53) +($I40*'fnd base rates'!J$54) +($J40*'fnd base rates'!J$55) +($K40*'fnd base rates'!J$56) +($L40*'fnd base rates'!J$57) +($M40*'fnd base rates'!J$58) +($N40*'fnd base rates'!J$59) +($O40*VLOOKUP($S40+12,rate_basefnd,10))) *$R40 -> 498.5 | AC40: =(($C40*'fnd base rates'!K$48) +($D40*'fnd base rates'!K$49) +($E40*'fnd base rates'!K$50) +($F40*'fnd base rates'!K$51) +($G40*'fnd base rates'!K$52) +($H40*'fnd base rates'!K$53) +($I40*'fnd base rates'!K$54) +($J40*'fnd base rates'!K$55) +($K40*'fnd base rates'!K$56) +($L40*'fnd base rates'!K$57) +($M40*'fnd base rates'!K$58) +($N40*'fnd base rates'!K$59) +($O40*VLOOKUP($S40+12,rate_basefnd,11))) *$R40 -> 1501.375125 | AD40: =(($C40*'fnd base rates'!L$48) +($D40*'fnd base rates'!L$49) +($E40*'fnd base rates'!L$50) +($F40*'fnd base rates'!L$51) +($G40*'fnd base rates'!L$52) +($H40*'fnd base rates'!L$53) +($I40*'fnd base rates'!L$54) +($J40*'fnd base rates'!L$55) +($K40*'fnd base rates'!L$56) +($L40*'fnd base rates'!L$57) +($M40*'fnd base rates'!L$58) +($N40*'fnd base rates'!L$59) +($O40*VLOOKUP($S40+12,rate_basefnd,12))) -> 1251.358039 | AE40: =(($C40*'fnd base rates'!M$48) +($D40*'fnd base rates'!M$49) +($E40*'fnd base rates'!M$50) +($F40*'fnd base rates'!M$51) +($G40*'fnd base rates'!M$52) +($H40*'fnd base rates'!M$53) +($I40*'fnd base rates'!M$54) +($J40*'fnd base rates'!M$55) +($K40*'fnd base rates'!M$56) +($L40*'fnd base rates'!M$57) +($M40*'fnd base rates'!M$58) +($N40*'fnd base rates'!M$59) +($O40*VLOOKUP($S40+12,rate_basefnd,13))) -> 0 | AF40: 13974.56116 | AH40: 413114117 | AI40: 413 | AJ40: 114 | AK40: 117 | AL40: 1 | AM40: 1 | AN40: 13974.56116 | AO40: 13975 | AP40: 0 | AQ40: 13975
A41: 413114210 | B41: FOUR RIVERS | C41: ='fnd enro'!C41 -> 0 | D41: ='fnd enro'!D41 -> 0 | E41: ='fnd enro'!E41 -> 0 | F41: ='fnd enro'!F41 -> 0 | G41: ='fnd enro'!G41 -> 0 | H41: ='fnd enro'!H41 -> 1 | I41: ='fnd enro'!I41 -> 0.0375 | J41: ='fnd enro'!J41 -> 0 | K41: ='fnd enro'!K41 -> 0 | L41: ='fnd enro'!L41 -> 0 | M41: ='fnd enro'!M41 -> 0 | N41: ='fnd enro'!N41 -> 0 | O41: ='fnd enro'!O41 -> 0 | Q41: ='fnd enro'!R41 -> 1 | R41: 1 | S41: ='fnd enro'!Q41 -> 1 | U41: =(($C41*'fnd base rates'!C$48) +($D41*'fnd base rates'!C$49) +($E41*'fnd base rates'!C$50) +($F41*'fnd base rates'!C$51) +($G41*'fnd base rates'!C$52) +($H41*'fnd base rates'!C$53) +($I41*'fnd base rates'!C$54) +($J41*'fnd base rates'!C$55) +($K41*'fnd base rates'!C$56) +($L41*'fnd base rates'!C$57) +($M41*'fnd base rates'!C$58) +($N41*'fnd base rates'!C$59) +($O41*VLOOKUP($S41+12,rate_basefnd,3))) *$R41 -> 463.295625 | V41: =(($C41*'fnd base rates'!D$48) +($D41*'fnd base rates'!D$49) +($E41*'fnd base rates'!D$50) +($F41*'fnd base rates'!D$51) +($G41*'fnd base rates'!D$52) +($H41*'fnd base rates'!D$53) +($I41*'fnd base rates'!D$54) +($J41*'fnd base rates'!D$55) +($K41*'fnd base rates'!D$56) +($L41*'fnd base rates'!D$57) +($M41*'fnd base rates'!D$58) +($N41*'fnd base rates'!D$59) +($O41*VLOOKUP($S41+12,rate_basefnd,4))) *$R41 -> 664.72 | W41: =(($C41*'fnd base rates'!E$48) +($D41*'fnd base rates'!E$49) +($E41*'fnd base rates'!E$50) +($F41*'fnd base rates'!E$51) +($G41*'fnd base rates'!E$52) +($H41*'fnd base rates'!E$53) +($I41*'fnd base rates'!E$54) +($J41*'fnd base rates'!E$55) +($K41*'fnd base rates'!E$56) +($L41*'fnd base rates'!E$57) +($M41*'fnd base rates'!E$58) +($N41*'fnd base rates'!E$59) +($O41*VLOOKUP($S41+12,rate_basefnd,5))) *$R41 -> 4258.709375 | X41: =(($C41*'fnd base rates'!F$48) +($D41*'fnd base rates'!F$49) +($E41*'fnd base rates'!F$50) +($F41*'fnd base rates'!F$51) +($G41*'fnd base rates'!F$52) +($H41*'fnd base rates'!F$53) +($I41*'fnd base rates'!F$54) +($J41*'fnd base rates'!F$55) +($K41*'fnd base rates'!F$56) +($L41*'fnd base rates'!F$57) +($M41*'fnd base rates'!F$58) +($N41*'fnd base rates'!F$59) +($O41*VLOOKUP($S41+12,rate_basefnd,6))) *$R41 -> 761.95575 | Y41: =(($C41*'fnd base rates'!G$48) +($D41*'fnd base rates'!G$49) +($E41*'fnd base rates'!G$50) +($F41*'fnd base rates'!G$51) +($G41*'fnd base rates'!G$52) +($H41*'fnd base rates'!G$53) +($I41*'fnd base rates'!G$54) +($J41*'fnd base rates'!G$55) +($K41*'fnd base rates'!G$56) +($L41*'fnd base rates'!G$57) +($M41*'fnd base rates'!G$58) +($N41*'fnd base rates'!G$59) +($O41*VLOOKUP($S41+12,rate_basefnd,7))) *$R41 -> 141.94275 | Z41: =(($C41*'fnd base rates'!H$48) +($D41*'fnd base rates'!H$49) +($E41*'fnd base rates'!H$50) +($F41*'fnd base rates'!H$51) +($G41*'fnd base rates'!H$52) +($H41*'fnd base rates'!H$53) +($I41*'fnd base rates'!H$54) +($J41*'fnd base rates'!H$55) +($K41*'fnd base rates'!H$56) +($L41*'fnd base rates'!H$57) +($M41*'fnd base rates'!H$58) +($N41*'fnd base rates'!H$59) +($O41*VLOOKUP($S41+12,rate_basefnd,8))) -> 719.0845 | AA41: =(($C41*'fnd base rates'!I$48) +($D41*'fnd base rates'!I$49) +($E41*'fnd base rates'!I$50) +($F41*'fnd base rates'!I$51) +($G41*'fnd base rates'!I$52) +($H41*'fnd base rates'!I$53) +($I41*'fnd base rates'!I$54) +($J41*'fnd base rates'!I$55) +($K41*'fnd base rates'!I$56) +($L41*'fnd base rates'!I$57) +($M41*'fnd base rates'!I$58) +($N41*'fnd base rates'!I$59) +($O41*VLOOKUP($S41+12,rate_basefnd,9))) *$R41 -> 370.08 | AB41: =(($C41*'fnd base rates'!J$48) +($D41*'fnd base rates'!J$49) +($E41*'fnd base rates'!J$50) +($F41*'fnd base rates'!J$51) +($G41*'fnd base rates'!J$52) +($H41*'fnd base rates'!J$53) +($I41*'fnd base rates'!J$54) +($J41*'fnd base rates'!J$55) +($K41*'fnd base rates'!J$56) +($L41*'fnd base rates'!J$57) +($M41*'fnd base rates'!J$58) +($N41*'fnd base rates'!J$59) +($O41*VLOOKUP($S41+12,rate_basefnd,10))) *$R41 -> 498.5 | AC41: =(($C41*'fnd base rates'!K$48) +($D41*'fnd base rates'!K$49) +($E41*'fnd base rates'!K$50) +($F41*'fnd base rates'!K$51) +($G41*'fnd base rates'!K$52) +($H41*'fnd base rates'!K$53) +($I41*'fnd base rates'!K$54) +($J41*'fnd base rates'!K$55) +($K41*'fnd base rates'!K$56) +($L41*'fnd base rates'!K$57) +($M41*'fnd base rates'!K$58) +($N41*'fnd base rates'!K$59) +($O41*VLOOKUP($S41+12,rate_basefnd,11))) *$R41 -> 996.105125 | AD41: =(($C41*'fnd base rates'!L$48) +($D41*'fnd base rates'!L$49) +($E41*'fnd base rates'!L$50) +($F41*'fnd base rates'!L$51) +($G41*'fnd base rates'!L$52) +($H41*'fnd base rates'!L$53) +($I41*'fnd base rates'!L$54) +($J41*'fnd base rates'!L$55) +($K41*'fnd base rates'!L$56) +($L41*'fnd base rates'!L$57) +($M41*'fnd base rates'!L$58) +($N41*'fnd base rates'!L$59) +($O41*VLOOKUP($S41+12,rate_basefnd,12))) -> 919.2580394 | AE41: =(($C41*'fnd base rates'!M$48) +($D41*'fnd base rates'!M$49) +($E41*'fnd base rates'!M$50) +($F41*'fnd base rates'!M$51) +($G41*'fnd base rates'!M$52) +($H41*'fnd base rates'!M$53) +($I41*'fnd base rates'!M$54) +($J41*'fnd base rates'!M$55) +($K41*'fnd base rates'!M$56) +($L41*'fnd base rates'!M$57) +($M41*'fnd base rates'!M$58) +($N41*'fnd base rates'!M$59) +($O41*VLOOKUP($S41+12,rate_basefnd,13))) -> 0 | AF41: 9793.651164 | AH41: 413114210 | AI41: 413 | AJ41: 114 | AK41: 210 | AL41: 1 | AM41: 1 | AN41: 9793.651164 | AO41: 9794 | AP41: 0 | AQ41: 9794
A42: 413114253 | B42: FOUR RIVERS | C42: ='fnd enro'!C42 -> 0 | D42: ='fnd enro'!D42 -> 0 | E42: ='fnd enro'!E42 -> 0 | F42: ='fnd enro'!F42 -> 0 | G42: ='fnd enro'!G42 -> 2 | H42: ='fnd enro'!H42 -> 1 | I42: ='fnd enro'!I42 -> 0.1125 | J42: ='fnd enro'!J42 -> 0 | K42: ='fnd enro'!K42 -> 0 | L42: ='fnd enro'!L42 -> 0 | M42: ='fnd enro'!M42 -> 0 | N42: ='fnd enro'!N42 -> 0 | O42: ='fnd enro'!O42 -> 1 | Q42: ='fnd enro'!R42 -> 3 | R42: 1 | S42: ='fnd enro'!Q42 -> 8 | U42: =(($C42*'fnd base rates'!C$48) +($D42*'fnd base rates'!C$49) +($E42*'fnd base rates'!C$50) +($F42*'fnd base rates'!C$51) +($G42*'fnd base rates'!C$52) +($H42*'fnd base rates'!C$53) +($I42*'fnd base rates'!C$54) +($J42*'fnd base rates'!C$55) +($K42*'fnd base rates'!C$56) +($L42*'fnd base rates'!C$57) +($M42*'fnd base rates'!C$58) +($N42*'fnd base rates'!C$59) +($O42*VLOOKUP($S42+12,rate_basefnd,3))) *$R42 -> 1389.886875 | V42: =(($C42*'fnd base rates'!D$48) +($D42*'fnd base rates'!D$49) +($E42*'fnd base rates'!D$50) +($F42*'fnd base rates'!D$51) +($G42*'fnd base rates'!D$52) +($H42*'fnd base rates'!D$53) +($I42*'fnd base rates'!D$54) +($J42*'fnd base rates'!D$55) +($K42*'fnd base rates'!D$56) +($L42*'fnd base rates'!D$57) +($M42*'fnd base rates'!D$58) +($N42*'fnd base rates'!D$59) +($O42*VLOOKUP($S42+12,rate_basefnd,4))) *$R42 -> 1994.16 | W42: =(($C42*'fnd base rates'!E$48) +($D42*'fnd base rates'!E$49) +($E42*'fnd base rates'!E$50) +($F42*'fnd base rates'!E$51) +($G42*'fnd base rates'!E$52) +($H42*'fnd base rates'!E$53) +($I42*'fnd base rates'!E$54) +($J42*'fnd base rates'!E$55) +($K42*'fnd base rates'!E$56) +($L42*'fnd base rates'!E$57) +($M42*'fnd base rates'!E$58) +($N42*'fnd base rates'!E$59) +($O42*VLOOKUP($S42+12,rate_basefnd,5))) *$R42 -> 13459.98812 | X42: =(($C42*'fnd base rates'!F$48) +($D42*'fnd base rates'!F$49) +($E42*'fnd base rates'!F$50) +($F42*'fnd base rates'!F$51) +($G42*'fnd base rates'!F$52) +($H42*'fnd base rates'!F$53) +($I42*'fnd base rates'!F$54) +($J42*'fnd base rates'!F$55) +($K42*'fnd base rates'!F$56) +($L42*'fnd base rates'!F$57) +($M42*'fnd base rates'!F$58) +($N42*'fnd base rates'!F$59) +($O42*VLOOKUP($S42+12,rate_basefnd,6))) *$R42 -> 2474.36725 | Y42: =(($C42*'fnd base rates'!G$48) +($D42*'fnd base rates'!G$49) +($E42*'fnd base rates'!G$50) +($F42*'fnd base rates'!G$51) +($G42*'fnd base rates'!G$52) +($H42*'fnd base rates'!G$53) +($I42*'fnd base rates'!G$54) +($J42*'fnd base rates'!G$55) +($K42*'fnd base rates'!G$56) +($L42*'fnd base rates'!G$57) +($M42*'fnd base rates'!G$58) +($N42*'fnd base rates'!G$59) +($O42*VLOOKUP($S42+12,rate_basefnd,7))) *$R42 -> 504.39825 | Z42: =(($C42*'fnd base rates'!H$48) +($D42*'fnd base rates'!H$49) +($E42*'fnd base rates'!H$50) +($F42*'fnd base rates'!H$51) +($G42*'fnd base rates'!H$52) +($H42*'fnd base rates'!H$53) +($I42*'fnd base rates'!H$54) +($J42*'fnd base rates'!H$55) +($K42*'fnd base rates'!H$56) +($L42*'fnd base rates'!H$57) +($M42*'fnd base rates'!H$58) +($N42*'fnd base rates'!H$59) +($O42*VLOOKUP($S42+12,rate_basefnd,8))) -> 1627.8535 | AA42: =(($C42*'fnd base rates'!I$48) +($D42*'fnd base rates'!I$49) +($E42*'fnd base rates'!I$50) +($F42*'fnd base rates'!I$51) +($G42*'fnd base rates'!I$52) +($H42*'fnd base rates'!I$53) +($I42*'fnd base rates'!I$54) +($J42*'fnd base rates'!I$55) +($K42*'fnd base rates'!I$56) +($L42*'fnd base rates'!I$57) +($M42*'fnd base rates'!I$58) +($N42*'fnd base rates'!I$59) +($O42*VLOOKUP($S42+12,rate_basefnd,9))) *$R42 -> 960.54 | AB42: =(($C42*'fnd base rates'!J$48) +($D42*'fnd base rates'!J$49) +($E42*'fnd base rates'!J$50) +($F42*'fnd base rates'!J$51) +($G42*'fnd base rates'!J$52) +($H42*'fnd base rates'!J$53) +($I42*'fnd base rates'!J$54) +($J42*'fnd base rates'!J$55) +($K42*'fnd base rates'!J$56) +($L42*'fnd base rates'!J$57) +($M42*'fnd base rates'!J$58) +($N42*'fnd base rates'!J$59) +($O42*VLOOKUP($S42+12,rate_basefnd,10))) *$R42 -> 930.86 | AC42: =(($C42*'fnd base rates'!K$48) +($D42*'fnd base rates'!K$49) +($E42*'fnd base rates'!K$50) +($F42*'fnd base rates'!K$51) +($G42*'fnd base rates'!K$52) +($H42*'fnd base rates'!K$53) +($I42*'fnd base rates'!K$54) +($J42*'fnd base rates'!K$55) +($K42*'fnd base rates'!K$56) +($L42*'fnd base rates'!K$57) +($M42*'fnd base rates'!K$58) +($N42*'fnd base rates'!K$59) +($O42*VLOOKUP($S42+12,rate_basefnd,11))) *$R42 -> 3539.585375 | AD42: =(($C42*'fnd base rates'!L$48) +($D42*'fnd base rates'!L$49) +($E42*'fnd base rates'!L$50) +($F42*'fnd base rates'!L$51) +($G42*'fnd base rates'!L$52) +($H42*'fnd base rates'!L$53) +($I42*'fnd base rates'!L$54) +($J42*'fnd base rates'!L$55) +($K42*'fnd base rates'!L$56) +($L42*'fnd base rates'!L$57) +($M42*'fnd base rates'!L$58) +($N42*'fnd base rates'!L$59) +($O42*VLOOKUP($S42+12,rate_basefnd,12))) -> 3200.967566 | AE42: =(($C42*'fnd base rates'!M$48) +($D42*'fnd base rates'!M$49) +($E42*'fnd base rates'!M$50) +($F42*'fnd base rates'!M$51) +($G42*'fnd base rates'!M$52) +($H42*'fnd base rates'!M$53) +($I42*'fnd base rates'!M$54) +($J42*'fnd base rates'!M$55) +($K42*'fnd base rates'!M$56) +($L42*'fnd base rates'!M$57) +($M42*'fnd base rates'!M$58) +($N42*'fnd base rates'!M$59) +($O42*VLOOKUP($S42+12,rate_basefnd,13))) -> 0 | AF42: 30082.60694 | AH42: 413114253 | AI42: 413 | AJ42: 114 | AK42: 253 | AL42: 1 | AM42: 3 | AN42: 30082.60694 | AO42: 10028 | AP42: 0 | AQ42: 10028
A43: 413114615 | B43: FOUR RIVERS | C43: ='fnd enro'!C43 -> 0 | D43: ='fnd enro'!D43 -> 0 | E43: ='fnd enro'!E43 -> 0 | F43: ='fnd enro'!F43 -> 0 | G43: ='fnd enro'!G43 -> 0 | H43: ='fnd enro'!H43 -> 1 | I43: ='fnd enro'!I43 -> 0.0375 | J43: ='fnd enro'!J43 -> 0 | K43: ='fnd enro'!K43 -> 0 | L43: ='fnd enro'!L43 -> 0 | M43: ='fnd enro'!M43 -> 0 | N43: ='fnd enro'!N43 -> 0 | O43: ='fnd enro'!O43 -> 0 | Q43: ='fnd enro'!R43 -> 1 | R43: 1 | S43: ='fnd enro'!Q43 -> 1 | U43: =(($C43*'fnd base rates'!C$48) +($D43*'fnd base rates'!C$49) +($E43*'fnd base rates'!C$50) +($F43*'fnd base rates'!C$51) +($G43*'fnd base rates'!C$52) +($H43*'fnd base rates'!C$53) +($I43*'fnd base rates'!C$54) +($J43*'fnd base rates'!C$55) +($K43*'fnd base rates'!C$56) +($L43*'fnd base rates'!C$57) +($M43*'fnd base rates'!C$58) +($N43*'fnd base rates'!C$59) +($O43*VLOOKUP($S43+12,rate_basefnd,3))) *$R43 -> 463.295625 | V43: =(($C43*'fnd base rates'!D$48) +($D43*'fnd base rates'!D$49) +($E43*'fnd base rates'!D$50) +($F43*'fnd base rates'!D$51) +($G43*'fnd base rates'!D$52) +($H43*'fnd base rates'!D$53) +($I43*'fnd base rates'!D$54) +($J43*'fnd base rates'!D$55) +($K43*'fnd base rates'!D$56) +($L43*'fnd base rates'!D$57) +($M43*'fnd base rates'!D$58) +($N43*'fnd base rates'!D$59) +($O43*VLOOKUP($S43+12,rate_basefnd,4))) *$R43 -> 664.72 | W43: =(($C43*'fnd base rates'!E$48) +($D43*'fnd base rates'!E$49) +($E43*'fnd base rates'!E$50) +($F43*'fnd base rates'!E$51) +($G43*'fnd base rates'!E$52) +($H43*'fnd base rates'!E$53) +($I43*'fnd base rates'!E$54) +($J43*'fnd base rates'!E$55) +($K43*'fnd base rates'!E$56) +($L43*'fnd base rates'!E$57) +($M43*'fnd base rates'!E$58) +($N43*'fnd base rates'!E$59) +($O43*VLOOKUP($S43+12,rate_basefnd,5))) *$R43 -> 4258.709375 | X43: =(($C43*'fnd base rates'!F$48) +($D43*'fnd base rates'!F$49) +($E43*'fnd base rates'!F$50) +($F43*'fnd base rates'!F$51) +($G43*'fnd base rates'!F$52) +($H43*'fnd base rates'!F$53) +($I43*'fnd base rates'!F$54) +($J43*'fnd base rates'!F$55) +($K43*'fnd base rates'!F$56) +($L43*'fnd base rates'!F$57) +($M43*'fnd base rates'!F$58) +($N43*'fnd base rates'!F$59) +($O43*VLOOKUP($S43+12,rate_basefnd,6))) *$R43 -> 761.95575 | Y43: =(($C43*'fnd base rates'!G$48) +($D43*'fnd base rates'!G$49) +($E43*'fnd base rates'!G$50) +($F43*'fnd base rates'!G$51) +($G43*'fnd base rates'!G$52) +($H43*'fnd base rates'!G$53) +($I43*'fnd base rates'!G$54) +($J43*'fnd base rates'!G$55) +($K43*'fnd base rates'!G$56) +($L43*'fnd base rates'!G$57) +($M43*'fnd base rates'!G$58) +($N43*'fnd base rates'!G$59) +($O43*VLOOKUP($S43+12,rate_basefnd,7))) *$R43 -> 141.94275 | Z43: =(($C43*'fnd base rates'!H$48) +($D43*'fnd base rates'!H$49) +($E43*'fnd base rates'!H$50) +($F43*'fnd base rates'!H$51) +($G43*'fnd base rates'!H$52) +($H43*'fnd base rates'!H$53) +($I43*'fnd base rates'!H$54) +($J43*'fnd base rates'!H$55) +($K43*'fnd base rates'!H$56) +($L43*'fnd base rates'!H$57) +($M43*'fnd base rates'!H$58) +($N43*'fnd base rates'!H$59) +($O43*VLOOKUP($S43+12,rate_basefnd,8))) -> 719.0845 | AA43: =(($C43*'fnd base rates'!I$48) +($D43*'fnd base rates'!I$49) +($E43*'fnd base rates'!I$50) +($F43*'fnd base rates'!I$51) +($G43*'fnd base rates'!I$52) +($H43*'fnd base rates'!I$53) +($I43*'fnd base rates'!I$54) +($J43*'fnd base rates'!I$55) +($K43*'fnd base rates'!I$56) +($L43*'fnd base rates'!I$57) +($M43*'fnd base rates'!I$58) +($N43*'fnd base rates'!I$59) +($O43*VLOOKUP($S43+12,rate_basefnd,9))) *$R43 -> 370.08 | AB43: =(($C43*'fnd base rates'!J$48) +($D43*'fnd base rates'!J$49) +($E43*'fnd base rates'!J$50) +($F43*'fnd base rates'!J$51) +($G43*'fnd base rates'!J$52) +($H43*'fnd base rates'!J$53) +($I43*'fnd base rates'!J$54) +($J43*'fnd base rates'!J$55) +($K43*'fnd base rates'!J$56) +($L43*'fnd base rates'!J$57) +($M43*'fnd base rates'!J$58) +($N43*'fnd base rates'!J$59) +($O43*VLOOKUP($S43+12,rate_basefnd,10))) *$R43 -> 498.5 | AC43: =(($C43*'fnd base rates'!K$48) +($D43*'fnd base rates'!K$49) +($E43*'fnd base rates'!K$50) +($F43*'fnd base rates'!K$51) +($G43*'fnd base rates'!K$52) +($H43*'fnd base rates'!K$53) +($I43*'fnd base rates'!K$54) +($J43*'fnd base rates'!K$55) +($K43*'fnd base rates'!K$56) +($L43*'fnd base rates'!K$57) +($M43*'fnd base rates'!K$58) +($N43*'fnd base rates'!K$59) +($O43*VLOOKUP($S43+12,rate_basefnd,11))) *$R43 -> 996.105125 | AD43: =(($C43*'fnd base rates'!L$48) +($D43*'fnd base rates'!L$49) +($E43*'fnd base rates'!L$50) +($F43*'fnd base rates'!L$51) +($G43*'fnd base rates'!L$52) +($H43*'fnd base rates'!L$53) +($I43*'fnd base rates'!L$54) +($J43*'fnd base rates'!L$55) +($K43*'fnd base rates'!L$56) +($L43*'fnd base rates'!L$57) +($M43*'fnd base rates'!L$58) +($N43*'fnd base rates'!L$59) +($O43*VLOOKUP($S43+12,rate_basefnd,12))) -> 919.2580394 | AE43: =(($C43*'fnd base rates'!M$48) +($D43*'fnd base rates'!M$49) +($E43*'fnd base rates'!M$50) +($F43*'fnd base rates'!M$51) +($G43*'fnd base rates'!M$52) +($H43*'fnd base rates'!M$53) +($I43*'fnd base rates'!M$54) +($J43*'fnd base rates'!M$55) +($K43*'fnd base rates'!M$56) +($L43*'fnd base rates'!M$57) +($M43*'fnd base rates'!M$58) +($N43*'fnd base rates'!M$59) +($O43*VLOOKUP($S43+12,rate_basefnd,13))) -> 0 | AF43: 9793.651164 | AH43: 413114615 | AI43: 413 | AJ43: 114 | AK43: 615 | AL43: 1 | AM43: 1 | AN43: 9793.651164 | AO43: 9794 | AP43: 0 | AQ43: 9794
A44: 413114670 | B44: FOUR RIVERS | C44: ='fnd enro'!C44 -> 0 | D44: ='fnd enro'!D44 -> 0 | E44: ='fnd enro'!E44 -> 0 | F44: ='fnd enro'!F44 -> 0 | G44: ='fnd enro'!G44 -> 12 | H44: ='fnd enro'!H44 -> 10 | I44: ='fnd enro'!I44 -> 0.825 | J44: ='fnd enro'!J44 -> 0 | K44: ='fnd enro'!K44 -> 0 | L44: ='fnd enro'!L44 -> 0 | M44: ='fnd enro'!M44 -> 0 | N44: ='fnd enro'!N44 -> 0 | O44: ='fnd enro'!O44 -> 2 | Q44: ='fnd enro'!R44 -> 22 | R44: 1 | S44: ='fnd enro'!Q44 -> 2 | U44: =(($C44*'fnd base rates'!C$48) +($D44*'fnd base rates'!C$49) +($E44*'fnd base rates'!C$50) +($F44*'fnd base rates'!C$51) +($G44*'fnd base rates'!C$52) +($H44*'fnd base rates'!C$53) +($I44*'fnd base rates'!C$54) +($J44*'fnd base rates'!C$55) +($K44*'fnd base rates'!C$56) +($L44*'fnd base rates'!C$57) +($M44*'fnd base rates'!C$58) +($N44*'fnd base rates'!C$59) +($O44*VLOOKUP($S44+12,rate_basefnd,3))) *$R44 -> 10192.50375 | V44: =(($C44*'fnd base rates'!D$48) +($D44*'fnd base rates'!D$49) +($E44*'fnd base rates'!D$50) +($F44*'fnd base rates'!D$51) +($G44*'fnd base rates'!D$52) +($H44*'fnd base rates'!D$53) +($I44*'fnd base rates'!D$54) +($J44*'fnd base rates'!D$55) +($K44*'fnd base rates'!D$56) +($L44*'fnd base rates'!D$57) +($M44*'fnd base rates'!D$58) +($N44*'fnd base rates'!D$59) +($O44*VLOOKUP($S44+12,rate_basefnd,4))) *$R44 -> 14623.84 | W44: =(($C44*'fnd base rates'!E$48) +($D44*'fnd base rates'!E$49) +($E44*'fnd base rates'!E$50) +($F44*'fnd base rates'!E$51) +($G44*'fnd base rates'!E$52) +($H44*'fnd base rates'!E$53) +($I44*'fnd base rates'!E$54) +($J44*'fnd base rates'!E$55) +($K44*'fnd base rates'!E$56) +($L44*'fnd base rates'!E$57) +($M44*'fnd base rates'!E$58) +($N44*'fnd base rates'!E$59) +($O44*VLOOKUP($S44+12,rate_basefnd,5))) *$R44 -> 84582.04625 | X44: =(($C44*'fnd base rates'!F$48) +($D44*'fnd base rates'!F$49) +($E44*'fnd base rates'!F$50) +($F44*'fnd base rates'!F$51) +($G44*'fnd base rates'!F$52) +($H44*'fnd base rates'!F$53) +($I44*'fnd base rates'!F$54) +($J44*'fnd base rates'!F$55) +($K44*'fnd base rates'!F$56) +($L44*'fnd base rates'!F$57) +($M44*'fnd base rates'!F$58) +($N44*'fnd base rates'!F$59) +($O44*VLOOKUP($S44+12,rate_basefnd,6))) *$R44 -> 17894.0265 | Y44: =(($C44*'fnd base rates'!G$48) +($D44*'fnd base rates'!G$49) +($E44*'fnd base rates'!G$50) +($F44*'fnd base rates'!G$51) +($G44*'fnd base rates'!G$52) +($H44*'fnd base rates'!G$53) +($I44*'fnd base rates'!G$54) +($J44*'fnd base rates'!G$55) +($K44*'fnd base rates'!G$56) +($L44*'fnd base rates'!G$57) +($M44*'fnd base rates'!G$58) +($N44*'fnd base rates'!G$59) +($O44*VLOOKUP($S44+12,rate_basefnd,7))) *$R44 -> 3303.3605 | Z44: =(($C44*'fnd base rates'!H$48) +($D44*'fnd base rates'!H$49) +($E44*'fnd base rates'!H$50) +($F44*'fnd base rates'!H$51) +($G44*'fnd base rates'!H$52) +($H44*'fnd base rates'!H$53) +($I44*'fnd base rates'!H$54) +($J44*'fnd base rates'!H$55) +($K44*'fnd base rates'!H$56) +($L44*'fnd base rates'!H$57) +($M44*'fnd base rates'!H$58) +($N44*'fnd base rates'!H$59) +($O44*VLOOKUP($S44+12,rate_basefnd,8))) -> 12643.459 | AA44: =(($C44*'fnd base rates'!I$48) +($D44*'fnd base rates'!I$49) +($E44*'fnd base rates'!I$50) +($F44*'fnd base rates'!I$51) +($G44*'fnd base rates'!I$52) +($H44*'fnd base rates'!I$53) +($I44*'fnd base rates'!I$54) +($J44*'fnd base rates'!I$55) +($K44*'fnd base rates'!I$56) +($L44*'fnd base rates'!I$57) +($M44*'fnd base rates'!I$58) +($N44*'fnd base rates'!I$59) +($O44*VLOOKUP($S44+12,rate_basefnd,9))) *$R44 -> 7243.56 | AB44: =(($C44*'fnd base rates'!J$48) +($D44*'fnd base rates'!J$49) +($E44*'fnd base rates'!J$50) +($F44*'fnd base rates'!J$51) +($G44*'fnd base rates'!J$52) +($H44*'fnd base rates'!J$53) +($I44*'fnd base rates'!J$54) +($J44*'fnd base rates'!J$55) +($K44*'fnd base rates'!J$56) +($L44*'fnd base rates'!J$57) +($M44*'fnd base rates'!J$58) +($N44*'fnd base rates'!J$59) +($O44*VLOOKUP($S44+12,rate_basefnd,10))) *$R44 -> 7579.16 | AC44: =(($C44*'fnd base rates'!K$48) +($D44*'fnd base rates'!K$49) +($E44*'fnd base rates'!K$50) +($F44*'fnd base rates'!K$51) +($G44*'fnd base rates'!K$52) +($H44*'fnd base rates'!K$53) +($I44*'fnd base rates'!K$54) +($J44*'fnd base rates'!K$55) +($K44*'fnd base rates'!K$56) +($L44*'fnd base rates'!K$57) +($M44*'fnd base rates'!K$58) +($N44*'fnd base rates'!K$59) +($O44*VLOOKUP($S44+12,rate_basefnd,11))) *$R44 -> 23181.33275 | AD44: =(($C44*'fnd base rates'!L$48) +($D44*'fnd base rates'!L$49) +($E44*'fnd base rates'!L$50) +($F44*'fnd base rates'!L$51) +($G44*'fnd base rates'!L$52) +($H44*'fnd base rates'!L$53) +($I44*'fnd base rates'!L$54) +($J44*'fnd base rates'!L$55) +($K44*'fnd base rates'!L$56) +($L44*'fnd base rates'!L$57) +($M44*'fnd base rates'!L$58) +($N44*'fnd base rates'!L$59) +($O44*VLOOKUP($S44+12,rate_basefnd,12))) -> 21541.59755 | AE44: =(($C44*'fnd base rates'!M$48) +($D44*'fnd base rates'!M$49) +($E44*'fnd base rates'!M$50) +($F44*'fnd base rates'!M$51) +($G44*'fnd base rates'!M$52) +($H44*'fnd base rates'!M$53) +($I44*'fnd base rates'!M$54) +($J44*'fnd base rates'!M$55) +($K44*'fnd base rates'!M$56) +($L44*'fnd base rates'!M$57) +($M44*'fnd base rates'!M$58) +($N44*'fnd base rates'!M$59) +($O44*VLOOKUP($S44+12,rate_basefnd,13))) -> 0 | AF44: 202784.8863 | AH44: 413114670 | AI44: 413 | AJ44: 114 | AK44: 670 | AL44: 1 | AM44: 22 | AN44: 202784.8863 | AO44: 9217 | AP44: 0 | AQ44: 9217
A45: 413114674 | B45: FOUR RIVERS | C45: ='fnd enro'!C45 -> 0 | D45: ='fnd enro'!D45 -> 0 | E45: ='fnd enro'!E45 -> 0 | F45: ='fnd enro'!F45 -> 0 | G45: ='fnd enro'!G45 -> 8 | H45: ='fnd enro'!H45 -> 34 | I45: ='fnd enro'!I45 -> 1.575 | J45: ='fnd enro'!J45 -> 0 | K45: ='fnd enro'!K45 -> 0 | L45: ='fnd enro'!L45 -> 0 | M45: ='fnd enro'!M45 -> 0 | N45: ='fnd enro'!N45 -> 0 | O45: ='fnd enro'!O45 -> 15 | Q45: ='fnd enro'!R45 -> 42 | R45: 1 | S45: ='fnd enro'!Q45 -> 9 | U45: =(($C45*'fnd base rates'!C$48) +($D45*'fnd base rates'!C$49) +($E45*'fnd base rates'!C$50) +($F45*'fnd base rates'!C$51) +($G45*'fnd base rates'!C$52) +($H45*'fnd base rates'!C$53) +($I45*'fnd base rates'!C$54) +($J45*'fnd base rates'!C$55) +($K45*'fnd base rates'!C$56) +($L45*'fnd base rates'!C$57) +($M45*'fnd base rates'!C$58) +($N45*'fnd base rates'!C$59) +($O45*VLOOKUP($S45+12,rate_basefnd,3))) *$R45 -> 19458.41625 | V45: =(($C45*'fnd base rates'!D$48) +($D45*'fnd base rates'!D$49) +($E45*'fnd base rates'!D$50) +($F45*'fnd base rates'!D$51) +($G45*'fnd base rates'!D$52) +($H45*'fnd base rates'!D$53) +($I45*'fnd base rates'!D$54) +($J45*'fnd base rates'!D$55) +($K45*'fnd base rates'!D$56) +($L45*'fnd base rates'!D$57) +($M45*'fnd base rates'!D$58) +($N45*'fnd base rates'!D$59) +($O45*VLOOKUP($S45+12,rate_basefnd,4))) *$R45 -> 27918.24 | W45: =(($C45*'fnd base rates'!E$48) +($D45*'fnd base rates'!E$49) +($E45*'fnd base rates'!E$50) +($F45*'fnd base rates'!E$51) +($G45*'fnd base rates'!E$52) +($H45*'fnd base rates'!E$53) +($I45*'fnd base rates'!E$54) +($J45*'fnd base rates'!E$55) +($K45*'fnd base rates'!E$56) +($L45*'fnd base rates'!E$57) +($M45*'fnd base rates'!E$58) +($N45*'fnd base rates'!E$59) +($O45*VLOOKUP($S45+12,rate_basefnd,5))) *$R45 -> 217366.6238 | X45: =(($C45*'fnd base rates'!F$48) +($D45*'fnd base rates'!F$49) +($E45*'fnd base rates'!F$50) +($F45*'fnd base rates'!F$51) +($G45*'fnd base rates'!F$52) +($H45*'fnd base rates'!F$53) +($I45*'fnd base rates'!F$54) +($J45*'fnd base rates'!F$55) +($K45*'fnd base rates'!F$56) +($L45*'fnd base rates'!F$57) +($M45*'fnd base rates'!F$58) +($N45*'fnd base rates'!F$59) +($O45*VLOOKUP($S45+12,rate_basefnd,6))) *$R45 -> 32756.1415 | Y45: =(($C45*'fnd base rates'!G$48) +($D45*'fnd base rates'!G$49) +($E45*'fnd base rates'!G$50) +($F45*'fnd base rates'!G$51) +($G45*'fnd base rates'!G$52) +($H45*'fnd base rates'!G$53) +($I45*'fnd base rates'!G$54) +($J45*'fnd base rates'!G$55) +($K45*'fnd base rates'!G$56) +($L45*'fnd base rates'!G$57) +($M45*'fnd base rates'!G$58) +($N45*'fnd base rates'!G$59) +($O45*VLOOKUP($S45+12,rate_basefnd,7))) *$R45 -> 7062.9355 | Z45: =(($C45*'fnd base rates'!H$48) +($D45*'fnd base rates'!H$49) +($E45*'fnd base rates'!H$50) +($F45*'fnd base rates'!H$51) +($G45*'fnd base rates'!H$52) +($H45*'fnd base rates'!H$53) +($I45*'fnd base rates'!H$54) +($J45*'fnd base rates'!H$55) +($K45*'fnd base rates'!H$56) +($L45*'fnd base rates'!H$57) +($M45*'fnd base rates'!H$58) +($N45*'fnd base rates'!H$59) +($O45*VLOOKUP($S45+12,rate_basefnd,8))) -> 28083.949 | AA45: =(($C45*'fnd base rates'!I$48) +($D45*'fnd base rates'!I$49) +($E45*'fnd base rates'!I$50) +($F45*'fnd base rates'!I$51) +($G45*'fnd base rates'!I$52) +($H45*'fnd base rates'!I$53) +($I45*'fnd base rates'!I$54) +($J45*'fnd base rates'!I$55) +($K45*'fnd base rates'!I$56) +($L45*'fnd base rates'!I$57) +($M45*'fnd base rates'!I$58) +($N45*'fnd base rates'!I$59) +($O45*VLOOKUP($S45+12,rate_basefnd,9))) *$R45 -> 14944.56 | AB45: =(($C45*'fnd base rates'!J$48) +($D45*'fnd base rates'!J$49) +($E45*'fnd base rates'!J$50) +($F45*'fnd base rates'!J$51) +($G45*'fnd base rates'!J$52) +($H45*'fnd base rates'!J$53) +($I45*'fnd base rates'!J$54) +($J45*'fnd base rates'!J$55) +($K45*'fnd base rates'!J$56) +($L45*'fnd base rates'!J$57) +($M45*'fnd base rates'!J$58) +($N45*'fnd base rates'!J$59) +($O45*VLOOKUP($S45+12,rate_basefnd,10))) *$R45 -> 18678.44 | AC45: =(($C45*'fnd base rates'!K$48) +($D45*'fnd base rates'!K$49) +($E45*'fnd base rates'!K$50) +($F45*'fnd base rates'!K$51) +($G45*'fnd base rates'!K$52) +($H45*'fnd base rates'!K$53) +($I45*'fnd base rates'!K$54) +($J45*'fnd base rates'!K$55) +($K45*'fnd base rates'!K$56) +($L45*'fnd base rates'!K$57) +($M45*'fnd base rates'!K$58) +($N45*'fnd base rates'!K$59) +($O45*VLOOKUP($S45+12,rate_basefnd,11))) *$R45 -> 49565.23525 | AD45: =(($C45*'fnd base rates'!L$48) +($D45*'fnd base rates'!L$49) +($E45*'fnd base rates'!L$50) +($F45*'fnd base rates'!L$51) +($G45*'fnd base rates'!L$52) +($H45*'fnd base rates'!L$53) +($I45*'fnd base rates'!L$54) +($J45*'fnd base rates'!L$55) +($K45*'fnd base rates'!L$56) +($L45*'fnd base rates'!L$57) +($M45*'fnd base rates'!L$58) +($N45*'fnd base rates'!L$59) +($O45*VLOOKUP($S45+12,rate_basefnd,12))) -> 44012.13145 | AE45: =(($C45*'fnd base rates'!M$48) +($D45*'fnd base rates'!M$49) +($E45*'fnd base rates'!M$50) +($F45*'fnd base rates'!M$51) +($G45*'fnd base rates'!M$52) +($H45*'fnd base rates'!M$53) +($I45*'fnd base rates'!M$54) +($J45*'fnd base rates'!M$55) +($K45*'fnd base rates'!M$56) +($L45*'fnd base rates'!M$57) +($M45*'fnd base rates'!M$58) +($N45*'fnd base rates'!M$59) +($O45*VLOOKUP($S45+12,rate_basefnd,13))) -> 0 | AF45: 459846.6727 | AH45: 413114674 | AI45: 413 | AJ45: 114 | AK45: 674 | AL45: 1 | AM45: 42 | AN45: 459846.6727 | AO45: 10949 | AP45: 0 | AQ45: 10949
A46: 413114683 | B46: FOUR RIVERS | C46: ='fnd enro'!C46 -> 0 | D46: ='fnd enro'!D46 -> 0 | E46: ='fnd enro'!E46 -> 0 | F46: ='fnd enro'!F46 -> 0 | G46: ='fnd enro'!G46 -> 0 | H46: ='fnd enro'!H46 -> 3 | I46: ='fnd enro'!I46 -> 0.1125 | J46: ='fnd enro'!J46 -> 0 | K46: ='fnd enro'!K46 -> 0 | L46: ='fnd enro'!L46 -> 0 | M46: ='fnd enro'!M46 -> 0 | N46: ='fnd enro'!N46 -> 0 | O46: ='fnd enro'!O46 -> 0 | Q46: ='fnd enro'!R46 -> 3 | R46: 1 | S46: ='fnd enro'!Q46 -> 1 | U46: =(($C46*'fnd base rates'!C$48) +($D46*'fnd base rates'!C$49) +($E46*'fnd base rates'!C$50) +($F46*'fnd base rates'!C$51) +($G46*'fnd base rates'!C$52) +($H46*'fnd base rates'!C$53) +($I46*'fnd base rates'!C$54) +($J46*'fnd base rates'!C$55) +($K46*'fnd base rates'!C$56) +($L46*'fnd base rates'!C$57) +($M46*'fnd base rates'!C$58) +($N46*'fnd base rates'!C$59) +($O46*VLOOKUP($S46+12,rate_basefnd,3))) *$R46 -> 1389.886875 | V46: =(($C46*'fnd base rates'!D$48) +($D46*'fnd base rates'!D$49) +($E46*'fnd base rates'!D$50) +($F46*'fnd base rates'!D$51) +($G46*'fnd base rates'!D$52) +($H46*'fnd base rates'!D$53) +($I46*'fnd base rates'!D$54) +($J46*'fnd base rates'!D$55) +($K46*'fnd base rates'!D$56) +($L46*'fnd base rates'!D$57) +($M46*'fnd base rates'!D$58) +($N46*'fnd base rates'!D$59) +($O46*VLOOKUP($S46+12,rate_basefnd,4))) *$R46 -> 1994.16 | W46: =(($C46*'fnd base rates'!E$48) +($D46*'fnd base rates'!E$49) +($E46*'fnd base rates'!E$50) +($F46*'fnd base rates'!E$51) +($G46*'fnd base rates'!E$52) +($H46*'fnd base rates'!E$53) +($I46*'fnd base rates'!E$54) +($J46*'fnd base rates'!E$55) +($K46*'fnd base rates'!E$56) +($L46*'fnd base rates'!E$57) +($M46*'fnd base rates'!E$58) +($N46*'fnd base rates'!E$59) +($O46*VLOOKUP($S46+12,rate_basefnd,5))) *$R46 -> 12776.12812 | X46: =(($C46*'fnd base rates'!F$48) +($D46*'fnd base rates'!F$49) +($E46*'fnd base rates'!F$50) +($F46*'fnd base rates'!F$51) +($G46*'fnd base rates'!F$52) +($H46*'fnd base rates'!F$53) +($I46*'fnd base rates'!F$54) +($J46*'fnd base rates'!F$55) +($K46*'fnd base rates'!F$56) +($L46*'fnd base rates'!F$57) +($M46*'fnd base rates'!F$58) +($N46*'fnd base rates'!F$59) +($O46*VLOOKUP($S46+12,rate_basefnd,6))) *$R46 -> 2285.86725 | Y46: =(($C46*'fnd base rates'!G$48) +($D46*'fnd base rates'!G$49) +($E46*'fnd base rates'!G$50) +($F46*'fnd base rates'!G$51) +($G46*'fnd base rates'!G$52) +($H46*'fnd base rates'!G$53) +($I46*'fnd base rates'!G$54) +($J46*'fnd base rates'!G$55) +($K46*'fnd base rates'!G$56) +($L46*'fnd base rates'!G$57) +($M46*'fnd base rates'!G$58) +($N46*'fnd base rates'!G$59) +($O46*VLOOKUP($S46+12,rate_basefnd,7))) *$R46 -> 425.82825 | Z46: =(($C46*'fnd base rates'!H$48) +($D46*'fnd base rates'!H$49) +($E46*'fnd base rates'!H$50) +($F46*'fnd base rates'!H$51) +($G46*'fnd base rates'!H$52) +($H46*'fnd base rates'!H$53) +($I46*'fnd base rates'!H$54) +($J46*'fnd base rates'!H$55) +($K46*'fnd base rates'!H$56) +($L46*'fnd base rates'!H$57) +($M46*'fnd base rates'!H$58) +($N46*'fnd base rates'!H$59) +($O46*VLOOKUP($S46+12,rate_basefnd,8))) -> 2157.2535 | AA46: =(($C46*'fnd base rates'!I$48) +($D46*'fnd base rates'!I$49) +($E46*'fnd base rates'!I$50) +($F46*'fnd base rates'!I$51) +($G46*'fnd base rates'!I$52) +($H46*'fnd base rates'!I$53) +($I46*'fnd base rates'!I$54) +($J46*'fnd base rates'!I$55) +($K46*'fnd base rates'!I$56) +($L46*'fnd base rates'!I$57) +($M46*'fnd base rates'!I$58) +($N46*'fnd base rates'!I$59) +($O46*VLOOKUP($S46+12,rate_basefnd,9))) *$R46 -> 1110.24 | AB46: =(($C46*'fnd base rates'!J$48) +($D46*'fnd base rates'!J$49) +($E46*'fnd base rates'!J$50) +($F46*'fnd base rates'!J$51) +($G46*'fnd base rates'!J$52) +($H46*'fnd base rates'!J$53) +($I46*'fnd base rates'!J$54) +($J46*'fnd base rates'!J$55) +($K46*'fnd base rates'!J$56) +($L46*'fnd base rates'!J$57) +($M46*'fnd base rates'!J$58) +($N46*'fnd base rates'!J$59) +($O46*VLOOKUP($S46+12,rate_basefnd,10))) *$R46 -> 1495.5 | AC46: =(($C46*'fnd base rates'!K$48) +($D46*'fnd base rates'!K$49) +($E46*'fnd base rates'!K$50) +($F46*'fnd base rates'!K$51) +($G46*'fnd base rates'!K$52) +($H46*'fnd base rates'!K$53) +($I46*'fnd base rates'!K$54) +($J46*'fnd base rates'!K$55) +($K46*'fnd base rates'!K$56) +($L46*'fnd base rates'!K$57) +($M46*'fnd base rates'!K$58) +($N46*'fnd base rates'!K$59) +($O46*VLOOKUP($S46+12,rate_basefnd,11))) *$R46 -> 2988.315375 | AD46: =(($C46*'fnd base rates'!L$48) +($D46*'fnd base rates'!L$49) +($E46*'fnd base rates'!L$50) +($F46*'fnd base rates'!L$51) +($G46*'fnd base rates'!L$52) +($H46*'fnd base rates'!L$53) +($I46*'fnd base rates'!L$54) +($J46*'fnd base rates'!L$55) +($K46*'fnd base rates'!L$56) +($L46*'fnd base rates'!L$57) +($M46*'fnd base rates'!L$58) +($N46*'fnd base rates'!L$59) +($O46*VLOOKUP($S46+12,rate_basefnd,12))) -> 2757.774118 | AE46: =(($C46*'fnd base rates'!M$48) +($D46*'fnd base rates'!M$49) +($E46*'fnd base rates'!M$50) +($F46*'fnd base rates'!M$51) +($G46*'fnd base rates'!M$52) +($H46*'fnd base rates'!M$53) +($I46*'fnd base rates'!M$54) +($J46*'fnd base rates'!M$55) +($K46*'fnd base rates'!M$56) +($L46*'fnd base rates'!M$57) +($M46*'fnd base rates'!M$58) +($N46*'fnd base rates'!M$59) +($O46*VLOOKUP($S46+12,rate_basefnd,13))) -> 0 | AF46: 29380.95349 | AH46: 413114683 | AI46: 413 | AJ46: 114 | AK46: 683 | AL46: 1 | AM46: 3 | AN46: 29380.95349 | AO46: 9794 | AP46: 0 | AQ46: 9794
A47: 413114717 | B47: FOUR RIVERS | C47: ='fnd enro'!C47 -> 0 | D47: ='fnd enro'!D47 -> 0 | E47: ='fnd enro'!E47 -> 0 | F47: ='fnd enro'!F47 -> 0 | G47: ='fnd enro'!G47 -> 18 | H47: ='fnd enro'!H47 -> 30 | I47: ='fnd enro'!I47 -> 1.8 | J47: ='fnd enro'!J47 -> 0 | K47: ='fnd enro'!K47 -> 0 | L47: ='fnd enro'!L47 -> 0 | M47: ='fnd enro'!M47 -> 0 | N47: ='fnd enro'!N47 -> 0 | O47: ='fnd enro'!O47 -> 15 | Q47: ='fnd enro'!R47 -> 48 | R47: 1 | S47: ='fnd enro'!Q47 -> 8 | U47: =(($C47*'fnd base rates'!C$48) +($D47*'fnd base rates'!C$49) +($E47*'fnd base rates'!C$50) +($F47*'fnd base rates'!C$51) +($G47*'fnd base rates'!C$52) +($H47*'fnd base rates'!C$53) +($I47*'fnd base rates'!C$54) +($J47*'fnd base rates'!C$55) +($K47*'fnd base rates'!C$56) +($L47*'fnd base rates'!C$57) +($M47*'fnd base rates'!C$58) +($N47*'fnd base rates'!C$59) +($O47*VLOOKUP($S47+12,rate_basefnd,3))) *$R47 -> 22238.19 | V47: =(($C47*'fnd base rates'!D$48) +($D47*'fnd base rates'!D$49) +($E47*'fnd base rates'!D$50) +($F47*'fnd base rates'!D$51) +($G47*'fnd base rates'!D$52) +($H47*'fnd base rates'!D$53) +($I47*'fnd base rates'!D$54) +($J47*'fnd base rates'!D$55) +($K47*'fnd base rates'!D$56) +($L47*'fnd base rates'!D$57) +($M47*'fnd base rates'!D$58) +($N47*'fnd base rates'!D$59) +($O47*VLOOKUP($S47+12,rate_basefnd,4))) *$R47 -> 31906.56 | W47: =(($C47*'fnd base rates'!E$48) +($D47*'fnd base rates'!E$49) +($E47*'fnd base rates'!E$50) +($F47*'fnd base rates'!E$51) +($G47*'fnd base rates'!E$52) +($H47*'fnd base rates'!E$53) +($I47*'fnd base rates'!E$54) +($J47*'fnd base rates'!E$55) +($K47*'fnd base rates'!E$56) +($L47*'fnd base rates'!E$57) +($M47*'fnd base rates'!E$58) +($N47*'fnd base rates'!E$59) +($O47*VLOOKUP($S47+12,rate_basefnd,5))) *$R47 -> 229822.23 | X47: =(($C47*'fnd base rates'!F$48) +($D47*'fnd base rates'!F$49) +($E47*'fnd base rates'!F$50) +($F47*'fnd base rates'!F$51) +($G47*'fnd base rates'!F$52) +($H47*'fnd base rates'!F$53) +($I47*'fnd base rates'!F$54) +($J47*'fnd base rates'!F$55) +($K47*'fnd base rates'!F$56) +($L47*'fnd base rates'!F$57) +($M47*'fnd base rates'!F$58) +($N47*'fnd base rates'!F$59) +($O47*VLOOKUP($S47+12,rate_basefnd,6))) *$R47 -> 38270.376 | Y47: =(($C47*'fnd base rates'!G$48) +($D47*'fnd base rates'!G$49) +($E47*'fnd base rates'!G$50) +($F47*'fnd base rates'!G$51) +($G47*'fnd base rates'!G$52) +($H47*'fnd base rates'!G$53) +($I47*'fnd base rates'!G$54) +($J47*'fnd base rates'!G$55) +($K47*'fnd base rates'!G$56) +($L47*'fnd base rates'!G$57) +($M47*'fnd base rates'!G$58) +($N47*'fnd base rates'!G$59) +($O47*VLOOKUP($S47+12,rate_basefnd,7))) *$R47 -> 7944.042 | Z47: =(($C47*'fnd base rates'!H$48) +($D47*'fnd base rates'!H$49) +($E47*'fnd base rates'!H$50) +($F47*'fnd base rates'!H$51) +($G47*'fnd base rates'!H$52) +($H47*'fnd base rates'!H$53) +($I47*'fnd base rates'!H$54) +($J47*'fnd base rates'!H$55) +($K47*'fnd base rates'!H$56) +($L47*'fnd base rates'!H$57) +($M47*'fnd base rates'!H$58) +($N47*'fnd base rates'!H$59) +($O47*VLOOKUP($S47+12,rate_basefnd,8))) -> 29751.456 | AA47: =(($C47*'fnd base rates'!I$48) +($D47*'fnd base rates'!I$49) +($E47*'fnd base rates'!I$50) +($F47*'fnd base rates'!I$51) +($G47*'fnd base rates'!I$52) +($H47*'fnd base rates'!I$53) +($I47*'fnd base rates'!I$54) +($J47*'fnd base rates'!I$55) +($K47*'fnd base rates'!I$56) +($L47*'fnd base rates'!I$57) +($M47*'fnd base rates'!I$58) +($N47*'fnd base rates'!I$59) +($O47*VLOOKUP($S47+12,rate_basefnd,9))) *$R47 -> 16416.54 | AB47: =(($C47*'fnd base rates'!J$48) +($D47*'fnd base rates'!J$49) +($E47*'fnd base rates'!J$50) +($F47*'fnd base rates'!J$51) +($G47*'fnd base rates'!J$52) +($H47*'fnd base rates'!J$53) +($I47*'fnd base rates'!J$54) +($J47*'fnd base rates'!J$55) +($K47*'fnd base rates'!J$56) +($L47*'fnd base rates'!J$57) +($M47*'fnd base rates'!J$58) +($N47*'fnd base rates'!J$59) +($O47*VLOOKUP($S47+12,rate_basefnd,10))) *$R47 -> 18846.24 | AC47: =(($C47*'fnd base rates'!K$48) +($D47*'fnd base rates'!K$49) +($E47*'fnd base rates'!K$50) +($F47*'fnd base rates'!K$51) +($G47*'fnd base rates'!K$52) +($H47*'fnd base rates'!K$53) +($I47*'fnd base rates'!K$54) +($J47*'fnd base rates'!K$55) +($K47*'fnd base rates'!K$56) +($L47*'fnd base rates'!K$57) +($M47*'fnd base rates'!K$58) +($N47*'fnd base rates'!K$59) +($O47*VLOOKUP($S47+12,rate_basefnd,11))) *$R47 -> 55747.416 | AD47: =(($C47*'fnd base rates'!L$48) +($D47*'fnd base rates'!L$49) +($E47*'fnd base rates'!L$50) +($F47*'fnd base rates'!L$51) +($G47*'fnd base rates'!L$52) +($H47*'fnd base rates'!L$53) +($I47*'fnd base rates'!L$54) +($J47*'fnd base rates'!L$55) +($K47*'fnd base rates'!L$56) +($L47*'fnd base rates'!L$57) +($M47*'fnd base rates'!L$58) +($N47*'fnd base rates'!L$59) +($O47*VLOOKUP($S47+12,rate_basefnd,12))) -> 50067.14692 | AE47: =(($C47*'fnd base rates'!M$48) +($D47*'fnd base rates'!M$49) +($E47*'fnd base rates'!M$50) +($F47*'fnd base rates'!M$51) +($G47*'fnd base rates'!M$52) +($H47*'fnd base rates'!M$53) +($I47*'fnd base rates'!M$54) +($J47*'fnd base rates'!M$55) +($K47*'fnd base rates'!M$56) +($L47*'fnd base rates'!M$57) +($M47*'fnd base rates'!M$58) +($N47*'fnd base rates'!M$59) +($O47*VLOOKUP($S47+12,rate_basefnd,13))) -> 0 | AF47: 501010.1969 | AH47: 413114717 | AI47: 413 | AJ47: 114 | AK47: 717 | AL47: 1 | AM47: 48 | AN47: 501010.1969 | AO47: 10438 | AP47: 0 | AQ47: 10438
A48: 413114720 | B48: FOUR RIVERS | C48: ='fnd enro'!C48 -> 0 | D48: ='fnd enro'!D48 -> 0 | E48: ='fnd enro'!E48 -> 0 | F48: ='fnd enro'!F48 -> 0 | G48: ='fnd enro'!G48 -> 0 | H48: ='fnd enro'!H48 -> 1 | I48: ='fnd enro'!I48 -> 0.0375 | J48: ='fnd enro'!J48 -> 0 | K48: ='fnd enro'!K48 -> 0 | L48: ='fnd enro'!L48 -> 0 | M48: ='fnd enro'!M48 -> 0 | N48: ='fnd enro'!N48 -> 0 | O48: ='fnd enro'!O48 -> 0 | Q48: ='fnd enro'!R48 -> 1 | R48: 1 | S48: ='fnd enro'!Q48 -> 1 | U48: =(($C48*'fnd base rates'!C$48) +($D48*'fnd base rates'!C$49) +($E48*'fnd base rates'!C$50) +($F48*'fnd base rates'!C$51) +($G48*'fnd base rates'!C$52) +($H48*'fnd base rates'!C$53) +($I48*'fnd base rates'!C$54) +($J48*'fnd base rates'!C$55) +($K48*'fnd base rates'!C$56) +($L48*'fnd base rates'!C$57) +($M48*'fnd base rates'!C$58) +($N48*'fnd base rates'!C$59) +($O48*VLOOKUP($S48+12,rate_basefnd,3))) *$R48 -> 463.295625 | V48: =(($C48*'fnd base rates'!D$48) +($D48*'fnd base rates'!D$49) +($E48*'fnd base rates'!D$50) +($F48*'fnd base rates'!D$51) +($G48*'fnd base rates'!D$52) +($H48*'fnd base rates'!D$53) +($I48*'fnd base rates'!D$54) +($J48*'fnd base rates'!D$55) +($K48*'fnd base rates'!D$56) +($L48*'fnd base rates'!D$57) +($M48*'fnd base rates'!D$58) +($N48*'fnd base rates'!D$59) +($O48*VLOOKUP($S48+12,rate_basefnd,4))) *$R48 -> 664.72 | W48: =(($C48*'fnd base rates'!E$48) +($D48*'fnd base rates'!E$49) +($E48*'fnd base rates'!E$50) +($F48*'fnd base rates'!E$51) +($G48*'fnd base rates'!E$52) +($H48*'fnd base rates'!E$53) +($I48*'fnd base rates'!E$54) +($J48*'fnd base rates'!E$55) +($K48*'fnd base rates'!E$56) +($L48*'fnd base rates'!E$57) +($M48*'fnd base rates'!E$58) +($N48*'fnd base rates'!E$59) +($O48*VLOOKUP($S48+12,rate_basefnd,5))) *$R48 -> 4258.709375 | X48: =(($C48*'fnd base rates'!F$48) +($D48*'fnd base rates'!F$49) +($E48*'fnd base rates'!F$50) +($F48*'fnd base rates'!F$51) +($G48*'fnd base rates'!F$52) +($H48*'fnd base rates'!F$53) +($I48*'fnd base rates'!F$54) +($J48*'fnd base rates'!F$55) +($K48*'fnd base rates'!F$56) +($L48*'fnd base rates'!F$57) +($M48*'fnd base rates'!F$58) +($N48*'fnd base rates'!F$59) +($O48*VLOOKUP($S48+12,rate_basefnd,6))) *$R48 -> 761.95575 | Y48: =(($C48*'fnd base rates'!G$48) +($D48*'fnd base rates'!G$49) +($E48*'fnd base rates'!G$50) +($F48*'fnd base rates'!G$51) +($G48*'fnd base rates'!G$52) +($H48*'fnd base rates'!G$53) +($I48*'fnd base rates'!G$54) +($J48*'fnd base rates'!G$55) +($K48*'fnd base rates'!G$56) +($L48*'fnd base rates'!G$57) +($M48*'fnd base rates'!G$58) +($N48*'fnd base rates'!G$59) +($O48*VLOOKUP($S48+12,rate_basefnd,7))) *$R48 -> 141.94275 | Z48: =(($C48*'fnd base rates'!H$48) +($D48*'fnd base rates'!H$49) +($E48*'fnd base rates'!H$50) +($F48*'fnd base rates'!H$51) +($G48*'fnd base rates'!H$52) +($H48*'fnd base rates'!H$53) +($I48*'fnd base rates'!H$54) +($J48*'fnd base rates'!H$55) +($K48*'fnd base rates'!H$56) +($L48*'fnd base rates'!H$57) +($M48*'fnd base rates'!H$58) +($N48*'fnd base rates'!H$59) +($O48*VLOOKUP($S48+12,rate_basefnd,8))) -> 719.0845 | AA48: =(($C48*'fnd base rates'!I$48) +($D48*'fnd base rates'!I$49) +($E48*'fnd base rates'!I$50) +($F48*'fnd base rates'!I$51) +($G48*'fnd base rates'!I$52) +($H48*'fnd base rates'!I$53) +($I48*'fnd base rates'!I$54) +($J48*'fnd base rates'!I$55) +($K48*'fnd base rates'!I$56) +($L48*'fnd base rates'!I$57) +($M48*'fnd base rates'!I$58) +($N48*'fnd base rates'!I$59) +($O48*VLOOKUP($S48+12,rate_basefnd,9))) *$R48 -> 370.08 | AB48: =(($C48*'fnd base rates'!J$48) +($D48*'fnd base rates'!J$49) +($E48*'fnd base rates'!J$50) +($F48*'fnd base rates'!J$51) +($G48*'fnd base rates'!J$52) +($H48*'fnd base rates'!J$53) +($I48*'fnd base rates'!J$54) +($J48*'fnd base rates'!J$55) +($K48*'fnd base rates'!J$56) +($L48*'fnd base rates'!J$57) +($M48*'fnd base rates'!J$58) +($N48*'fnd base rates'!J$59) +($O48*VLOOKUP($S48+12,rate_basefnd,10))) *$R48 -> 498.5 | AC48: =(($C48*'fnd base rates'!K$48) +($D48*'fnd base rates'!K$49) +($E48*'fnd base rates'!K$50) +($F48*'fnd base rates'!K$51) +($G48*'fnd base rates'!K$52) +($H48*'fnd base rates'!K$53) +($I48*'fnd base rates'!K$54) +($J48*'fnd base rates'!K$55) +($K48*'fnd base rates'!K$56) +($L48*'fnd base rates'!K$57) +($M48*'fnd base rates'!K$58) +($N48*'fnd base rates'!K$59) +($O48*VLOOKUP($S48+12,rate_basefnd,11))) *$R48 -> 996.105125 | AD48: =(($C48*'fnd base rates'!L$48) +($D48*'fnd base rates'!L$49) +($E48*'fnd base rates'!L$50) +($F48*'fnd base rates'!L$51) +($G48*'fnd base rates'!L$52) +($H48*'fnd base rates'!L$53) +($I48*'fnd base rates'!L$54) +($J48*'fnd base rates'!L$55) +($K48*'fnd base rates'!L$56) +($L48*'fnd base rates'!L$57) +($M48*'fnd base rates'!L$58) +($N48*'fnd base rates'!L$59) +($O48*VLOOKUP($S48+12,rate_basefnd,12))) -> 919.2580394 | AE48: =(($C48*'fnd base rates'!M$48) +($D48*'fnd base rates'!M$49) +($E48*'fnd base rates'!M$50) +($F48*'fnd base rates'!M$51) +($G48*'fnd base rates'!M$52) +($H48*'fnd base rates'!M$53) +($I48*'fnd base rates'!M$54) +($J48*'fnd base rates'!M$55) +($K48*'fnd base rates'!M$56) +($L48*'fnd base rates'!M$57) +($M48*'fnd base rates'!M$58) +($N48*'fnd base rates'!M$59) +($O48*VLOOKUP($S48+12,rate_basefnd,13))) -> 0 | AF48: 9793.651164 | AH48: 413114720 | AI48: 413 | AJ48: 114 | AK48: 720 | AL48: 1 | AM48: 1 | AN48: 9793.651164 | AO48: 9794 | AP48: 0 | AQ48: 9794
A49: 413114750 | B49: FOUR RIVERS | C49: ='fnd enro'!C49 -> 0 | D49: ='fnd enro'!D49 -> 0 | E49: ='fnd enro'!E49 -> 0 | F49: ='fnd enro'!F49 -> 0 | G49: ='fnd enro'!G49 -> 7 | H49: ='fnd enro'!H49 -> 11 | I49: ='fnd enro'!I49 -> 0.675 | J49: ='fnd enro'!J49 -> 0 | K49: ='fnd enro'!K49 -> 0 | L49: ='fnd enro'!L49 -> 0 | M49: ='fnd enro'!M49 -> 0 | N49: ='fnd enro'!N49 -> 0 | O49: ='fnd enro'!O49 -> 8 | Q49: ='fnd enro'!R49 -> 18 | R49: 1 | S49: ='fnd enro'!Q49 -> 9 | U49: =(($C49*'fnd base rates'!C$48) +($D49*'fnd base rates'!C$49) +($E49*'fnd base rates'!C$50) +($F49*'fnd base rates'!C$51) +($G49*'fnd base rates'!C$52) +($H49*'fnd base rates'!C$53) +($I49*'fnd base rates'!C$54) +($J49*'fnd base rates'!C$55) +($K49*'fnd base rates'!C$56) +($L49*'fnd base rates'!C$57) +($M49*'fnd base rates'!C$58) +($N49*'fnd base rates'!C$59) +($O49*VLOOKUP($S49+12,rate_basefnd,3))) *$R49 -> 8339.32125 | V49: =(($C49*'fnd base rates'!D$48) +($D49*'fnd base rates'!D$49) +($E49*'fnd base rates'!D$50) +($F49*'fnd base rates'!D$51) +($G49*'fnd base rates'!D$52) +($H49*'fnd base rates'!D$53) +($I49*'fnd base rates'!D$54) +($J49*'fnd base rates'!D$55) +($K49*'fnd base rates'!D$56) +($L49*'fnd base rates'!D$57) +($M49*'fnd base rates'!D$58) +($N49*'fnd base rates'!D$59) +($O49*VLOOKUP($S49+12,rate_basefnd,4))) *$R49 -> 11964.96 | W49: =(($C49*'fnd base rates'!E$48) +($D49*'fnd base rates'!E$49) +($E49*'fnd base rates'!E$50) +($F49*'fnd base rates'!E$51) +($G49*'fnd base rates'!E$52) +($H49*'fnd base rates'!E$53) +($I49*'fnd base rates'!E$54) +($J49*'fnd base rates'!E$55) +($K49*'fnd base rates'!E$56) +($L49*'fnd base rates'!E$57) +($M49*'fnd base rates'!E$58) +($N49*'fnd base rates'!E$59) +($O49*VLOOKUP($S49+12,rate_basefnd,5))) *$R49 -> 93740.55875 | X49: =(($C49*'fnd base rates'!F$48) +($D49*'fnd base rates'!F$49) +($E49*'fnd base rates'!F$50) +($F49*'fnd base rates'!F$51) +($G49*'fnd base rates'!F$52) +($H49*'fnd base rates'!F$53) +($I49*'fnd base rates'!F$54) +($J49*'fnd base rates'!F$55) +($K49*'fnd base rates'!F$56) +($L49*'fnd base rates'!F$57) +($M49*'fnd base rates'!F$58) +($N49*'fnd base rates'!F$59) +($O49*VLOOKUP($S49+12,rate_basefnd,6))) *$R49 -> 14374.9535 | Y49: =(($C49*'fnd base rates'!G$48) +($D49*'fnd base rates'!G$49) +($E49*'fnd base rates'!G$50) +($F49*'fnd base rates'!G$51) +($G49*'fnd base rates'!G$52) +($H49*'fnd base rates'!G$53) +($I49*'fnd base rates'!G$54) +($J49*'fnd base rates'!G$55) +($K49*'fnd base rates'!G$56) +($L49*'fnd base rates'!G$57) +($M49*'fnd base rates'!G$58) +($N49*'fnd base rates'!G$59) +($O49*VLOOKUP($S49+12,rate_basefnd,7))) *$R49 -> 3153.2295 | Z49: =(($C49*'fnd base rates'!H$48) +($D49*'fnd base rates'!H$49) +($E49*'fnd base rates'!H$50) +($F49*'fnd base rates'!H$51) +($G49*'fnd base rates'!H$52) +($H49*'fnd base rates'!H$53) +($I49*'fnd base rates'!H$54) +($J49*'fnd base rates'!H$55) +($K49*'fnd base rates'!H$56) +($L49*'fnd base rates'!H$57) +($M49*'fnd base rates'!H$58) +($N49*'fnd base rates'!H$59) +($O49*VLOOKUP($S49+12,rate_basefnd,8))) -> 11090.621 | AA49: =(($C49*'fnd base rates'!I$48) +($D49*'fnd base rates'!I$49) +($E49*'fnd base rates'!I$50) +($F49*'fnd base rates'!I$51) +($G49*'fnd base rates'!I$52) +($H49*'fnd base rates'!I$53) +($I49*'fnd base rates'!I$54) +($J49*'fnd base rates'!I$55) +($K49*'fnd base rates'!I$56) +($L49*'fnd base rates'!I$57) +($M49*'fnd base rates'!I$58) +($N49*'fnd base rates'!I$59) +($O49*VLOOKUP($S49+12,rate_basefnd,9))) *$R49 -> 6137.49 | AB49: =(($C49*'fnd base rates'!J$48) +($D49*'fnd base rates'!J$49) +($E49*'fnd base rates'!J$50) +($F49*'fnd base rates'!J$51) +($G49*'fnd base rates'!J$52) +($H49*'fnd base rates'!J$53) +($I49*'fnd base rates'!J$54) +($J49*'fnd base rates'!J$55) +($K49*'fnd base rates'!J$56) +($L49*'fnd base rates'!J$57) +($M49*'fnd base rates'!J$58) +($N49*'fnd base rates'!J$59) +($O49*VLOOKUP($S49+12,rate_basefnd,10))) *$R49 -> 6996.76 | AC49: =(($C49*'fnd base rates'!K$48) +($D49*'fnd base rates'!K$49) +($E49*'fnd base rates'!K$50) +($F49*'fnd base rates'!K$51) +($G49*'fnd base rates'!K$52) +($H49*'fnd base rates'!K$53) +($I49*'fnd base rates'!K$54) +($J49*'fnd base rates'!K$55) +($K49*'fnd base rates'!K$56) +($L49*'fnd base rates'!K$57) +($M49*'fnd base rates'!K$58) +($N49*'fnd base rates'!K$59) +($O49*VLOOKUP($S49+12,rate_basefnd,11))) *$R49 -> 22128.16225 | AD49: =(($C49*'fnd base rates'!L$48) +($D49*'fnd base rates'!L$49) +($E49*'fnd base rates'!L$50) +($F49*'fnd base rates'!L$51) +($G49*'fnd base rates'!L$52) +($H49*'fnd base rates'!L$53) +($I49*'fnd base rates'!L$54) +($J49*'fnd base rates'!L$55) +($K49*'fnd base rates'!L$56) +($L49*'fnd base rates'!L$57) +($M49*'fnd base rates'!L$58) +($N49*'fnd base rates'!L$59) +($O49*VLOOKUP($S49+12,rate_basefnd,12))) -> 19589.01678 | AE49: =(($C49*'fnd base rates'!M$48) +($D49*'fnd base rates'!M$49) +($E49*'fnd base rates'!M$50) +($F49*'fnd base rates'!M$51) +($G49*'fnd base rates'!M$52) +($H49*'fnd base rates'!M$53) +($I49*'fnd base rates'!M$54) +($J49*'fnd base rates'!M$55) +($K49*'fnd base rates'!M$56) +($L49*'fnd base rates'!M$57) +($M49*'fnd base rates'!M$58) +($N49*'fnd base rates'!M$59) +($O49*VLOOKUP($S49+12,rate_basefnd,13))) -> 0 | AF49: 197515.073 | AH49: 413114750 | AI49: 413 | AJ49: 114 | AK49: 750 | AL49: 1 | AM49: 18 | AN49: 197515.073 | AO49: 10973 | AP49: 0 | AQ49: 10973
A50: 413114755 | B50: FOUR RIVERS | C50: ='fnd enro'!C50 -> 0 | D50: ='fnd enro'!D50 -> 0 | E50: ='fnd enro'!E50 -> 0 | F50: ='fnd enro'!F50 -> 0 | G50: ='fnd enro'!G50 -> 4 | H50: ='fnd enro'!H50 -> 6 | I50: ='fnd enro'!I50 -> 0.375 | J50: ='fnd enro'!J50 -> 0 | K50: ='fnd enro'!K50 -> 0 | L50: ='fnd enro'!L50 -> 0 | M50: ='fnd enro'!M50 -> 0 | N50: ='fnd enro'!N50 -> 0 | O50: ='fnd enro'!O50 -> 3 | Q50: ='fnd enro'!R50 -> 10 | R50: 1 | S50: ='fnd enro'!Q50 -> 8 | U50: =(($C50*'fnd base rates'!C$48) +($D50*'fnd base rates'!C$49) +($E50*'fnd base rates'!C$50) +($F50*'fnd base rates'!C$51) +($G50*'fnd base rates'!C$52) +($H50*'fnd base rates'!C$53) +($I50*'fnd base rates'!C$54) +($J50*'fnd base rates'!C$55) +($K50*'fnd base rates'!C$56) +($L50*'fnd base rates'!C$57) +($M50*'fnd base rates'!C$58) +($N50*'fnd base rates'!C$59) +($O50*VLOOKUP($S50+12,rate_basefnd,3))) *$R50 -> 4632.95625 | V50: =(($C50*'fnd base rates'!D$48) +($D50*'fnd base rates'!D$49) +($E50*'fnd base rates'!D$50) +($F50*'fnd base rates'!D$51) +($G50*'fnd base rates'!D$52) +($H50*'fnd base rates'!D$53) +($I50*'fnd base rates'!D$54) +($J50*'fnd base rates'!D$55) +($K50*'fnd base rates'!D$56) +($L50*'fnd base rates'!D$57) +($M50*'fnd base rates'!D$58) +($N50*'fnd base rates'!D$59) +($O50*VLOOKUP($S50+12,rate_basefnd,4))) *$R50 -> 6647.2 | W50: =(($C50*'fnd base rates'!E$48) +($D50*'fnd base rates'!E$49) +($E50*'fnd base rates'!E$50) +($F50*'fnd base rates'!E$51) +($G50*'fnd base rates'!E$52) +($H50*'fnd base rates'!E$53) +($I50*'fnd base rates'!E$54) +($J50*'fnd base rates'!E$55) +($K50*'fnd base rates'!E$56) +($L50*'fnd base rates'!E$57) +($M50*'fnd base rates'!E$58) +($N50*'fnd base rates'!E$59) +($O50*VLOOKUP($S50+12,rate_basefnd,5))) *$R50 -> 47163.05375 | X50: =(($C50*'fnd base rates'!F$48) +($D50*'fnd base rates'!F$49) +($E50*'fnd base rates'!F$50) +($F50*'fnd base rates'!F$51) +($G50*'fnd base rates'!F$52) +($H50*'fnd base rates'!F$53) +($I50*'fnd base rates'!F$54) +($J50*'fnd base rates'!F$55) +($K50*'fnd base rates'!F$56) +($L50*'fnd base rates'!F$57) +($M50*'fnd base rates'!F$58) +($N50*'fnd base rates'!F$59) +($O50*VLOOKUP($S50+12,rate_basefnd,6))) *$R50 -> 7996.5575 | Y50: =(($C50*'fnd base rates'!G$48) +($D50*'fnd base rates'!G$49) +($E50*'fnd base rates'!G$50) +($F50*'fnd base rates'!G$51) +($G50*'fnd base rates'!G$52) +($H50*'fnd base rates'!G$53) +($I50*'fnd base rates'!G$54) +($J50*'fnd base rates'!G$55) +($K50*'fnd base rates'!G$56) +($L50*'fnd base rates'!G$57) +($M50*'fnd base rates'!G$58) +($N50*'fnd base rates'!G$59) +($O50*VLOOKUP($S50+12,rate_basefnd,7))) *$R50 -> 1647.1775 | Z50: =(($C50*'fnd base rates'!H$48) +($D50*'fnd base rates'!H$49) +($E50*'fnd base rates'!H$50) +($F50*'fnd base rates'!H$51) +($G50*'fnd base rates'!H$52) +($H50*'fnd base rates'!H$53) +($I50*'fnd base rates'!H$54) +($J50*'fnd base rates'!H$55) +($K50*'fnd base rates'!H$56) +($L50*'fnd base rates'!H$57) +($M50*'fnd base rates'!H$58) +($N50*'fnd base rates'!H$59) +($O50*VLOOKUP($S50+12,rate_basefnd,8))) -> 6132.045 | AA50: =(($C50*'fnd base rates'!I$48) +($D50*'fnd base rates'!I$49) +($E50*'fnd base rates'!I$50) +($F50*'fnd base rates'!I$51) +($G50*'fnd base rates'!I$52) +($H50*'fnd base rates'!I$53) +($I50*'fnd base rates'!I$54) +($J50*'fnd base rates'!I$55) +($K50*'fnd base rates'!I$56) +($L50*'fnd base rates'!I$57) +($M50*'fnd base rates'!I$58) +($N50*'fnd base rates'!I$59) +($O50*VLOOKUP($S50+12,rate_basefnd,9))) *$R50 -> 3401.4 | AB50: =(($C50*'fnd base rates'!J$48) +($D50*'fnd base rates'!J$49) +($E50*'fnd base rates'!J$50) +($F50*'fnd base rates'!J$51) +($G50*'fnd base rates'!J$52) +($H50*'fnd base rates'!J$53) +($I50*'fnd base rates'!J$54) +($J50*'fnd base rates'!J$55) +($K50*'fnd base rates'!J$56) +($L50*'fnd base rates'!J$57) +($M50*'fnd base rates'!J$58) +($N50*'fnd base rates'!J$59) +($O50*VLOOKUP($S50+12,rate_basefnd,10))) *$R50 -> 3855.72 | AC50: =(($C50*'fnd base rates'!K$48) +($D50*'fnd base rates'!K$49) +($E50*'fnd base rates'!K$50) +($F50*'fnd base rates'!K$51) +($G50*'fnd base rates'!K$52) +($H50*'fnd base rates'!K$53) +($I50*'fnd base rates'!K$54) +($J50*'fnd base rates'!K$55) +($K50*'fnd base rates'!K$56) +($L50*'fnd base rates'!K$57) +($M50*'fnd base rates'!K$58) +($N50*'fnd base rates'!K$59) +($O50*VLOOKUP($S50+12,rate_basefnd,11))) *$R50 -> 11559.08125 | AD50: =(($C50*'fnd base rates'!L$48) +($D50*'fnd base rates'!L$49) +($E50*'fnd base rates'!L$50) +($F50*'fnd base rates'!L$51) +($G50*'fnd base rates'!L$52) +($H50*'fnd base rates'!L$53) +($I50*'fnd base rates'!L$54) +($J50*'fnd base rates'!L$55) +($K50*'fnd base rates'!L$56) +($L50*'fnd base rates'!L$57) +($M50*'fnd base rates'!L$58) +($N50*'fnd base rates'!L$59) +($O50*VLOOKUP($S50+12,rate_basefnd,12))) -> 10404.63729 | AE50: =(($C50*'fnd base rates'!M$48) +($D50*'fnd base rates'!M$49) +($E50*'fnd base rates'!M$50) +($F50*'fnd base rates'!M$51) +($G50*'fnd base rates'!M$52) +($H50*'fnd base rates'!M$53) +($I50*'fnd base rates'!M$54) +($J50*'fnd base rates'!M$55) +($K50*'fnd base rates'!M$56) +($L50*'fnd base rates'!M$57) +($M50*'fnd base rates'!M$58) +($N50*'fnd base rates'!M$59) +($O50*VLOOKUP($S50+12,rate_basefnd,13))) -> 0 | AF50: 103439.8285 | AH50: 413114755 | AI50: 413 | AJ50: 114 | AK50: 755 | AL50: 1 | AM50: 10 | AN50: 103439.8285 | AO50: 10344 | AP50: 0 | AQ50: 10344
A51: 414603063 | B51: BERKSHIRE ARTS AND TECHNOLOGY | C51: ='fnd enro'!C51 -> 0 | D51: ='fnd enro'!D51 -> 0 | E51: ='fnd enro'!E51 -> 0 | F51: ='fnd enro'!F51 -> 0 | G51: ='fnd enro'!G51 -> 1 | H51: ='fnd enro'!H51 -> 1 | I51: ='fnd enro'!I51 -> 0.075 | J51: ='fnd enro'!J51 -> 0 | K51: ='fnd enro'!K51 -> 0 | L51: ='fnd enro'!L51 -> 0 | M51: ='fnd enro'!M51 -> 0 | N51: ='fnd enro'!N51 -> 0 | O51: ='fnd enro'!O51 -> 0 | Q51: ='fnd enro'!R51 -> 2 | R51: 1 | S51: ='fnd enro'!Q51 -> 1 | U51: =(($C51*'fnd base rates'!C$48) +($D51*'fnd base rates'!C$49) +($E51*'fnd base rates'!C$50) +($F51*'fnd base rates'!C$51) +($G51*'fnd base rates'!C$52) +($H51*'fnd base rates'!C$53) +($I51*'fnd base rates'!C$54) +($J51*'fnd base rates'!C$55) +($K51*'fnd base rates'!C$56) +($L51*'fnd base rates'!C$57) +($M51*'fnd base rates'!C$58) +($N51*'fnd base rates'!C$59) +($O51*VLOOKUP($S51+12,rate_basefnd,3))) *$R51 -> 926.59125 | V51: =(($C51*'fnd base rates'!D$48) +($D51*'fnd base rates'!D$49) +($E51*'fnd base rates'!D$50) +($F51*'fnd base rates'!D$51) +($G51*'fnd base rates'!D$52) +($H51*'fnd base rates'!D$53) +($I51*'fnd base rates'!D$54) +($J51*'fnd base rates'!D$55) +($K51*'fnd base rates'!D$56) +($L51*'fnd base rates'!D$57) +($M51*'fnd base rates'!D$58) +($N51*'fnd base rates'!D$59) +($O51*VLOOKUP($S51+12,rate_basefnd,4))) *$R51 -> 1329.44 | W51: =(($C51*'fnd base rates'!E$48) +($D51*'fnd base rates'!E$49) +($E51*'fnd base rates'!E$50) +($F51*'fnd base rates'!E$51) +($G51*'fnd base rates'!E$52) +($H51*'fnd base rates'!E$53) +($I51*'fnd base rates'!E$54) +($J51*'fnd base rates'!E$55) +($K51*'fnd base rates'!E$56) +($L51*'fnd base rates'!E$57) +($M51*'fnd base rates'!E$58) +($N51*'fnd base rates'!E$59) +($O51*VLOOKUP($S51+12,rate_basefnd,5))) *$R51 -> 7255.22875 | X51: =(($C51*'fnd base rates'!F$48) +($D51*'fnd base rates'!F$49) +($E51*'fnd base rates'!F$50) +($F51*'fnd base rates'!F$51) +($G51*'fnd base rates'!F$52) +($H51*'fnd base rates'!F$53) +($I51*'fnd base rates'!F$54) +($J51*'fnd base rates'!F$55) +($K51*'fnd base rates'!F$56) +($L51*'fnd base rates'!F$57) +($M51*'fnd base rates'!F$58) +($N51*'fnd base rates'!F$59) +($O51*VLOOKUP($S51+12,rate_basefnd,6))) *$R51 -> 1618.1615 | Y51: =(($C51*'fnd base rates'!G$48) +($D51*'fnd base rates'!G$49) +($E51*'fnd base rates'!G$50) +($F51*'fnd base rates'!G$51) +($G51*'fnd base rates'!G$52) +($H51*'fnd base rates'!G$53) +($I51*'fnd base rates'!G$54) +($J51*'fnd base rates'!G$55) +($K51*'fnd base rates'!G$56) +($L51*'fnd base rates'!G$57) +($M51*'fnd base rates'!G$58) +($N51*'fnd base rates'!G$59) +($O51*VLOOKUP($S51+12,rate_basefnd,7))) *$R51 -> 287.8655 | Z51: =(($C51*'fnd base rates'!H$48) +($D51*'fnd base rates'!H$49) +($E51*'fnd base rates'!H$50) +($F51*'fnd base rates'!H$51) +($G51*'fnd base rates'!H$52) +($H51*'fnd base rates'!H$53) +($I51*'fnd base rates'!H$54) +($J51*'fnd base rates'!H$55) +($K51*'fnd base rates'!H$56) +($L51*'fnd base rates'!H$57) +($M51*'fnd base rates'!H$58) +($N51*'fnd base rates'!H$59) +($O51*VLOOKUP($S51+12,rate_basefnd,8))) -> 1173.469 | AA51: =(($C51*'fnd base rates'!I$48) +($D51*'fnd base rates'!I$49) +($E51*'fnd base rates'!I$50) +($F51*'fnd base rates'!I$51) +($G51*'fnd base rates'!I$52) +($H51*'fnd base rates'!I$53) +($I51*'fnd base rates'!I$54) +($J51*'fnd base rates'!I$55) +($K51*'fnd base rates'!I$56) +($L51*'fnd base rates'!I$57) +($M51*'fnd base rates'!I$58) +($N51*'fnd base rates'!I$59) +($O51*VLOOKUP($S51+12,rate_basefnd,9))) *$R51 -> 665.31 | AB51: =(($C51*'fnd base rates'!J$48) +($D51*'fnd base rates'!J$49) +($E51*'fnd base rates'!J$50) +($F51*'fnd base rates'!J$51) +($G51*'fnd base rates'!J$52) +($H51*'fnd base rates'!J$53) +($I51*'fnd base rates'!J$54) +($J51*'fnd base rates'!J$55) +($K51*'fnd base rates'!J$56) +($L51*'fnd base rates'!J$57) +($M51*'fnd base rates'!J$58) +($N51*'fnd base rates'!J$59) +($O51*VLOOKUP($S51+12,rate_basefnd,10))) *$R51 -> 714.68 | AC51: =(($C51*'fnd base rates'!K$48) +($D51*'fnd base rates'!K$49) +($E51*'fnd base rates'!K$50) +($F51*'fnd base rates'!K$51) +($G51*'fnd base rates'!K$52) +($H51*'fnd base rates'!K$53) +($I51*'fnd base rates'!K$54) +($J51*'fnd base rates'!K$55) +($K51*'fnd base rates'!K$56) +($L51*'fnd base rates'!K$57) +($M51*'fnd base rates'!K$58) +($N51*'fnd base rates'!K$59) +($O51*VLOOKUP($S51+12,rate_basefnd,11))) *$R51 -> 2020.10025 | AD51: =(($C51*'fnd base rates'!L$48) +($D51*'fnd base rates'!L$49) +($E51*'fnd base rates'!L$50) +($F51*'fnd base rates'!L$51) +($G51*'fnd base rates'!L$52) +($H51*'fnd base rates'!L$53) +($I51*'fnd base rates'!L$54) +($J51*'fnd base rates'!L$55) +($K51*'fnd base rates'!L$56) +($L51*'fnd base rates'!L$57) +($M51*'fnd base rates'!L$58) +($N51*'fnd base rates'!L$59) +($O51*VLOOKUP($S51+12,rate_basefnd,12))) -> 1897.277803 | AE51: =(($C51*'fnd base rates'!M$48) +($D51*'fnd base rates'!M$49) +($E51*'fnd base rates'!M$50) +($F51*'fnd base rates'!M$51) +($G51*'fnd base rates'!M$52) +($H51*'fnd base rates'!M$53) +($I51*'fnd base rates'!M$54) +($J51*'fnd base rates'!M$55) +($K51*'fnd base rates'!M$56) +($L51*'fnd base rates'!M$57) +($M51*'fnd base rates'!M$58) +($N51*'fnd base rates'!M$59) +($O51*VLOOKUP($S51+12,rate_basefnd,13))) -> 0 | AF51: 17888.12405 | AH51: 414603063 | AI51: 414 | AJ51: 603 | AK51: 063 | AL51: 1 | AM51: 2 | AN51: 17888.12405 | AO51: 8944 | AP51: 0 | AQ51: 8944
A52: 414603098 | B52: BERKSHIRE ARTS AND TECHNOLOGY | C52: ='fnd enro'!C52 -> 0 | D52: ='fnd enro'!D52 -> 0 | E52: ='fnd enro'!E52 -> 0 | F52: ='fnd enro'!F52 -> 0 | G52: ='fnd enro'!G52 -> 3 | H52: ='fnd enro'!H52 -> 2 | I52: ='fnd enro'!I52 -> 0.1875 | J52: ='fnd enro'!J52 -> 0 | K52: ='fnd enro'!K52 -> 0 | L52: ='fnd enro'!L52 -> 0 | M52: ='fnd enro'!M52 -> 0 | N52: ='fnd enro'!N52 -> 0 | O52: ='fnd enro'!O52 -> 1 | Q52: ='fnd enro'!R52 -> 5 | R52: 1 | S52: ='fnd enro'!Q52 -> 5 | U52: =(($C52*'fnd base rates'!C$48) +($D52*'fnd base rates'!C$49) +($E52*'fnd base rates'!C$50) +($F52*'fnd base rates'!C$51) +($G52*'fnd base rates'!C$52) +($H52*'fnd base rates'!C$53) +($I52*'fnd base rates'!C$54) +($J52*'fnd base rates'!C$55) +($K52*'fnd base rates'!C$56) +($L52*'fnd base rates'!C$57) +($M52*'fnd base rates'!C$58) +($N52*'fnd base rates'!C$59) +($O52*VLOOKUP($S52+12,rate_basefnd,3))) *$R52 -> 2316.478125 | V52: =(($C52*'fnd base rates'!D$48) +($D52*'fnd base rates'!D$49) +($E52*'fnd base rates'!D$50) +($F52*'fnd base rates'!D$51) +($G52*'fnd base rates'!D$52) +($H52*'fnd base rates'!D$53) +($I52*'fnd base rates'!D$54) +($J52*'fnd base rates'!D$55) +($K52*'fnd base rates'!D$56) +($L52*'fnd base rates'!D$57) +($M52*'fnd base rates'!D$58) +($N52*'fnd base rates'!D$59) +($O52*VLOOKUP($S52+12,rate_basefnd,4))) *$R52 -> 3323.6 | W52: =(($C52*'fnd base rates'!E$48) +($D52*'fnd base rates'!E$49) +($E52*'fnd base rates'!E$50) +($F52*'fnd base rates'!E$51) +($G52*'fnd base rates'!E$52) +($H52*'fnd base rates'!E$53) +($I52*'fnd base rates'!E$54) +($J52*'fnd base rates'!E$55) +($K52*'fnd base rates'!E$56) +($L52*'fnd base rates'!E$57) +($M52*'fnd base rates'!E$58) +($N52*'fnd base rates'!E$59) +($O52*VLOOKUP($S52+12,rate_basefnd,5))) *$R52 -> 20620.27687 | X52: =(($C52*'fnd base rates'!F$48) +($D52*'fnd base rates'!F$49) +($E52*'fnd base rates'!F$50) +($F52*'fnd base rates'!F$51) +($G52*'fnd base rates'!F$52) +($H52*'fnd base rates'!F$53) +($I52*'fnd base rates'!F$54) +($J52*'fnd base rates'!F$55) +($K52*'fnd base rates'!F$56) +($L52*'fnd base rates'!F$57) +($M52*'fnd base rates'!F$58) +($N52*'fnd base rates'!F$59) +($O52*VLOOKUP($S52+12,rate_basefnd,6))) *$R52 -> 4092.52875 | Y52: =(($C52*'fnd base rates'!G$48) +($D52*'fnd base rates'!G$49) +($E52*'fnd base rates'!G$50) +($F52*'fnd base rates'!G$51) +($G52*'fnd base rates'!G$52) +($H52*'fnd base rates'!G$53) +($I52*'fnd base rates'!G$54) +($J52*'fnd base rates'!G$55) +($K52*'fnd base rates'!G$56) +($L52*'fnd base rates'!G$57) +($M52*'fnd base rates'!G$58) +($N52*'fnd base rates'!G$59) +($O52*VLOOKUP($S52+12,rate_basefnd,7))) *$R52 -> 790.17375 | Z52: =(($C52*'fnd base rates'!H$48) +($D52*'fnd base rates'!H$49) +($E52*'fnd base rates'!H$50) +($F52*'fnd base rates'!H$51) +($G52*'fnd base rates'!H$52) +($H52*'fnd base rates'!H$53) +($I52*'fnd base rates'!H$54) +($J52*'fnd base rates'!H$55) +($K52*'fnd base rates'!H$56) +($L52*'fnd base rates'!H$57) +($M52*'fnd base rates'!H$58) +($N52*'fnd base rates'!H$59) +($O52*VLOOKUP($S52+12,rate_basefnd,8))) -> 2801.3225 | AA52: =(($C52*'fnd base rates'!I$48) +($D52*'fnd base rates'!I$49) +($E52*'fnd base rates'!I$50) +($F52*'fnd base rates'!I$51) +($G52*'fnd base rates'!I$52) +($H52*'fnd base rates'!I$53) +($I52*'fnd base rates'!I$54) +($J52*'fnd base rates'!I$55) +($K52*'fnd base rates'!I$56) +($L52*'fnd base rates'!I$57) +($M52*'fnd base rates'!I$58) +($N52*'fnd base rates'!I$59) +($O52*VLOOKUP($S52+12,rate_basefnd,9))) *$R52 -> 1625.85 | AB52: =(($C52*'fnd base rates'!J$48) +($D52*'fnd base rates'!J$49) +($E52*'fnd base rates'!J$50) +($F52*'fnd base rates'!J$51) +($G52*'fnd base rates'!J$52) +($H52*'fnd base rates'!J$53) +($I52*'fnd base rates'!J$54) +($J52*'fnd base rates'!J$55) +($K52*'fnd base rates'!J$56) +($L52*'fnd base rates'!J$57) +($M52*'fnd base rates'!J$58) +($N52*'fnd base rates'!J$59) +($O52*VLOOKUP($S52+12,rate_basefnd,10))) *$R52 -> 1645.54 | AC52: =(($C52*'fnd base rates'!K$48) +($D52*'fnd base rates'!K$49) +($E52*'fnd base rates'!K$50) +($F52*'fnd base rates'!K$51) +($G52*'fnd base rates'!K$52) +($H52*'fnd base rates'!K$53) +($I52*'fnd base rates'!K$54) +($J52*'fnd base rates'!K$55) +($K52*'fnd base rates'!K$56) +($L52*'fnd base rates'!K$57) +($M52*'fnd base rates'!K$58) +($N52*'fnd base rates'!K$59) +($O52*VLOOKUP($S52+12,rate_basefnd,11))) *$R52 -> 5545.025625 | AD52: =(($C52*'fnd base rates'!L$48) +($D52*'fnd base rates'!L$49) +($E52*'fnd base rates'!L$50) +($F52*'fnd base rates'!L$51) +($G52*'fnd base rates'!L$52) +($H52*'fnd base rates'!L$53) +($I52*'fnd base rates'!L$54) +($J52*'fnd base rates'!L$55) +($K52*'fnd base rates'!L$56) +($L52*'fnd base rates'!L$57) +($M52*'fnd base rates'!L$58) +($N52*'fnd base rates'!L$59) +($O52*VLOOKUP($S52+12,rate_basefnd,12))) -> 5088.605369 | AE52: =(($C52*'fnd base rates'!M$48) +($D52*'fnd base rates'!M$49) +($E52*'fnd base rates'!M$50) +($F52*'fnd base rates'!M$51) +($G52*'fnd base rates'!M$52) +($H52*'fnd base rates'!M$53) +($I52*'fnd base rates'!M$54) +($J52*'fnd base rates'!M$55) +($K52*'fnd base rates'!M$56) +($L52*'fnd base rates'!M$57) +($M52*'fnd base rates'!M$58) +($N52*'fnd base rates'!M$59) +($O52*VLOOKUP($S52+12,rate_basefnd,13))) -> 0 | AF52: 47849.40099 | AH52: 414603098 | AI52: 414 | AJ52: 603 | AK52: 098 | AL52: 1 | AM52: 5 | AN52: 47849.40099 | AO52: 9570 | AP52: 0 | AQ52: 9570
A53: 414603148 | B53: BERKSHIRE ARTS AND TECHNOLOGY | C53: ='fnd enro'!C53 -> 0 | D53: ='fnd enro'!D53 -> 0 | E53: ='fnd enro'!E53 -> 0 | F53: ='fnd enro'!F53 -> 0 | G53: ='fnd enro'!G53 -> 2 | H53: ='fnd enro'!H53 -> 0 | I53: ='fnd enro'!I53 -> 0.075 | J53: ='fnd enro'!J53 -> 0 | K53: ='fnd enro'!K53 -> 0 | L53: ='fnd enro'!L53 -> 0 | M53: ='fnd enro'!M53 -> 0 | N53: ='fnd enro'!N53 -> 0 | O53: ='fnd enro'!O53 -> 1 | Q53: ='fnd enro'!R53 -> 2 | R53: 1 | S53: ='fnd enro'!Q53 -> 10 | U53: =(($C53*'fnd base rates'!C$48) +($D53*'fnd base rates'!C$49) +($E53*'fnd base rates'!C$50) +($F53*'fnd base rates'!C$51) +($G53*'fnd base rates'!C$52) +($H53*'fnd base rates'!C$53) +($I53*'fnd base rates'!C$54) +($J53*'fnd base rates'!C$55) +($K53*'fnd base rates'!C$56) +($L53*'fnd base rates'!C$57) +($M53*'fnd base rates'!C$58) +($N53*'fnd base rates'!C$59) +($O53*VLOOKUP($S53+12,rate_basefnd,3))) *$R53 -> 926.59125 | V53: =(($C53*'fnd base rates'!D$48) +($D53*'fnd base rates'!D$49) +($E53*'fnd base rates'!D$50) +($F53*'fnd base rates'!D$51) +($G53*'fnd base rates'!D$52) +($H53*'fnd base rates'!D$53) +($I53*'fnd base rates'!D$54) +($J53*'fnd base rates'!D$55) +($K53*'fnd base rates'!D$56) +($L53*'fnd base rates'!D$57) +($M53*'fnd base rates'!D$58) +($N53*'fnd base rates'!D$59) +($O53*VLOOKUP($S53+12,rate_basefnd,4))) *$R53 -> 1329.44 | W53: =(($C53*'fnd base rates'!E$48) +($D53*'fnd base rates'!E$49) +($E53*'fnd base rates'!E$50) +($F53*'fnd base rates'!E$51) +($G53*'fnd base rates'!E$52) +($H53*'fnd base rates'!E$53) +($I53*'fnd base rates'!E$54) +($J53*'fnd base rates'!E$55) +($K53*'fnd base rates'!E$56) +($L53*'fnd base rates'!E$57) +($M53*'fnd base rates'!E$58) +($N53*'fnd base rates'!E$59) +($O53*VLOOKUP($S53+12,rate_basefnd,5))) *$R53 -> 9264.57875 | X53: =(($C53*'fnd base rates'!F$48) +($D53*'fnd base rates'!F$49) +($E53*'fnd base rates'!F$50) +($F53*'fnd base rates'!F$51) +($G53*'fnd base rates'!F$52) +($H53*'fnd base rates'!F$53) +($I53*'fnd base rates'!F$54) +($J53*'fnd base rates'!F$55) +($K53*'fnd base rates'!F$56) +($L53*'fnd base rates'!F$57) +($M53*'fnd base rates'!F$58) +($N53*'fnd base rates'!F$59) +($O53*VLOOKUP($S53+12,rate_basefnd,6))) *$R53 -> 1712.4115 | Y53: =(($C53*'fnd base rates'!G$48) +($D53*'fnd base rates'!G$49) +($E53*'fnd base rates'!G$50) +($F53*'fnd base rates'!G$51) +($G53*'fnd base rates'!G$52) +($H53*'fnd base rates'!G$53) +($I53*'fnd base rates'!G$54) +($J53*'fnd base rates'!G$55) +($K53*'fnd base rates'!G$56) +($L53*'fnd base rates'!G$57) +($M53*'fnd base rates'!G$58) +($N53*'fnd base rates'!G$59) +($O53*VLOOKUP($S53+12,rate_basefnd,7))) *$R53 -> 363.8455 | Z53: =(($C53*'fnd base rates'!H$48) +($D53*'fnd base rates'!H$49) +($E53*'fnd base rates'!H$50) +($F53*'fnd base rates'!H$51) +($G53*'fnd base rates'!H$52) +($H53*'fnd base rates'!H$53) +($I53*'fnd base rates'!H$54) +($J53*'fnd base rates'!H$55) +($K53*'fnd base rates'!H$56) +($L53*'fnd base rates'!H$57) +($M53*'fnd base rates'!H$58) +($N53*'fnd base rates'!H$59) +($O53*VLOOKUP($S53+12,rate_basefnd,8))) -> 908.769 | AA53: =(($C53*'fnd base rates'!I$48) +($D53*'fnd base rates'!I$49) +($E53*'fnd base rates'!I$50) +($F53*'fnd base rates'!I$51) +($G53*'fnd base rates'!I$52) +($H53*'fnd base rates'!I$53) +($I53*'fnd base rates'!I$54) +($J53*'fnd base rates'!I$55) +($K53*'fnd base rates'!I$56) +($L53*'fnd base rates'!I$57) +($M53*'fnd base rates'!I$58) +($N53*'fnd base rates'!I$59) +($O53*VLOOKUP($S53+12,rate_basefnd,9))) *$R53 -> 590.46 | AB53: =(($C53*'fnd base rates'!J$48) +($D53*'fnd base rates'!J$49) +($E53*'fnd base rates'!J$50) +($F53*'fnd base rates'!J$51) +($G53*'fnd base rates'!J$52) +($H53*'fnd base rates'!J$53) +($I53*'fnd base rates'!J$54) +($J53*'fnd base rates'!J$55) +($K53*'fnd base rates'!J$56) +($L53*'fnd base rates'!J$57) +($M53*'fnd base rates'!J$58) +($N53*'fnd base rates'!J$59) +($O53*VLOOKUP($S53+12,rate_basefnd,10))) *$R53 -> 432.36 | AC53: =(($C53*'fnd base rates'!K$48) +($D53*'fnd base rates'!K$49) +($E53*'fnd base rates'!K$50) +($F53*'fnd base rates'!K$51) +($G53*'fnd base rates'!K$52) +($H53*'fnd base rates'!K$53) +($I53*'fnd base rates'!K$54) +($J53*'fnd base rates'!K$55) +($K53*'fnd base rates'!K$56) +($L53*'fnd base rates'!K$57) +($M53*'fnd base rates'!K$58) +($N53*'fnd base rates'!K$59) +($O53*VLOOKUP($S53+12,rate_basefnd,11))) *$R53 -> 2553.26025 | AD53: =(($C53*'fnd base rates'!L$48) +($D53*'fnd base rates'!L$49) +($E53*'fnd base rates'!L$50) +($F53*'fnd base rates'!L$51) +($G53*'fnd base rates'!L$52) +($H53*'fnd base rates'!L$53) +($I53*'fnd base rates'!L$54) +($J53*'fnd base rates'!L$55) +($K53*'fnd base rates'!L$56) +($L53*'fnd base rates'!L$57) +($M53*'fnd base rates'!L$58) +($N53*'fnd base rates'!L$59) +($O53*VLOOKUP($S53+12,rate_basefnd,12))) -> 2288.139527 | AE53: =(($C53*'fnd base rates'!M$48) +($D53*'fnd base rates'!M$49) +($E53*'fnd base rates'!M$50) +($F53*'fnd base rates'!M$51) +($G53*'fnd base rates'!M$52) +($H53*'fnd base rates'!M$53) +($I53*'fnd base rates'!M$54) +($J53*'fnd base rates'!M$55) +($K53*'fnd base rates'!M$56) +($L53*'fnd base rates'!M$57) +($M53*'fnd base rates'!M$58) +($N53*'fnd base rates'!M$59) +($O53*VLOOKUP($S53+12,rate_basefnd,13))) -> 0 | AF53: 20369.85578 | AH53: 414603148 | AI53: 414 | AJ53: 603 | AK53: 148 | AL53: 1 | AM53: 2 | AN53: 20369.85578 | AO53: 10185 | AP53: 0 | AQ53: 10185
A54: 414603209 | B54: BERKSHIRE ARTS AND TECHNOLOGY | C54: ='fnd enro'!C54 -> 0 | D54: ='fnd enro'!D54 -> 0 | E54: ='fnd enro'!E54 -> 0 | F54: ='fnd enro'!F54 -> 0 | G54: ='fnd enro'!G54 -> 35 | H54: ='fnd enro'!H54 -> 20 | I54: ='fnd enro'!I54 -> 2.0625 | J54: ='fnd enro'!J54 -> 0 | K54: ='fnd enro'!K54 -> 0 | L54: ='fnd enro'!L54 -> 0 | M54: ='fnd enro'!M54 -> 0 | N54: ='fnd enro'!N54 -> 0 | O54: ='fnd enro'!O54 -> 31 | Q54: ='fnd enro'!R54 -> 55 | R54: 1 | S54: ='fnd enro'!Q54 -> 10 | U54: =(($C54*'fnd base rates'!C$48) +($D54*'fnd base rates'!C$49) +($E54*'fnd base rates'!C$50) +($F54*'fnd base rates'!C$51) +($G54*'fnd base rates'!C$52) +($H54*'fnd base rates'!C$53) +($I54*'fnd base rates'!C$54) +($J54*'fnd base rates'!C$55) +($K54*'fnd base rates'!C$56) +($L54*'fnd base rates'!C$57) +($M54*'fnd base rates'!C$58) +($N54*'fnd base rates'!C$59) +($O54*VLOOKUP($S54+12,rate_basefnd,3))) *$R54 -> 25481.25938 | V54: =(($C54*'fnd base rates'!D$48) +($D54*'fnd base rates'!D$49) +($E54*'fnd base rates'!D$50) +($F54*'fnd base rates'!D$51) +($G54*'fnd base rates'!D$52) +($H54*'fnd base rates'!D$53) +($I54*'fnd base rates'!D$54) +($J54*'fnd base rates'!D$55) +($K54*'fnd base rates'!D$56) +($L54*'fnd base rates'!D$57) +($M54*'fnd base rates'!D$58) +($N54*'fnd base rates'!D$59) +($O54*VLOOKUP($S54+12,rate_basefnd,4))) *$R54 -> 36559.6 | W54: =(($C54*'fnd base rates'!E$48) +($D54*'fnd base rates'!E$49) +($E54*'fnd base rates'!E$50) +($F54*'fnd base rates'!E$51) +($G54*'fnd base rates'!E$52) +($H54*'fnd base rates'!E$53) +($I54*'fnd base rates'!E$54) +($J54*'fnd base rates'!E$55) +($K54*'fnd base rates'!E$56) +($L54*'fnd base rates'!E$57) +($M54*'fnd base rates'!E$58) +($N54*'fnd base rates'!E$59) +($O54*VLOOKUP($S54+12,rate_basefnd,5))) *$R54 -> 291470.1056 | X54: =(($C54*'fnd base rates'!F$48) +($D54*'fnd base rates'!F$49) +($E54*'fnd base rates'!F$50) +($F54*'fnd base rates'!F$51) +($G54*'fnd base rates'!F$52) +($H54*'fnd base rates'!F$53) +($I54*'fnd base rates'!F$54) +($J54*'fnd base rates'!F$55) +($K54*'fnd base rates'!F$56) +($L54*'fnd base rates'!F$57) +($M54*'fnd base rates'!F$58) +($N54*'fnd base rates'!F$59) +($O54*VLOOKUP($S54+12,rate_basefnd,6))) *$R54 -> 45206.31625 | Y54: =(($C54*'fnd base rates'!G$48) +($D54*'fnd base rates'!G$49) +($E54*'fnd base rates'!G$50) +($F54*'fnd base rates'!G$51) +($G54*'fnd base rates'!G$52) +($H54*'fnd base rates'!G$53) +($I54*'fnd base rates'!G$54) +($J54*'fnd base rates'!G$55) +($K54*'fnd base rates'!G$56) +($L54*'fnd base rates'!G$57) +($M54*'fnd base rates'!G$58) +($N54*'fnd base rates'!G$59) +($O54*VLOOKUP($S54+12,rate_basefnd,7))) *$R54 -> 10178.15125 | Z54: =(($C54*'fnd base rates'!H$48) +($D54*'fnd base rates'!H$49) +($E54*'fnd base rates'!H$50) +($F54*'fnd base rates'!H$51) +($G54*'fnd base rates'!H$52) +($H54*'fnd base rates'!H$53) +($I54*'fnd base rates'!H$54) +($J54*'fnd base rates'!H$55) +($K54*'fnd base rates'!H$56) +($L54*'fnd base rates'!H$57) +($M54*'fnd base rates'!H$58) +($N54*'fnd base rates'!H$59) +($O54*VLOOKUP($S54+12,rate_basefnd,8))) -> 30285.1475 | AA54: =(($C54*'fnd base rates'!I$48) +($D54*'fnd base rates'!I$49) +($E54*'fnd base rates'!I$50) +($F54*'fnd base rates'!I$51) +($G54*'fnd base rates'!I$52) +($H54*'fnd base rates'!I$53) +($I54*'fnd base rates'!I$54) +($J54*'fnd base rates'!I$55) +($K54*'fnd base rates'!I$56) +($L54*'fnd base rates'!I$57) +($M54*'fnd base rates'!I$58) +($N54*'fnd base rates'!I$59) +($O54*VLOOKUP($S54+12,rate_basefnd,9))) *$R54 -> 17734.65 | AB54: =(($C54*'fnd base rates'!J$48) +($D54*'fnd base rates'!J$49) +($E54*'fnd base rates'!J$50) +($F54*'fnd base rates'!J$51) +($G54*'fnd base rates'!J$52) +($H54*'fnd base rates'!J$53) +($I54*'fnd base rates'!J$54) +($J54*'fnd base rates'!J$55) +($K54*'fnd base rates'!J$56) +($L54*'fnd base rates'!J$57) +($M54*'fnd base rates'!J$58) +($N54*'fnd base rates'!J$59) +($O54*VLOOKUP($S54+12,rate_basefnd,10))) *$R54 -> 17536.3 | AC54: =(($C54*'fnd base rates'!K$48) +($D54*'fnd base rates'!K$49) +($E54*'fnd base rates'!K$50) +($F54*'fnd base rates'!K$51) +($G54*'fnd base rates'!K$52) +($H54*'fnd base rates'!K$53) +($I54*'fnd base rates'!K$54) +($J54*'fnd base rates'!K$55) +($K54*'fnd base rates'!K$56) +($L54*'fnd base rates'!K$57) +($M54*'fnd base rates'!K$58) +($N54*'fnd base rates'!K$59) +($O54*VLOOKUP($S54+12,rate_basefnd,11))) *$R54 -> 71425.30188 | AD54: =(($C54*'fnd base rates'!L$48) +($D54*'fnd base rates'!L$49) +($E54*'fnd base rates'!L$50) +($F54*'fnd base rates'!L$51) +($G54*'fnd base rates'!L$52) +($H54*'fnd base rates'!L$53) +($I54*'fnd base rates'!L$54) +($J54*'fnd base rates'!L$55) +($K54*'fnd base rates'!L$56) +($L54*'fnd base rates'!L$57) +($M54*'fnd base rates'!L$58) +($N54*'fnd base rates'!L$59) +($O54*VLOOKUP($S54+12,rate_basefnd,12))) -> 62910.95251 | AE54: =(($C54*'fnd base rates'!M$48) +($D54*'fnd base rates'!M$49) +($E54*'fnd base rates'!M$50) +($F54*'fnd base rates'!M$51) +($G54*'fnd base rates'!M$52) +($H54*'fnd base rates'!M$53) +($I54*'fnd base rates'!M$54) +($J54*'fnd base rates'!M$55) +($K54*'fnd base rates'!M$56) +($L54*'fnd base rates'!M$57) +($M54*'fnd base rates'!M$58) +($N54*'fnd base rates'!M$59) +($O54*VLOOKUP($S54+12,rate_basefnd,13))) -> 0 | AF54: 608787.7844 | AH54: 414603209 | AI54: 414 | AJ54: 603 | AK54: 209 | AL54: 1 | AM54: 55 | AN54: 608787.7844 | AO54: 11069 | AP54: 0 | AQ54: 11069
A55: 414603236 | B55: BERKSHIRE ARTS AND TECHNOLOGY | C55: ='fnd enro'!C55 -> 0 | D55: ='fnd enro'!D55 -> 0 | E55: ='fnd enro'!E55 -> 0 | F55: ='fnd enro'!F55 -> 0 | G55: ='fnd enro'!G55 -> 102 | H55: ='fnd enro'!H55 -> 67 | I55: ='fnd enro'!I55 -> 6.5625 | J55: ='fnd enro'!J55 -> 0 | K55: ='fnd enro'!K55 -> 0 | L55: ='fnd enro'!L55 -> 0 | M55: ='fnd enro'!M55 -> 6 | N55: ='fnd enro'!N55 -> 0 | O55: ='fnd enro'!O55 -> 78 | Q55: ='fnd enro'!R55 -> 175 | R55: 1 | S55: ='fnd enro'!Q55 -> 9 | U55: =(($C55*'fnd base rates'!C$48) +($D55*'fnd base rates'!C$49) +($E55*'fnd base rates'!C$50) +($F55*'fnd base rates'!C$51) +($G55*'fnd base rates'!C$52) +($H55*'fnd base rates'!C$53) +($I55*'fnd base rates'!C$54) +($J55*'fnd base rates'!C$55) +($K55*'fnd base rates'!C$56) +($L55*'fnd base rates'!C$57) +($M55*'fnd base rates'!C$58) +($N55*'fnd base rates'!C$59) +($O55*VLOOKUP($S55+12,rate_basefnd,3))) *$R55 -> 81076.73438 | V55: =(($C55*'fnd base rates'!D$48) +($D55*'fnd base rates'!D$49) +($E55*'fnd base rates'!D$50) +($F55*'fnd base rates'!D$51) +($G55*'fnd base rates'!D$52) +($H55*'fnd base rates'!D$53) +($I55*'fnd base rates'!D$54) +($J55*'fnd base rates'!D$55) +($K55*'fnd base rates'!D$56) +($L55*'fnd base rates'!D$57) +($M55*'fnd base rates'!D$58) +($N55*'fnd base rates'!D$59) +($O55*VLOOKUP($S55+12,rate_basefnd,4))) *$R55 -> 116326 | W55: =(($C55*'fnd base rates'!E$48) +($D55*'fnd base rates'!E$49) +($E55*'fnd base rates'!E$50) +($F55*'fnd base rates'!E$51) +($G55*'fnd base rates'!E$52) +($H55*'fnd base rates'!E$53) +($I55*'fnd base rates'!E$54) +($J55*'fnd base rates'!E$55) +($K55*'fnd base rates'!E$56) +($L55*'fnd base rates'!E$57) +($M55*'fnd base rates'!E$58) +($N55*'fnd base rates'!E$59) +($O55*VLOOKUP($S55+12,rate_basefnd,5))) *$R55 -> 873117.8206 | X55: =(($C55*'fnd base rates'!F$48) +($D55*'fnd base rates'!F$49) +($E55*'fnd base rates'!F$50) +($F55*'fnd base rates'!F$51) +($G55*'fnd base rates'!F$52) +($H55*'fnd base rates'!F$53) +($I55*'fnd base rates'!F$54) +($J55*'fnd base rates'!F$55) +($K55*'fnd base rates'!F$56) +($L55*'fnd base rates'!F$57) +($M55*'fnd base rates'!F$58) +($N55*'fnd base rates'!F$59) +($O55*VLOOKUP($S55+12,rate_basefnd,6))) *$R55 -> 143895.3563 | Y55: =(($C55*'fnd base rates'!G$48) +($D55*'fnd base rates'!G$49) +($E55*'fnd base rates'!G$50) +($F55*'fnd base rates'!G$51) +($G55*'fnd base rates'!G$52) +($H55*'fnd base rates'!G$53) +($I55*'fnd base rates'!G$54) +($J55*'fnd base rates'!G$55) +($K55*'fnd base rates'!G$56) +($L55*'fnd base rates'!G$57) +($M55*'fnd base rates'!G$58) +($N55*'fnd base rates'!G$59) +($O55*VLOOKUP($S55+12,rate_basefnd,7))) *$R55 -> 31026.22125 | Z55: =(($C55*'fnd base rates'!H$48) +($D55*'fnd base rates'!H$49) +($E55*'fnd base rates'!H$50) +($F55*'fnd base rates'!H$51) +($G55*'fnd base rates'!H$52) +($H55*'fnd base rates'!H$53) +($I55*'fnd base rates'!H$54) +($J55*'fnd base rates'!H$55) +($K55*'fnd base rates'!H$56) +($L55*'fnd base rates'!H$57) +($M55*'fnd base rates'!H$58) +($N55*'fnd base rates'!H$59) +($O55*VLOOKUP($S55+12,rate_basefnd,8))) -> 97252.1875 | AA55: =(($C55*'fnd base rates'!I$48) +($D55*'fnd base rates'!I$49) +($E55*'fnd base rates'!I$50) +($F55*'fnd base rates'!I$51) +($G55*'fnd base rates'!I$52) +($H55*'fnd base rates'!I$53) +($I55*'fnd base rates'!I$54) +($J55*'fnd base rates'!I$55) +($K55*'fnd base rates'!I$56) +($L55*'fnd base rates'!I$57) +($M55*'fnd base rates'!I$58) +($N55*'fnd base rates'!I$59) +($O55*VLOOKUP($S55+12,rate_basefnd,9))) *$R55 -> 56680.2 | AB55: =(($C55*'fnd base rates'!J$48) +($D55*'fnd base rates'!J$49) +($E55*'fnd base rates'!J$50) +($F55*'fnd base rates'!J$51) +($G55*'fnd base rates'!J$52) +($H55*'fnd base rates'!J$53) +($I55*'fnd base rates'!J$54) +($J55*'fnd base rates'!J$55) +($K55*'fnd base rates'!J$56) +($L55*'fnd base rates'!J$57) +($M55*'fnd base rates'!J$58) +($N55*'fnd base rates'!J$59) +($O55*VLOOKUP($S55+12,rate_basefnd,10))) *$R55 -> 56243.96 | AC55: =(($C55*'fnd base rates'!K$48) +($D55*'fnd base rates'!K$49) +($E55*'fnd base rates'!K$50) +($F55*'fnd base rates'!K$51) +($G55*'fnd base rates'!K$52) +($H55*'fnd base rates'!K$53) +($I55*'fnd base rates'!K$54) +($J55*'fnd base rates'!K$55) +($K55*'fnd base rates'!K$56) +($L55*'fnd base rates'!K$57) +($M55*'fnd base rates'!K$58) +($N55*'fnd base rates'!K$59) +($O55*VLOOKUP($S55+12,rate_basefnd,11))) *$R55 -> 217729.4769 | AD55: =(($C55*'fnd base rates'!L$48) +($D55*'fnd base rates'!L$49) +($E55*'fnd base rates'!L$50) +($F55*'fnd base rates'!L$51) +($G55*'fnd base rates'!L$52) +($H55*'fnd base rates'!L$53) +($I55*'fnd base rates'!L$54) +($J55*'fnd base rates'!L$55) +($K55*'fnd base rates'!L$56) +($L55*'fnd base rates'!L$57) +($M55*'fnd base rates'!L$58) +($N55*'fnd base rates'!L$59) +($O55*VLOOKUP($S55+12,rate_basefnd,12))) -> 193895.7445 | AE55: =(($C55*'fnd base rates'!M$48) +($D55*'fnd base rates'!M$49) +($E55*'fnd base rates'!M$50) +($F55*'fnd base rates'!M$51) +($G55*'fnd base rates'!M$52) +($H55*'fnd base rates'!M$53) +($I55*'fnd base rates'!M$54) +($J55*'fnd base rates'!M$55) +($K55*'fnd base rates'!M$56) +($L55*'fnd base rates'!M$57) +($M55*'fnd base rates'!M$58) +($N55*'fnd base rates'!M$59) +($O55*VLOOKUP($S55+12,rate_basefnd,13))) -> 0 | AF55: 1867243.701 | AH55: 414603236 | AI55: 414 | AJ55: 603 | AK55: 236 | AL55: 1 | AM55: 175 | AN55: 1867243.701 | AO55: 10670 | AP55: 0 | AQ55: 10670
A56: 414603263 | B56: BERKSHIRE ARTS AND TECHNOLOGY | C56: ='fnd enro'!C56 -> 0 | D56: ='fnd enro'!D56 -> 0 | E56: ='fnd enro'!E56 -> 0 | F56: ='fnd enro'!F56 -> 0 | G56: ='fnd enro'!G56 -> 3 | H56: ='fnd enro'!H56 -> 2 | I56: ='fnd enro'!I56 -> 0.1875 | J56: ='fnd enro'!J56 -> 0 | K56: ='fnd enro'!K56 -> 0 | L56: ='fnd enro'!L56 -> 0 | M56: ='fnd enro'!M56 -> 0 | N56: ='fnd enro'!N56 -> 0 | O56: ='fnd enro'!O56 -> 1 | Q56: ='fnd enro'!R56 -> 5 | R56: 1 | S56: ='fnd enro'!Q56 -> 5 | U56: =(($C56*'fnd base rates'!C$48) +($D56*'fnd base rates'!C$49) +($E56*'fnd base rates'!C$50) +($F56*'fnd base rates'!C$51) +($G56*'fnd base rates'!C$52) +($H56*'fnd base rates'!C$53) +($I56*'fnd base rates'!C$54) +($J56*'fnd base rates'!C$55) +($K56*'fnd base rates'!C$56) +($L56*'fnd base rates'!C$57) +($M56*'fnd base rates'!C$58) +($N56*'fnd base rates'!C$59) +($O56*VLOOKUP($S56+12,rate_basefnd,3))) *$R56 -> 2316.478125 | V56: =(($C56*'fnd base rates'!D$48) +($D56*'fnd base rates'!D$49) +($E56*'fnd base rates'!D$50) +($F56*'fnd base rates'!D$51) +($G56*'fnd base rates'!D$52) +($H56*'fnd base rates'!D$53) +($I56*'fnd base rates'!D$54) +($J56*'fnd base rates'!D$55) +($K56*'fnd base rates'!D$56) +($L56*'fnd base rates'!D$57) +($M56*'fnd base rates'!D$58) +($N56*'fnd base rates'!D$59) +($O56*VLOOKUP($S56+12,rate_basefnd,4))) *$R56 -> 3323.6 | W56: =(($C56*'fnd base rates'!E$48) +($D56*'fnd base rates'!E$49) +($E56*'fnd base rates'!E$50) +($F56*'fnd base rates'!E$51) +($G56*'fnd base rates'!E$52) +($H56*'fnd base rates'!E$53) +($I56*'fnd base rates'!E$54) +($J56*'fnd base rates'!E$55) +($K56*'fnd base rates'!E$56) +($L56*'fnd base rates'!E$57) +($M56*'fnd base rates'!E$58) +($N56*'fnd base rates'!E$59) +($O56*VLOOKUP($S56+12,rate_basefnd,5))) *$R56 -> 20620.27687 | X56: =(($C56*'fnd base rates'!F$48) +($D56*'fnd base rates'!F$49) +($E56*'fnd base rates'!F$50) +($F56*'fnd base rates'!F$51) +($G56*'fnd base rates'!F$52) +($H56*'fnd base rates'!F$53) +($I56*'fnd base rates'!F$54) +($J56*'fnd base rates'!F$55) +($K56*'fnd base rates'!F$56) +($L56*'fnd base rates'!F$57) +($M56*'fnd base rates'!F$58) +($N56*'fnd base rates'!F$59) +($O56*VLOOKUP($S56+12,rate_basefnd,6))) *$R56 -> 4092.52875 | Y56: =(($C56*'fnd base rates'!G$48) +($D56*'fnd base rates'!G$49) +($E56*'fnd base rates'!G$50) +($F56*'fnd base rates'!G$51) +($G56*'fnd base rates'!G$52) +($H56*'fnd base rates'!G$53) +($I56*'fnd base rates'!G$54) +($J56*'fnd base rates'!G$55) +($K56*'fnd base rates'!G$56) +($L56*'fnd base rates'!G$57) +($M56*'fnd base rates'!G$58) +($N56*'fnd base rates'!G$59) +($O56*VLOOKUP($S56+12,rate_basefnd,7))) *$R56 -> 790.17375 | Z56: =(($C56*'fnd base rates'!H$48) +($D56*'fnd base rates'!H$49) +($E56*'fnd base rates'!H$50) +($F56*'fnd base rates'!H$51) +($G56*'fnd base rates'!H$52) +($H56*'fnd base rates'!H$53) +($I56*'fnd base rates'!H$54) +($J56*'fnd base rates'!H$55) +($K56*'fnd base rates'!H$56) +($L56*'fnd base rates'!H$57) +($M56*'fnd base rates'!H$58) +($N56*'fnd base rates'!H$59) +($O56*VLOOKUP($S56+12,rate_basefnd,8))) -> 2801.3225 | AA56: =(($C56*'fnd base rates'!I$48) +($D56*'fnd base rates'!I$49) +($E56*'fnd base rates'!I$50) +($F56*'fnd base rates'!I$51) +($G56*'fnd base rates'!I$52) +($H56*'fnd base rates'!I$53) +($I56*'fnd base rates'!I$54) +($J56*'fnd base rates'!I$55) +($K56*'fnd base rates'!I$56) +($L56*'fnd base rates'!I$57) +($M56*'fnd base rates'!I$58) +($N56*'fnd base rates'!I$59) +($O56*VLOOKUP($S56+12,rate_basefnd,9))) *$R56 -> 1625.85 | AB56: =(($C56*'fnd base rates'!J$48) +($D56*'fnd base rates'!J$49) +($E56*'fnd base rates'!J$50) +($F56*'fnd base rates'!J$51) +($G56*'fnd base rates'!J$52) +($H56*'fnd base rates'!J$53) +($I56*'fnd base rates'!J$54) +($J56*'fnd base rates'!J$55) +($K56*'fnd base rates'!J$56) +($L56*'fnd base rates'!J$57) +($M56*'fnd base rates'!J$58) +($N56*'fnd base rates'!J$59) +($O56*VLOOKUP($S56+12,rate_basefnd,10))) *$R56 -> 1645.54 | AC56: =(($C56*'fnd base rates'!K$48) +($D56*'fnd base rates'!K$49) +($E56*'fnd base rates'!K$50) +($F56*'fnd base rates'!K$51) +($G56*'fnd base rates'!K$52) +($H56*'fnd base rates'!K$53) +($I56*'fnd base rates'!K$54) +($J56*'fnd base rates'!K$55) +($K56*'fnd base rates'!K$56) +($L56*'fnd base rates'!K$57) +($M56*'fnd base rates'!K$58) +($N56*'fnd base rates'!K$59) +($O56*VLOOKUP($S56+12,rate_basefnd,11))) *$R56 -> 5545.025625 | AD56: =(($C56*'fnd base rates'!L$48) +($D56*'fnd base rates'!L$49) +($E56*'fnd base rates'!L$50) +($F56*'fnd base rates'!L$51) +($G56*'fnd base rates'!L$52) +($H56*'fnd base rates'!L$53) +($I56*'fnd base rates'!L$54) +($J56*'fnd base rates'!L$55) +($K56*'fnd base rates'!L$56) +($L56*'fnd base rates'!L$57) +($M56*'fnd base rates'!L$58) +($N56*'fnd base rates'!L$59) +($O56*VLOOKUP($S56+12,rate_basefnd,12))) -> 5088.605369 | AE56: =(($C56*'fnd base rates'!M$48) +($D56*'fnd base rates'!M$49) +($E56*'fnd base rates'!M$50) +($F56*'fnd base rates'!M$51) +($G56*'fnd base rates'!M$52) +($H56*'fnd base rates'!M$53) +($I56*'fnd base rates'!M$54) +($J56*'fnd base rates'!M$55) +($K56*'fnd base rates'!M$56) +($L56*'fnd base rates'!M$57) +($M56*'fnd base rates'!M$58) +($N56*'fnd base rates'!M$59) +($O56*VLOOKUP($S56+12,rate_basefnd,13))) -> 0 | AF56: 47849.40099 | AH56: 414603263 | AI56: 414 | AJ56: 603 | AK56: 263 | AL56: 1 | AM56: 5 | AN56: 47849.40099 | AO56: 9570 | AP56: 0 | AQ56: 9570
A57: 414603341 | B57: BERKSHIRE ARTS AND TECHNOLOGY | C57: ='fnd enro'!C57 -> 0 | D57: ='fnd enro'!D57 -> 0 | E57: ='fnd enro'!E57 -> 0 | F57: ='fnd enro'!F57 -> 0 | G57: ='fnd enro'!G57 -> 1 | H57: ='fnd enro'!H57 -> 0 | I57: ='fnd enro'!I57 -> 0.0375 | J57: ='fnd enro'!J57 -> 0 | K57: ='fnd enro'!K57 -> 0 | L57: ='fnd enro'!L57 -> 0 | M57: ='fnd enro'!M57 -> 0 | N57: ='fnd enro'!N57 -> 0 | O57: ='fnd enro'!O57 -> 0 | Q57: ='fnd enro'!R57 -> 1 | R57: 1 | S57: ='fnd enro'!Q57 -> 1 | U57: =(($C57*'fnd base rates'!C$48) +($D57*'fnd base rates'!C$49) +($E57*'fnd base rates'!C$50) +($F57*'fnd base rates'!C$51) +($G57*'fnd base rates'!C$52) +($H57*'fnd base rates'!C$53) +($I57*'fnd base rates'!C$54) +($J57*'fnd base rates'!C$55) +($K57*'fnd base rates'!C$56) +($L57*'fnd base rates'!C$57) +($M57*'fnd base rates'!C$58) +($N57*'fnd base rates'!C$59) +($O57*VLOOKUP($S57+12,rate_basefnd,3))) *$R57 -> 463.295625 | V57: =(($C57*'fnd base rates'!D$48) +($D57*'fnd base rates'!D$49) +($E57*'fnd base rates'!D$50) +($F57*'fnd base rates'!D$51) +($G57*'fnd base rates'!D$52) +($H57*'fnd base rates'!D$53) +($I57*'fnd base rates'!D$54) +($J57*'fnd base rates'!D$55) +($K57*'fnd base rates'!D$56) +($L57*'fnd base rates'!D$57) +($M57*'fnd base rates'!D$58) +($N57*'fnd base rates'!D$59) +($O57*VLOOKUP($S57+12,rate_basefnd,4))) *$R57 -> 664.72 | W57: =(($C57*'fnd base rates'!E$48) +($D57*'fnd base rates'!E$49) +($E57*'fnd base rates'!E$50) +($F57*'fnd base rates'!E$51) +($G57*'fnd base rates'!E$52) +($H57*'fnd base rates'!E$53) +($I57*'fnd base rates'!E$54) +($J57*'fnd base rates'!E$55) +($K57*'fnd base rates'!E$56) +($L57*'fnd base rates'!E$57) +($M57*'fnd base rates'!E$58) +($N57*'fnd base rates'!E$59) +($O57*VLOOKUP($S57+12,rate_basefnd,5))) *$R57 -> 2996.519375 | X57: =(($C57*'fnd base rates'!F$48) +($D57*'fnd base rates'!F$49) +($E57*'fnd base rates'!F$50) +($F57*'fnd base rates'!F$51) +($G57*'fnd base rates'!F$52) +($H57*'fnd base rates'!F$53) +($I57*'fnd base rates'!F$54) +($J57*'fnd base rates'!F$55) +($K57*'fnd base rates'!F$56) +($L57*'fnd base rates'!F$57) +($M57*'fnd base rates'!F$58) +($N57*'fnd base rates'!F$59) +($O57*VLOOKUP($S57+12,rate_basefnd,6))) *$R57 -> 856.20575 | Y57: =(($C57*'fnd base rates'!G$48) +($D57*'fnd base rates'!G$49) +($E57*'fnd base rates'!G$50) +($F57*'fnd base rates'!G$51) +($G57*'fnd base rates'!G$52) +($H57*'fnd base rates'!G$53) +($I57*'fnd base rates'!G$54) +($J57*'fnd base rates'!G$55) +($K57*'fnd base rates'!G$56) +($L57*'fnd base rates'!G$57) +($M57*'fnd base rates'!G$58) +($N57*'fnd base rates'!G$59) +($O57*VLOOKUP($S57+12,rate_basefnd,7))) *$R57 -> 145.92275 | Z57: =(($C57*'fnd base rates'!H$48) +($D57*'fnd base rates'!H$49) +($E57*'fnd base rates'!H$50) +($F57*'fnd base rates'!H$51) +($G57*'fnd base rates'!H$52) +($H57*'fnd base rates'!H$53) +($I57*'fnd base rates'!H$54) +($J57*'fnd base rates'!H$55) +($K57*'fnd base rates'!H$56) +($L57*'fnd base rates'!H$57) +($M57*'fnd base rates'!H$58) +($N57*'fnd base rates'!H$59) +($O57*VLOOKUP($S57+12,rate_basefnd,8))) -> 454.3845 | AA57: =(($C57*'fnd base rates'!I$48) +($D57*'fnd base rates'!I$49) +($E57*'fnd base rates'!I$50) +($F57*'fnd base rates'!I$51) +($G57*'fnd base rates'!I$52) +($H57*'fnd base rates'!I$53) +($I57*'fnd base rates'!I$54) +($J57*'fnd base rates'!I$55) +($K57*'fnd base rates'!I$56) +($L57*'fnd base rates'!I$57) +($M57*'fnd base rates'!I$58) +($N57*'fnd base rates'!I$59) +($O57*VLOOKUP($S57+12,rate_basefnd,9))) *$R57 -> 295.23 | AB57: =(($C57*'fnd base rates'!J$48) +($D57*'fnd base rates'!J$49) +($E57*'fnd base rates'!J$50) +($F57*'fnd base rates'!J$51) +($G57*'fnd base rates'!J$52) +($H57*'fnd base rates'!J$53) +($I57*'fnd base rates'!J$54) +($J57*'fnd base rates'!J$55) +($K57*'fnd base rates'!J$56) +($L57*'fnd base rates'!J$57) +($M57*'fnd base rates'!J$58) +($N57*'fnd base rates'!J$59) +($O57*VLOOKUP($S57+12,rate_basefnd,10))) *$R57 -> 216.18 | AC57: =(($C57*'fnd base rates'!K$48) +($D57*'fnd base rates'!K$49) +($E57*'fnd base rates'!K$50) +($F57*'fnd base rates'!K$51) +($G57*'fnd base rates'!K$52) +($H57*'fnd base rates'!K$53) +($I57*'fnd base rates'!K$54) +($J57*'fnd base rates'!K$55) +($K57*'fnd base rates'!K$56) +($L57*'fnd base rates'!K$57) +($M57*'fnd base rates'!K$58) +($N57*'fnd base rates'!K$59) +($O57*VLOOKUP($S57+12,rate_basefnd,11))) *$R57 -> 1023.995125 | AD57: =(($C57*'fnd base rates'!L$48) +($D57*'fnd base rates'!L$49) +($E57*'fnd base rates'!L$50) +($F57*'fnd base rates'!L$51) +($G57*'fnd base rates'!L$52) +($H57*'fnd base rates'!L$53) +($I57*'fnd base rates'!L$54) +($J57*'fnd base rates'!L$55) +($K57*'fnd base rates'!L$56) +($L57*'fnd base rates'!L$57) +($M57*'fnd base rates'!L$58) +($N57*'fnd base rates'!L$59) +($O57*VLOOKUP($S57+12,rate_basefnd,12))) -> 978.0197634 | AE57: =(($C57*'fnd base rates'!M$48) +($D57*'fnd base rates'!M$49) +($E57*'fnd base rates'!M$50) +($F57*'fnd base rates'!M$51) +($G57*'fnd base rates'!M$52) +($H57*'fnd base rates'!M$53) +($I57*'fnd base rates'!M$54) +($J57*'fnd base rates'!M$55) +($K57*'fnd base rates'!M$56) +($L57*'fnd base rates'!M$57) +($M57*'fnd base rates'!M$58) +($N57*'fnd base rates'!M$59) +($O57*VLOOKUP($S57+12,rate_basefnd,13))) -> 0 | AF57: 8094.472888 | AH57: 414603341 | AI57: 414 | AJ57: 603 | AK57: 341 | AL57: 1 | AM57: 1 | AN57: 8094.472888 | AO57: 8094 | AP57: 0 | AQ57: 8094
A58: 414603349 | B58: BERKSHIRE ARTS AND TECHNOLOGY | C58: ='fnd enro'!C58 -> 0 | D58: ='fnd enro'!D58 -> 0 | E58: ='fnd enro'!E58 -> 0 | F58: ='fnd enro'!F58 -> 0 | G58: ='fnd enro'!G58 -> 0 | H58: ='fnd enro'!H58 -> 1 | I58: ='fnd enro'!I58 -> 0.0375 | J58: ='fnd enro'!J58 -> 0 | K58: ='fnd enro'!K58 -> 0 | L58: ='fnd enro'!L58 -> 0 | M58: ='fnd enro'!M58 -> 0 | N58: ='fnd enro'!N58 -> 0 | O58: ='fnd enro'!O58 -> 0 | Q58: ='fnd enro'!R58 -> 1 | R58: 1 | S58: ='fnd enro'!Q58 -> 1 | U58: =(($C58*'fnd base rates'!C$48) +($D58*'fnd base rates'!C$49) +($E58*'fnd base rates'!C$50) +($F58*'fnd base rates'!C$51) +($G58*'fnd base rates'!C$52) +($H58*'fnd base rates'!C$53) +($I58*'fnd base rates'!C$54) +($J58*'fnd base rates'!C$55) +($K58*'fnd base rates'!C$56) +($L58*'fnd base rates'!C$57) +($M58*'fnd base rates'!C$58) +($N58*'fnd base rates'!C$59) +($O58*VLOOKUP($S58+12,rate_basefnd,3))) *$R58 -> 463.295625 | V58: =(($C58*'fnd base rates'!D$48) +($D58*'fnd base rates'!D$49) +($E58*'fnd base rates'!D$50) +($F58*'fnd base rates'!D$51) +($G58*'fnd base rates'!D$52) +($H58*'fnd base rates'!D$53) +($I58*'fnd base rates'!D$54) +($J58*'fnd base rates'!D$55) +($K58*'fnd base rates'!D$56) +($L58*'fnd base rates'!D$57) +($M58*'fnd base rates'!D$58) +($N58*'fnd base rates'!D$59) +($O58*VLOOKUP($S58+12,rate_basefnd,4))) *$R58 -> 664.72 | W58: =(($C58*'fnd base rates'!E$48) +($D58*'fnd base rates'!E$49) +($E58*'fnd base rates'!E$50) +($F58*'fnd base rates'!E$51) +($G58*'fnd base rates'!E$52) +($H58*'fnd base rates'!E$53) +($I58*'fnd base rates'!E$54) +($J58*'fnd base rates'!E$55) +($K58*'fnd base rates'!E$56) +($L58*'fnd base rates'!E$57) +($M58*'fnd base rates'!E$58) +($N58*'fnd base rates'!E$59) +($O58*VLOOKUP($S58+12,rate_basefnd,5))) *$R58 -> 4258.709375 | X58: =(($C58*'fnd base rates'!F$48) +($D58*'fnd base rates'!F$49) +($E58*'fnd base rates'!F$50) +($F58*'fnd base rates'!F$51) +($G58*'fnd base rates'!F$52) +($H58*'fnd base rates'!F$53) +($I58*'fnd base rates'!F$54) +($J58*'fnd base rates'!F$55) +($K58*'fnd base rates'!F$56) +($L58*'fnd base rates'!F$57) +($M58*'fnd base rates'!F$58) +($N58*'fnd base rates'!F$59) +($O58*VLOOKUP($S58+12,rate_basefnd,6))) *$R58 -> 761.95575 | Y58: =(($C58*'fnd base rates'!G$48) +($D58*'fnd base rates'!G$49) +($E58*'fnd base rates'!G$50) +($F58*'fnd base rates'!G$51) +($G58*'fnd base rates'!G$52) +($H58*'fnd base rates'!G$53) +($I58*'fnd base rates'!G$54) +($J58*'fnd base rates'!G$55) +($K58*'fnd base rates'!G$56) +($L58*'fnd base rates'!G$57) +($M58*'fnd base rates'!G$58) +($N58*'fnd base rates'!G$59) +($O58*VLOOKUP($S58+12,rate_basefnd,7))) *$R58 -> 141.94275 | Z58: =(($C58*'fnd base rates'!H$48) +($D58*'fnd base rates'!H$49) +($E58*'fnd base rates'!H$50) +($F58*'fnd base rates'!H$51) +($G58*'fnd base rates'!H$52) +($H58*'fnd base rates'!H$53) +($I58*'fnd base rates'!H$54) +($J58*'fnd base rates'!H$55) +($K58*'fnd base rates'!H$56) +($L58*'fnd base rates'!H$57) +($M58*'fnd base rates'!H$58) +($N58*'fnd base rates'!H$59) +($O58*VLOOKUP($S58+12,rate_basefnd,8))) -> 719.0845 | AA58: =(($C58*'fnd base rates'!I$48) +($D58*'fnd base rates'!I$49) +($E58*'fnd base rates'!I$50) +($F58*'fnd base rates'!I$51) +($G58*'fnd base rates'!I$52) +($H58*'fnd base rates'!I$53) +($I58*'fnd base rates'!I$54) +($J58*'fnd base rates'!I$55) +($K58*'fnd base rates'!I$56) +($L58*'fnd base rates'!I$57) +($M58*'fnd base rates'!I$58) +($N58*'fnd base rates'!I$59) +($O58*VLOOKUP($S58+12,rate_basefnd,9))) *$R58 -> 370.08 | AB58: =(($C58*'fnd base rates'!J$48) +($D58*'fnd base rates'!J$49) +($E58*'fnd base rates'!J$50) +($F58*'fnd base rates'!J$51) +($G58*'fnd base rates'!J$52) +($H58*'fnd base rates'!J$53) +($I58*'fnd base rates'!J$54) +($J58*'fnd base rates'!J$55) +($K58*'fnd base rates'!J$56) +($L58*'fnd base rates'!J$57) +($M58*'fnd base rates'!J$58) +($N58*'fnd base rates'!J$59) +($O58*VLOOKUP($S58+12,rate_basefnd,10))) *$R58 -> 498.5 | AC58: =(($C58*'fnd base rates'!K$48) +($D58*'fnd base rates'!K$49) +($E58*'fnd base rates'!K$50) +($F58*'fnd base rates'!K$51) +($G58*'fnd base rates'!K$52) +($H58*'fnd base rates'!K$53) +($I58*'fnd base rates'!K$54) +($J58*'fnd base rates'!K$55) +($K58*'fnd base rates'!K$56) +($L58*'fnd base rates'!K$57) +($M58*'fnd base rates'!K$58) +($N58*'fnd base rates'!K$59) +($O58*VLOOKUP($S58+12,rate_basefnd,11))) *$R58 -> 996.105125 | AD58: =(($C58*'fnd base rates'!L$48) +($D58*'fnd base rates'!L$49) +($E58*'fnd base rates'!L$50) +($F58*'fnd base rates'!L$51) +($G58*'fnd base rates'!L$52) +($H58*'fnd base rates'!L$53) +($I58*'fnd base rates'!L$54) +($J58*'fnd base rates'!L$55) +($K58*'fnd base rates'!L$56) +($L58*'fnd base rates'!L$57) +($M58*'fnd base rates'!L$58) +($N58*'fnd base rates'!L$59) +($O58*VLOOKUP($S58+12,rate_basefnd,12))) -> 919.2580394 | AE58: =(($C58*'fnd base rates'!M$48) +($D58*'fnd base rates'!M$49) +($E58*'fnd base rates'!M$50) +($F58*'fnd base rates'!M$51) +($G58*'fnd base rates'!M$52) +($H58*'fnd base rates'!M$53) +($I58*'fnd base rates'!M$54) +($J58*'fnd base rates'!M$55) +($K58*'fnd base rates'!M$56) +($L58*'fnd base rates'!M$57) +($M58*'fnd base rates'!M$58) +($N58*'fnd base rates'!M$59) +($O58*VLOOKUP($S58+12,rate_basefnd,13))) -> 0 | AF58: 9793.651164 | AH58: 414603349 | AI58: 414 | AJ58: 603 | AK58: 349 | AL58: 1 | AM58: 1 | AN58: 9793.651164 | AO58: 9794 | AP58: 0 | AQ58: 9794
A59: 414603603 | B59: BERKSHIRE ARTS AND TECHNOLOGY | C59: ='fnd enro'!C59 -> 0 | D59: ='fnd enro'!D59 -> 0 | E59: ='fnd enro'!E59 -> 0 | F59: ='fnd enro'!F59 -> 0 | G59: ='fnd enro'!G59 -> 39 | H59: ='fnd enro'!H59 -> 37 | I59: ='fnd enro'!I59 -> 2.85 | J59: ='fnd enro'!J59 -> 0 | K59: ='fnd enro'!K59 -> 0 | L59: ='fnd enro'!L59 -> 0 | M59: ='fnd enro'!M59 -> 0 | N59: ='fnd enro'!N59 -> 0 | O59: ='fnd enro'!O59 -> 34 | Q59: ='fnd enro'!R59 -> 76 | R59: 1 | S59: ='fnd enro'!Q59 -> 9 | U59: =(($C59*'fnd base rates'!C$48) +($D59*'fnd base rates'!C$49) +($E59*'fnd base rates'!C$50) +($F59*'fnd base rates'!C$51) +($G59*'fnd base rates'!C$52) +($H59*'fnd base rates'!C$53) +($I59*'fnd base rates'!C$54) +($J59*'fnd base rates'!C$55) +($K59*'fnd base rates'!C$56) +($L59*'fnd base rates'!C$57) +($M59*'fnd base rates'!C$58) +($N59*'fnd base rates'!C$59) +($O59*VLOOKUP($S59+12,rate_basefnd,3))) *$R59 -> 35210.4675 | V59: =(($C59*'fnd base rates'!D$48) +($D59*'fnd base rates'!D$49) +($E59*'fnd base rates'!D$50) +($F59*'fnd base rates'!D$51) +($G59*'fnd base rates'!D$52) +($H59*'fnd base rates'!D$53) +($I59*'fnd base rates'!D$54) +($J59*'fnd base rates'!D$55) +($K59*'fnd base rates'!D$56) +($L59*'fnd base rates'!D$57) +($M59*'fnd base rates'!D$58) +($N59*'fnd base rates'!D$59) +($O59*VLOOKUP($S59+12,rate_basefnd,4))) *$R59 -> 50518.72 | W59: =(($C59*'fnd base rates'!E$48) +($D59*'fnd base rates'!E$49) +($E59*'fnd base rates'!E$50) +($F59*'fnd base rates'!E$51) +($G59*'fnd base rates'!E$52) +($H59*'fnd base rates'!E$53) +($I59*'fnd base rates'!E$54) +($J59*'fnd base rates'!E$55) +($K59*'fnd base rates'!E$56) +($L59*'fnd base rates'!E$57) +($M59*'fnd base rates'!E$58) +($N59*'fnd base rates'!E$59) +($O59*VLOOKUP($S59+12,rate_basefnd,5))) *$R59 -> 384592.7625 | X59: =(($C59*'fnd base rates'!F$48) +($D59*'fnd base rates'!F$49) +($E59*'fnd base rates'!F$50) +($F59*'fnd base rates'!F$51) +($G59*'fnd base rates'!F$52) +($H59*'fnd base rates'!F$53) +($I59*'fnd base rates'!F$54) +($J59*'fnd base rates'!F$55) +($K59*'fnd base rates'!F$56) +($L59*'fnd base rates'!F$57) +($M59*'fnd base rates'!F$58) +($N59*'fnd base rates'!F$59) +($O59*VLOOKUP($S59+12,rate_basefnd,6))) *$R59 -> 61584.387 | Y59: =(($C59*'fnd base rates'!G$48) +($D59*'fnd base rates'!G$49) +($E59*'fnd base rates'!G$50) +($F59*'fnd base rates'!G$51) +($G59*'fnd base rates'!G$52) +($H59*'fnd base rates'!G$53) +($I59*'fnd base rates'!G$54) +($J59*'fnd base rates'!G$55) +($K59*'fnd base rates'!G$56) +($L59*'fnd base rates'!G$57) +($M59*'fnd base rates'!G$58) +($N59*'fnd base rates'!G$59) +($O59*VLOOKUP($S59+12,rate_basefnd,7))) *$R59 -> 13367.069 | Z59: =(($C59*'fnd base rates'!H$48) +($D59*'fnd base rates'!H$49) +($E59*'fnd base rates'!H$50) +($F59*'fnd base rates'!H$51) +($G59*'fnd base rates'!H$52) +($H59*'fnd base rates'!H$53) +($I59*'fnd base rates'!H$54) +($J59*'fnd base rates'!H$55) +($K59*'fnd base rates'!H$56) +($L59*'fnd base rates'!H$57) +($M59*'fnd base rates'!H$58) +($N59*'fnd base rates'!H$59) +($O59*VLOOKUP($S59+12,rate_basefnd,8))) -> 44327.122 | AA59: =(($C59*'fnd base rates'!I$48) +($D59*'fnd base rates'!I$49) +($E59*'fnd base rates'!I$50) +($F59*'fnd base rates'!I$51) +($G59*'fnd base rates'!I$52) +($H59*'fnd base rates'!I$53) +($I59*'fnd base rates'!I$54) +($J59*'fnd base rates'!I$55) +($K59*'fnd base rates'!I$56) +($L59*'fnd base rates'!I$57) +($M59*'fnd base rates'!I$58) +($N59*'fnd base rates'!I$59) +($O59*VLOOKUP($S59+12,rate_basefnd,9))) *$R59 -> 25206.93 | AB59: =(($C59*'fnd base rates'!J$48) +($D59*'fnd base rates'!J$49) +($E59*'fnd base rates'!J$50) +($F59*'fnd base rates'!J$51) +($G59*'fnd base rates'!J$52) +($H59*'fnd base rates'!J$53) +($I59*'fnd base rates'!J$54) +($J59*'fnd base rates'!J$55) +($K59*'fnd base rates'!J$56) +($L59*'fnd base rates'!J$57) +($M59*'fnd base rates'!J$58) +($N59*'fnd base rates'!J$59) +($O59*VLOOKUP($S59+12,rate_basefnd,10))) *$R59 -> 26875.52 | AC59: =(($C59*'fnd base rates'!K$48) +($D59*'fnd base rates'!K$49) +($E59*'fnd base rates'!K$50) +($F59*'fnd base rates'!K$51) +($G59*'fnd base rates'!K$52) +($H59*'fnd base rates'!K$53) +($I59*'fnd base rates'!K$54) +($J59*'fnd base rates'!K$55) +($K59*'fnd base rates'!K$56) +($L59*'fnd base rates'!K$57) +($M59*'fnd base rates'!K$58) +($N59*'fnd base rates'!K$59) +($O59*VLOOKUP($S59+12,rate_basefnd,11))) *$R59 -> 93804.6195 | AD59: =(($C59*'fnd base rates'!L$48) +($D59*'fnd base rates'!L$49) +($E59*'fnd base rates'!L$50) +($F59*'fnd base rates'!L$51) +($G59*'fnd base rates'!L$52) +($H59*'fnd base rates'!L$53) +($I59*'fnd base rates'!L$54) +($J59*'fnd base rates'!L$55) +($K59*'fnd base rates'!L$56) +($L59*'fnd base rates'!L$57) +($M59*'fnd base rates'!L$58) +($N59*'fnd base rates'!L$59) +($O59*VLOOKUP($S59+12,rate_basefnd,12))) -> 83337.23823 | AE59: =(($C59*'fnd base rates'!M$48) +($D59*'fnd base rates'!M$49) +($E59*'fnd base rates'!M$50) +($F59*'fnd base rates'!M$51) +($G59*'fnd base rates'!M$52) +($H59*'fnd base rates'!M$53) +($I59*'fnd base rates'!M$54) +($J59*'fnd base rates'!M$55) +($K59*'fnd base rates'!M$56) +($L59*'fnd base rates'!M$57) +($M59*'fnd base rates'!M$58) +($N59*'fnd base rates'!M$59) +($O59*VLOOKUP($S59+12,rate_basefnd,13))) -> 0 | AF59: 818824.8357 | AH59: 414603603 | AI59: 414 | AJ59: 603 | AK59: 603 | AL59: 1 | AM59: 76 | AN59: 818824.8357 | AO59: 10774 | AP59: 0 | AQ59: 10774
A60: 414603635 | B60: BERKSHIRE ARTS AND TECHNOLOGY | C60: ='fnd enro'!C60 -> 0 | D60: ='fnd enro'!D60 -> 0 | E60: ='fnd enro'!E60 -> 0 | F60: ='fnd enro'!F60 -> 0 | G60: ='fnd enro'!G60 -> 12 | H60: ='fnd enro'!H60 -> 5 | I60: ='fnd enro'!I60 -> 0.6375 | J60: ='fnd enro'!J60 -> 0 | K60: ='fnd enro'!K60 -> 0 | L60: ='fnd enro'!L60 -> 0 | M60: ='fnd enro'!M60 -> 0 | N60: ='fnd enro'!N60 -> 0 | O60: ='fnd enro'!O60 -> 6 | Q60: ='fnd enro'!R60 -> 17 | R60: 1 | S60: ='fnd enro'!Q60 -> 9 | U60: =(($C60*'fnd base rates'!C$48) +($D60*'fnd base rates'!C$49) +($E60*'fnd base rates'!C$50) +($F60*'fnd base rates'!C$51) +($G60*'fnd base rates'!C$52) +($H60*'fnd base rates'!C$53) +($I60*'fnd base rates'!C$54) +($J60*'fnd base rates'!C$55) +($K60*'fnd base rates'!C$56) +($L60*'fnd base rates'!C$57) +($M60*'fnd base rates'!C$58) +($N60*'fnd base rates'!C$59) +($O60*VLOOKUP($S60+12,rate_basefnd,3))) *$R60 -> 7876.025625 | V60: =(($C60*'fnd base rates'!D$48) +($D60*'fnd base rates'!D$49) +($E60*'fnd base rates'!D$50) +($F60*'fnd base rates'!D$51) +($G60*'fnd base rates'!D$52) +($H60*'fnd base rates'!D$53) +($I60*'fnd base rates'!D$54) +($J60*'fnd base rates'!D$55) +($K60*'fnd base rates'!D$56) +($L60*'fnd base rates'!D$57) +($M60*'fnd base rates'!D$58) +($N60*'fnd base rates'!D$59) +($O60*VLOOKUP($S60+12,rate_basefnd,4))) *$R60 -> 11300.24 | W60: =(($C60*'fnd base rates'!E$48) +($D60*'fnd base rates'!E$49) +($E60*'fnd base rates'!E$50) +($F60*'fnd base rates'!E$51) +($G60*'fnd base rates'!E$52) +($H60*'fnd base rates'!E$53) +($I60*'fnd base rates'!E$54) +($J60*'fnd base rates'!E$55) +($K60*'fnd base rates'!E$56) +($L60*'fnd base rates'!E$57) +($M60*'fnd base rates'!E$58) +($N60*'fnd base rates'!E$59) +($O60*VLOOKUP($S60+12,rate_basefnd,5))) *$R60 -> 76691.11937 | X60: =(($C60*'fnd base rates'!F$48) +($D60*'fnd base rates'!F$49) +($E60*'fnd base rates'!F$50) +($F60*'fnd base rates'!F$51) +($G60*'fnd base rates'!F$52) +($H60*'fnd base rates'!F$53) +($I60*'fnd base rates'!F$54) +($J60*'fnd base rates'!F$55) +($K60*'fnd base rates'!F$56) +($L60*'fnd base rates'!F$57) +($M60*'fnd base rates'!F$58) +($N60*'fnd base rates'!F$59) +($O60*VLOOKUP($S60+12,rate_basefnd,6))) *$R60 -> 14084.24775 | Y60: =(($C60*'fnd base rates'!G$48) +($D60*'fnd base rates'!G$49) +($E60*'fnd base rates'!G$50) +($F60*'fnd base rates'!G$51) +($G60*'fnd base rates'!G$52) +($H60*'fnd base rates'!G$53) +($I60*'fnd base rates'!G$54) +($J60*'fnd base rates'!G$55) +($K60*'fnd base rates'!G$56) +($L60*'fnd base rates'!G$57) +($M60*'fnd base rates'!G$58) +($N60*'fnd base rates'!G$59) +($O60*VLOOKUP($S60+12,rate_basefnd,7))) *$R60 -> 2888.58675 | Z60: =(($C60*'fnd base rates'!H$48) +($D60*'fnd base rates'!H$49) +($E60*'fnd base rates'!H$50) +($F60*'fnd base rates'!H$51) +($G60*'fnd base rates'!H$52) +($H60*'fnd base rates'!H$53) +($I60*'fnd base rates'!H$54) +($J60*'fnd base rates'!H$55) +($K60*'fnd base rates'!H$56) +($L60*'fnd base rates'!H$57) +($M60*'fnd base rates'!H$58) +($N60*'fnd base rates'!H$59) +($O60*VLOOKUP($S60+12,rate_basefnd,8))) -> 9048.0365 | AA60: =(($C60*'fnd base rates'!I$48) +($D60*'fnd base rates'!I$49) +($E60*'fnd base rates'!I$50) +($F60*'fnd base rates'!I$51) +($G60*'fnd base rates'!I$52) +($H60*'fnd base rates'!I$53) +($I60*'fnd base rates'!I$54) +($J60*'fnd base rates'!I$55) +($K60*'fnd base rates'!I$56) +($L60*'fnd base rates'!I$57) +($M60*'fnd base rates'!I$58) +($N60*'fnd base rates'!I$59) +($O60*VLOOKUP($S60+12,rate_basefnd,9))) *$R60 -> 5393.16 | AB60: =(($C60*'fnd base rates'!J$48) +($D60*'fnd base rates'!J$49) +($E60*'fnd base rates'!J$50) +($F60*'fnd base rates'!J$51) +($G60*'fnd base rates'!J$52) +($H60*'fnd base rates'!J$53) +($I60*'fnd base rates'!J$54) +($J60*'fnd base rates'!J$55) +($K60*'fnd base rates'!J$56) +($L60*'fnd base rates'!J$57) +($M60*'fnd base rates'!J$58) +($N60*'fnd base rates'!J$59) +($O60*VLOOKUP($S60+12,rate_basefnd,10))) *$R60 -> 5086.66 | AC60: =(($C60*'fnd base rates'!K$48) +($D60*'fnd base rates'!K$49) +($E60*'fnd base rates'!K$50) +($F60*'fnd base rates'!K$51) +($G60*'fnd base rates'!K$52) +($H60*'fnd base rates'!K$53) +($I60*'fnd base rates'!K$54) +($J60*'fnd base rates'!K$55) +($K60*'fnd base rates'!K$56) +($L60*'fnd base rates'!K$57) +($M60*'fnd base rates'!K$58) +($N60*'fnd base rates'!K$59) +($O60*VLOOKUP($S60+12,rate_basefnd,11))) *$R60 -> 20270.74712 | AD60: =(($C60*'fnd base rates'!L$48) +($D60*'fnd base rates'!L$49) +($E60*'fnd base rates'!L$50) +($F60*'fnd base rates'!L$51) +($G60*'fnd base rates'!L$52) +($H60*'fnd base rates'!L$53) +($I60*'fnd base rates'!L$54) +($J60*'fnd base rates'!L$55) +($K60*'fnd base rates'!L$56) +($L60*'fnd base rates'!L$57) +($M60*'fnd base rates'!L$58) +($N60*'fnd base rates'!L$59) +($O60*VLOOKUP($S60+12,rate_basefnd,12))) -> 18305.80736 | AE60: =(($C60*'fnd base rates'!M$48) +($D60*'fnd base rates'!M$49) +($E60*'fnd base rates'!M$50) +($F60*'fnd base rates'!M$51) +($G60*'fnd base rates'!M$52) +($H60*'fnd base rates'!M$53) +($I60*'fnd base rates'!M$54) +($J60*'fnd base rates'!M$55) +($K60*'fnd base rates'!M$56) +($L60*'fnd base rates'!M$57) +($M60*'fnd base rates'!M$58) +($N60*'fnd base rates'!M$59) +($O60*VLOOKUP($S60+12,rate_basefnd,13))) -> 0 | AF60: 170944.6305 | AH60: 414603635 | AI60: 414 | AJ60: 603 | AK60: 635 | AL60: 1 | AM60: 17 | AN60: 170944.6305 | AO60: 10056 | AP60: 0 | AQ60: 10056
